{"text_format":"1","workbook":"xlsx","n_sheets":5,"sheets":["listing","Userform1","réservation","userform2","outils"],"not_rendered":{"charts":0,"images":0,"macros":1,"external_links":0,"defined_names":3,"comments":0,"pivot_tables":0},"unopened":[{"sheet":"Userform1","index":1,"reason":"not_a_worksheet"},{"sheet":"userform2","index":3,"reason":"not_a_worksheet"}],"bounds":{"document_bytes":16777216,"sheet_cells":100000,"rows_first":2000,"rows_last":500,"rows_between":2000,"halvings":0,"cell_chars":16384,"cell_head_chars":4096},"cells_cut":0,"cells_raw":0,"read":"whole","date_system":"1900"}

{"sheet":"listing","index":0,"n_rows":399,"n_cols":13,"rows_kept":399,"cut":false,"hidden":false,"merged":[]}
[]
["12 Bureaux","0 ","25 Canapés","0 ","34 Chaises","9 Consoles","0 ","0 ","31 Fauteils","15 Meuble TV","5 Miroirs"]
["40 Poubelles","0 ","74 Rideaux","0 ","44 Tables Basse","21 Tables de chevet","0 ","0 ","44 Tableaux","36 Tapis","391 articles"]
["type","n°","numéro","lien","photo","désignation","résa","code désignation","dimension","Prix","Prix de vente ESMS","destinataire","déjà en prêt commande"]
[{"$f":"_xlfn.XLOOKUP(MID(C5,1,1),Type[lettre type],Type[type])","v":"Bureau"},1,"A1",{"$f":"\"https://sico-my.sharepoint.com/personal/julien_carestiato_fondation-ove_fr/Documents/Images/1potiniere/\"&Tableau2[[#This Row],[numéro]]&\".png\"","v":"https://sico-my.sharepoint.com/personal/julien_carestiato_fondation-ove_fr/Documents/Images/1potiniere/A1.png"},null,"BUREAU + MINI BAR                          MANQUE 1 BLOC",{"$f":"IF(Tableau2[[#This Row],[déjà en prêt commande]]=TRUE,\" \",Tableau2[[#This Row],[numéro]]&\" \"&Tableau2[[#This Row],[désignation]])","v":"A1 BUREAU + MINI BAR                          MANQUE 1 BLOC"},{"$f":"Tableau2[[#This Row],[numéro]]&\" \"&Tableau2[[#This Row],[désignation]]","v":"A1 BUREAU + MINI BAR                          MANQUE 1 BLOC"},"H 76 cm / 70 X 249 cm",300,60,null,{"$f":"IF(Tableau2[[#This Row],[destinataire]]=0,IF(_xlfn.XLOOKUP(Tableau2[[#This Row],[code désignation]],commandecolonne[lisiting commande colonne],commandecolonne[lisiting commande colonne],FALSE)=Tableau2[[#This Row],[code désignation]],TRUE,FALSE),TRUE)","v":false}]
[{"$f":"_xlfn.XLOOKUP(MID(C6,1,1),Type[lettre type],Type[type])","v":"Bureau"},2,"A2",{"$f":"\"https://sico-my.sharepoint.com/personal/julien_carestiato_fondation-ove_fr/Documents/Images/1potiniere/\"&Tableau2[[#This Row],[numéro]]&\".png\"","v":"https://sico-my.sharepoint.com/personal/julien_carestiato_fondation-ove_fr/Documents/Images/1potiniere/A2.png"},null,"BUREAU + MINI BAR                          ",{"$f":"IF(Tableau2[[#This Row],[déjà en prêt commande]]=TRUE,\" \",Tableau2[[#This Row],[numéro]]&\" \"&Tableau2[[#This Row],[désignation]])","v":"A2 BUREAU + MINI BAR                          "},{"$f":"Tableau2[[#This Row],[numéro]]&\" \"&Tableau2[[#This Row],[désignation]]","v":"A2 BUREAU + MINI BAR                          "},"H 75 cm / 70 X 150 cm",300,60,null,{"$f":"IF(Tableau2[[#This Row],[destinataire]]=0,IF(_xlfn.XLOOKUP(Tableau2[[#This Row],[code désignation]],commandecolonne[lisiting commande colonne],commandecolonne[lisiting commande colonne],FALSE)=Tableau2[[#This Row],[code désignation]],TRUE,FALSE),TRUE)","v":false}]
[{"$f":"_xlfn.XLOOKUP(MID(C7,1,1),Type[lettre type],Type[type])","v":"Bureau"},3,"A2bis",{"$f":"\"https://sico-my.sharepoint.com/personal/julien_carestiato_fondation-ove_fr/Documents/Images/1potiniere/\"&Tableau2[[#This Row],[numéro]]&\".png\"","v":"https://sico-my.sharepoint.com/personal/julien_carestiato_fondation-ove_fr/Documents/Images/1potiniere/A2bis.png"},null,"BUREAU",{"$f":"IF(Tableau2[[#This Row],[déjà en prêt commande]]=TRUE,\" \",Tableau2[[#This Row],[numéro]]&\" \"&Tableau2[[#This Row],[désignation]])","v":"A2bis BUREAU"},{"$f":"Tableau2[[#This Row],[numéro]]&\" \"&Tableau2[[#This Row],[désignation]]","v":"A2bis BUREAU"},"H 76 cm / 70 X 150 cm",300,60,null,{"$f":"IF(Tableau2[[#This Row],[destinataire]]=0,IF(_xlfn.XLOOKUP(Tableau2[[#This Row],[code désignation]],commandecolonne[lisiting commande colonne],commandecolonne[lisiting commande colonne],FALSE)=Tableau2[[#This Row],[code désignation]],TRUE,FALSE),TRUE)","v":false}]
[{"$f":"_xlfn.XLOOKUP(MID(C8,1,1),Type[lettre type],Type[type])","v":"Bureau"},4,"A3",{"$f":"\"https://sico-my.sharepoint.com/personal/julien_carestiato_fondation-ove_fr/Documents/Images/1potiniere/\"&Tableau2[[#This Row],[numéro]]&\".png\"","v":"https://sico-my.sharepoint.com/personal/julien_carestiato_fondation-ove_fr/Documents/Images/1potiniere/A3.png"},null,"BUREAU + MINI BAR                          ",{"$f":"IF(Tableau2[[#This Row],[déjà en prêt commande]]=TRUE,\" \",Tableau2[[#This Row],[numéro]]&\" \"&Tableau2[[#This Row],[désignation]])","v":"A3 BUREAU + MINI BAR                          "},{"$f":"Tableau2[[#This Row],[numéro]]&\" \"&Tableau2[[#This Row],[désignation]]","v":"A3 BUREAU + MINI BAR                          "},"H 75 cm / 70 X 150 cm",300,60,null,{"$f":"IF(Tableau2[[#This Row],[destinataire]]=0,IF(_xlfn.XLOOKUP(Tableau2[[#This Row],[code désignation]],commandecolonne[lisiting commande colonne],commandecolonne[lisiting commande colonne],FALSE)=Tableau2[[#This Row],[code désignation]],TRUE,FALSE),TRUE)","v":false}]
[{"$f":"_xlfn.XLOOKUP(MID(C9,1,1),Type[lettre type],Type[type])","v":"Bureau"},5,"A4",{"$f":"\"https://sico-my.sharepoint.com/personal/julien_carestiato_fondation-ove_fr/Documents/Images/1potiniere/\"&Tableau2[[#This Row],[numéro]]&\".png\"","v":"https://sico-my.sharepoint.com/personal/julien_carestiato_fondation-ove_fr/Documents/Images/1potiniere/A4.png"},null,"BUREAU TIROIR",{"$f":"IF(Tableau2[[#This Row],[déjà en prêt commande]]=TRUE,\" \",Tableau2[[#This Row],[numéro]]&\" \"&Tableau2[[#This Row],[désignation]])","v":"A4 BUREAU TIROIR"},{"$f":"Tableau2[[#This Row],[numéro]]&\" \"&Tableau2[[#This Row],[désignation]]","v":"A4 BUREAU TIROIR"},"H 75 cm / 65 x 150 cm",300,60,null,{"$f":"IF(Tableau2[[#This Row],[destinataire]]=0,IF(_xlfn.XLOOKUP(Tableau2[[#This Row],[code désignation]],commandecolonne[lisiting commande colonne],commandecolonne[lisiting commande colonne],FALSE)=Tableau2[[#This Row],[code désignation]],TRUE,FALSE),TRUE)","v":false}]
[{"$f":"_xlfn.XLOOKUP(MID(C10,1,1),Type[lettre type],Type[type])","v":"Bureau"},6,"A5",{"$f":"\"https://sico-my.sharepoint.com/personal/julien_carestiato_fondation-ove_fr/Documents/Images/1potiniere/\"&Tableau2[[#This Row],[numéro]]&\".png\"","v":"https://sico-my.sharepoint.com/personal/julien_carestiato_fondation-ove_fr/Documents/Images/1potiniere/A5.png"},null,"BUREAU TIROIR",{"$f":"IF(Tableau2[[#This Row],[déjà en prêt commande]]=TRUE,\" \",Tableau2[[#This Row],[numéro]]&\" \"&Tableau2[[#This Row],[désignation]])","v":"A5 BUREAU TIROIR"},{"$f":"Tableau2[[#This Row],[numéro]]&\" \"&Tableau2[[#This Row],[désignation]]","v":"A5 BUREAU TIROIR"},"H 75 cm / 70 x 191 cm",300,60,null,{"$f":"IF(Tableau2[[#This Row],[destinataire]]=0,IF(_xlfn.XLOOKUP(Tableau2[[#This Row],[code désignation]],commandecolonne[lisiting commande colonne],commandecolonne[lisiting commande colonne],FALSE)=Tableau2[[#This Row],[code désignation]],TRUE,FALSE),TRUE)","v":false}]
[{"$f":"_xlfn.XLOOKUP(MID(C11,1,1),Type[lettre type],Type[type])","v":"Bureau"},7,"A6",{"$f":"\"https://sico-my.sharepoint.com/personal/julien_carestiato_fondation-ove_fr/Documents/Images/1potiniere/\"&Tableau2[[#This Row],[numéro]]&\".png\"","v":"https://sico-my.sharepoint.com/personal/julien_carestiato_fondation-ove_fr/Documents/Images/1potiniere/A6.png"},null,"BUREAU TIROIR",{"$f":"IF(Tableau2[[#This Row],[déjà en prêt commande]]=TRUE,\" \",Tableau2[[#This Row],[numéro]]&\" \"&Tableau2[[#This Row],[désignation]])","v":"A6 BUREAU TIROIR"},{"$f":"Tableau2[[#This Row],[numéro]]&\" \"&Tableau2[[#This Row],[désignation]]","v":"A6 BUREAU TIROIR"},"H 75 cm / 70 X 150 cm",300,60,null,{"$f":"IF(Tableau2[[#This Row],[destinataire]]=0,IF(_xlfn.XLOOKUP(Tableau2[[#This Row],[code désignation]],commandecolonne[lisiting commande colonne],commandecolonne[lisiting commande colonne],FALSE)=Tableau2[[#This Row],[code désignation]],TRUE,FALSE),TRUE)","v":false}]
[{"$f":"_xlfn.XLOOKUP(MID(C12,1,1),Type[lettre type],Type[type])","v":"Bureau"},8,"A7",{"$f":"\"https://sico-my.sharepoint.com/personal/julien_carestiato_fondation-ove_fr/Documents/Images/1potiniere/\"&Tableau2[[#This Row],[numéro]]&\".png\"","v":"https://sico-my.sharepoint.com/personal/julien_carestiato_fondation-ove_fr/Documents/Images/1potiniere/A7.png"},null,"BUREAU TIROIR",{"$f":"IF(Tableau2[[#This Row],[déjà en prêt commande]]=TRUE,\" \",Tableau2[[#This Row],[numéro]]&\" \"&Tableau2[[#This Row],[désignation]])","v":"A7 BUREAU TIROIR"},{"$f":"Tableau2[[#This Row],[numéro]]&\" \"&Tableau2[[#This Row],[désignation]]","v":"A7 BUREAU TIROIR"},"H 75 cm / 70 x 191 cm",300,60,null,{"$f":"IF(Tableau2[[#This Row],[destinataire]]=0,IF(_xlfn.XLOOKUP(Tableau2[[#This Row],[code désignation]],commandecolonne[lisiting commande colonne],commandecolonne[lisiting commande colonne],FALSE)=Tableau2[[#This Row],[code désignation]],TRUE,FALSE),TRUE)","v":false}]
[{"$f":"_xlfn.XLOOKUP(MID(C13,1,1),Type[lettre type],Type[type])","v":"Bureau"},9,"A8",{"$f":"\"https://sico-my.sharepoint.com/personal/julien_carestiato_fondation-ove_fr/Documents/Images/1potiniere/\"&Tableau2[[#This Row],[numéro]]&\".png\"","v":"https://sico-my.sharepoint.com/personal/julien_carestiato_fondation-ove_fr/Documents/Images/1potiniere/A8.png"},null,"BUREAU TIROIR",{"$f":"IF(Tableau2[[#This Row],[déjà en prêt commande]]=TRUE,\" \",Tableau2[[#This Row],[numéro]]&\" \"&Tableau2[[#This Row],[désignation]])","v":"A8 BUREAU TIROIR"},{"$f":"Tableau2[[#This Row],[numéro]]&\" \"&Tableau2[[#This Row],[désignation]]","v":"A8 BUREAU TIROIR"},"H 75 cm / 70 x 191 cm",300,60,null,{"$f":"IF(Tableau2[[#This Row],[destinataire]]=0,IF(_xlfn.XLOOKUP(Tableau2[[#This Row],[code désignation]],commandecolonne[lisiting commande colonne],commandecolonne[lisiting commande colonne],FALSE)=Tableau2[[#This Row],[code désignation]],TRUE,FALSE),TRUE)","v":false}]
[{"$f":"_xlfn.XLOOKUP(MID(C14,1,1),Type[lettre type],Type[type])","v":"Bureau"},10,"A9",{"$f":"\"https://sico-my.sharepoint.com/personal/julien_carestiato_fondation-ove_fr/Documents/Images/1potiniere/\"&Tableau2[[#This Row],[numéro]]&\".png\"","v":"https://sico-my.sharepoint.com/personal/julien_carestiato_fondation-ove_fr/Documents/Images/1potiniere/A9.png"},null,"BUREAU AVEC DECROCHEMENT",{"$f":"IF(Tableau2[[#This Row],[déjà en prêt commande]]=TRUE,\" \",Tableau2[[#This Row],[numéro]]&\" \"&Tableau2[[#This Row],[désignation]])","v":"A9 BUREAU AVEC DECROCHEMENT"},{"$f":"Tableau2[[#This Row],[numéro]]&\" \"&Tableau2[[#This Row],[désignation]]","v":"A9 BUREAU AVEC DECROCHEMENT"},"H 77 cm / 76 X 120 cm",200,40,null,{"$f":"IF(Tableau2[[#This Row],[destinataire]]=0,IF(_xlfn.XLOOKUP(Tableau2[[#This Row],[code désignation]],commandecolonne[lisiting commande colonne],commandecolonne[lisiting commande colonne],FALSE)=Tableau2[[#This Row],[code désignation]],TRUE,FALSE),TRUE)","v":false}]
[{"$f":"_xlfn.XLOOKUP(MID(C15,1,1),Type[lettre type],Type[type])","v":"Bureau"},11,"A10",{"$f":"\"https://sico-my.sharepoint.com/personal/julien_carestiato_fondation-ove_fr/Documents/Images/1potiniere/\"&Tableau2[[#This Row],[numéro]]&\".png\"","v":"https://sico-my.sharepoint.com/personal/julien_carestiato_fondation-ove_fr/Documents/Images/1potiniere/A10.png"},null,"BUREAU AVEC DECROCHEMENT",{"$f":"IF(Tableau2[[#This Row],[déjà en prêt commande]]=TRUE,\" \",Tableau2[[#This Row],[numéro]]&\" \"&Tableau2[[#This Row],[désignation]])","v":"A10 BUREAU AVEC DECROCHEMENT"},{"$f":"Tableau2[[#This Row],[numéro]]&\" \"&Tableau2[[#This Row],[désignation]]","v":"A10 BUREAU AVEC DECROCHEMENT"},"H 77 cm / 76 X 120 cm",200,40,null,{"$f":"IF(Tableau2[[#This Row],[destinataire]]=0,IF(_xlfn.XLOOKUP(Tableau2[[#This Row],[code désignation]],commandecolonne[lisiting commande colonne],commandecolonne[lisiting commande colonne],FALSE)=Tableau2[[#This Row],[code désignation]],TRUE,FALSE),TRUE)","v":false}]
[{"$f":"_xlfn.XLOOKUP(MID(C16,1,1),Type[lettre type],Type[type])","v":"Bureau"},12,"A11",{"$f":"\"https://sico-my.sharepoint.com/personal/julien_carestiato_fondation-ove_fr/Documents/Images/1potiniere/\"&Tableau2[[#This Row],[numéro]]&\".png\"","v":"https://sico-my.sharepoint.com/personal/julien_carestiato_fondation-ove_fr/Documents/Images/1potiniere/A11.png"},null,"BUREAU DECROCHEMENT",{"$f":"IF(Tableau2[[#This Row],[déjà en prêt commande]]=TRUE,\" \",Tableau2[[#This Row],[numéro]]&\" \"&Tableau2[[#This Row],[désignation]])","v":"A11 BUREAU DECROCHEMENT"},{"$f":"Tableau2[[#This Row],[numéro]]&\" \"&Tableau2[[#This Row],[désignation]]","v":"A11 BUREAU DECROCHEMENT"},"H 77 cm / 76 X 120 cm",200,40,null,{"$f":"IF(Tableau2[[#This Row],[destinataire]]=0,IF(_xlfn.XLOOKUP(Tableau2[[#This Row],[code désignation]],commandecolonne[lisiting commande colonne],commandecolonne[lisiting commande colonne],FALSE)=Tableau2[[#This Row],[code désignation]],TRUE,FALSE),TRUE)","v":false}]
[{"$f":"_xlfn.XLOOKUP(MID(C17,1,1),Type[lettre type],Type[type])","v":"Console"},13,"B1",{"$f":"\"https://sico-my.sharepoint.com/personal/julien_carestiato_fondation-ove_fr/Documents/Images/1potiniere/\"&Tableau2[[#This Row],[numéro]]&\".png\"","v":"https://sico-my.sharepoint.com/personal/julien_carestiato_fondation-ove_fr/Documents/Images/1potiniere/B1.png"},null,"CONSOLE",{"$f":"IF(Tableau2[[#This Row],[déjà en prêt commande]]=TRUE,\" \",Tableau2[[#This Row],[numéro]]&\" \"&Tableau2[[#This Row],[désignation]])","v":" "},{"$f":"Tableau2[[#This Row],[numéro]]&\" \"&Tableau2[[#This Row],[désignation]]","v":"B1 CONSOLE"},"H 77 cm / 150 x 40 cm",100,20,"IME GUY YVER (BUREAU JM GROFF)",{"$f":"IF(Tableau2[[#This Row],[destinataire]]=0,IF(_xlfn.XLOOKUP(Tableau2[[#This Row],[code désignation]],commandecolonne[lisiting commande colonne],commandecolonne[lisiting commande colonne],FALSE)=Tableau2[[#This Row],[code désignation]],TRUE,FALSE),TRUE)","v":true}]
[{"$f":"_xlfn.XLOOKUP(MID(C18,1,1),Type[lettre type],Type[type])","v":"Console"},14,"B2",{"$f":"\"https://sico-my.sharepoint.com/personal/julien_carestiato_fondation-ove_fr/Documents/Images/1potiniere/\"&Tableau2[[#This Row],[numéro]]&\".png\"","v":"https://sico-my.sharepoint.com/personal/julien_carestiato_fondation-ove_fr/Documents/Images/1potiniere/B2.png"},"Photo non dispo","CONSOLE",{"$f":"IF(Tableau2[[#This Row],[déjà en prêt commande]]=TRUE,\" \",Tableau2[[#This Row],[numéro]]&\" \"&Tableau2[[#This Row],[désignation]])","v":" "},{"$f":"Tableau2[[#This Row],[numéro]]&\" \"&Tableau2[[#This Row],[désignation]]","v":"B2 CONSOLE"},"H 77 cm / 100 x 30 cm",100,20,"B-2 APPARTEMENTS SOUTIEN",{"$f":"IF(Tableau2[[#This Row],[destinataire]]=0,IF(_xlfn.XLOOKUP(Tableau2[[#This Row],[code désignation]],commandecolonne[lisiting commande colonne],commandecolonne[lisiting commande colonne],FALSE)=Tableau2[[#This Row],[code désignation]],TRUE,FALSE),TRUE)","v":true}]
[{"$f":"_xlfn.XLOOKUP(MID(C19,1,1),Type[lettre type],Type[type])","v":"Console"},15,"B3",{"$f":"\"https://sico-my.sharepoint.com/personal/julien_carestiato_fondation-ove_fr/Documents/Images/1potiniere/\"&Tableau2[[#This Row],[numéro]]&\".png\"","v":"https://sico-my.sharepoint.com/personal/julien_carestiato_fondation-ove_fr/Documents/Images/1potiniere/B3.png"},null,"CONSOLE",{"$f":"IF(Tableau2[[#This Row],[déjà en prêt commande]]=TRUE,\" \",Tableau2[[#This Row],[numéro]]&\" \"&Tableau2[[#This Row],[désignation]])","v":"B3 CONSOLE"},{"$f":"Tableau2[[#This Row],[numéro]]&\" \"&Tableau2[[#This Row],[désignation]]","v":"B3 CONSOLE"},"H 77 cm / 100 x 30 cm",100,20,null,{"$f":"IF(Tableau2[[#This Row],[destinataire]]=0,IF(_xlfn.XLOOKUP(Tableau2[[#This Row],[code désignation]],commandecolonne[lisiting commande colonne],commandecolonne[lisiting commande colonne],FALSE)=Tableau2[[#This Row],[code désignation]],TRUE,FALSE),TRUE)","v":false}]
[{"$f":"_xlfn.XLOOKUP(MID(C20,1,1),Type[lettre type],Type[type])","v":"Console"},16,"B4",{"$f":"\"https://sico-my.sharepoint.com/personal/julien_carestiato_fondation-ove_fr/Documents/Images/1potiniere/\"&Tableau2[[#This Row],[numéro]]&\".png\"","v":"https://sico-my.sharepoint.com/personal/julien_carestiato_fondation-ove_fr/Documents/Images/1potiniere/B4.png"},null,"CONSOLE",{"$f":"IF(Tableau2[[#This Row],[déjà en prêt commande]]=TRUE,\" \",Tableau2[[#This Row],[numéro]]&\" \"&Tableau2[[#This Row],[désignation]])","v":"B4 CONSOLE"},{"$f":"Tableau2[[#This Row],[numéro]]&\" \"&Tableau2[[#This Row],[désignation]]","v":"B4 CONSOLE"},"H 77 cm / 100 x 30 cm",100,20,null,{"$f":"IF(Tableau2[[#This Row],[destinataire]]=0,IF(_xlfn.XLOOKUP(Tableau2[[#This Row],[code désignation]],commandecolonne[lisiting commande colonne],commandecolonne[lisiting commande colonne],FALSE)=Tableau2[[#This Row],[code désignation]],TRUE,FALSE),TRUE)","v":false}]
[{"$f":"_xlfn.XLOOKUP(MID(C21,1,1),Type[lettre type],Type[type])","v":"Console"},17,"B5",{"$f":"\"https://sico-my.sharepoint.com/personal/julien_carestiato_fondation-ove_fr/Documents/Images/1potiniere/\"&Tableau2[[#This Row],[numéro]]&\".png\"","v":"https://sico-my.sharepoint.com/personal/julien_carestiato_fondation-ove_fr/Documents/Images/1potiniere/B5.png"},null,"CONSOLE",{"$f":"IF(Tableau2[[#This Row],[déjà en prêt commande]]=TRUE,\" \",Tableau2[[#This Row],[numéro]]&\" \"&Tableau2[[#This Row],[désignation]])","v":"B5 CONSOLE"},{"$f":"Tableau2[[#This Row],[numéro]]&\" \"&Tableau2[[#This Row],[désignation]]","v":"B5 CONSOLE"},"H 77 cm / 100 x 30 cm",100,20,null,{"$f":"IF(Tableau2[[#This Row],[destinataire]]=0,IF(_xlfn.XLOOKUP(Tableau2[[#This Row],[code désignation]],commandecolonne[lisiting commande colonne],commandecolonne[lisiting commande colonne],FALSE)=Tableau2[[#This Row],[code désignation]],TRUE,FALSE),TRUE)","v":false}]
[{"$f":"_xlfn.XLOOKUP(MID(C22,1,1),Type[lettre type],Type[type])","v":"Console"},18,"B6",{"$f":"\"https://sico-my.sharepoint.com/personal/julien_carestiato_fondation-ove_fr/Documents/Images/1potiniere/\"&Tableau2[[#This Row],[numéro]]&\".png\"","v":"https://sico-my.sharepoint.com/personal/julien_carestiato_fondation-ove_fr/Documents/Images/1potiniere/B6.png"},null,"CONSOLE",{"$f":"IF(Tableau2[[#This Row],[déjà en prêt commande]]=TRUE,\" \",Tableau2[[#This Row],[numéro]]&\" \"&Tableau2[[#This Row],[désignation]])","v":"B6 CONSOLE"},{"$f":"Tableau2[[#This Row],[numéro]]&\" \"&Tableau2[[#This Row],[désignation]]","v":"B6 CONSOLE"},"H 60 cm / 90 x 40 cm",100,20,null,{"$f":"IF(Tableau2[[#This Row],[destinataire]]=0,IF(_xlfn.XLOOKUP(Tableau2[[#This Row],[code désignation]],commandecolonne[lisiting commande colonne],commandecolonne[lisiting commande colonne],FALSE)=Tableau2[[#This Row],[code désignation]],TRUE,FALSE),TRUE)","v":false}]
[{"$f":"_xlfn.XLOOKUP(MID(C23,1,1),Type[lettre type],Type[type])","v":"Console"},19,"B7",{"$f":"\"https://sico-my.sharepoint.com/personal/julien_carestiato_fondation-ove_fr/Documents/Images/1potiniere/\"&Tableau2[[#This Row],[numéro]]&\".png\"","v":"https://sico-my.sharepoint.com/personal/julien_carestiato_fondation-ove_fr/Documents/Images/1potiniere/B7.png"},null,"CONSOLE",{"$f":"IF(Tableau2[[#This Row],[déjà en prêt commande]]=TRUE,\" \",Tableau2[[#This Row],[numéro]]&\" \"&Tableau2[[#This Row],[désignation]])","v":"B7 CONSOLE"},{"$f":"Tableau2[[#This Row],[numéro]]&\" \"&Tableau2[[#This Row],[désignation]]","v":"B7 CONSOLE"},"H 60 cm / 90 x 40 cm",100,20,null,{"$f":"IF(Tableau2[[#This Row],[destinataire]]=0,IF(_xlfn.XLOOKUP(Tableau2[[#This Row],[code désignation]],commandecolonne[lisiting commande colonne],commandecolonne[lisiting commande colonne],FALSE)=Tableau2[[#This Row],[code désignation]],TRUE,FALSE),TRUE)","v":false}]
[{"$f":"_xlfn.XLOOKUP(MID(C24,1,1),Type[lettre type],Type[type])","v":"Console"},20,"B8",{"$f":"\"https://sico-my.sharepoint.com/personal/julien_carestiato_fondation-ove_fr/Documents/Images/1potiniere/\"&Tableau2[[#This Row],[numéro]]&\".png\"","v":"https://sico-my.sharepoint.com/personal/julien_carestiato_fondation-ove_fr/Documents/Images/1potiniere/B8.png"},null,"CONSOLE",{"$f":"IF(Tableau2[[#This Row],[déjà en prêt commande]]=TRUE,\" \",Tableau2[[#This Row],[numéro]]&\" \"&Tableau2[[#This Row],[désignation]])","v":"B8 CONSOLE"},{"$f":"Tableau2[[#This Row],[numéro]]&\" \"&Tableau2[[#This Row],[désignation]]","v":"B8 CONSOLE"},"H 60 cm / 90 x 40 cm",100,20,null,{"$f":"IF(Tableau2[[#This Row],[destinataire]]=0,IF(_xlfn.XLOOKUP(Tableau2[[#This Row],[code désignation]],commandecolonne[lisiting commande colonne],commandecolonne[lisiting commande colonne],FALSE)=Tableau2[[#This Row],[code désignation]],TRUE,FALSE),TRUE)","v":false}]
[{"$f":"_xlfn.XLOOKUP(MID(C25,1,1),Type[lettre type],Type[type])","v":"Console"},21,"B9",{"$f":"\"https://sico-my.sharepoint.com/personal/julien_carestiato_fondation-ove_fr/Documents/Images/1potiniere/\"&Tableau2[[#This Row],[numéro]]&\".png\"","v":"https://sico-my.sharepoint.com/personal/julien_carestiato_fondation-ove_fr/Documents/Images/1potiniere/B9.png"},null,"CONSOLE",{"$f":"IF(Tableau2[[#This Row],[déjà en prêt commande]]=TRUE,\" \",Tableau2[[#This Row],[numéro]]&\" \"&Tableau2[[#This Row],[désignation]])","v":"B9 CONSOLE"},{"$f":"Tableau2[[#This Row],[numéro]]&\" \"&Tableau2[[#This Row],[désignation]]","v":"B9 CONSOLE"},"H 60 cm / 90 x 40 cm",100,20,null,{"$f":"IF(Tableau2[[#This Row],[destinataire]]=0,IF(_xlfn.XLOOKUP(Tableau2[[#This Row],[code désignation]],commandecolonne[lisiting commande colonne],commandecolonne[lisiting commande colonne],FALSE)=Tableau2[[#This Row],[code désignation]],TRUE,FALSE),TRUE)","v":false}]
[{"$f":"_xlfn.XLOOKUP(MID(C26,1,1),Type[lettre type],Type[type])","v":"Canapé"},22,"C1",{"$f":"\"https://sico-my.sharepoint.com/personal/julien_carestiato_fondation-ove_fr/Documents/Images/1potiniere/\"&Tableau2[[#This Row],[numéro]]&\".png\"","v":"https://sico-my.sharepoint.com/personal/julien_carestiato_fondation-ove_fr/Documents/Images/1potiniere/C1.png"},null,"CANAPE BEIGE",{"$f":"IF(Tableau2[[#This Row],[déjà en prêt commande]]=TRUE,\" \",Tableau2[[#This Row],[numéro]]&\" \"&Tableau2[[#This Row],[désignation]])","v":"C1 CANAPE BEIGE"},{"$f":"Tableau2[[#This Row],[numéro]]&\" \"&Tableau2[[#This Row],[désignation]]","v":"C1 CANAPE BEIGE"},"H 75 cm / 250 x 100 cm",1500,300,null,{"$f":"IF(Tableau2[[#This Row],[destinataire]]=0,IF(_xlfn.XLOOKUP(Tableau2[[#This Row],[code désignation]],commandecolonne[lisiting commande colonne],commandecolonne[lisiting commande colonne],FALSE)=Tableau2[[#This Row],[code désignation]],TRUE,FALSE),TRUE)","v":false}]
[{"$f":"_xlfn.XLOOKUP(MID(C27,1,1),Type[lettre type],Type[type])","v":"Canapé"},23,"C2",{"$f":"\"https://sico-my.sharepoint.com/personal/julien_carestiato_fondation-ove_fr/Documents/Images/1potiniere/\"&Tableau2[[#This Row],[numéro]]&\".png\"","v":"https://sico-my.sharepoint.com/personal/julien_carestiato_fondation-ove_fr/Documents/Images/1potiniere/C2.png"},null,"CANAPE BEIGE",{"$f":"IF(Tableau2[[#This Row],[déjà en prêt commande]]=TRUE,\" \",Tableau2[[#This Row],[numéro]]&\" \"&Tableau2[[#This Row],[désignation]])","v":" "},{"$f":"Tableau2[[#This Row],[numéro]]&\" \"&Tableau2[[#This Row],[désignation]]","v":"C2 CANAPE BEIGE"},"H 75 cm / 250 x 100 cm",1500,300,"C2 et C3 DITEP ANNECY",{"$f":"IF(Tableau2[[#This Row],[destinataire]]=0,IF(_xlfn.XLOOKUP(Tableau2[[#This Row],[code désignation]],commandecolonne[lisiting commande colonne],commandecolonne[lisiting commande colonne],FALSE)=Tableau2[[#This Row],[code désignation]],TRUE,FALSE),TRUE)","v":true}]
[{"$f":"_xlfn.XLOOKUP(MID(C28,1,1),Type[lettre type],Type[type])","v":"Canapé"},24,"C3",{"$f":"\"https://sico-my.sharepoint.com/personal/julien_carestiato_fondation-ove_fr/Documents/Images/1potiniere/\"&Tableau2[[#This Row],[numéro]]&\".png\"","v":"https://sico-my.sharepoint.com/personal/julien_carestiato_fondation-ove_fr/Documents/Images/1potiniere/C3.png"},null,"CANAPE BEIGE",{"$f":"IF(Tableau2[[#This Row],[déjà en prêt commande]]=TRUE,\" \",Tableau2[[#This Row],[numéro]]&\" \"&Tableau2[[#This Row],[désignation]])","v":" "},{"$f":"Tableau2[[#This Row],[numéro]]&\" \"&Tableau2[[#This Row],[désignation]]","v":"C3 CANAPE BEIGE"},"H 75 cm / 250 x 100 cm",1500,300,"C2 et C3 DITEP ANNECY",{"$f":"IF(Tableau2[[#This Row],[destinataire]]=0,IF(_xlfn.XLOOKUP(Tableau2[[#This Row],[code désignation]],commandecolonne[lisiting commande colonne],commandecolonne[lisiting commande colonne],FALSE)=Tableau2[[#This Row],[code désignation]],TRUE,FALSE),TRUE)","v":true}]
[{"$f":"_xlfn.XLOOKUP(MID(C29,1,1),Type[lettre type],Type[type])","v":"Canapé"},25,"C4",{"$f":"\"https://sico-my.sharepoint.com/personal/julien_carestiato_fondation-ove_fr/Documents/Images/1potiniere/\"&Tableau2[[#This Row],[numéro]]&\".png\"","v":"https://sico-my.sharepoint.com/personal/julien_carestiato_fondation-ove_fr/Documents/Images/1potiniere/C4.png"},null,"CANAPE CHOCOLAT",{"$f":"IF(Tableau2[[#This Row],[déjà en prêt commande]]=TRUE,\" \",Tableau2[[#This Row],[numéro]]&\" \"&Tableau2[[#This Row],[désignation]])","v":"C4 CANAPE CHOCOLAT"},{"$f":"Tableau2[[#This Row],[numéro]]&\" \"&Tableau2[[#This Row],[désignation]]","v":"C4 CANAPE CHOCOLAT"},"H 75 cm / 200 x 100 cm",1500,300,null,{"$f":"IF(Tableau2[[#This Row],[destinataire]]=0,IF(_xlfn.XLOOKUP(Tableau2[[#This Row],[code désignation]],commandecolonne[lisiting commande colonne],commandecolonne[lisiting commande colonne],FALSE)=Tableau2[[#This Row],[code désignation]],TRUE,FALSE),TRUE)","v":false}]
[{"$f":"_xlfn.XLOOKUP(MID(C30,1,1),Type[lettre type],Type[type])","v":"Canapé"},26,"C5",{"$f":"\"https://sico-my.sharepoint.com/personal/julien_carestiato_fondation-ove_fr/Documents/Images/1potiniere/\"&Tableau2[[#This Row],[numéro]]&\".png\"","v":"https://sico-my.sharepoint.com/personal/julien_carestiato_fondation-ove_fr/Documents/Images/1potiniere/C5.png"},null,"CANAPE CHOCOLAT",{"$f":"IF(Tableau2[[#This Row],[déjà en prêt commande]]=TRUE,\" \",Tableau2[[#This Row],[numéro]]&\" \"&Tableau2[[#This Row],[désignation]])","v":"C5 CANAPE CHOCOLAT"},{"$f":"Tableau2[[#This Row],[numéro]]&\" \"&Tableau2[[#This Row],[désignation]]","v":"C5 CANAPE CHOCOLAT"},"H 75 cm / 200 x 100 cm",1500,300,null,{"$f":"IF(Tableau2[[#This Row],[destinataire]]=0,IF(_xlfn.XLOOKUP(Tableau2[[#This Row],[code désignation]],commandecolonne[lisiting commande colonne],commandecolonne[lisiting commande colonne],FALSE)=Tableau2[[#This Row],[code désignation]],TRUE,FALSE),TRUE)","v":false}]
[{"$f":"_xlfn.XLOOKUP(MID(C31,1,1),Type[lettre type],Type[type])","v":"Canapé"},27,"C6",{"$f":"\"https://sico-my.sharepoint.com/personal/julien_carestiato_fondation-ove_fr/Documents/Images/1potiniere/\"&Tableau2[[#This Row],[numéro]]&\".png\"","v":"https://sico-my.sharepoint.com/personal/julien_carestiato_fondation-ove_fr/Documents/Images/1potiniere/C6.png"},null,"CANAPE",{"$f":"IF(Tableau2[[#This Row],[déjà en prêt commande]]=TRUE,\" \",Tableau2[[#This Row],[numéro]]&\" \"&Tableau2[[#This Row],[désignation]])","v":"C6 CANAPE"},{"$f":"Tableau2[[#This Row],[numéro]]&\" \"&Tableau2[[#This Row],[désignation]]","v":"C6 CANAPE"},"H 75 cm / 250 x 100 cm",1500,300,null,{"$f":"IF(Tableau2[[#This Row],[destinataire]]=0,IF(_xlfn.XLOOKUP(Tableau2[[#This Row],[code désignation]],commandecolonne[lisiting commande colonne],commandecolonne[lisiting commande colonne],FALSE)=Tableau2[[#This Row],[code désignation]],TRUE,FALSE),TRUE)","v":false}]
[{"$f":"_xlfn.XLOOKUP(MID(C32,1,1),Type[lettre type],Type[type])","v":"Canapé"},28,"C7",{"$f":"\"https://sico-my.sharepoint.com/personal/julien_carestiato_fondation-ove_fr/Documents/Images/1potiniere/\"&Tableau2[[#This Row],[numéro]]&\".png\"","v":"https://sico-my.sharepoint.com/personal/julien_carestiato_fondation-ove_fr/Documents/Images/1potiniere/C7.png"},null,"CANAPE",{"$f":"IF(Tableau2[[#This Row],[déjà en prêt commande]]=TRUE,\" \",Tableau2[[#This Row],[numéro]]&\" \"&Tableau2[[#This Row],[désignation]])","v":"C7 CANAPE"},{"$f":"Tableau2[[#This Row],[numéro]]&\" \"&Tableau2[[#This Row],[désignation]]","v":"C7 CANAPE"},"H 75 cm / 250 x 100 cm",1500,300,null,{"$f":"IF(Tableau2[[#This Row],[destinataire]]=0,IF(_xlfn.XLOOKUP(Tableau2[[#This Row],[code désignation]],commandecolonne[lisiting commande colonne],commandecolonne[lisiting commande colonne],FALSE)=Tableau2[[#This Row],[code désignation]],TRUE,FALSE),TRUE)","v":false}]
[{"$f":"_xlfn.XLOOKUP(MID(C33,1,1),Type[lettre type],Type[type])","v":"Canapé"},29,"C8",{"$f":"\"https://sico-my.sharepoint.com/personal/julien_carestiato_fondation-ove_fr/Documents/Images/1potiniere/\"&Tableau2[[#This Row],[numéro]]&\".png\"","v":"https://sico-my.sharepoint.com/personal/julien_carestiato_fondation-ove_fr/Documents/Images/1potiniere/C8.png"},null,"CANAPE MARRON MOTIF",{"$f":"IF(Tableau2[[#This Row],[déjà en prêt commande]]=TRUE,\" \",Tableau2[[#This Row],[numéro]]&\" \"&Tableau2[[#This Row],[désignation]])","v":"C8 CANAPE MARRON MOTIF"},{"$f":"Tableau2[[#This Row],[numéro]]&\" \"&Tableau2[[#This Row],[désignation]]","v":"C8 CANAPE MARRON MOTIF"},"H 75 cm / 250 x 100 cm",1500,300,null,{"$f":"IF(Tableau2[[#This Row],[destinataire]]=0,IF(_xlfn.XLOOKUP(Tableau2[[#This Row],[code désignation]],commandecolonne[lisiting commande colonne],commandecolonne[lisiting commande colonne],FALSE)=Tableau2[[#This Row],[code désignation]],TRUE,FALSE),TRUE)","v":false}]
[{"$f":"_xlfn.XLOOKUP(MID(C34,1,1),Type[lettre type],Type[type])","v":"Canapé"},30,"C9",{"$f":"\"https://sico-my.sharepoint.com/personal/julien_carestiato_fondation-ove_fr/Documents/Images/1potiniere/\"&Tableau2[[#This Row],[numéro]]&\".png\"","v":"https://sico-my.sharepoint.com/personal/julien_carestiato_fondation-ove_fr/Documents/Images/1potiniere/C9.png"},null,"CANAPE MARRON MOTIF",{"$f":"IF(Tableau2[[#This Row],[déjà en prêt commande]]=TRUE,\" \",Tableau2[[#This Row],[numéro]]&\" \"&Tableau2[[#This Row],[désignation]])","v":"C9 CANAPE MARRON MOTIF"},{"$f":"Tableau2[[#This Row],[numéro]]&\" \"&Tableau2[[#This Row],[désignation]]","v":"C9 CANAPE MARRON MOTIF"},"H 75 cm / 250 x 100 cm",1500,300,null,{"$f":"IF(Tableau2[[#This Row],[destinataire]]=0,IF(_xlfn.XLOOKUP(Tableau2[[#This Row],[code désignation]],commandecolonne[lisiting commande colonne],commandecolonne[lisiting commande colonne],FALSE)=Tableau2[[#This Row],[code désignation]],TRUE,FALSE),TRUE)","v":false}]
[{"$f":"_xlfn.XLOOKUP(MID(C35,1,1),Type[lettre type],Type[type])","v":"Canapé"},31,"C10",{"$f":"\"https://sico-my.sharepoint.com/personal/julien_carestiato_fondation-ove_fr/Documents/Images/1potiniere/\"&Tableau2[[#This Row],[numéro]]&\".png\"","v":"https://sico-my.sharepoint.com/personal/julien_carestiato_fondation-ove_fr/Documents/Images/1potiniere/C10.png"},null,"CANAPE CHOCOLAT",{"$f":"IF(Tableau2[[#This Row],[déjà en prêt commande]]=TRUE,\" \",Tableau2[[#This Row],[numéro]]&\" \"&Tableau2[[#This Row],[désignation]])","v":"C10 CANAPE CHOCOLAT"},{"$f":"Tableau2[[#This Row],[numéro]]&\" \"&Tableau2[[#This Row],[désignation]]","v":"C10 CANAPE CHOCOLAT"},"H 75 cm / 200 x 100 cm",1500,300,null,{"$f":"IF(Tableau2[[#This Row],[destinataire]]=0,IF(_xlfn.XLOOKUP(Tableau2[[#This Row],[code désignation]],commandecolonne[lisiting commande colonne],commandecolonne[lisiting commande colonne],FALSE)=Tableau2[[#This Row],[code désignation]],TRUE,FALSE),TRUE)","v":false}]
[{"$f":"_xlfn.XLOOKUP(MID(C36,1,1),Type[lettre type],Type[type])","v":"Canapé"},32,"C11",{"$f":"\"https://sico-my.sharepoint.com/personal/julien_carestiato_fondation-ove_fr/Documents/Images/1potiniere/\"&Tableau2[[#This Row],[numéro]]&\".png\"","v":"https://sico-my.sharepoint.com/personal/julien_carestiato_fondation-ove_fr/Documents/Images/1potiniere/C11.png"},null,"CANAPE MORDORE MOTIF ",{"$f":"IF(Tableau2[[#This Row],[déjà en prêt commande]]=TRUE,\" \",Tableau2[[#This Row],[numéro]]&\" \"&Tableau2[[#This Row],[désignation]])","v":"C11 CANAPE MORDORE MOTIF "},{"$f":"Tableau2[[#This Row],[numéro]]&\" \"&Tableau2[[#This Row],[désignation]]","v":"C11 CANAPE MORDORE MOTIF "},"H 75 cm / 200 x 100 cm",1500,300,null,{"$f":"IF(Tableau2[[#This Row],[destinataire]]=0,IF(_xlfn.XLOOKUP(Tableau2[[#This Row],[code désignation]],commandecolonne[lisiting commande colonne],commandecolonne[lisiting commande colonne],FALSE)=Tableau2[[#This Row],[code désignation]],TRUE,FALSE),TRUE)","v":false}]
[{"$f":"_xlfn.XLOOKUP(MID(C37,1,1),Type[lettre type],Type[type])","v":"Canapé"},33,"C12",{"$f":"\"https://sico-my.sharepoint.com/personal/julien_carestiato_fondation-ove_fr/Documents/Images/1potiniere/\"&Tableau2[[#This Row],[numéro]]&\".png\"","v":"https://sico-my.sharepoint.com/personal/julien_carestiato_fondation-ove_fr/Documents/Images/1potiniere/C12.png"},null,"CANAPE MARRON PETITS CARREAUX + MERIDIENNE",{"$f":"IF(Tableau2[[#This Row],[déjà en prêt commande]]=TRUE,\" \",Tableau2[[#This Row],[numéro]]&\" \"&Tableau2[[#This Row],[désignation]])","v":" "},{"$f":"Tableau2[[#This Row],[numéro]]&\" \"&Tableau2[[#This Row],[désignation]]","v":"C12 CANAPE MARRON PETITS CARREAUX + MERIDIENNE"},"H 75 cm / 250 x 100 cm        (Méridienne l 110 cm)",null,null,"C12-1 et C12-2 / C13-1 et C13-2 / C14 manque canapé juste méridienne DITEP ANNECY",{"$f":"IF(Tableau2[[#This Row],[destinataire]]=0,IF(_xlfn.XLOOKUP(Tableau2[[#This Row],[code désignation]],commandecolonne[lisiting commande colonne],commandecolonne[lisiting commande colonne],FALSE)=Tableau2[[#This Row],[code désignation]],TRUE,FALSE),TRUE)","v":true}]
[{"$f":"_xlfn.XLOOKUP(MID(C38,1,1),Type[lettre type],Type[type])","v":"Canapé"},34,"C13",{"$f":"\"https://sico-my.sharepoint.com/personal/julien_carestiato_fondation-ove_fr/Documents/Images/1potiniere/\"&Tableau2[[#This Row],[numéro]]&\".png\"","v":"https://sico-my.sharepoint.com/personal/julien_carestiato_fondation-ove_fr/Documents/Images/1potiniere/C13.png"},null,"CANAPE MARRON PETITS CARREAUX + MERIDIENNE",{"$f":"IF(Tableau2[[#This Row],[déjà en prêt commande]]=TRUE,\" \",Tableau2[[#This Row],[numéro]]&\" \"&Tableau2[[#This Row],[désignation]])","v":" "},{"$f":"Tableau2[[#This Row],[numéro]]&\" \"&Tableau2[[#This Row],[désignation]]","v":"C13 CANAPE MARRON PETITS CARREAUX + MERIDIENNE"},"H 75 cm / 250 x 100 cm        (Méridienne l 110 cm)",null,null,"C12-1 et C12-2 / C13-1 et C13-2 / C14 manque canapé juste méridienne DITEP ANNECY",{"$f":"IF(Tableau2[[#This Row],[destinataire]]=0,IF(_xlfn.XLOOKUP(Tableau2[[#This Row],[code désignation]],commandecolonne[lisiting commande colonne],commandecolonne[lisiting commande colonne],FALSE)=Tableau2[[#This Row],[code désignation]],TRUE,FALSE),TRUE)","v":true}]
[{"$f":"_xlfn.XLOOKUP(MID(C39,1,1),Type[lettre type],Type[type])","v":"Canapé"},35,"C14",{"$f":"\"https://sico-my.sharepoint.com/personal/julien_carestiato_fondation-ove_fr/Documents/Images/1potiniere/\"&Tableau2[[#This Row],[numéro]]&\".png\"","v":"https://sico-my.sharepoint.com/personal/julien_carestiato_fondation-ove_fr/Documents/Images/1potiniere/C14.png"},null,"CANAPE MARRON PETITS CARREAUX + MERIDIENNE",{"$f":"IF(Tableau2[[#This Row],[déjà en prêt commande]]=TRUE,\" \",Tableau2[[#This Row],[numéro]]&\" \"&Tableau2[[#This Row],[désignation]])","v":" "},{"$f":"Tableau2[[#This Row],[numéro]]&\" \"&Tableau2[[#This Row],[désignation]]","v":"C14 CANAPE MARRON PETITS CARREAUX + MERIDIENNE"},"H 75 cm / 250 x 100 cm        (Méridienne l 110 cm)",null,null,"C12-1 et C12-2 / C13-1 et C13-2 / C14 manque canapé juste méridienne DITEP ANNECY",{"$f":"IF(Tableau2[[#This Row],[destinataire]]=0,IF(_xlfn.XLOOKUP(Tableau2[[#This Row],[code désignation]],commandecolonne[lisiting commande colonne],commandecolonne[lisiting commande colonne],FALSE)=Tableau2[[#This Row],[code désignation]],TRUE,FALSE),TRUE)","v":true}]
[{"$f":"_xlfn.XLOOKUP(MID(C40,1,1),Type[lettre type],Type[type])","v":"Canapé"},36,"C15",{"$f":"\"https://sico-my.sharepoint.com/personal/julien_carestiato_fondation-ove_fr/Documents/Images/1potiniere/\"&Tableau2[[#This Row],[numéro]]&\".png\"","v":"https://sico-my.sharepoint.com/personal/julien_carestiato_fondation-ove_fr/Documents/Images/1potiniere/C15.png"},null,"CANAPE MARRON MORDORE + MERIDIENNE",{"$f":"IF(Tableau2[[#This Row],[déjà en prêt commande]]=TRUE,\" \",Tableau2[[#This Row],[numéro]]&\" \"&Tableau2[[#This Row],[désignation]])","v":"C15 CANAPE MARRON MORDORE + MERIDIENNE"},{"$f":"Tableau2[[#This Row],[numéro]]&\" \"&Tableau2[[#This Row],[désignation]]","v":"C15 CANAPE MARRON MORDORE + MERIDIENNE"},"H 75 cm / 250 x 100 cm                          + Méridienne l 110 cm",1500,300,null,{"$f":"IF(Tableau2[[#This Row],[destinataire]]=0,IF(_xlfn.XLOOKUP(Tableau2[[#This Row],[code désignation]],commandecolonne[lisiting commande colonne],commandecolonne[lisiting commande colonne],FALSE)=Tableau2[[#This Row],[code désignation]],TRUE,FALSE),TRUE)","v":false}]
[{"$f":"_xlfn.XLOOKUP(MID(C41,1,1),Type[lettre type],Type[type])","v":"Canapé"},37,"C16",{"$f":"\"https://sico-my.sharepoint.com/personal/julien_carestiato_fondation-ove_fr/Documents/Images/1potiniere/\"&Tableau2[[#This Row],[numéro]]&\".png\"","v":"https://sico-my.sharepoint.com/personal/julien_carestiato_fondation-ove_fr/Documents/Images/1potiniere/C16.png"},null,"CANAPE MARRON MORDORE + MERIDIENNE",{"$f":"IF(Tableau2[[#This Row],[déjà en prêt commande]]=TRUE,\" \",Tableau2[[#This Row],[numéro]]&\" \"&Tableau2[[#This Row],[désignation]])","v":"C16 CANAPE MARRON MORDORE + MERIDIENNE"},{"$f":"Tableau2[[#This Row],[numéro]]&\" \"&Tableau2[[#This Row],[désignation]]","v":"C16 CANAPE MARRON MORDORE + MERIDIENNE"},"H 75 cm / 250 x 100 cm                          + Méridienne l 110 cm",1500,300,null,{"$f":"IF(Tableau2[[#This Row],[destinataire]]=0,IF(_xlfn.XLOOKUP(Tableau2[[#This Row],[code désignation]],commandecolonne[lisiting commande colonne],commandecolonne[lisiting commande colonne],FALSE)=Tableau2[[#This Row],[code désignation]],TRUE,FALSE),TRUE)","v":false}]
[{"$f":"_xlfn.XLOOKUP(MID(C42,1,1),Type[lettre type],Type[type])","v":"Canapé"},38,"C17",{"$f":"\"https://sico-my.sharepoint.com/personal/julien_carestiato_fondation-ove_fr/Documents/Images/1potiniere/\"&Tableau2[[#This Row],[numéro]]&\".png\"","v":"https://sico-my.sharepoint.com/personal/julien_carestiato_fondation-ove_fr/Documents/Images/1potiniere/C17.png"},null,"CANAPE MORDORE MOTIF ",{"$f":"IF(Tableau2[[#This Row],[déjà en prêt commande]]=TRUE,\" \",Tableau2[[#This Row],[numéro]]&\" \"&Tableau2[[#This Row],[désignation]])","v":"C17 CANAPE MORDORE MOTIF "},{"$f":"Tableau2[[#This Row],[numéro]]&\" \"&Tableau2[[#This Row],[désignation]]","v":"C17 CANAPE MORDORE MOTIF "},"H 75 cm / 250 x 100 cm",1500,300,null,{"$f":"IF(Tableau2[[#This Row],[destinataire]]=0,IF(_xlfn.XLOOKUP(Tableau2[[#This Row],[code désignation]],commandecolonne[lisiting commande colonne],commandecolonne[lisiting commande colonne],FALSE)=Tableau2[[#This Row],[code désignation]],TRUE,FALSE),TRUE)","v":false}]
[{"$f":"_xlfn.XLOOKUP(MID(C43,1,1),Type[lettre type],Type[type])","v":"Canapé"},39,"C18",{"$f":"\"https://sico-my.sharepoint.com/personal/julien_carestiato_fondation-ove_fr/Documents/Images/1potiniere/\"&Tableau2[[#This Row],[numéro]]&\".png\"","v":"https://sico-my.sharepoint.com/personal/julien_carestiato_fondation-ove_fr/Documents/Images/1potiniere/C18.png"},null,"CANAPE MORDORE MOTIF ",{"$f":"IF(Tableau2[[#This Row],[déjà en prêt commande]]=TRUE,\" \",Tableau2[[#This Row],[numéro]]&\" \"&Tableau2[[#This Row],[désignation]])","v":"C18 CANAPE MORDORE MOTIF "},{"$f":"Tableau2[[#This Row],[numéro]]&\" \"&Tableau2[[#This Row],[désignation]]","v":"C18 CANAPE MORDORE MOTIF "},"H 75 cm / 250 x 100 cm",1500,300,null,{"$f":"IF(Tableau2[[#This Row],[destinataire]]=0,IF(_xlfn.XLOOKUP(Tableau2[[#This Row],[code désignation]],commandecolonne[lisiting commande colonne],commandecolonne[lisiting commande colonne],FALSE)=Tableau2[[#This Row],[code désignation]],TRUE,FALSE),TRUE)","v":false}]
[{"$f":"_xlfn.XLOOKUP(MID(C44,1,1),Type[lettre type],Type[type])","v":"Canapé"},40,"C19",{"$f":"\"https://sico-my.sharepoint.com/personal/julien_carestiato_fondation-ove_fr/Documents/Images/1potiniere/\"&Tableau2[[#This Row],[numéro]]&\".png\"","v":"https://sico-my.sharepoint.com/personal/julien_carestiato_fondation-ove_fr/Documents/Images/1potiniere/C19.png"},null,"CANAPE MARRON CHINE MORDORE + MERIDIENNE",{"$f":"IF(Tableau2[[#This Row],[déjà en prêt commande]]=TRUE,\" \",Tableau2[[#This Row],[numéro]]&\" \"&Tableau2[[#This Row],[désignation]])","v":"C19 CANAPE MARRON CHINE MORDORE + MERIDIENNE"},{"$f":"Tableau2[[#This Row],[numéro]]&\" \"&Tableau2[[#This Row],[désignation]]","v":"C19 CANAPE MARRON CHINE MORDORE + MERIDIENNE"},"H 75 cm / 250 x 100 cm                          + Méridienne l 110 cm",1500,300,null,{"$f":"IF(Tableau2[[#This Row],[destinataire]]=0,IF(_xlfn.XLOOKUP(Tableau2[[#This Row],[code désignation]],commandecolonne[lisiting commande colonne],commandecolonne[lisiting commande colonne],FALSE)=Tableau2[[#This Row],[code désignation]],TRUE,FALSE),TRUE)","v":false}]
[{"$f":"_xlfn.XLOOKUP(MID(C45,1,1),Type[lettre type],Type[type])","v":"Canapé"},41,"C20",{"$f":"\"https://sico-my.sharepoint.com/personal/julien_carestiato_fondation-ove_fr/Documents/Images/1potiniere/\"&Tableau2[[#This Row],[numéro]]&\".png\"","v":"https://sico-my.sharepoint.com/personal/julien_carestiato_fondation-ove_fr/Documents/Images/1potiniere/C20.png"},null,"CANAPE MORDORE MOTIF ",{"$f":"IF(Tableau2[[#This Row],[déjà en prêt commande]]=TRUE,\" \",Tableau2[[#This Row],[numéro]]&\" \"&Tableau2[[#This Row],[désignation]])","v":"C20 CANAPE MORDORE MOTIF "},{"$f":"Tableau2[[#This Row],[numéro]]&\" \"&Tableau2[[#This Row],[désignation]]","v":"C20 CANAPE MORDORE MOTIF "},"H 75 cm / 250 x 100 cm",1500,300,null,{"$f":"IF(Tableau2[[#This Row],[destinataire]]=0,IF(_xlfn.XLOOKUP(Tableau2[[#This Row],[code désignation]],commandecolonne[lisiting commande colonne],commandecolonne[lisiting commande colonne],FALSE)=Tableau2[[#This Row],[code désignation]],TRUE,FALSE),TRUE)","v":false}]
[{"$f":"_xlfn.XLOOKUP(MID(C46,1,1),Type[lettre type],Type[type])","v":"Canapé"},42,"C21",{"$f":"\"https://sico-my.sharepoint.com/personal/julien_carestiato_fondation-ove_fr/Documents/Images/1potiniere/\"&Tableau2[[#This Row],[numéro]]&\".png\"","v":"https://sico-my.sharepoint.com/personal/julien_carestiato_fondation-ove_fr/Documents/Images/1potiniere/C21.png"},null,"CANAPE ROUGE",{"$f":"IF(Tableau2[[#This Row],[déjà en prêt commande]]=TRUE,\" \",Tableau2[[#This Row],[numéro]]&\" \"&Tableau2[[#This Row],[désignation]])","v":"C21 CANAPE ROUGE"},{"$f":"Tableau2[[#This Row],[numéro]]&\" \"&Tableau2[[#This Row],[désignation]]","v":"C21 CANAPE ROUGE"},"H 75 cm / 250 x 100 cm",1500,300,null,{"$f":"IF(Tableau2[[#This Row],[destinataire]]=0,IF(_xlfn.XLOOKUP(Tableau2[[#This Row],[code désignation]],commandecolonne[lisiting commande colonne],commandecolonne[lisiting commande colonne],FALSE)=Tableau2[[#This Row],[code désignation]],TRUE,FALSE),TRUE)","v":false}]
[{"$f":"_xlfn.XLOOKUP(MID(C47,1,1),Type[lettre type],Type[type])","v":"Canapé"},43,"C22",{"$f":"\"https://sico-my.sharepoint.com/personal/julien_carestiato_fondation-ove_fr/Documents/Images/1potiniere/\"&Tableau2[[#This Row],[numéro]]&\".png\"","v":"https://sico-my.sharepoint.com/personal/julien_carestiato_fondation-ove_fr/Documents/Images/1potiniere/C22.png"},null,"CANAPE MARRON MORDORE + MERIDIENNE",{"$f":"IF(Tableau2[[#This Row],[déjà en prêt commande]]=TRUE,\" \",Tableau2[[#This Row],[numéro]]&\" \"&Tableau2[[#This Row],[désignation]])","v":"C22 CANAPE MARRON MORDORE + MERIDIENNE"},{"$f":"Tableau2[[#This Row],[numéro]]&\" \"&Tableau2[[#This Row],[désignation]]","v":"C22 CANAPE MARRON MORDORE + MERIDIENNE"},"H 75 cm / 250 x 100 cm                          + Méridienne l 110 cm",1500,300,null,{"$f":"IF(Tableau2[[#This Row],[destinataire]]=0,IF(_xlfn.XLOOKUP(Tableau2[[#This Row],[code désignation]],commandecolonne[lisiting commande colonne],commandecolonne[lisiting commande colonne],FALSE)=Tableau2[[#This Row],[code désignation]],TRUE,FALSE),TRUE)","v":false}]
[{"$f":"_xlfn.XLOOKUP(MID(C48,1,1),Type[lettre type],Type[type])","v":"Canapé"},44,"C23",{"$f":"\"https://sico-my.sharepoint.com/personal/julien_carestiato_fondation-ove_fr/Documents/Images/1potiniere/\"&Tableau2[[#This Row],[numéro]]&\".png\"","v":"https://sico-my.sharepoint.com/personal/julien_carestiato_fondation-ove_fr/Documents/Images/1potiniere/C23.png"},null,"CANAPE MARRON MORDORE",{"$f":"IF(Tableau2[[#This Row],[déjà en prêt commande]]=TRUE,\" \",Tableau2[[#This Row],[numéro]]&\" \"&Tableau2[[#This Row],[désignation]])","v":"C23 CANAPE MARRON MORDORE"},{"$f":"Tableau2[[#This Row],[numéro]]&\" \"&Tableau2[[#This Row],[désignation]]","v":"C23 CANAPE MARRON MORDORE"},"H 75 cm / 250 x 100 cm",1500,300,null,{"$f":"IF(Tableau2[[#This Row],[destinataire]]=0,IF(_xlfn.XLOOKUP(Tableau2[[#This Row],[code désignation]],commandecolonne[lisiting commande colonne],commandecolonne[lisiting commande colonne],FALSE)=Tableau2[[#This Row],[code désignation]],TRUE,FALSE),TRUE)","v":false}]
[{"$f":"_xlfn.XLOOKUP(MID(C49,1,1),Type[lettre type],Type[type])","v":"Canapé"},45,"C24",{"$f":"\"https://sico-my.sharepoint.com/personal/julien_carestiato_fondation-ove_fr/Documents/Images/1potiniere/\"&Tableau2[[#This Row],[numéro]]&\".png\"","v":"https://sico-my.sharepoint.com/personal/julien_carestiato_fondation-ove_fr/Documents/Images/1potiniere/C24.png"},null,"CANAPE CHINE BEIGE",{"$f":"IF(Tableau2[[#This Row],[déjà en prêt commande]]=TRUE,\" \",Tableau2[[#This Row],[numéro]]&\" \"&Tableau2[[#This Row],[désignation]])","v":"C24 CANAPE CHINE BEIGE"},{"$f":"Tableau2[[#This Row],[numéro]]&\" \"&Tableau2[[#This Row],[désignation]]","v":"C24 CANAPE CHINE BEIGE"},"H 75 cm / 250 x 100 cm",1500,300,null,{"$f":"IF(Tableau2[[#This Row],[destinataire]]=0,IF(_xlfn.XLOOKUP(Tableau2[[#This Row],[code désignation]],commandecolonne[lisiting commande colonne],commandecolonne[lisiting commande colonne],FALSE)=Tableau2[[#This Row],[code désignation]],TRUE,FALSE),TRUE)","v":false}]
[{"$f":"_xlfn.XLOOKUP(MID(C50,1,1),Type[lettre type],Type[type])","v":"Canapé"},46,"C25",{"$f":"\"https://sico-my.sharepoint.com/personal/julien_carestiato_fondation-ove_fr/Documents/Images/1potiniere/\"&Tableau2[[#This Row],[numéro]]&\".png\"","v":"https://sico-my.sharepoint.com/personal/julien_carestiato_fondation-ove_fr/Documents/Images/1potiniere/C25.png"},null,"CANAPE CHINE BEIGE",{"$f":"IF(Tableau2[[#This Row],[déjà en prêt commande]]=TRUE,\" \",Tableau2[[#This Row],[numéro]]&\" \"&Tableau2[[#This Row],[désignation]])","v":"C25 CANAPE CHINE BEIGE"},{"$f":"Tableau2[[#This Row],[numéro]]&\" \"&Tableau2[[#This Row],[désignation]]","v":"C25 CANAPE CHINE BEIGE"},"H 75 cm / 250 x 100 cm",1500,300,null,{"$f":"IF(Tableau2[[#This Row],[destinataire]]=0,IF(_xlfn.XLOOKUP(Tableau2[[#This Row],[code désignation]],commandecolonne[lisiting commande colonne],commandecolonne[lisiting commande colonne],FALSE)=Tableau2[[#This Row],[code désignation]],TRUE,FALSE),TRUE)","v":false}]
[{"$f":"_xlfn.XLOOKUP(MID(C51,1,1),Type[lettre type],Type[type])","v":"Table de chevet"},47,"D1",{"$f":"\"https://sico-my.sharepoint.com/personal/julien_carestiato_fondation-ove_fr/Documents/Images/1potiniere/\"&Tableau2[[#This Row],[numéro]]&\".png\"","v":"https://sico-my.sharepoint.com/personal/julien_carestiato_fondation-ove_fr/Documents/Images/1potiniere/D1.png"},null,"TABLE DE CHEVET ",{"$f":"IF(Tableau2[[#This Row],[déjà en prêt commande]]=TRUE,\" \",Tableau2[[#This Row],[numéro]]&\" \"&Tableau2[[#This Row],[désignation]])","v":"D1 TABLE DE CHEVET "},{"$f":"Tableau2[[#This Row],[numéro]]&\" \"&Tableau2[[#This Row],[désignation]]","v":"D1 TABLE DE CHEVET "},"H 45 cm 39x39 cm",100,20,null,{"$f":"IF(Tableau2[[#This Row],[destinataire]]=0,IF(_xlfn.XLOOKUP(Tableau2[[#This Row],[code désignation]],commandecolonne[lisiting commande colonne],commandecolonne[lisiting commande colonne],FALSE)=Tableau2[[#This Row],[code désignation]],TRUE,FALSE),TRUE)","v":false}]
[{"$f":"_xlfn.XLOOKUP(MID(C52,1,1),Type[lettre type],Type[type])","v":"Table de chevet"},48,"D2",{"$f":"\"https://sico-my.sharepoint.com/personal/julien_carestiato_fondation-ove_fr/Documents/Images/1potiniere/\"&Tableau2[[#This Row],[numéro]]&\".png\"","v":"https://sico-my.sharepoint.com/personal/julien_carestiato_fondation-ove_fr/Documents/Images/1potiniere/D2.png"},null,"TABLE DE CHEVET ",{"$f":"IF(Tableau2[[#This Row],[déjà en prêt commande]]=TRUE,\" \",Tableau2[[#This Row],[numéro]]&\" \"&Tableau2[[#This Row],[désignation]])","v":"D2 TABLE DE CHEVET "},{"$f":"Tableau2[[#This Row],[numéro]]&\" \"&Tableau2[[#This Row],[désignation]]","v":"D2 TABLE DE CHEVET "},"H 45 cm 39x39 cm",100,20,null,{"$f":"IF(Tableau2[[#This Row],[destinataire]]=0,IF(_xlfn.XLOOKUP(Tableau2[[#This Row],[code désignation]],commandecolonne[lisiting commande colonne],commandecolonne[lisiting commande colonne],FALSE)=Tableau2[[#This Row],[code désignation]],TRUE,FALSE),TRUE)","v":false}]
[{"$f":"_xlfn.XLOOKUP(MID(C53,1,1),Type[lettre type],Type[type])","v":"Table de chevet"},49,"D3",{"$f":"\"https://sico-my.sharepoint.com/personal/julien_carestiato_fondation-ove_fr/Documents/Images/1potiniere/\"&Tableau2[[#This Row],[numéro]]&\".png\"","v":"https://sico-my.sharepoint.com/personal/julien_carestiato_fondation-ove_fr/Documents/Images/1potiniere/D3.png"},null,"TABLE DE CHEVET ",{"$f":"IF(Tableau2[[#This Row],[déjà en prêt commande]]=TRUE,\" \",Tableau2[[#This Row],[numéro]]&\" \"&Tableau2[[#This Row],[désignation]])","v":"D3 TABLE DE CHEVET "},{"$f":"Tableau2[[#This Row],[numéro]]&\" \"&Tableau2[[#This Row],[désignation]]","v":"D3 TABLE DE CHEVET "},"H 45 cm 39x39 cm",100,20,null,{"$f":"IF(Tableau2[[#This Row],[destinataire]]=0,IF(_xlfn.XLOOKUP(Tableau2[[#This Row],[code désignation]],commandecolonne[lisiting commande colonne],commandecolonne[lisiting commande colonne],FALSE)=Tableau2[[#This Row],[code désignation]],TRUE,FALSE),TRUE)","v":false}]
[{"$f":"_xlfn.XLOOKUP(MID(C54,1,1),Type[lettre type],Type[type])","v":"Table de chevet"},50,"D4",{"$f":"\"https://sico-my.sharepoint.com/personal/julien_carestiato_fondation-ove_fr/Documents/Images/1potiniere/\"&Tableau2[[#This Row],[numéro]]&\".png\"","v":"https://sico-my.sharepoint.com/personal/julien_carestiato_fondation-ove_fr/Documents/Images/1potiniere/D4.png"},null,"TABLE DE CHEVET ",{"$f":"IF(Tableau2[[#This Row],[déjà en prêt commande]]=TRUE,\" \",Tableau2[[#This Row],[numéro]]&\" \"&Tableau2[[#This Row],[désignation]])","v":"D4 TABLE DE CHEVET "},{"$f":"Tableau2[[#This Row],[numéro]]&\" \"&Tableau2[[#This Row],[désignation]]","v":"D4 TABLE DE CHEVET "},"H 45 cm 39x39 cm",100,20,null,{"$f":"IF(Tableau2[[#This Row],[destinataire]]=0,IF(_xlfn.XLOOKUP(Tableau2[[#This Row],[code désignation]],commandecolonne[lisiting commande colonne],commandecolonne[lisiting commande colonne],FALSE)=Tableau2[[#This Row],[code désignation]],TRUE,FALSE),TRUE)","v":false}]
[{"$f":"_xlfn.XLOOKUP(MID(C55,1,1),Type[lettre type],Type[type])","v":"Table de chevet"},51,"D5",{"$f":"\"https://sico-my.sharepoint.com/personal/julien_carestiato_fondation-ove_fr/Documents/Images/1potiniere/\"&Tableau2[[#This Row],[numéro]]&\".png\"","v":"https://sico-my.sharepoint.com/personal/julien_carestiato_fondation-ove_fr/Documents/Images/1potiniere/D5.png"},null,"TABLE DE CHEVET ",{"$f":"IF(Tableau2[[#This Row],[déjà en prêt commande]]=TRUE,\" \",Tableau2[[#This Row],[numéro]]&\" \"&Tableau2[[#This Row],[désignation]])","v":"D5 TABLE DE CHEVET "},{"$f":"Tableau2[[#This Row],[numéro]]&\" \"&Tableau2[[#This Row],[désignation]]","v":"D5 TABLE DE CHEVET "},"H 45 cm 39x39 cm",100,20,null,{"$f":"IF(Tableau2[[#This Row],[destinataire]]=0,IF(_xlfn.XLOOKUP(Tableau2[[#This Row],[code désignation]],commandecolonne[lisiting commande colonne],commandecolonne[lisiting commande colonne],FALSE)=Tableau2[[#This Row],[code désignation]],TRUE,FALSE),TRUE)","v":false}]
[{"$f":"_xlfn.XLOOKUP(MID(C56,1,1),Type[lettre type],Type[type])","v":"Table de chevet"},52,"D6",{"$f":"\"https://sico-my.sharepoint.com/personal/julien_carestiato_fondation-ove_fr/Documents/Images/1potiniere/\"&Tableau2[[#This Row],[numéro]]&\".png\"","v":"https://sico-my.sharepoint.com/personal/julien_carestiato_fondation-ove_fr/Documents/Images/1potiniere/D6.png"},null,"TABLE DE CHEVET ",{"$f":"IF(Tableau2[[#This Row],[déjà en prêt commande]]=TRUE,\" \",Tableau2[[#This Row],[numéro]]&\" \"&Tableau2[[#This Row],[désignation]])","v":"D6 TABLE DE CHEVET "},{"$f":"Tableau2[[#This Row],[numéro]]&\" \"&Tableau2[[#This Row],[désignation]]","v":"D6 TABLE DE CHEVET "},"H 45 cm 39x39 cm",100,20,null,{"$f":"IF(Tableau2[[#This Row],[destinataire]]=0,IF(_xlfn.XLOOKUP(Tableau2[[#This Row],[code désignation]],commandecolonne[lisiting commande colonne],commandecolonne[lisiting commande colonne],FALSE)=Tableau2[[#This Row],[code désignation]],TRUE,FALSE),TRUE)","v":false}]
[{"$f":"_xlfn.XLOOKUP(MID(C57,1,1),Type[lettre type],Type[type])","v":"Table de chevet"},53,"D7",{"$f":"\"https://sico-my.sharepoint.com/personal/julien_carestiato_fondation-ove_fr/Documents/Images/1potiniere/\"&Tableau2[[#This Row],[numéro]]&\".png\"","v":"https://sico-my.sharepoint.com/personal/julien_carestiato_fondation-ove_fr/Documents/Images/1potiniere/D7.png"},null,"TABLE DE CHEVET ",{"$f":"IF(Tableau2[[#This Row],[déjà en prêt commande]]=TRUE,\" \",Tableau2[[#This Row],[numéro]]&\" \"&Tableau2[[#This Row],[désignation]])","v":"D7 TABLE DE CHEVET "},{"$f":"Tableau2[[#This Row],[numéro]]&\" \"&Tableau2[[#This Row],[désignation]]","v":"D7 TABLE DE CHEVET "},"H 45 cm 39x39 cm",100,20,null,{"$f":"IF(Tableau2[[#This Row],[destinataire]]=0,IF(_xlfn.XLOOKUP(Tableau2[[#This Row],[code désignation]],commandecolonne[lisiting commande colonne],commandecolonne[lisiting commande colonne],FALSE)=Tableau2[[#This Row],[code désignation]],TRUE,FALSE),TRUE)","v":false}]
[{"$f":"_xlfn.XLOOKUP(MID(C58,1,1),Type[lettre type],Type[type])","v":"Table de chevet"},54,"D8",{"$f":"\"https://sico-my.sharepoint.com/personal/julien_carestiato_fondation-ove_fr/Documents/Images/1potiniere/\"&Tableau2[[#This Row],[numéro]]&\".png\"","v":"https://sico-my.sharepoint.com/personal/julien_carestiato_fondation-ove_fr/Documents/Images/1potiniere/D8.png"},null,"TABLE DE CHEVET ",{"$f":"IF(Tableau2[[#This Row],[déjà en prêt commande]]=TRUE,\" \",Tableau2[[#This Row],[numéro]]&\" \"&Tableau2[[#This Row],[désignation]])","v":"D8 TABLE DE CHEVET "},{"$f":"Tableau2[[#This Row],[numéro]]&\" \"&Tableau2[[#This Row],[désignation]]","v":"D8 TABLE DE CHEVET "},"H 45 cm 39x39 cm",100,20,null,{"$f":"IF(Tableau2[[#This Row],[destinataire]]=0,IF(_xlfn.XLOOKUP(Tableau2[[#This Row],[code désignation]],commandecolonne[lisiting commande colonne],commandecolonne[lisiting commande colonne],FALSE)=Tableau2[[#This Row],[code désignation]],TRUE,FALSE),TRUE)","v":false}]
[{"$f":"_xlfn.XLOOKUP(MID(C59,1,1),Type[lettre type],Type[type])","v":"Table de chevet"},55,"D9",{"$f":"\"https://sico-my.sharepoint.com/personal/julien_carestiato_fondation-ove_fr/Documents/Images/1potiniere/\"&Tableau2[[#This Row],[numéro]]&\".png\"","v":"https://sico-my.sharepoint.com/personal/julien_carestiato_fondation-ove_fr/Documents/Images/1potiniere/D9.png"},null,"TABLE DE CHEVET ",{"$f":"IF(Tableau2[[#This Row],[déjà en prêt commande]]=TRUE,\" \",Tableau2[[#This Row],[numéro]]&\" \"&Tableau2[[#This Row],[désignation]])","v":"D9 TABLE DE CHEVET "},{"$f":"Tableau2[[#This Row],[numéro]]&\" \"&Tableau2[[#This Row],[désignation]]","v":"D9 TABLE DE CHEVET "},"H 45 cm 39x39 cm",100,20,null,{"$f":"IF(Tableau2[[#This Row],[destinataire]]=0,IF(_xlfn.XLOOKUP(Tableau2[[#This Row],[code désignation]],commandecolonne[lisiting commande colonne],commandecolonne[lisiting commande colonne],FALSE)=Tableau2[[#This Row],[code désignation]],TRUE,FALSE),TRUE)","v":false}]
[{"$f":"_xlfn.XLOOKUP(MID(C60,1,1),Type[lettre type],Type[type])","v":"Table de chevet"},56,"D10",{"$f":"\"https://sico-my.sharepoint.com/personal/julien_carestiato_fondation-ove_fr/Documents/Images/1potiniere/\"&Tableau2[[#This Row],[numéro]]&\".png\"","v":"https://sico-my.sharepoint.com/personal/julien_carestiato_fondation-ove_fr/Documents/Images/1potiniere/D10.png"},null,"TABLE DE CHEVET ",{"$f":"IF(Tableau2[[#This Row],[déjà en prêt commande]]=TRUE,\" \",Tableau2[[#This Row],[numéro]]&\" \"&Tableau2[[#This Row],[désignation]])","v":"D10 TABLE DE CHEVET "},{"$f":"Tableau2[[#This Row],[numéro]]&\" \"&Tableau2[[#This Row],[désignation]]","v":"D10 TABLE DE CHEVET "},"H 45 cm 39x39 cm",100,20,null,{"$f":"IF(Tableau2[[#This Row],[destinataire]]=0,IF(_xlfn.XLOOKUP(Tableau2[[#This Row],[code désignation]],commandecolonne[lisiting commande colonne],commandecolonne[lisiting commande colonne],FALSE)=Tableau2[[#This Row],[code désignation]],TRUE,FALSE),TRUE)","v":false}]
[{"$f":"_xlfn.XLOOKUP(MID(C61,1,1),Type[lettre type],Type[type])","v":"Table de chevet"},57,"D11",{"$f":"\"https://sico-my.sharepoint.com/personal/julien_carestiato_fondation-ove_fr/Documents/Images/1potiniere/\"&Tableau2[[#This Row],[numéro]]&\".png\"","v":"https://sico-my.sharepoint.com/personal/julien_carestiato_fondation-ove_fr/Documents/Images/1potiniere/D11.png"},null,"TABLE DE CHEVET ",{"$f":"IF(Tableau2[[#This Row],[déjà en prêt commande]]=TRUE,\" \",Tableau2[[#This Row],[numéro]]&\" \"&Tableau2[[#This Row],[désignation]])","v":"D11 TABLE DE CHEVET "},{"$f":"Tableau2[[#This Row],[numéro]]&\" \"&Tableau2[[#This Row],[désignation]]","v":"D11 TABLE DE CHEVET "},"H 45 cm 39x39 cm",100,20,null,{"$f":"IF(Tableau2[[#This Row],[destinataire]]=0,IF(_xlfn.XLOOKUP(Tableau2[[#This Row],[code désignation]],commandecolonne[lisiting commande colonne],commandecolonne[lisiting commande colonne],FALSE)=Tableau2[[#This Row],[code désignation]],TRUE,FALSE),TRUE)","v":false}]
[{"$f":"_xlfn.XLOOKUP(MID(C62,1,1),Type[lettre type],Type[type])","v":"Table de chevet"},58,"D12",{"$f":"\"https://sico-my.sharepoint.com/personal/julien_carestiato_fondation-ove_fr/Documents/Images/1potiniere/\"&Tableau2[[#This Row],[numéro]]&\".png\"","v":"https://sico-my.sharepoint.com/personal/julien_carestiato_fondation-ove_fr/Documents/Images/1potiniere/D12.png"},"Photo non dispo","TABLE DE CHEVET ",{"$f":"IF(Tableau2[[#This Row],[déjà en prêt commande]]=TRUE,\" \",Tableau2[[#This Row],[numéro]]&\" \"&Tableau2[[#This Row],[désignation]])","v":" "},{"$f":"Tableau2[[#This Row],[numéro]]&\" \"&Tableau2[[#This Row],[désignation]]","v":"D12 TABLE DE CHEVET "},"H 45 cm 50x50 cm",100,20,"D-12 à D-17 APPARTEMENTS SOUTIEN",{"$f":"IF(Tableau2[[#This Row],[destinataire]]=0,IF(_xlfn.XLOOKUP(Tableau2[[#This Row],[code désignation]],commandecolonne[lisiting commande colonne],commandecolonne[lisiting commande colonne],FALSE)=Tableau2[[#This Row],[code désignation]],TRUE,FALSE),TRUE)","v":true}]
[{"$f":"_xlfn.XLOOKUP(MID(C63,1,1),Type[lettre type],Type[type])","v":"Table de chevet"},59,"D13",{"$f":"\"https://sico-my.sharepoint.com/personal/julien_carestiato_fondation-ove_fr/Documents/Images/1potiniere/\"&Tableau2[[#This Row],[numéro]]&\".png\"","v":"https://sico-my.sharepoint.com/personal/julien_carestiato_fondation-ove_fr/Documents/Images/1potiniere/D13.png"},"Photo non dispo","TABLE DE CHEVET ",{"$f":"IF(Tableau2[[#This Row],[déjà en prêt commande]]=TRUE,\" \",Tableau2[[#This Row],[numéro]]&\" \"&Tableau2[[#This Row],[désignation]])","v":" "},{"$f":"Tableau2[[#This Row],[numéro]]&\" \"&Tableau2[[#This Row],[désignation]]","v":"D13 TABLE DE CHEVET "},"H 45 cm 50x50 cm",100,20,"D-12 à D-17 APPARTEMENTS SOUTIEN",{"$f":"IF(Tableau2[[#This Row],[destinataire]]=0,IF(_xlfn.XLOOKUP(Tableau2[[#This Row],[code désignation]],commandecolonne[lisiting commande colonne],commandecolonne[lisiting commande colonne],FALSE)=Tableau2[[#This Row],[code désignation]],TRUE,FALSE),TRUE)","v":true}]
[{"$f":"_xlfn.XLOOKUP(MID(C64,1,1),Type[lettre type],Type[type])","v":"Table de chevet"},60,"D14",{"$f":"\"https://sico-my.sharepoint.com/personal/julien_carestiato_fondation-ove_fr/Documents/Images/1potiniere/\"&Tableau2[[#This Row],[numéro]]&\".png\"","v":"https://sico-my.sharepoint.com/personal/julien_carestiato_fondation-ove_fr/Documents/Images/1potiniere/D14.png"},"Photo non dispo","TABLE DE CHEVET ",{"$f":"IF(Tableau2[[#This Row],[déjà en prêt commande]]=TRUE,\" \",Tableau2[[#This Row],[numéro]]&\" \"&Tableau2[[#This Row],[désignation]])","v":" "},{"$f":"Tableau2[[#This Row],[numéro]]&\" \"&Tableau2[[#This Row],[désignation]]","v":"D14 TABLE DE CHEVET "},"H 45 cm 50x50 cm",100,20,"D-12 à D-17 APPARTEMENTS SOUTIEN",{"$f":"IF(Tableau2[[#This Row],[destinataire]]=0,IF(_xlfn.XLOOKUP(Tableau2[[#This Row],[code désignation]],commandecolonne[lisiting commande colonne],commandecolonne[lisiting commande colonne],FALSE)=Tableau2[[#This Row],[code désignation]],TRUE,FALSE),TRUE)","v":true}]
[{"$f":"_xlfn.XLOOKUP(MID(C65,1,1),Type[lettre type],Type[type])","v":"Table de chevet"},61,"D15",{"$f":"\"https://sico-my.sharepoint.com/personal/julien_carestiato_fondation-ove_fr/Documents/Images/1potiniere/\"&Tableau2[[#This Row],[numéro]]&\".png\"","v":"https://sico-my.sharepoint.com/personal/julien_carestiato_fondation-ove_fr/Documents/Images/1potiniere/D15.png"},"Photo non dispo","TABLE DE CHEVET ",{"$f":"IF(Tableau2[[#This Row],[déjà en prêt commande]]=TRUE,\" \",Tableau2[[#This Row],[numéro]]&\" \"&Tableau2[[#This Row],[désignation]])","v":" "},{"$f":"Tableau2[[#This Row],[numéro]]&\" \"&Tableau2[[#This Row],[désignation]]","v":"D15 TABLE DE CHEVET "},"H 45 cm 50x50 cm",100,20,"D-12 à D-17 APPARTEMENTS SOUTIEN",{"$f":"IF(Tableau2[[#This Row],[destinataire]]=0,IF(_xlfn.XLOOKUP(Tableau2[[#This Row],[code désignation]],commandecolonne[lisiting commande colonne],commandecolonne[lisiting commande colonne],FALSE)=Tableau2[[#This Row],[code désignation]],TRUE,FALSE),TRUE)","v":true}]
[{"$f":"_xlfn.XLOOKUP(MID(C66,1,1),Type[lettre type],Type[type])","v":"Table de chevet"},62,"D16",{"$f":"\"https://sico-my.sharepoint.com/personal/julien_carestiato_fondation-ove_fr/Documents/Images/1potiniere/\"&Tableau2[[#This Row],[numéro]]&\".png\"","v":"https://sico-my.sharepoint.com/personal/julien_carestiato_fondation-ove_fr/Documents/Images/1potiniere/D16.png"},"Photo non dispo","TABLE DE CHEVET ",{"$f":"IF(Tableau2[[#This Row],[déjà en prêt commande]]=TRUE,\" \",Tableau2[[#This Row],[numéro]]&\" \"&Tableau2[[#This Row],[désignation]])","v":" "},{"$f":"Tableau2[[#This Row],[numéro]]&\" \"&Tableau2[[#This Row],[désignation]]","v":"D16 TABLE DE CHEVET "},"H 45 cm 50x50 cm",100,20,"D-12 à D-17 APPARTEMENTS SOUTIEN",{"$f":"IF(Tableau2[[#This Row],[destinataire]]=0,IF(_xlfn.XLOOKUP(Tableau2[[#This Row],[code désignation]],commandecolonne[lisiting commande colonne],commandecolonne[lisiting commande colonne],FALSE)=Tableau2[[#This Row],[code désignation]],TRUE,FALSE),TRUE)","v":true}]
[{"$f":"_xlfn.XLOOKUP(MID(C67,1,1),Type[lettre type],Type[type])","v":"Table de chevet"},63,"D17",{"$f":"\"https://sico-my.sharepoint.com/personal/julien_carestiato_fondation-ove_fr/Documents/Images/1potiniere/\"&Tableau2[[#This Row],[numéro]]&\".png\"","v":"https://sico-my.sharepoint.com/personal/julien_carestiato_fondation-ove_fr/Documents/Images/1potiniere/D17.png"},"Photo non dispo","TABLE DE CHEVET ",{"$f":"IF(Tableau2[[#This Row],[déjà en prêt commande]]=TRUE,\" \",Tableau2[[#This Row],[numéro]]&\" \"&Tableau2[[#This Row],[désignation]])","v":" "},{"$f":"Tableau2[[#This Row],[numéro]]&\" \"&Tableau2[[#This Row],[désignation]]","v":"D17 TABLE DE CHEVET "},"H 45 cm 50x50 cm",100,20,"D-12 à D-17 APPARTEMENTS SOUTIEN",{"$f":"IF(Tableau2[[#This Row],[destinataire]]=0,IF(_xlfn.XLOOKUP(Tableau2[[#This Row],[code désignation]],commandecolonne[lisiting commande colonne],commandecolonne[lisiting commande colonne],FALSE)=Tableau2[[#This Row],[code désignation]],TRUE,FALSE),TRUE)","v":true}]
[{"$f":"_xlfn.XLOOKUP(MID(C68,1,1),Type[lettre type],Type[type])","v":"Table de chevet"},64,"D18",{"$f":"\"https://sico-my.sharepoint.com/personal/julien_carestiato_fondation-ove_fr/Documents/Images/1potiniere/\"&Tableau2[[#This Row],[numéro]]&\".png\"","v":"https://sico-my.sharepoint.com/personal/julien_carestiato_fondation-ove_fr/Documents/Images/1potiniere/D18.png"},null,"TABLE DE CHEVET ",{"$f":"IF(Tableau2[[#This Row],[déjà en prêt commande]]=TRUE,\" \",Tableau2[[#This Row],[numéro]]&\" \"&Tableau2[[#This Row],[désignation]])","v":"D18 TABLE DE CHEVET "},{"$f":"Tableau2[[#This Row],[numéro]]&\" \"&Tableau2[[#This Row],[désignation]]","v":"D18 TABLE DE CHEVET "},"H 45 cm 50x50 cm",100,20,null,{"$f":"IF(Tableau2[[#This Row],[destinataire]]=0,IF(_xlfn.XLOOKUP(Tableau2[[#This Row],[code désignation]],commandecolonne[lisiting commande colonne],commandecolonne[lisiting commande colonne],FALSE)=Tableau2[[#This Row],[code désignation]],TRUE,FALSE),TRUE)","v":false}]
[{"$f":"_xlfn.XLOOKUP(MID(C69,1,1),Type[lettre type],Type[type])","v":"Table de chevet"},65,"D19",{"$f":"\"https://sico-my.sharepoint.com/personal/julien_carestiato_fondation-ove_fr/Documents/Images/1potiniere/\"&Tableau2[[#This Row],[numéro]]&\".png\"","v":"https://sico-my.sharepoint.com/personal/julien_carestiato_fondation-ove_fr/Documents/Images/1potiniere/D19.png"},null,"TABLE DE CHEVET ",{"$f":"IF(Tableau2[[#This Row],[déjà en prêt commande]]=TRUE,\" \",Tableau2[[#This Row],[numéro]]&\" \"&Tableau2[[#This Row],[désignation]])","v":"D19 TABLE DE CHEVET "},{"$f":"Tableau2[[#This Row],[numéro]]&\" \"&Tableau2[[#This Row],[désignation]]","v":"D19 TABLE DE CHEVET "},"H 45 cm 50x50 cm",100,20,null,{"$f":"IF(Tableau2[[#This Row],[destinataire]]=0,IF(_xlfn.XLOOKUP(Tableau2[[#This Row],[code désignation]],commandecolonne[lisiting commande colonne],commandecolonne[lisiting commande colonne],FALSE)=Tableau2[[#This Row],[code désignation]],TRUE,FALSE),TRUE)","v":false}]
[{"$f":"_xlfn.XLOOKUP(MID(C70,1,1),Type[lettre type],Type[type])","v":"Table de chevet"},66,"D20",{"$f":"\"https://sico-my.sharepoint.com/personal/julien_carestiato_fondation-ove_fr/Documents/Images/1potiniere/\"&Tableau2[[#This Row],[numéro]]&\".png\"","v":"https://sico-my.sharepoint.com/personal/julien_carestiato_fondation-ove_fr/Documents/Images/1potiniere/D20.png"},null,"TABLE DE CHEVET ",{"$f":"IF(Tableau2[[#This Row],[déjà en prêt commande]]=TRUE,\" \",Tableau2[[#This Row],[numéro]]&\" \"&Tableau2[[#This Row],[désignation]])","v":"D20 TABLE DE CHEVET "},{"$f":"Tableau2[[#This Row],[numéro]]&\" \"&Tableau2[[#This Row],[désignation]]","v":"D20 TABLE DE CHEVET "},"H 45 cm 50x50 cm",100,20,null,{"$f":"IF(Tableau2[[#This Row],[destinataire]]=0,IF(_xlfn.XLOOKUP(Tableau2[[#This Row],[code désignation]],commandecolonne[lisiting commande colonne],commandecolonne[lisiting commande colonne],FALSE)=Tableau2[[#This Row],[code désignation]],TRUE,FALSE),TRUE)","v":false}]
[{"$f":"_xlfn.XLOOKUP(MID(C71,1,1),Type[lettre type],Type[type])","v":"Table de chevet"},67,"D21",{"$f":"\"https://sico-my.sharepoint.com/personal/julien_carestiato_fondation-ove_fr/Documents/Images/1potiniere/\"&Tableau2[[#This Row],[numéro]]&\".png\"","v":"https://sico-my.sharepoint.com/personal/julien_carestiato_fondation-ove_fr/Documents/Images/1potiniere/D21.png"},null,"TABLE DE CHEVET ",{"$f":"IF(Tableau2[[#This Row],[déjà en prêt commande]]=TRUE,\" \",Tableau2[[#This Row],[numéro]]&\" \"&Tableau2[[#This Row],[désignation]])","v":"D21 TABLE DE CHEVET "},{"$f":"Tableau2[[#This Row],[numéro]]&\" \"&Tableau2[[#This Row],[désignation]]","v":"D21 TABLE DE CHEVET "},"H 45 cm 50x50 cm",100,20,null,{"$f":"IF(Tableau2[[#This Row],[destinataire]]=0,IF(_xlfn.XLOOKUP(Tableau2[[#This Row],[code désignation]],commandecolonne[lisiting commande colonne],commandecolonne[lisiting commande colonne],FALSE)=Tableau2[[#This Row],[code désignation]],TRUE,FALSE),TRUE)","v":false}]
[{"$f":"_xlfn.XLOOKUP(MID(C72,1,1),Type[lettre type],Type[type])","v":"Table Basse"},68,"E1",{"$f":"\"https://sico-my.sharepoint.com/personal/julien_carestiato_fondation-ove_fr/Documents/Images/1potiniere/\"&Tableau2[[#This Row],[numéro]]&\".png\"","v":"https://sico-my.sharepoint.com/personal/julien_carestiato_fondation-ove_fr/Documents/Images/1potiniere/E1.png"},"Photo non dispo","TABLE BASSE",{"$f":"IF(Tableau2[[#This Row],[déjà en prêt commande]]=TRUE,\" \",Tableau2[[#This Row],[numéro]]&\" \"&Tableau2[[#This Row],[désignation]])","v":" "},{"$f":"Tableau2[[#This Row],[numéro]]&\" \"&Tableau2[[#This Row],[désignation]]","v":"E1 TABLE BASSE"},"H 40 cm / 90X50 cm",0,0,"E-1 à E-4 APPARTEMENTS SOUTIEN E5 DITEP Annecy",{"$f":"IF(Tableau2[[#This Row],[destinataire]]=0,IF(_xlfn.XLOOKUP(Tableau2[[#This Row],[code désignation]],commandecolonne[lisiting commande colonne],commandecolonne[lisiting commande colonne],FALSE)=Tableau2[[#This Row],[code désignation]],TRUE,FALSE),TRUE)","v":true}]
[{"$f":"_xlfn.XLOOKUP(MID(C73,1,1),Type[lettre type],Type[type])","v":"Table Basse"},69,"E2",{"$f":"\"https://sico-my.sharepoint.com/personal/julien_carestiato_fondation-ove_fr/Documents/Images/1potiniere/\"&Tableau2[[#This Row],[numéro]]&\".png\"","v":"https://sico-my.sharepoint.com/personal/julien_carestiato_fondation-ove_fr/Documents/Images/1potiniere/E2.png"},"Photo non dispo","TABLE BASSE",{"$f":"IF(Tableau2[[#This Row],[déjà en prêt commande]]=TRUE,\" \",Tableau2[[#This Row],[numéro]]&\" \"&Tableau2[[#This Row],[désignation]])","v":" "},{"$f":"Tableau2[[#This Row],[numéro]]&\" \"&Tableau2[[#This Row],[désignation]]","v":"E2 TABLE BASSE"},"H 40 cm / 90X50 cm",0,0,"E-1 à E-4 APPARTEMENTS SOUTIEN E5 DITEP Annecy",{"$f":"IF(Tableau2[[#This Row],[destinataire]]=0,IF(_xlfn.XLOOKUP(Tableau2[[#This Row],[code désignation]],commandecolonne[lisiting commande colonne],commandecolonne[lisiting commande colonne],FALSE)=Tableau2[[#This Row],[code désignation]],TRUE,FALSE),TRUE)","v":true}]
[{"$f":"_xlfn.XLOOKUP(MID(C74,1,1),Type[lettre type],Type[type])","v":"Table Basse"},70,"E3",{"$f":"\"https://sico-my.sharepoint.com/personal/julien_carestiato_fondation-ove_fr/Documents/Images/1potiniere/\"&Tableau2[[#This Row],[numéro]]&\".png\"","v":"https://sico-my.sharepoint.com/personal/julien_carestiato_fondation-ove_fr/Documents/Images/1potiniere/E3.png"},"Photo non dispo","TABLE BASSE",{"$f":"IF(Tableau2[[#This Row],[déjà en prêt commande]]=TRUE,\" \",Tableau2[[#This Row],[numéro]]&\" \"&Tableau2[[#This Row],[désignation]])","v":" "},{"$f":"Tableau2[[#This Row],[numéro]]&\" \"&Tableau2[[#This Row],[désignation]]","v":"E3 TABLE BASSE"},"H 40 cm / 90X50 cm",0,0,"E-1 à E-4 APPARTEMENTS SOUTIEN E5 DITEP Annecy",{"$f":"IF(Tableau2[[#This Row],[destinataire]]=0,IF(_xlfn.XLOOKUP(Tableau2[[#This Row],[code désignation]],commandecolonne[lisiting commande colonne],commandecolonne[lisiting commande colonne],FALSE)=Tableau2[[#This Row],[code désignation]],TRUE,FALSE),TRUE)","v":true}]
[{"$f":"_xlfn.XLOOKUP(MID(C75,1,1),Type[lettre type],Type[type])","v":"Table Basse"},71,"E4",{"$f":"\"https://sico-my.sharepoint.com/personal/julien_carestiato_fondation-ove_fr/Documents/Images/1potiniere/\"&Tableau2[[#This Row],[numéro]]&\".png\"","v":"https://sico-my.sharepoint.com/personal/julien_carestiato_fondation-ove_fr/Documents/Images/1potiniere/E4.png"},"Photo non dispo","TABLE BASSE",{"$f":"IF(Tableau2[[#This Row],[déjà en prêt commande]]=TRUE,\" \",Tableau2[[#This Row],[numéro]]&\" \"&Tableau2[[#This Row],[désignation]])","v":" "},{"$f":"Tableau2[[#This Row],[numéro]]&\" \"&Tableau2[[#This Row],[désignation]]","v":"E4 TABLE BASSE"},"H 40 cm / 90X50 cm",0,0,"E-1 à E-4 APPARTEMENTS SOUTIEN E5 DITEP Annecy",{"$f":"IF(Tableau2[[#This Row],[destinataire]]=0,IF(_xlfn.XLOOKUP(Tableau2[[#This Row],[code désignation]],commandecolonne[lisiting commande colonne],commandecolonne[lisiting commande colonne],FALSE)=Tableau2[[#This Row],[code désignation]],TRUE,FALSE),TRUE)","v":true}]
[{"$f":"_xlfn.XLOOKUP(MID(C76,1,1),Type[lettre type],Type[type])","v":"Table Basse"},72,"E5",{"$f":"\"https://sico-my.sharepoint.com/personal/julien_carestiato_fondation-ove_fr/Documents/Images/1potiniere/\"&Tableau2[[#This Row],[numéro]]&\".png\"","v":"https://sico-my.sharepoint.com/personal/julien_carestiato_fondation-ove_fr/Documents/Images/1potiniere/E5.png"},null,"TABLE BASSE",{"$f":"IF(Tableau2[[#This Row],[déjà en prêt commande]]=TRUE,\" \",Tableau2[[#This Row],[numéro]]&\" \"&Tableau2[[#This Row],[désignation]])","v":" "},{"$f":"Tableau2[[#This Row],[numéro]]&\" \"&Tableau2[[#This Row],[désignation]]","v":"E5 TABLE BASSE"},"H 40 cm / 90X50 cm",0,0,"E-1 à E-4 APPARTEMENTS SOUTIEN E5 DITEP Annecy",{"$f":"IF(Tableau2[[#This Row],[destinataire]]=0,IF(_xlfn.XLOOKUP(Tableau2[[#This Row],[code désignation]],commandecolonne[lisiting commande colonne],commandecolonne[lisiting commande colonne],FALSE)=Tableau2[[#This Row],[code désignation]],TRUE,FALSE),TRUE)","v":true}]
[{"$f":"_xlfn.XLOOKUP(MID(C77,1,1),Type[lettre type],Type[type])","v":"Table Basse"},73,"E6",{"$f":"\"https://sico-my.sharepoint.com/personal/julien_carestiato_fondation-ove_fr/Documents/Images/1potiniere/\"&Tableau2[[#This Row],[numéro]]&\".png\"","v":"https://sico-my.sharepoint.com/personal/julien_carestiato_fondation-ove_fr/Documents/Images/1potiniere/E6.png"},null,"TABLE BASSE",{"$f":"IF(Tableau2[[#This Row],[déjà en prêt commande]]=TRUE,\" \",Tableau2[[#This Row],[numéro]]&\" \"&Tableau2[[#This Row],[désignation]])","v":" "},{"$f":"Tableau2[[#This Row],[numéro]]&\" \"&Tableau2[[#This Row],[désignation]]","v":"E6 TABLE BASSE"},"H 40 cm / 90X75 cm",200,40,"E-6 APPARTEMENTS SOUTIEN",{"$f":"IF(Tableau2[[#This Row],[destinataire]]=0,IF(_xlfn.XLOOKUP(Tableau2[[#This Row],[code désignation]],commandecolonne[lisiting commande colonne],commandecolonne[lisiting commande colonne],FALSE)=Tableau2[[#This Row],[code désignation]],TRUE,FALSE),TRUE)","v":true}]
[{"$f":"_xlfn.XLOOKUP(MID(C78,1,1),Type[lettre type],Type[type])","v":"Table Basse"},74,"E7",{"$f":"\"https://sico-my.sharepoint.com/personal/julien_carestiato_fondation-ove_fr/Documents/Images/1potiniere/\"&Tableau2[[#This Row],[numéro]]&\".png\"","v":"https://sico-my.sharepoint.com/personal/julien_carestiato_fondation-ove_fr/Documents/Images/1potiniere/E7.png"},null,"TABLE BASSE",{"$f":"IF(Tableau2[[#This Row],[déjà en prêt commande]]=TRUE,\" \",Tableau2[[#This Row],[numéro]]&\" \"&Tableau2[[#This Row],[désignation]])","v":"E7 TABLE BASSE"},{"$f":"Tableau2[[#This Row],[numéro]]&\" \"&Tableau2[[#This Row],[désignation]]","v":"E7 TABLE BASSE"},"H 40 cm / 90X75 cm",200,40,null,{"$f":"IF(Tableau2[[#This Row],[destinataire]]=0,IF(_xlfn.XLOOKUP(Tableau2[[#This Row],[code désignation]],commandecolonne[lisiting commande colonne],commandecolonne[lisiting commande colonne],FALSE)=Tableau2[[#This Row],[code désignation]],TRUE,FALSE),TRUE)","v":false}]
[{"$f":"_xlfn.XLOOKUP(MID(C79,1,1),Type[lettre type],Type[type])","v":"Table Basse"},75,"E8",{"$f":"\"https://sico-my.sharepoint.com/personal/julien_carestiato_fondation-ove_fr/Documents/Images/1potiniere/\"&Tableau2[[#This Row],[numéro]]&\".png\"","v":"https://sico-my.sharepoint.com/personal/julien_carestiato_fondation-ove_fr/Documents/Images/1potiniere/E8.png"},null,"TABLE BASSE",{"$f":"IF(Tableau2[[#This Row],[déjà en prêt commande]]=TRUE,\" \",Tableau2[[#This Row],[numéro]]&\" \"&Tableau2[[#This Row],[désignation]])","v":"E8 TABLE BASSE"},{"$f":"Tableau2[[#This Row],[numéro]]&\" \"&Tableau2[[#This Row],[désignation]]","v":"E8 TABLE BASSE"},"H 40 cm / 90X75 cm",200,40,null,{"$f":"IF(Tableau2[[#This Row],[destinataire]]=0,IF(_xlfn.XLOOKUP(Tableau2[[#This Row],[code désignation]],commandecolonne[lisiting commande colonne],commandecolonne[lisiting commande colonne],FALSE)=Tableau2[[#This Row],[code désignation]],TRUE,FALSE),TRUE)","v":false}]
[{"$f":"_xlfn.XLOOKUP(MID(C80,1,1),Type[lettre type],Type[type])","v":"Table Basse"},76,"E9",{"$f":"\"https://sico-my.sharepoint.com/personal/julien_carestiato_fondation-ove_fr/Documents/Images/1potiniere/\"&Tableau2[[#This Row],[numéro]]&\".png\"","v":"https://sico-my.sharepoint.com/personal/julien_carestiato_fondation-ove_fr/Documents/Images/1potiniere/E9.png"},null,"TABLE BASSE",{"$f":"IF(Tableau2[[#This Row],[déjà en prêt commande]]=TRUE,\" \",Tableau2[[#This Row],[numéro]]&\" \"&Tableau2[[#This Row],[désignation]])","v":"E9 TABLE BASSE"},{"$f":"Tableau2[[#This Row],[numéro]]&\" \"&Tableau2[[#This Row],[désignation]]","v":"E9 TABLE BASSE"},"H 40 cm / 90X75 cm",200,40,null,{"$f":"IF(Tableau2[[#This Row],[destinataire]]=0,IF(_xlfn.XLOOKUP(Tableau2[[#This Row],[code désignation]],commandecolonne[lisiting commande colonne],commandecolonne[lisiting commande colonne],FALSE)=Tableau2[[#This Row],[code désignation]],TRUE,FALSE),TRUE)","v":false}]
[{"$f":"_xlfn.XLOOKUP(MID(C81,1,1),Type[lettre type],Type[type])","v":"Table Basse"},77,"E10",{"$f":"\"https://sico-my.sharepoint.com/personal/julien_carestiato_fondation-ove_fr/Documents/Images/1potiniere/\"&Tableau2[[#This Row],[numéro]]&\".png\"","v":"https://sico-my.sharepoint.com/personal/julien_carestiato_fondation-ove_fr/Documents/Images/1potiniere/E10.png"},null,"TABLE BASSE",{"$f":"IF(Tableau2[[#This Row],[déjà en prêt commande]]=TRUE,\" \",Tableau2[[#This Row],[numéro]]&\" \"&Tableau2[[#This Row],[désignation]])","v":"E10 TABLE BASSE"},{"$f":"Tableau2[[#This Row],[numéro]]&\" \"&Tableau2[[#This Row],[désignation]]","v":"E10 TABLE BASSE"},"H 40 cm / 90X75 cm",200,40,null,{"$f":"IF(Tableau2[[#This Row],[destinataire]]=0,IF(_xlfn.XLOOKUP(Tableau2[[#This Row],[code désignation]],commandecolonne[lisiting commande colonne],commandecolonne[lisiting commande colonne],FALSE)=Tableau2[[#This Row],[code désignation]],TRUE,FALSE),TRUE)","v":false}]
[{"$f":"_xlfn.XLOOKUP(MID(C82,1,1),Type[lettre type],Type[type])","v":"Table Basse"},78,"E11",{"$f":"\"https://sico-my.sharepoint.com/personal/julien_carestiato_fondation-ove_fr/Documents/Images/1potiniere/\"&Tableau2[[#This Row],[numéro]]&\".png\"","v":"https://sico-my.sharepoint.com/personal/julien_carestiato_fondation-ove_fr/Documents/Images/1potiniere/E11.png"},null,"TABLE BASSE CARRE",{"$f":"IF(Tableau2[[#This Row],[déjà en prêt commande]]=TRUE,\" \",Tableau2[[#This Row],[numéro]]&\" \"&Tableau2[[#This Row],[désignation]])","v":"E11 TABLE BASSE CARRE"},{"$f":"Tableau2[[#This Row],[numéro]]&\" \"&Tableau2[[#This Row],[désignation]]","v":"E11 TABLE BASSE CARRE"},"H 40 cm / 90X90 cm",200,40,null,{"$f":"IF(Tableau2[[#This Row],[destinataire]]=0,IF(_xlfn.XLOOKUP(Tableau2[[#This Row],[code désignation]],commandecolonne[lisiting commande colonne],commandecolonne[lisiting commande colonne],FALSE)=Tableau2[[#This Row],[code désignation]],TRUE,FALSE),TRUE)","v":false}]
[{"$f":"_xlfn.XLOOKUP(MID(C83,1,1),Type[lettre type],Type[type])","v":"Table Basse"},79,"E12",{"$f":"\"https://sico-my.sharepoint.com/personal/julien_carestiato_fondation-ove_fr/Documents/Images/1potiniere/\"&Tableau2[[#This Row],[numéro]]&\".png\"","v":"https://sico-my.sharepoint.com/personal/julien_carestiato_fondation-ove_fr/Documents/Images/1potiniere/E12.png"},null,"TABLE BASSE CARRE",{"$f":"IF(Tableau2[[#This Row],[déjà en prêt commande]]=TRUE,\" \",Tableau2[[#This Row],[numéro]]&\" \"&Tableau2[[#This Row],[désignation]])","v":"E12 TABLE BASSE CARRE"},{"$f":"Tableau2[[#This Row],[numéro]]&\" \"&Tableau2[[#This Row],[désignation]]","v":"E12 TABLE BASSE CARRE"},"H 40 cm / 90X90 cm",200,40,null,{"$f":"IF(Tableau2[[#This Row],[destinataire]]=0,IF(_xlfn.XLOOKUP(Tableau2[[#This Row],[code désignation]],commandecolonne[lisiting commande colonne],commandecolonne[lisiting commande colonne],FALSE)=Tableau2[[#This Row],[code désignation]],TRUE,FALSE),TRUE)","v":false}]
[{"$f":"_xlfn.XLOOKUP(MID(C84,1,1),Type[lettre type],Type[type])","v":"Table Basse"},80,"E13",{"$f":"\"https://sico-my.sharepoint.com/personal/julien_carestiato_fondation-ove_fr/Documents/Images/1potiniere/\"&Tableau2[[#This Row],[numéro]]&\".png\"","v":"https://sico-my.sharepoint.com/personal/julien_carestiato_fondation-ove_fr/Documents/Images/1potiniere/E13.png"},null,"TABLE BASSE CARRE",{"$f":"IF(Tableau2[[#This Row],[déjà en prêt commande]]=TRUE,\" \",Tableau2[[#This Row],[numéro]]&\" \"&Tableau2[[#This Row],[désignation]])","v":"E13 TABLE BASSE CARRE"},{"$f":"Tableau2[[#This Row],[numéro]]&\" \"&Tableau2[[#This Row],[désignation]]","v":"E13 TABLE BASSE CARRE"},"H 40 cm / 90X90 cm",200,40,null,{"$f":"IF(Tableau2[[#This Row],[destinataire]]=0,IF(_xlfn.XLOOKUP(Tableau2[[#This Row],[code désignation]],commandecolonne[lisiting commande colonne],commandecolonne[lisiting commande colonne],FALSE)=Tableau2[[#This Row],[code désignation]],TRUE,FALSE),TRUE)","v":false}]
[{"$f":"_xlfn.XLOOKUP(MID(C85,1,1),Type[lettre type],Type[type])","v":"Table Basse"},81,"E14",{"$f":"\"https://sico-my.sharepoint.com/personal/julien_carestiato_fondation-ove_fr/Documents/Images/1potiniere/\"&Tableau2[[#This Row],[numéro]]&\".png\"","v":"https://sico-my.sharepoint.com/personal/julien_carestiato_fondation-ove_fr/Documents/Images/1potiniere/E14.png"},null,"TABLE BASSE CARRE",{"$f":"IF(Tableau2[[#This Row],[déjà en prêt commande]]=TRUE,\" \",Tableau2[[#This Row],[numéro]]&\" \"&Tableau2[[#This Row],[désignation]])","v":"E14 TABLE BASSE CARRE"},{"$f":"Tableau2[[#This Row],[numéro]]&\" \"&Tableau2[[#This Row],[désignation]]","v":"E14 TABLE BASSE CARRE"},"H 40 cm / 90X90 cm",200,40,null,{"$f":"IF(Tableau2[[#This Row],[destinataire]]=0,IF(_xlfn.XLOOKUP(Tableau2[[#This Row],[code désignation]],commandecolonne[lisiting commande colonne],commandecolonne[lisiting commande colonne],FALSE)=Tableau2[[#This Row],[code désignation]],TRUE,FALSE),TRUE)","v":false}]
[{"$f":"_xlfn.XLOOKUP(MID(C86,1,1),Type[lettre type],Type[type])","v":"Table Basse"},82,"E15",{"$f":"\"https://sico-my.sharepoint.com/personal/julien_carestiato_fondation-ove_fr/Documents/Images/1potiniere/\"&Tableau2[[#This Row],[numéro]]&\".png\"","v":"https://sico-my.sharepoint.com/personal/julien_carestiato_fondation-ove_fr/Documents/Images/1potiniere/E15.png"},null,"TABLE BASSE CARRE",{"$f":"IF(Tableau2[[#This Row],[déjà en prêt commande]]=TRUE,\" \",Tableau2[[#This Row],[numéro]]&\" \"&Tableau2[[#This Row],[désignation]])","v":"E15 TABLE BASSE CARRE"},{"$f":"Tableau2[[#This Row],[numéro]]&\" \"&Tableau2[[#This Row],[désignation]]","v":"E15 TABLE BASSE CARRE"},"H 40 cm / 90X90 cm",200,40,null,{"$f":"IF(Tableau2[[#This Row],[destinataire]]=0,IF(_xlfn.XLOOKUP(Tableau2[[#This Row],[code désignation]],commandecolonne[lisiting commande colonne],commandecolonne[lisiting commande colonne],FALSE)=Tableau2[[#This Row],[code désignation]],TRUE,FALSE),TRUE)","v":false}]
[{"$f":"_xlfn.XLOOKUP(MID(C87,1,1),Type[lettre type],Type[type])","v":"Table Basse"},83,"E16",{"$f":"\"https://sico-my.sharepoint.com/personal/julien_carestiato_fondation-ove_fr/Documents/Images/1potiniere/\"&Tableau2[[#This Row],[numéro]]&\".png\"","v":"https://sico-my.sharepoint.com/personal/julien_carestiato_fondation-ove_fr/Documents/Images/1potiniere/E16.png"},null,"TABLE BASSE CARRE",{"$f":"IF(Tableau2[[#This Row],[déjà en prêt commande]]=TRUE,\" \",Tableau2[[#This Row],[numéro]]&\" \"&Tableau2[[#This Row],[désignation]])","v":"E16 TABLE BASSE CARRE"},{"$f":"Tableau2[[#This Row],[numéro]]&\" \"&Tableau2[[#This Row],[désignation]]","v":"E16 TABLE BASSE CARRE"},"H 40 cm / 90X90 cm",200,40,null,{"$f":"IF(Tableau2[[#This Row],[destinataire]]=0,IF(_xlfn.XLOOKUP(Tableau2[[#This Row],[code désignation]],commandecolonne[lisiting commande colonne],commandecolonne[lisiting commande colonne],FALSE)=Tableau2[[#This Row],[code désignation]],TRUE,FALSE),TRUE)","v":false}]
[{"$f":"_xlfn.XLOOKUP(MID(C88,1,1),Type[lettre type],Type[type])","v":"Table Basse"},84,"E17",{"$f":"\"https://sico-my.sharepoint.com/personal/julien_carestiato_fondation-ove_fr/Documents/Images/1potiniere/\"&Tableau2[[#This Row],[numéro]]&\".png\"","v":"https://sico-my.sharepoint.com/personal/julien_carestiato_fondation-ove_fr/Documents/Images/1potiniere/E17.png"},null,"TABLE BASSE CARRE",{"$f":"IF(Tableau2[[#This Row],[déjà en prêt commande]]=TRUE,\" \",Tableau2[[#This Row],[numéro]]&\" \"&Tableau2[[#This Row],[désignation]])","v":"E17 TABLE BASSE CARRE"},{"$f":"Tableau2[[#This Row],[numéro]]&\" \"&Tableau2[[#This Row],[désignation]]","v":"E17 TABLE BASSE CARRE"},"H 40 cm / 90X90 cm",200,40,null,{"$f":"IF(Tableau2[[#This Row],[destinataire]]=0,IF(_xlfn.XLOOKUP(Tableau2[[#This Row],[code désignation]],commandecolonne[lisiting commande colonne],commandecolonne[lisiting commande colonne],FALSE)=Tableau2[[#This Row],[code désignation]],TRUE,FALSE),TRUE)","v":false}]
[{"$f":"_xlfn.XLOOKUP(MID(C89,1,1),Type[lettre type],Type[type])","v":"Table Basse"},85,"E18",{"$f":"\"https://sico-my.sharepoint.com/personal/julien_carestiato_fondation-ove_fr/Documents/Images/1potiniere/\"&Tableau2[[#This Row],[numéro]]&\".png\"","v":"https://sico-my.sharepoint.com/personal/julien_carestiato_fondation-ove_fr/Documents/Images/1potiniere/E18.png"},null,"TABLE BASSE RONDE",{"$f":"IF(Tableau2[[#This Row],[déjà en prêt commande]]=TRUE,\" \",Tableau2[[#This Row],[numéro]]&\" \"&Tableau2[[#This Row],[désignation]])","v":" "},{"$f":"Tableau2[[#This Row],[numéro]]&\" \"&Tableau2[[#This Row],[désignation]]","v":"E18 TABLE BASSE RONDE"},"H 60 cm / 80 diamètre",0,0,"E-18 et E-19 APPARTEMENTS SOUTIEN                        E-20 IME GUY YVER",{"$f":"IF(Tableau2[[#This Row],[destinataire]]=0,IF(_xlfn.XLOOKUP(Tableau2[[#This Row],[code désignation]],commandecolonne[lisiting commande colonne],commandecolonne[lisiting commande colonne],FALSE)=Tableau2[[#This Row],[code désignation]],TRUE,FALSE),TRUE)","v":true}]
[{"$f":"_xlfn.XLOOKUP(MID(C90,1,1),Type[lettre type],Type[type])","v":"Table Basse"},86,"E19",{"$f":"\"https://sico-my.sharepoint.com/personal/julien_carestiato_fondation-ove_fr/Documents/Images/1potiniere/\"&Tableau2[[#This Row],[numéro]]&\".png\"","v":"https://sico-my.sharepoint.com/personal/julien_carestiato_fondation-ove_fr/Documents/Images/1potiniere/E19.png"},null,"TABLE BASSE RONDE",{"$f":"IF(Tableau2[[#This Row],[déjà en prêt commande]]=TRUE,\" \",Tableau2[[#This Row],[numéro]]&\" \"&Tableau2[[#This Row],[désignation]])","v":" "},{"$f":"Tableau2[[#This Row],[numéro]]&\" \"&Tableau2[[#This Row],[désignation]]","v":"E19 TABLE BASSE RONDE"},"H 60 cm / 80 diamètre",0,0,"E-18 et E-19 APPARTEMENTS SOUTIEN                        E-20 IME GUY YVER",{"$f":"IF(Tableau2[[#This Row],[destinataire]]=0,IF(_xlfn.XLOOKUP(Tableau2[[#This Row],[code désignation]],commandecolonne[lisiting commande colonne],commandecolonne[lisiting commande colonne],FALSE)=Tableau2[[#This Row],[code désignation]],TRUE,FALSE),TRUE)","v":true}]
[{"$f":"_xlfn.XLOOKUP(MID(C91,1,1),Type[lettre type],Type[type])","v":"Table Basse"},87,"E20",{"$f":"\"https://sico-my.sharepoint.com/personal/julien_carestiato_fondation-ove_fr/Documents/Images/1potiniere/\"&Tableau2[[#This Row],[numéro]]&\".png\"","v":"https://sico-my.sharepoint.com/personal/julien_carestiato_fondation-ove_fr/Documents/Images/1potiniere/E20.png"},null,"TABLE BASSE RONDE",{"$f":"IF(Tableau2[[#This Row],[déjà en prêt commande]]=TRUE,\" \",Tableau2[[#This Row],[numéro]]&\" \"&Tableau2[[#This Row],[désignation]])","v":" "},{"$f":"Tableau2[[#This Row],[numéro]]&\" \"&Tableau2[[#This Row],[désignation]]","v":"E20 TABLE BASSE RONDE"},"H 60 cm / 80 diamètre",0,0,"E-18 et E-19 APPARTEMENTS SOUTIEN                        E-20 IME GUY YVER",{"$f":"IF(Tableau2[[#This Row],[destinataire]]=0,IF(_xlfn.XLOOKUP(Tableau2[[#This Row],[code désignation]],commandecolonne[lisiting commande colonne],commandecolonne[lisiting commande colonne],FALSE)=Tableau2[[#This Row],[code désignation]],TRUE,FALSE),TRUE)","v":true}]
[{"$f":"_xlfn.XLOOKUP(MID(C92,1,1),Type[lettre type],Type[type])","v":"Table Basse"},88,"E21",{"$f":"\"https://sico-my.sharepoint.com/personal/julien_carestiato_fondation-ove_fr/Documents/Images/1potiniere/\"&Tableau2[[#This Row],[numéro]]&\".png\"","v":"https://sico-my.sharepoint.com/personal/julien_carestiato_fondation-ove_fr/Documents/Images/1potiniere/E21.png"},null,"TABLE BASSE RONDE",{"$f":"IF(Tableau2[[#This Row],[déjà en prêt commande]]=TRUE,\" \",Tableau2[[#This Row],[numéro]]&\" \"&Tableau2[[#This Row],[désignation]])","v":" "},{"$f":"Tableau2[[#This Row],[numéro]]&\" \"&Tableau2[[#This Row],[désignation]]","v":"E21 TABLE BASSE RONDE"},"H 60 cm / 90 diamètre",0,0,"E-21 et E-22 APPARTEMENTS SOUTIEN E23 et E24 DITEP Annecy",{"$f":"IF(Tableau2[[#This Row],[destinataire]]=0,IF(_xlfn.XLOOKUP(Tableau2[[#This Row],[code désignation]],commandecolonne[lisiting commande colonne],commandecolonne[lisiting commande colonne],FALSE)=Tableau2[[#This Row],[code désignation]],TRUE,FALSE),TRUE)","v":true}]
[{"$f":"_xlfn.XLOOKUP(MID(C93,1,1),Type[lettre type],Type[type])","v":"Table Basse"},89,"E22",{"$f":"\"https://sico-my.sharepoint.com/personal/julien_carestiato_fondation-ove_fr/Documents/Images/1potiniere/\"&Tableau2[[#This Row],[numéro]]&\".png\"","v":"https://sico-my.sharepoint.com/personal/julien_carestiato_fondation-ove_fr/Documents/Images/1potiniere/E22.png"},null,"TABLE BASSE RONDE",{"$f":"IF(Tableau2[[#This Row],[déjà en prêt commande]]=TRUE,\" \",Tableau2[[#This Row],[numéro]]&\" \"&Tableau2[[#This Row],[désignation]])","v":" "},{"$f":"Tableau2[[#This Row],[numéro]]&\" \"&Tableau2[[#This Row],[désignation]]","v":"E22 TABLE BASSE RONDE"},"H 60 cm / 90 diamètre",0,0,"E-21 et E-22 APPARTEMENTS SOUTIEN E23 et E24 DITEP Annecy",{"$f":"IF(Tableau2[[#This Row],[destinataire]]=0,IF(_xlfn.XLOOKUP(Tableau2[[#This Row],[code désignation]],commandecolonne[lisiting commande colonne],commandecolonne[lisiting commande colonne],FALSE)=Tableau2[[#This Row],[code désignation]],TRUE,FALSE),TRUE)","v":true}]
[{"$f":"_xlfn.XLOOKUP(MID(C94,1,1),Type[lettre type],Type[type])","v":"Table Basse"},90,"E23",{"$f":"\"https://sico-my.sharepoint.com/personal/julien_carestiato_fondation-ove_fr/Documents/Images/1potiniere/\"&Tableau2[[#This Row],[numéro]]&\".png\"","v":"https://sico-my.sharepoint.com/personal/julien_carestiato_fondation-ove_fr/Documents/Images/1potiniere/E23.png"},null,"TABLE BASSE RONDE",{"$f":"IF(Tableau2[[#This Row],[déjà en prêt commande]]=TRUE,\" \",Tableau2[[#This Row],[numéro]]&\" \"&Tableau2[[#This Row],[désignation]])","v":" "},{"$f":"Tableau2[[#This Row],[numéro]]&\" \"&Tableau2[[#This Row],[désignation]]","v":"E23 TABLE BASSE RONDE"},"H 60 cm / 90 diamètre",0,0,"E-21 et E-22 APPARTEMENTS SOUTIEN E23 et E24 DITEP Annecy",{"$f":"IF(Tableau2[[#This Row],[destinataire]]=0,IF(_xlfn.XLOOKUP(Tableau2[[#This Row],[code désignation]],commandecolonne[lisiting commande colonne],commandecolonne[lisiting commande colonne],FALSE)=Tableau2[[#This Row],[code désignation]],TRUE,FALSE),TRUE)","v":true}]
[{"$f":"_xlfn.XLOOKUP(MID(C95,1,1),Type[lettre type],Type[type])","v":"Table Basse"},91,"E24",{"$f":"\"https://sico-my.sharepoint.com/personal/julien_carestiato_fondation-ove_fr/Documents/Images/1potiniere/\"&Tableau2[[#This Row],[numéro]]&\".png\"","v":"https://sico-my.sharepoint.com/personal/julien_carestiato_fondation-ove_fr/Documents/Images/1potiniere/E24.png"},null,"TABLE BASSE RONDE",{"$f":"IF(Tableau2[[#This Row],[déjà en prêt commande]]=TRUE,\" \",Tableau2[[#This Row],[numéro]]&\" \"&Tableau2[[#This Row],[désignation]])","v":" "},{"$f":"Tableau2[[#This Row],[numéro]]&\" \"&Tableau2[[#This Row],[désignation]]","v":"E24 TABLE BASSE RONDE"},"H 60 cm / 90 diamètre",0,0,"E-21 et E-22 APPARTEMENTS SOUTIEN E23 et E24 DITEP Annecy",{"$f":"IF(Tableau2[[#This Row],[destinataire]]=0,IF(_xlfn.XLOOKUP(Tableau2[[#This Row],[code désignation]],commandecolonne[lisiting commande colonne],commandecolonne[lisiting commande colonne],FALSE)=Tableau2[[#This Row],[code désignation]],TRUE,FALSE),TRUE)","v":true}]
[{"$f":"_xlfn.XLOOKUP(MID(C96,1,1),Type[lettre type],Type[type])","v":"Table Basse"},92,"E25",{"$f":"\"https://sico-my.sharepoint.com/personal/julien_carestiato_fondation-ove_fr/Documents/Images/1potiniere/\"&Tableau2[[#This Row],[numéro]]&\".png\"","v":"https://sico-my.sharepoint.com/personal/julien_carestiato_fondation-ove_fr/Documents/Images/1potiniere/E25.png"},null,"TABLE HAUTE RECTANGULAIRE",{"$f":"IF(Tableau2[[#This Row],[déjà en prêt commande]]=TRUE,\" \",Tableau2[[#This Row],[numéro]]&\" \"&Tableau2[[#This Row],[désignation]])","v":"E25 TABLE HAUTE RECTANGULAIRE"},{"$f":"Tableau2[[#This Row],[numéro]]&\" \"&Tableau2[[#This Row],[désignation]]","v":"E25 TABLE HAUTE RECTANGULAIRE"},"H 75 cm / 1m x 75 cm",250,50,null,{"$f":"IF(Tableau2[[#This Row],[destinataire]]=0,IF(_xlfn.XLOOKUP(Tableau2[[#This Row],[code désignation]],commandecolonne[lisiting commande colonne],commandecolonne[lisiting commande colonne],FALSE)=Tableau2[[#This Row],[code désignation]],TRUE,FALSE),TRUE)","v":false}]
[{"$f":"_xlfn.XLOOKUP(MID(C97,1,1),Type[lettre type],Type[type])","v":"Table Basse"},93,"E26",{"$f":"\"https://sico-my.sharepoint.com/personal/julien_carestiato_fondation-ove_fr/Documents/Images/1potiniere/\"&Tableau2[[#This Row],[numéro]]&\".png\"","v":"https://sico-my.sharepoint.com/personal/julien_carestiato_fondation-ove_fr/Documents/Images/1potiniere/E26.png"},null,"TABLE HAUTE RECTANGULAIRE",{"$f":"IF(Tableau2[[#This Row],[déjà en prêt commande]]=TRUE,\" \",Tableau2[[#This Row],[numéro]]&\" \"&Tableau2[[#This Row],[désignation]])","v":"E26 TABLE HAUTE RECTANGULAIRE"},{"$f":"Tableau2[[#This Row],[numéro]]&\" \"&Tableau2[[#This Row],[désignation]]","v":"E26 TABLE HAUTE RECTANGULAIRE"},"H 75 cm / 1m x 75 cm",250,50,null,{"$f":"IF(Tableau2[[#This Row],[destinataire]]=0,IF(_xlfn.XLOOKUP(Tableau2[[#This Row],[code désignation]],commandecolonne[lisiting commande colonne],commandecolonne[lisiting commande colonne],FALSE)=Tableau2[[#This Row],[code désignation]],TRUE,FALSE),TRUE)","v":false}]
[{"$f":"_xlfn.XLOOKUP(MID(C98,1,1),Type[lettre type],Type[type])","v":"Table Basse"},94,"E27",{"$f":"\"https://sico-my.sharepoint.com/personal/julien_carestiato_fondation-ove_fr/Documents/Images/1potiniere/\"&Tableau2[[#This Row],[numéro]]&\".png\"","v":"https://sico-my.sharepoint.com/personal/julien_carestiato_fondation-ove_fr/Documents/Images/1potiniere/E27.png"},null,"DESSERTE A COUVERT",{"$f":"IF(Tableau2[[#This Row],[déjà en prêt commande]]=TRUE,\" \",Tableau2[[#This Row],[numéro]]&\" \"&Tableau2[[#This Row],[désignation]])","v":"E27 DESSERTE A COUVERT"},{"$f":"Tableau2[[#This Row],[numéro]]&\" \"&Tableau2[[#This Row],[désignation]]","v":"E27 DESSERTE A COUVERT"},"H 70 cm / 85X50 cm",50,10,null,{"$f":"IF(Tableau2[[#This Row],[destinataire]]=0,IF(_xlfn.XLOOKUP(Tableau2[[#This Row],[code désignation]],commandecolonne[lisiting commande colonne],commandecolonne[lisiting commande colonne],FALSE)=Tableau2[[#This Row],[code désignation]],TRUE,FALSE),TRUE)","v":false}]
[{"$f":"_xlfn.XLOOKUP(MID(C99,1,1),Type[lettre type],Type[type])","v":"Table Basse"},95,"E28",{"$f":"\"https://sico-my.sharepoint.com/personal/julien_carestiato_fondation-ove_fr/Documents/Images/1potiniere/\"&Tableau2[[#This Row],[numéro]]&\".png\"","v":"https://sico-my.sharepoint.com/personal/julien_carestiato_fondation-ove_fr/Documents/Images/1potiniere/E28.png"},null,"TABLE BASSE RECTANGULAIRE",{"$f":"IF(Tableau2[[#This Row],[déjà en prêt commande]]=TRUE,\" \",Tableau2[[#This Row],[numéro]]&\" \"&Tableau2[[#This Row],[désignation]])","v":"E28 TABLE BASSE RECTANGULAIRE"},{"$f":"Tableau2[[#This Row],[numéro]]&\" \"&Tableau2[[#This Row],[désignation]]","v":"E28 TABLE BASSE RECTANGULAIRE"},"H 40 / 150 X 80 cm",500,100,null,{"$f":"IF(Tableau2[[#This Row],[destinataire]]=0,IF(_xlfn.XLOOKUP(Tableau2[[#This Row],[code désignation]],commandecolonne[lisiting commande colonne],commandecolonne[lisiting commande colonne],FALSE)=Tableau2[[#This Row],[code désignation]],TRUE,FALSE),TRUE)","v":false}]
[{"$f":"_xlfn.XLOOKUP(MID(C100,1,1),Type[lettre type],Type[type])","v":"Table Basse"},96,"E29",{"$f":"\"https://sico-my.sharepoint.com/personal/julien_carestiato_fondation-ove_fr/Documents/Images/1potiniere/\"&Tableau2[[#This Row],[numéro]]&\".png\"","v":"https://sico-my.sharepoint.com/personal/julien_carestiato_fondation-ove_fr/Documents/Images/1potiniere/E29.png"},null,"TABLE HAUTE CARRE",{"$f":"IF(Tableau2[[#This Row],[déjà en prêt commande]]=TRUE,\" \",Tableau2[[#This Row],[numéro]]&\" \"&Tableau2[[#This Row],[désignation]])","v":"E29 TABLE HAUTE CARRE"},{"$f":"Tableau2[[#This Row],[numéro]]&\" \"&Tableau2[[#This Row],[désignation]]","v":"E29 TABLE HAUTE CARRE"},"H 75 cm / 90 x 90 cm",300,60,null,{"$f":"IF(Tableau2[[#This Row],[destinataire]]=0,IF(_xlfn.XLOOKUP(Tableau2[[#This Row],[code désignation]],commandecolonne[lisiting commande colonne],commandecolonne[lisiting commande colonne],FALSE)=Tableau2[[#This Row],[code désignation]],TRUE,FALSE),TRUE)","v":false}]
[{"$f":"_xlfn.XLOOKUP(MID(C101,1,1),Type[lettre type],Type[type])","v":"Table Basse"},97,"E30",{"$f":"\"https://sico-my.sharepoint.com/personal/julien_carestiato_fondation-ove_fr/Documents/Images/1potiniere/\"&Tableau2[[#This Row],[numéro]]&\".png\"","v":"https://sico-my.sharepoint.com/personal/julien_carestiato_fondation-ove_fr/Documents/Images/1potiniere/E30.png"},null,"TABLE MI-HAUTEUR CARRE",{"$f":"IF(Tableau2[[#This Row],[déjà en prêt commande]]=TRUE,\" \",Tableau2[[#This Row],[numéro]]&\" \"&Tableau2[[#This Row],[désignation]])","v":"E30 TABLE MI-HAUTEUR CARRE"},{"$f":"Tableau2[[#This Row],[numéro]]&\" \"&Tableau2[[#This Row],[désignation]]","v":"E30 TABLE MI-HAUTEUR CARRE"},"H 60 cm / 75 X 75 cm",300,60,null,{"$f":"IF(Tableau2[[#This Row],[destinataire]]=0,IF(_xlfn.XLOOKUP(Tableau2[[#This Row],[code désignation]],commandecolonne[lisiting commande colonne],commandecolonne[lisiting commande colonne],FALSE)=Tableau2[[#This Row],[code désignation]],TRUE,FALSE),TRUE)","v":false}]
[{"$f":"_xlfn.XLOOKUP(MID(C102,1,1),Type[lettre type],Type[type])","v":"Table Basse"},98,"E31",{"$f":"\"https://sico-my.sharepoint.com/personal/julien_carestiato_fondation-ove_fr/Documents/Images/1potiniere/\"&Tableau2[[#This Row],[numéro]]&\".png\"","v":"https://sico-my.sharepoint.com/personal/julien_carestiato_fondation-ove_fr/Documents/Images/1potiniere/E31.png"},null,"TABLE MI-HAUTEUR CARRE",{"$f":"IF(Tableau2[[#This Row],[déjà en prêt commande]]=TRUE,\" \",Tableau2[[#This Row],[numéro]]&\" \"&Tableau2[[#This Row],[désignation]])","v":"E31 TABLE MI-HAUTEUR CARRE"},{"$f":"Tableau2[[#This Row],[numéro]]&\" \"&Tableau2[[#This Row],[désignation]]","v":"E31 TABLE MI-HAUTEUR CARRE"},"H 60 cm / 75 X 75 cm",300,60,null,{"$f":"IF(Tableau2[[#This Row],[destinataire]]=0,IF(_xlfn.XLOOKUP(Tableau2[[#This Row],[code désignation]],commandecolonne[lisiting commande colonne],commandecolonne[lisiting commande colonne],FALSE)=Tableau2[[#This Row],[code désignation]],TRUE,FALSE),TRUE)","v":false}]
[{"$f":"_xlfn.XLOOKUP(MID(C103,1,1),Type[lettre type],Type[type])","v":"Table Basse"},99,"E32",{"$f":"\"https://sico-my.sharepoint.com/personal/julien_carestiato_fondation-ove_fr/Documents/Images/1potiniere/\"&Tableau2[[#This Row],[numéro]]&\".png\"","v":"https://sico-my.sharepoint.com/personal/julien_carestiato_fondation-ove_fr/Documents/Images/1potiniere/E32.png"},null,"TABLE MI-HAUTEUR CARRE",{"$f":"IF(Tableau2[[#This Row],[déjà en prêt commande]]=TRUE,\" \",Tableau2[[#This Row],[numéro]]&\" \"&Tableau2[[#This Row],[désignation]])","v":"E32 TABLE MI-HAUTEUR CARRE"},{"$f":"Tableau2[[#This Row],[numéro]]&\" \"&Tableau2[[#This Row],[désignation]]","v":"E32 TABLE MI-HAUTEUR CARRE"},"H 60 cm / 75 X 75 cm",300,60,null,{"$f":"IF(Tableau2[[#This Row],[destinataire]]=0,IF(_xlfn.XLOOKUP(Tableau2[[#This Row],[code désignation]],commandecolonne[lisiting commande colonne],commandecolonne[lisiting commande colonne],FALSE)=Tableau2[[#This Row],[code désignation]],TRUE,FALSE),TRUE)","v":false}]
[{"$f":"_xlfn.XLOOKUP(MID(C104,1,1),Type[lettre type],Type[type])","v":"Table Basse"},100,"E33",{"$f":"\"https://sico-my.sharepoint.com/personal/julien_carestiato_fondation-ove_fr/Documents/Images/1potiniere/\"&Tableau2[[#This Row],[numéro]]&\".png\"","v":"https://sico-my.sharepoint.com/personal/julien_carestiato_fondation-ove_fr/Documents/Images/1potiniere/E33.png"},null,"TABLE MI-HAUTEUR CARRE",{"$f":"IF(Tableau2[[#This Row],[déjà en prêt commande]]=TRUE,\" \",Tableau2[[#This Row],[numéro]]&\" \"&Tableau2[[#This Row],[désignation]])","v":"E33 TABLE MI-HAUTEUR CARRE"},{"$f":"Tableau2[[#This Row],[numéro]]&\" \"&Tableau2[[#This Row],[désignation]]","v":"E33 TABLE MI-HAUTEUR CARRE"},"H 60 cm / 75 X 75 cm",300,60,null,{"$f":"IF(Tableau2[[#This Row],[destinataire]]=0,IF(_xlfn.XLOOKUP(Tableau2[[#This Row],[code désignation]],commandecolonne[lisiting commande colonne],commandecolonne[lisiting commande colonne],FALSE)=Tableau2[[#This Row],[code désignation]],TRUE,FALSE),TRUE)","v":false}]
[{"$f":"_xlfn.XLOOKUP(MID(C105,1,1),Type[lettre type],Type[type])","v":"Table Basse"},101,"E34",{"$f":"\"https://sico-my.sharepoint.com/personal/julien_carestiato_fondation-ove_fr/Documents/Images/1potiniere/\"&Tableau2[[#This Row],[numéro]]&\".png\"","v":"https://sico-my.sharepoint.com/personal/julien_carestiato_fondation-ove_fr/Documents/Images/1potiniere/E34.png"},null,"TABLE MI-HAUTEUR CARRE",{"$f":"IF(Tableau2[[#This Row],[déjà en prêt commande]]=TRUE,\" \",Tableau2[[#This Row],[numéro]]&\" \"&Tableau2[[#This Row],[désignation]])","v":"E34 TABLE MI-HAUTEUR CARRE"},{"$f":"Tableau2[[#This Row],[numéro]]&\" \"&Tableau2[[#This Row],[désignation]]","v":"E34 TABLE MI-HAUTEUR CARRE"},"H 60 cm / 75 X 75 cm",300,60,null,{"$f":"IF(Tableau2[[#This Row],[destinataire]]=0,IF(_xlfn.XLOOKUP(Tableau2[[#This Row],[code désignation]],commandecolonne[lisiting commande colonne],commandecolonne[lisiting commande colonne],FALSE)=Tableau2[[#This Row],[code désignation]],TRUE,FALSE),TRUE)","v":false}]
[{"$f":"_xlfn.XLOOKUP(MID(C106,1,1),Type[lettre type],Type[type])","v":"Table Basse"},102,"E35",{"$f":"\"https://sico-my.sharepoint.com/personal/julien_carestiato_fondation-ove_fr/Documents/Images/1potiniere/\"&Tableau2[[#This Row],[numéro]]&\".png\"","v":"https://sico-my.sharepoint.com/personal/julien_carestiato_fondation-ove_fr/Documents/Images/1potiniere/E35.png"},null,"TABLE MI-HAUTEUR CARRE",{"$f":"IF(Tableau2[[#This Row],[déjà en prêt commande]]=TRUE,\" \",Tableau2[[#This Row],[numéro]]&\" \"&Tableau2[[#This Row],[désignation]])","v":"E35 TABLE MI-HAUTEUR CARRE"},{"$f":"Tableau2[[#This Row],[numéro]]&\" \"&Tableau2[[#This Row],[désignation]]","v":"E35 TABLE MI-HAUTEUR CARRE"},"H 60 cm / 75 X 75 cm",300,60,null,{"$f":"IF(Tableau2[[#This Row],[destinataire]]=0,IF(_xlfn.XLOOKUP(Tableau2[[#This Row],[code désignation]],commandecolonne[lisiting commande colonne],commandecolonne[lisiting commande colonne],FALSE)=Tableau2[[#This Row],[code désignation]],TRUE,FALSE),TRUE)","v":false}]
[{"$f":"_xlfn.XLOOKUP(MID(C107,1,1),Type[lettre type],Type[type])","v":"Table Basse"},103,"E36",{"$f":"\"https://sico-my.sharepoint.com/personal/julien_carestiato_fondation-ove_fr/Documents/Images/1potiniere/\"&Tableau2[[#This Row],[numéro]]&\".png\"","v":"https://sico-my.sharepoint.com/personal/julien_carestiato_fondation-ove_fr/Documents/Images/1potiniere/E36.png"},null,"TABLE MI-HAUTEUR CARRE",{"$f":"IF(Tableau2[[#This Row],[déjà en prêt commande]]=TRUE,\" \",Tableau2[[#This Row],[numéro]]&\" \"&Tableau2[[#This Row],[désignation]])","v":"E36 TABLE MI-HAUTEUR CARRE"},{"$f":"Tableau2[[#This Row],[numéro]]&\" \"&Tableau2[[#This Row],[désignation]]","v":"E36 TABLE MI-HAUTEUR CARRE"},"H 60 cm / 75 X 75 cm",300,60,null,{"$f":"IF(Tableau2[[#This Row],[destinataire]]=0,IF(_xlfn.XLOOKUP(Tableau2[[#This Row],[code désignation]],commandecolonne[lisiting commande colonne],commandecolonne[lisiting commande colonne],FALSE)=Tableau2[[#This Row],[code désignation]],TRUE,FALSE),TRUE)","v":false}]
[{"$f":"_xlfn.XLOOKUP(MID(C108,1,1),Type[lettre type],Type[type])","v":"Table Basse"},104,"E37",{"$f":"\"https://sico-my.sharepoint.com/personal/julien_carestiato_fondation-ove_fr/Documents/Images/1potiniere/\"&Tableau2[[#This Row],[numéro]]&\".png\"","v":"https://sico-my.sharepoint.com/personal/julien_carestiato_fondation-ove_fr/Documents/Images/1potiniere/E37.png"},null,"TABLE MI-HAUTEUR CARRE",{"$f":"IF(Tableau2[[#This Row],[déjà en prêt commande]]=TRUE,\" \",Tableau2[[#This Row],[numéro]]&\" \"&Tableau2[[#This Row],[désignation]])","v":"E37 TABLE MI-HAUTEUR CARRE"},{"$f":"Tableau2[[#This Row],[numéro]]&\" \"&Tableau2[[#This Row],[désignation]]","v":"E37 TABLE MI-HAUTEUR CARRE"},"H 60 cm / 75 X 75 cm",300,60,null,{"$f":"IF(Tableau2[[#This Row],[destinataire]]=0,IF(_xlfn.XLOOKUP(Tableau2[[#This Row],[code désignation]],commandecolonne[lisiting commande colonne],commandecolonne[lisiting commande colonne],FALSE)=Tableau2[[#This Row],[code désignation]],TRUE,FALSE),TRUE)","v":false}]
[{"$f":"_xlfn.XLOOKUP(MID(C109,1,1),Type[lettre type],Type[type])","v":"Table Basse"},105,"E38",{"$f":"\"https://sico-my.sharepoint.com/personal/julien_carestiato_fondation-ove_fr/Documents/Images/1potiniere/\"&Tableau2[[#This Row],[numéro]]&\".png\"","v":"https://sico-my.sharepoint.com/personal/julien_carestiato_fondation-ove_fr/Documents/Images/1potiniere/E38.png"},null,"TABLE MI-HAUTEUR CARRE",{"$f":"IF(Tableau2[[#This Row],[déjà en prêt commande]]=TRUE,\" \",Tableau2[[#This Row],[numéro]]&\" \"&Tableau2[[#This Row],[désignation]])","v":"E38 TABLE MI-HAUTEUR CARRE"},{"$f":"Tableau2[[#This Row],[numéro]]&\" \"&Tableau2[[#This Row],[désignation]]","v":"E38 TABLE MI-HAUTEUR CARRE"},"H 60 cm / 75 X 75 cm",300,60,null,{"$f":"IF(Tableau2[[#This Row],[destinataire]]=0,IF(_xlfn.XLOOKUP(Tableau2[[#This Row],[code désignation]],commandecolonne[lisiting commande colonne],commandecolonne[lisiting commande colonne],FALSE)=Tableau2[[#This Row],[code désignation]],TRUE,FALSE),TRUE)","v":false}]
[{"$f":"_xlfn.XLOOKUP(MID(C110,1,1),Type[lettre type],Type[type])","v":"Table Basse"},106,"E39",{"$f":"\"https://sico-my.sharepoint.com/personal/julien_carestiato_fondation-ove_fr/Documents/Images/1potiniere/\"&Tableau2[[#This Row],[numéro]]&\".png\"","v":"https://sico-my.sharepoint.com/personal/julien_carestiato_fondation-ove_fr/Documents/Images/1potiniere/E39.png"},null,"TABLE BASSE - PIED ACIER ",{"$f":"IF(Tableau2[[#This Row],[déjà en prêt commande]]=TRUE,\" \",Tableau2[[#This Row],[numéro]]&\" \"&Tableau2[[#This Row],[désignation]])","v":"E39 TABLE BASSE - PIED ACIER "},{"$f":"Tableau2[[#This Row],[numéro]]&\" \"&Tableau2[[#This Row],[désignation]]","v":"E39 TABLE BASSE - PIED ACIER "},"H 35 cm / 75 X 40 cm",250,50,null,{"$f":"IF(Tableau2[[#This Row],[destinataire]]=0,IF(_xlfn.XLOOKUP(Tableau2[[#This Row],[code désignation]],commandecolonne[lisiting commande colonne],commandecolonne[lisiting commande colonne],FALSE)=Tableau2[[#This Row],[code désignation]],TRUE,FALSE),TRUE)","v":false}]
[{"$f":"_xlfn.XLOOKUP(MID(C111,1,1),Type[lettre type],Type[type])","v":"Table Basse"},107,"E40",{"$f":"\"https://sico-my.sharepoint.com/personal/julien_carestiato_fondation-ove_fr/Documents/Images/1potiniere/\"&Tableau2[[#This Row],[numéro]]&\".png\"","v":"https://sico-my.sharepoint.com/personal/julien_carestiato_fondation-ove_fr/Documents/Images/1potiniere/E40.png"},null,"TABLE BASSE CARRE - PIED ACIER",{"$f":"IF(Tableau2[[#This Row],[déjà en prêt commande]]=TRUE,\" \",Tableau2[[#This Row],[numéro]]&\" \"&Tableau2[[#This Row],[désignation]])","v":"E40 TABLE BASSE CARRE - PIED ACIER"},{"$f":"Tableau2[[#This Row],[numéro]]&\" \"&Tableau2[[#This Row],[désignation]]","v":"E40 TABLE BASSE CARRE - PIED ACIER"},"H 35 cm / 80 X 80 cm",400,80,null,{"$f":"IF(Tableau2[[#This Row],[destinataire]]=0,IF(_xlfn.XLOOKUP(Tableau2[[#This Row],[code désignation]],commandecolonne[lisiting commande colonne],commandecolonne[lisiting commande colonne],FALSE)=Tableau2[[#This Row],[code désignation]],TRUE,FALSE),TRUE)","v":false}]
[{"$f":"_xlfn.XLOOKUP(MID(C112,1,1),Type[lettre type],Type[type])","v":"Table Basse"},108,"E41",{"$f":"\"https://sico-my.sharepoint.com/personal/julien_carestiato_fondation-ove_fr/Documents/Images/1potiniere/\"&Tableau2[[#This Row],[numéro]]&\".png\"","v":"https://sico-my.sharepoint.com/personal/julien_carestiato_fondation-ove_fr/Documents/Images/1potiniere/E41.png"},null,"TABLE BASSE CARRE - PIED ACIER",{"$f":"IF(Tableau2[[#This Row],[déjà en prêt commande]]=TRUE,\" \",Tableau2[[#This Row],[numéro]]&\" \"&Tableau2[[#This Row],[désignation]])","v":"E41 TABLE BASSE CARRE - PIED ACIER"},{"$f":"Tableau2[[#This Row],[numéro]]&\" \"&Tableau2[[#This Row],[désignation]]","v":"E41 TABLE BASSE CARRE - PIED ACIER"},"H 35 cm / 80 X 80 cm",400,80,null,{"$f":"IF(Tableau2[[#This Row],[destinataire]]=0,IF(_xlfn.XLOOKUP(Tableau2[[#This Row],[code désignation]],commandecolonne[lisiting commande colonne],commandecolonne[lisiting commande colonne],FALSE)=Tableau2[[#This Row],[code désignation]],TRUE,FALSE),TRUE)","v":false}]
[{"$f":"_xlfn.XLOOKUP(MID(C113,1,1),Type[lettre type],Type[type])","v":"Table Basse"},109,"E42",{"$f":"\"https://sico-my.sharepoint.com/personal/julien_carestiato_fondation-ove_fr/Documents/Images/1potiniere/\"&Tableau2[[#This Row],[numéro]]&\".png\"","v":"https://sico-my.sharepoint.com/personal/julien_carestiato_fondation-ove_fr/Documents/Images/1potiniere/E42.png"},null,"TABLE BASSE CARRE - PIED ACIER",{"$f":"IF(Tableau2[[#This Row],[déjà en prêt commande]]=TRUE,\" \",Tableau2[[#This Row],[numéro]]&\" \"&Tableau2[[#This Row],[désignation]])","v":"E42 TABLE BASSE CARRE - PIED ACIER"},{"$f":"Tableau2[[#This Row],[numéro]]&\" \"&Tableau2[[#This Row],[désignation]]","v":"E42 TABLE BASSE CARRE - PIED ACIER"},"H 35 cm / 80 X 80 cm",400,80,null,{"$f":"IF(Tableau2[[#This Row],[destinataire]]=0,IF(_xlfn.XLOOKUP(Tableau2[[#This Row],[code désignation]],commandecolonne[lisiting commande colonne],commandecolonne[lisiting commande colonne],FALSE)=Tableau2[[#This Row],[code désignation]],TRUE,FALSE),TRUE)","v":false}]
[{"$f":"_xlfn.XLOOKUP(MID(C114,1,1),Type[lettre type],Type[type])","v":"Table Basse"},110,"E43",{"$f":"\"https://sico-my.sharepoint.com/personal/julien_carestiato_fondation-ove_fr/Documents/Images/1potiniere/\"&Tableau2[[#This Row],[numéro]]&\".png\"","v":"https://sico-my.sharepoint.com/personal/julien_carestiato_fondation-ove_fr/Documents/Images/1potiniere/E43.png"},null,"TABLE BASSE CARRE - PIED ACIER",{"$f":"IF(Tableau2[[#This Row],[déjà en prêt commande]]=TRUE,\" \",Tableau2[[#This Row],[numéro]]&\" \"&Tableau2[[#This Row],[désignation]])","v":"E43 TABLE BASSE CARRE - PIED ACIER"},{"$f":"Tableau2[[#This Row],[numéro]]&\" \"&Tableau2[[#This Row],[désignation]]","v":"E43 TABLE BASSE CARRE - PIED ACIER"},"H 35 cm / 80 X 80 cm",400,80,null,{"$f":"IF(Tableau2[[#This Row],[destinataire]]=0,IF(_xlfn.XLOOKUP(Tableau2[[#This Row],[code désignation]],commandecolonne[lisiting commande colonne],commandecolonne[lisiting commande colonne],FALSE)=Tableau2[[#This Row],[code désignation]],TRUE,FALSE),TRUE)","v":false}]
[{"$f":"_xlfn.XLOOKUP(MID(C115,1,1),Type[lettre type],Type[type])","v":"Table Basse"},111,"E44",{"$f":"\"https://sico-my.sharepoint.com/personal/julien_carestiato_fondation-ove_fr/Documents/Images/1potiniere/\"&Tableau2[[#This Row],[numéro]]&\".png\"","v":"https://sico-my.sharepoint.com/personal/julien_carestiato_fondation-ove_fr/Documents/Images/1potiniere/E44.png"},null,"GRANDE TABLE",{"$f":"IF(Tableau2[[#This Row],[déjà en prêt commande]]=TRUE,\" \",Tableau2[[#This Row],[numéro]]&\" \"&Tableau2[[#This Row],[désignation]])","v":"E44 GRANDE TABLE"},{"$f":"Tableau2[[#This Row],[numéro]]&\" \"&Tableau2[[#This Row],[désignation]]","v":"E44 GRANDE TABLE"},"H 75 cm / 120 X 280 cm",1500,300,null,{"$f":"IF(Tableau2[[#This Row],[destinataire]]=0,IF(_xlfn.XLOOKUP(Tableau2[[#This Row],[code désignation]],commandecolonne[lisiting commande colonne],commandecolonne[lisiting commande colonne],FALSE)=Tableau2[[#This Row],[code désignation]],TRUE,FALSE),TRUE)","v":false}]
[{"$f":"_xlfn.XLOOKUP(MID(C116,1,1),Type[lettre type],Type[type])","v":"Fauteil"},112,"F1",{"$f":"\"https://sico-my.sharepoint.com/personal/julien_carestiato_fondation-ove_fr/Documents/Images/1potiniere/\"&Tableau2[[#This Row],[numéro]]&\".png\"","v":"https://sico-my.sharepoint.com/personal/julien_carestiato_fondation-ove_fr/Documents/Images/1potiniere/F1.png"},null,"FAUTEUIL GRIS-BLEU ",{"$f":"IF(Tableau2[[#This Row],[déjà en prêt commande]]=TRUE,\" \",Tableau2[[#This Row],[numéro]]&\" \"&Tableau2[[#This Row],[désignation]])","v":"F1 FAUTEUIL GRIS-BLEU "},{"$f":"Tableau2[[#This Row],[numéro]]&\" \"&Tableau2[[#This Row],[désignation]]","v":"F1 FAUTEUIL GRIS-BLEU "},"H 1m / largeur 65 cm",250,50,null,{"$f":"IF(Tableau2[[#This Row],[destinataire]]=0,IF(_xlfn.XLOOKUP(Tableau2[[#This Row],[code désignation]],commandecolonne[lisiting commande colonne],commandecolonne[lisiting commande colonne],FALSE)=Tableau2[[#This Row],[code désignation]],TRUE,FALSE),TRUE)","v":false}]
[{"$f":"_xlfn.XLOOKUP(MID(C117,1,1),Type[lettre type],Type[type])","v":"Fauteil"},113,"F2",{"$f":"\"https://sico-my.sharepoint.com/personal/julien_carestiato_fondation-ove_fr/Documents/Images/1potiniere/\"&Tableau2[[#This Row],[numéro]]&\".png\"","v":"https://sico-my.sharepoint.com/personal/julien_carestiato_fondation-ove_fr/Documents/Images/1potiniere/F2.png"},null,"FAUTEUIL GRIS-BLEU",{"$f":"IF(Tableau2[[#This Row],[déjà en prêt commande]]=TRUE,\" \",Tableau2[[#This Row],[numéro]]&\" \"&Tableau2[[#This Row],[désignation]])","v":"F2 FAUTEUIL GRIS-BLEU"},{"$f":"Tableau2[[#This Row],[numéro]]&\" \"&Tableau2[[#This Row],[désignation]]","v":"F2 FAUTEUIL GRIS-BLEU"},"H 1m / largeur 65 cm",250,50,null,{"$f":"IF(Tableau2[[#This Row],[destinataire]]=0,IF(_xlfn.XLOOKUP(Tableau2[[#This Row],[code désignation]],commandecolonne[lisiting commande colonne],commandecolonne[lisiting commande colonne],FALSE)=Tableau2[[#This Row],[code désignation]],TRUE,FALSE),TRUE)","v":false}]
[{"$f":"_xlfn.XLOOKUP(MID(C118,1,1),Type[lettre type],Type[type])","v":"Fauteil"},114,"F3",{"$f":"\"https://sico-my.sharepoint.com/personal/julien_carestiato_fondation-ove_fr/Documents/Images/1potiniere/\"&Tableau2[[#This Row],[numéro]]&\".png\"","v":"https://sico-my.sharepoint.com/personal/julien_carestiato_fondation-ove_fr/Documents/Images/1potiniere/F3.png"},null,"FAUTEUIL GRIS-BLEU / ASSISE MARRON                              Repose pieds L-1",{"$f":"IF(Tableau2[[#This Row],[déjà en prêt commande]]=TRUE,\" \",Tableau2[[#This Row],[numéro]]&\" \"&Tableau2[[#This Row],[désignation]])","v":" "},{"$f":"Tableau2[[#This Row],[numéro]]&\" \"&Tableau2[[#This Row],[désignation]]","v":"F3 FAUTEUIL GRIS-BLEU / ASSISE MARRON                              Repose pieds L-1"},"H 87 cm / largeur 73 cm",0,0,"DITEP ANNECY",{"$f":"IF(Tableau2[[#This Row],[destinataire]]=0,IF(_xlfn.XLOOKUP(Tableau2[[#This Row],[code désignation]],commandecolonne[lisiting commande colonne],commandecolonne[lisiting commande colonne],FALSE)=Tableau2[[#This Row],[code désignation]],TRUE,FALSE),TRUE)","v":true}]
[{"$f":"_xlfn.XLOOKUP(MID(C119,1,1),Type[lettre type],Type[type])","v":"Fauteil"},115,"F4",{"$f":"\"https://sico-my.sharepoint.com/personal/julien_carestiato_fondation-ove_fr/Documents/Images/1potiniere/\"&Tableau2[[#This Row],[numéro]]&\".png\"","v":"https://sico-my.sharepoint.com/personal/julien_carestiato_fondation-ove_fr/Documents/Images/1potiniere/F4.png"},null,"FAUTEUIL GRIS-BLEU / ASSISE MARRON                     Repose pieds L-2",{"$f":"IF(Tableau2[[#This Row],[déjà en prêt commande]]=TRUE,\" \",Tableau2[[#This Row],[numéro]]&\" \"&Tableau2[[#This Row],[désignation]])","v":" "},{"$f":"Tableau2[[#This Row],[numéro]]&\" \"&Tableau2[[#This Row],[désignation]]","v":"F4 FAUTEUIL GRIS-BLEU / ASSISE MARRON                     Repose pieds L-2"},"H 87 cm / largeur 73 cm",0,0,"DITEP ANNECY",{"$f":"IF(Tableau2[[#This Row],[destinataire]]=0,IF(_xlfn.XLOOKUP(Tableau2[[#This Row],[code désignation]],commandecolonne[lisiting commande colonne],commandecolonne[lisiting commande colonne],FALSE)=Tableau2[[#This Row],[code désignation]],TRUE,FALSE),TRUE)","v":true}]
[{"$f":"_xlfn.XLOOKUP(MID(C120,1,1),Type[lettre type],Type[type])","v":"Fauteil"},116,"F5",{"$f":"\"https://sico-my.sharepoint.com/personal/julien_carestiato_fondation-ove_fr/Documents/Images/1potiniere/\"&Tableau2[[#This Row],[numéro]]&\".png\"","v":"https://sico-my.sharepoint.com/personal/julien_carestiato_fondation-ove_fr/Documents/Images/1potiniere/F5.png"},null,"FAUTEUIL MARRON MOTIF DORE                                          Repose pieds L-3",{"$f":"IF(Tableau2[[#This Row],[déjà en prêt commande]]=TRUE,\" \",Tableau2[[#This Row],[numéro]]&\" \"&Tableau2[[#This Row],[désignation]])","v":" "},{"$f":"Tableau2[[#This Row],[numéro]]&\" \"&Tableau2[[#This Row],[désignation]]","v":"F5 FAUTEUIL MARRON MOTIF DORE                                          Repose pieds L-3"},"H 87 cm / largeur 73 cm",0,0,"DITEP ANNECY",{"$f":"IF(Tableau2[[#This Row],[destinataire]]=0,IF(_xlfn.XLOOKUP(Tableau2[[#This Row],[code désignation]],commandecolonne[lisiting commande colonne],commandecolonne[lisiting commande colonne],FALSE)=Tableau2[[#This Row],[code désignation]],TRUE,FALSE),TRUE)","v":true}]
[{"$f":"_xlfn.XLOOKUP(MID(C121,1,1),Type[lettre type],Type[type])","v":"Fauteil"},117,"F6",{"$f":"\"https://sico-my.sharepoint.com/personal/julien_carestiato_fondation-ove_fr/Documents/Images/1potiniere/\"&Tableau2[[#This Row],[numéro]]&\".png\"","v":"https://sico-my.sharepoint.com/personal/julien_carestiato_fondation-ove_fr/Documents/Images/1potiniere/F6.png"},null,"FAUTEUIL CHINE MARRON DORURE COTELE",{"$f":"IF(Tableau2[[#This Row],[déjà en prêt commande]]=TRUE,\" \",Tableau2[[#This Row],[numéro]]&\" \"&Tableau2[[#This Row],[désignation]])","v":"F6 FAUTEUIL CHINE MARRON DORURE COTELE"},{"$f":"Tableau2[[#This Row],[numéro]]&\" \"&Tableau2[[#This Row],[désignation]]","v":"F6 FAUTEUIL CHINE MARRON DORURE COTELE"},"H 87 cm / largeur 73 cm",250,50,null,{"$f":"IF(Tableau2[[#This Row],[destinataire]]=0,IF(_xlfn.XLOOKUP(Tableau2[[#This Row],[code désignation]],commandecolonne[lisiting commande colonne],commandecolonne[lisiting commande colonne],FALSE)=Tableau2[[#This Row],[code désignation]],TRUE,FALSE),TRUE)","v":false}]
[{"$f":"_xlfn.XLOOKUP(MID(C122,1,1),Type[lettre type],Type[type])","v":"Fauteil"},118,"F7",{"$f":"\"https://sico-my.sharepoint.com/personal/julien_carestiato_fondation-ove_fr/Documents/Images/1potiniere/\"&Tableau2[[#This Row],[numéro]]&\".png\"","v":"https://sico-my.sharepoint.com/personal/julien_carestiato_fondation-ove_fr/Documents/Images/1potiniere/F7.png"},null,"FAUTEUIL ROUGE",{"$f":"IF(Tableau2[[#This Row],[déjà en prêt commande]]=TRUE,\" \",Tableau2[[#This Row],[numéro]]&\" \"&Tableau2[[#This Row],[désignation]])","v":" "},{"$f":"Tableau2[[#This Row],[numéro]]&\" \"&Tableau2[[#This Row],[désignation]]","v":"F7 FAUTEUIL ROUGE"},"H 87 cm / largeur 73 cm",0,0,"DITEP ANNECY",{"$f":"IF(Tableau2[[#This Row],[destinataire]]=0,IF(_xlfn.XLOOKUP(Tableau2[[#This Row],[code désignation]],commandecolonne[lisiting commande colonne],commandecolonne[lisiting commande colonne],FALSE)=Tableau2[[#This Row],[code désignation]],TRUE,FALSE),TRUE)","v":true}]
[{"$f":"_xlfn.XLOOKUP(MID(C123,1,1),Type[lettre type],Type[type])","v":"Fauteil"},119,"F8",{"$f":"\"https://sico-my.sharepoint.com/personal/julien_carestiato_fondation-ove_fr/Documents/Images/1potiniere/\"&Tableau2[[#This Row],[numéro]]&\".png\"","v":"https://sico-my.sharepoint.com/personal/julien_carestiato_fondation-ove_fr/Documents/Images/1potiniere/F8.png"},null,"FAUTEUIL ROUGE",{"$f":"IF(Tableau2[[#This Row],[déjà en prêt commande]]=TRUE,\" \",Tableau2[[#This Row],[numéro]]&\" \"&Tableau2[[#This Row],[désignation]])","v":" "},{"$f":"Tableau2[[#This Row],[numéro]]&\" \"&Tableau2[[#This Row],[désignation]]","v":"F8 FAUTEUIL ROUGE"},"H 87 cm / largeur 73 cm",0,0,"DITEP ANNECY",{"$f":"IF(Tableau2[[#This Row],[destinataire]]=0,IF(_xlfn.XLOOKUP(Tableau2[[#This Row],[code désignation]],commandecolonne[lisiting commande colonne],commandecolonne[lisiting commande colonne],FALSE)=Tableau2[[#This Row],[code désignation]],TRUE,FALSE),TRUE)","v":true}]
[{"$f":"_xlfn.XLOOKUP(MID(C124,1,1),Type[lettre type],Type[type])","v":"Fauteil"},120,"F9",{"$f":"\"https://sico-my.sharepoint.com/personal/julien_carestiato_fondation-ove_fr/Documents/Images/1potiniere/\"&Tableau2[[#This Row],[numéro]]&\".png\"","v":"https://sico-my.sharepoint.com/personal/julien_carestiato_fondation-ove_fr/Documents/Images/1potiniere/F9.png"},null,"FAUTEUIL ROUGE",{"$f":"IF(Tableau2[[#This Row],[déjà en prêt commande]]=TRUE,\" \",Tableau2[[#This Row],[numéro]]&\" \"&Tableau2[[#This Row],[désignation]])","v":"F9 FAUTEUIL ROUGE"},{"$f":"Tableau2[[#This Row],[numéro]]&\" \"&Tableau2[[#This Row],[désignation]]","v":"F9 FAUTEUIL ROUGE"},"H 87 cm / largeur 73 cm",250,50,null,{"$f":"IF(Tableau2[[#This Row],[destinataire]]=0,IF(_xlfn.XLOOKUP(Tableau2[[#This Row],[code désignation]],commandecolonne[lisiting commande colonne],commandecolonne[lisiting commande colonne],FALSE)=Tableau2[[#This Row],[code désignation]],TRUE,FALSE),TRUE)","v":false}]
[{"$f":"_xlfn.XLOOKUP(MID(C125,1,1),Type[lettre type],Type[type])","v":"Fauteil"},121,"F10",{"$f":"\"https://sico-my.sharepoint.com/personal/julien_carestiato_fondation-ove_fr/Documents/Images/1potiniere/\"&Tableau2[[#This Row],[numéro]]&\".png\"","v":"https://sico-my.sharepoint.com/personal/julien_carestiato_fondation-ove_fr/Documents/Images/1potiniere/F10.png"},null,"FAUTEUIL ROUGE",{"$f":"IF(Tableau2[[#This Row],[déjà en prêt commande]]=TRUE,\" \",Tableau2[[#This Row],[numéro]]&\" \"&Tableau2[[#This Row],[désignation]])","v":"F10 FAUTEUIL ROUGE"},{"$f":"Tableau2[[#This Row],[numéro]]&\" \"&Tableau2[[#This Row],[désignation]]","v":"F10 FAUTEUIL ROUGE"},"H 87 cm / largeur 73 cm",250,50,null,{"$f":"IF(Tableau2[[#This Row],[destinataire]]=0,IF(_xlfn.XLOOKUP(Tableau2[[#This Row],[code désignation]],commandecolonne[lisiting commande colonne],commandecolonne[lisiting commande colonne],FALSE)=Tableau2[[#This Row],[code désignation]],TRUE,FALSE),TRUE)","v":false}]
[{"$f":"_xlfn.XLOOKUP(MID(C126,1,1),Type[lettre type],Type[type])","v":"Fauteil"},122,"F11",{"$f":"\"https://sico-my.sharepoint.com/personal/julien_carestiato_fondation-ove_fr/Documents/Images/1potiniere/\"&Tableau2[[#This Row],[numéro]]&\".png\"","v":"https://sico-my.sharepoint.com/personal/julien_carestiato_fondation-ove_fr/Documents/Images/1potiniere/F11.png"},null,"FAUTEUIL BLEU RAYE BEIGE - CONTOUR BEIGE",{"$f":"IF(Tableau2[[#This Row],[déjà en prêt commande]]=TRUE,\" \",Tableau2[[#This Row],[numéro]]&\" \"&Tableau2[[#This Row],[désignation]])","v":" "},{"$f":"Tableau2[[#This Row],[numéro]]&\" \"&Tableau2[[#This Row],[désignation]]","v":"F11 FAUTEUIL BLEU RAYE BEIGE - CONTOUR BEIGE"},"H 87 cm / largeur 73 cm",0,0,"IME GUY YVER",{"$f":"IF(Tableau2[[#This Row],[destinataire]]=0,IF(_xlfn.XLOOKUP(Tableau2[[#This Row],[code désignation]],commandecolonne[lisiting commande colonne],commandecolonne[lisiting commande colonne],FALSE)=Tableau2[[#This Row],[code désignation]],TRUE,FALSE),TRUE)","v":true}]
[{"$f":"_xlfn.XLOOKUP(MID(C127,1,1),Type[lettre type],Type[type])","v":"Fauteil"},123,"F12",{"$f":"\"https://sico-my.sharepoint.com/personal/julien_carestiato_fondation-ove_fr/Documents/Images/1potiniere/\"&Tableau2[[#This Row],[numéro]]&\".png\"","v":"https://sico-my.sharepoint.com/personal/julien_carestiato_fondation-ove_fr/Documents/Images/1potiniere/F12.png"},null,"FAUTEUIL BLEU RAYE BEIGE - CONTOUR BEIGE",{"$f":"IF(Tableau2[[#This Row],[déjà en prêt commande]]=TRUE,\" \",Tableau2[[#This Row],[numéro]]&\" \"&Tableau2[[#This Row],[désignation]])","v":" "},{"$f":"Tableau2[[#This Row],[numéro]]&\" \"&Tableau2[[#This Row],[désignation]]","v":"F12 FAUTEUIL BLEU RAYE BEIGE - CONTOUR BEIGE"},"H 87 cm / largeur 73 cm",0,0,"IME GUY YVER",{"$f":"IF(Tableau2[[#This Row],[destinataire]]=0,IF(_xlfn.XLOOKUP(Tableau2[[#This Row],[code désignation]],commandecolonne[lisiting commande colonne],commandecolonne[lisiting commande colonne],FALSE)=Tableau2[[#This Row],[code désignation]],TRUE,FALSE),TRUE)","v":true}]
[{"$f":"_xlfn.XLOOKUP(MID(C128,1,1),Type[lettre type],Type[type])","v":"Fauteil"},124,"F13",{"$f":"\"https://sico-my.sharepoint.com/personal/julien_carestiato_fondation-ove_fr/Documents/Images/1potiniere/\"&Tableau2[[#This Row],[numéro]]&\".png\"","v":"https://sico-my.sharepoint.com/personal/julien_carestiato_fondation-ove_fr/Documents/Images/1potiniere/F13.png"},null,"FAUTEUIL BLEU RAYE BEIGE - CONTOUR BEIGE",{"$f":"IF(Tableau2[[#This Row],[déjà en prêt commande]]=TRUE,\" \",Tableau2[[#This Row],[numéro]]&\" \"&Tableau2[[#This Row],[désignation]])","v":" "},{"$f":"Tableau2[[#This Row],[numéro]]&\" \"&Tableau2[[#This Row],[désignation]]","v":"F13 FAUTEUIL BLEU RAYE BEIGE - CONTOUR BEIGE"},"H 87 cm / largeur 73 cm",0,0,"IME GUY YVER",{"$f":"IF(Tableau2[[#This Row],[destinataire]]=0,IF(_xlfn.XLOOKUP(Tableau2[[#This Row],[code désignation]],commandecolonne[lisiting commande colonne],commandecolonne[lisiting commande colonne],FALSE)=Tableau2[[#This Row],[code désignation]],TRUE,FALSE),TRUE)","v":true}]
[{"$f":"_xlfn.XLOOKUP(MID(C129,1,1),Type[lettre type],Type[type])","v":"Fauteil"},125,"F14",{"$f":"\"https://sico-my.sharepoint.com/personal/julien_carestiato_fondation-ove_fr/Documents/Images/1potiniere/\"&Tableau2[[#This Row],[numéro]]&\".png\"","v":"https://sico-my.sharepoint.com/personal/julien_carestiato_fondation-ove_fr/Documents/Images/1potiniere/F14.png"},null,"FAUTEUIL MARRON CHINE - CONTOUR KAKI",{"$f":"IF(Tableau2[[#This Row],[déjà en prêt commande]]=TRUE,\" \",Tableau2[[#This Row],[numéro]]&\" \"&Tableau2[[#This Row],[désignation]])","v":" "},{"$f":"Tableau2[[#This Row],[numéro]]&\" \"&Tableau2[[#This Row],[désignation]]","v":"F14 FAUTEUIL MARRON CHINE - CONTOUR KAKI"},"H 87 cm / largeur 73 cm",0,0,"APPARTEMENTS SOUTIEN",{"$f":"IF(Tableau2[[#This Row],[destinataire]]=0,IF(_xlfn.XLOOKUP(Tableau2[[#This Row],[code désignation]],commandecolonne[lisiting commande colonne],commandecolonne[lisiting commande colonne],FALSE)=Tableau2[[#This Row],[code désignation]],TRUE,FALSE),TRUE)","v":true}]
[{"$f":"_xlfn.XLOOKUP(MID(C130,1,1),Type[lettre type],Type[type])","v":"Fauteil"},126,"F15",{"$f":"\"https://sico-my.sharepoint.com/personal/julien_carestiato_fondation-ove_fr/Documents/Images/1potiniere/\"&Tableau2[[#This Row],[numéro]]&\".png\"","v":"https://sico-my.sharepoint.com/personal/julien_carestiato_fondation-ove_fr/Documents/Images/1potiniere/F15.png"},null,"FAUTEUIL MARRON CHINE - CONTOUR KAKI",{"$f":"IF(Tableau2[[#This Row],[déjà en prêt commande]]=TRUE,\" \",Tableau2[[#This Row],[numéro]]&\" \"&Tableau2[[#This Row],[désignation]])","v":" "},{"$f":"Tableau2[[#This Row],[numéro]]&\" \"&Tableau2[[#This Row],[désignation]]","v":"F15 FAUTEUIL MARRON CHINE - CONTOUR KAKI"},"H 87 cm / largeur 73 cm",0,0,"APPARTEMENTS SOUTIEN",{"$f":"IF(Tableau2[[#This Row],[destinataire]]=0,IF(_xlfn.XLOOKUP(Tableau2[[#This Row],[code désignation]],commandecolonne[lisiting commande colonne],commandecolonne[lisiting commande colonne],FALSE)=Tableau2[[#This Row],[code désignation]],TRUE,FALSE),TRUE)","v":true}]
[{"$f":"_xlfn.XLOOKUP(MID(C131,1,1),Type[lettre type],Type[type])","v":"Fauteil"},127,"F16",{"$f":"\"https://sico-my.sharepoint.com/personal/julien_carestiato_fondation-ove_fr/Documents/Images/1potiniere/\"&Tableau2[[#This Row],[numéro]]&\".png\"","v":"https://sico-my.sharepoint.com/personal/julien_carestiato_fondation-ove_fr/Documents/Images/1potiniere/F16.png"},null,"FAUTEUIL RAYURES BEIGE DORE",{"$f":"IF(Tableau2[[#This Row],[déjà en prêt commande]]=TRUE,\" \",Tableau2[[#This Row],[numéro]]&\" \"&Tableau2[[#This Row],[désignation]])","v":" "},{"$f":"Tableau2[[#This Row],[numéro]]&\" \"&Tableau2[[#This Row],[désignation]]","v":"F16 FAUTEUIL RAYURES BEIGE DORE"},"H 87 cm / largeur 73 cm",0,0,"APPARTEMENTS SOUTIEN",{"$f":"IF(Tableau2[[#This Row],[destinataire]]=0,IF(_xlfn.XLOOKUP(Tableau2[[#This Row],[code désignation]],commandecolonne[lisiting commande colonne],commandecolonne[lisiting commande colonne],FALSE)=Tableau2[[#This Row],[code désignation]],TRUE,FALSE),TRUE)","v":true}]
[{"$f":"_xlfn.XLOOKUP(MID(C132,1,1),Type[lettre type],Type[type])","v":"Fauteil"},128,"F17",{"$f":"\"https://sico-my.sharepoint.com/personal/julien_carestiato_fondation-ove_fr/Documents/Images/1potiniere/\"&Tableau2[[#This Row],[numéro]]&\".png\"","v":"https://sico-my.sharepoint.com/personal/julien_carestiato_fondation-ove_fr/Documents/Images/1potiniere/F17.png"},null,"FAUTEUIL MARRON CHOCOLAT",{"$f":"IF(Tableau2[[#This Row],[déjà en prêt commande]]=TRUE,\" \",Tableau2[[#This Row],[numéro]]&\" \"&Tableau2[[#This Row],[désignation]])","v":" "},{"$f":"Tableau2[[#This Row],[numéro]]&\" \"&Tableau2[[#This Row],[désignation]]","v":"F17 FAUTEUIL MARRON CHOCOLAT"},"H 87 cm / largeur 73 cm",0,0,"APPARTEMENTS SOUTIEN",{"$f":"IF(Tableau2[[#This Row],[destinataire]]=0,IF(_xlfn.XLOOKUP(Tableau2[[#This Row],[code désignation]],commandecolonne[lisiting commande colonne],commandecolonne[lisiting commande colonne],FALSE)=Tableau2[[#This Row],[code désignation]],TRUE,FALSE),TRUE)","v":true}]
[{"$f":"_xlfn.XLOOKUP(MID(C133,1,1),Type[lettre type],Type[type])","v":"Fauteil"},129,"F18",{"$f":"\"https://sico-my.sharepoint.com/personal/julien_carestiato_fondation-ove_fr/Documents/Images/1potiniere/\"&Tableau2[[#This Row],[numéro]]&\".png\"","v":"https://sico-my.sharepoint.com/personal/julien_carestiato_fondation-ove_fr/Documents/Images/1potiniere/F18.png"},null,"FAUTEUIL MARRON CHOCOLAT",{"$f":"IF(Tableau2[[#This Row],[déjà en prêt commande]]=TRUE,\" \",Tableau2[[#This Row],[numéro]]&\" \"&Tableau2[[#This Row],[désignation]])","v":" "},{"$f":"Tableau2[[#This Row],[numéro]]&\" \"&Tableau2[[#This Row],[désignation]]","v":"F18 FAUTEUIL MARRON CHOCOLAT"},"H 87 cm / largeur 73 cm",0,0,"APPARTEMENTS SOUTIEN",{"$f":"IF(Tableau2[[#This Row],[destinataire]]=0,IF(_xlfn.XLOOKUP(Tableau2[[#This Row],[code désignation]],commandecolonne[lisiting commande colonne],commandecolonne[lisiting commande colonne],FALSE)=Tableau2[[#This Row],[code désignation]],TRUE,FALSE),TRUE)","v":true}]
[{"$f":"_xlfn.XLOOKUP(MID(C134,1,1),Type[lettre type],Type[type])","v":"Fauteil"},130,"F19",{"$f":"\"https://sico-my.sharepoint.com/personal/julien_carestiato_fondation-ove_fr/Documents/Images/1potiniere/\"&Tableau2[[#This Row],[numéro]]&\".png\"","v":"https://sico-my.sharepoint.com/personal/julien_carestiato_fondation-ove_fr/Documents/Images/1potiniere/F19.png"},null,"FAUTEUIL MARRON BRILLANT IMPRIME FLEURS",{"$f":"IF(Tableau2[[#This Row],[déjà en prêt commande]]=TRUE,\" \",Tableau2[[#This Row],[numéro]]&\" \"&Tableau2[[#This Row],[désignation]])","v":" "},{"$f":"Tableau2[[#This Row],[numéro]]&\" \"&Tableau2[[#This Row],[désignation]]","v":"F19 FAUTEUIL MARRON BRILLANT IMPRIME FLEURS"},"H 87 cm / largeur 73 cm",0,0,"DITEP ANNECY",{"$f":"IF(Tableau2[[#This Row],[destinataire]]=0,IF(_xlfn.XLOOKUP(Tableau2[[#This Row],[code désignation]],commandecolonne[lisiting commande colonne],commandecolonne[lisiting commande colonne],FALSE)=Tableau2[[#This Row],[code désignation]],TRUE,FALSE),TRUE)","v":true}]
[{"$f":"_xlfn.XLOOKUP(MID(C135,1,1),Type[lettre type],Type[type])","v":"Fauteil"},131,"F20",{"$f":"\"https://sico-my.sharepoint.com/personal/julien_carestiato_fondation-ove_fr/Documents/Images/1potiniere/\"&Tableau2[[#This Row],[numéro]]&\".png\"","v":"https://sico-my.sharepoint.com/personal/julien_carestiato_fondation-ove_fr/Documents/Images/1potiniere/F20.png"},null,"FAUTEUIL MARRON BRILLANT IMPRIME FLEURS",{"$f":"IF(Tableau2[[#This Row],[déjà en prêt commande]]=TRUE,\" \",Tableau2[[#This Row],[numéro]]&\" \"&Tableau2[[#This Row],[désignation]])","v":" "},{"$f":"Tableau2[[#This Row],[numéro]]&\" \"&Tableau2[[#This Row],[désignation]]","v":"F20 FAUTEUIL MARRON BRILLANT IMPRIME FLEURS"},"H 87 cm / largeur 73 cm",0,0,"DITEP ANNECY",{"$f":"IF(Tableau2[[#This Row],[destinataire]]=0,IF(_xlfn.XLOOKUP(Tableau2[[#This Row],[code désignation]],commandecolonne[lisiting commande colonne],commandecolonne[lisiting commande colonne],FALSE)=Tableau2[[#This Row],[code désignation]],TRUE,FALSE),TRUE)","v":true}]
[{"$f":"_xlfn.XLOOKUP(MID(C136,1,1),Type[lettre type],Type[type])","v":"Fauteil"},132,"F21",{"$f":"\"https://sico-my.sharepoint.com/personal/julien_carestiato_fondation-ove_fr/Documents/Images/1potiniere/\"&Tableau2[[#This Row],[numéro]]&\".png\"","v":"https://sico-my.sharepoint.com/personal/julien_carestiato_fondation-ove_fr/Documents/Images/1potiniere/F21.png"},null,"FAUTEUIL MARRON BRILLANT IMPRIME FLEURS",{"$f":"IF(Tableau2[[#This Row],[déjà en prêt commande]]=TRUE,\" \",Tableau2[[#This Row],[numéro]]&\" \"&Tableau2[[#This Row],[désignation]])","v":"F21 FAUTEUIL MARRON BRILLANT IMPRIME FLEURS"},{"$f":"Tableau2[[#This Row],[numéro]]&\" \"&Tableau2[[#This Row],[désignation]]","v":"F21 FAUTEUIL MARRON BRILLANT IMPRIME FLEURS"},"H 87 cm / largeur 73 cm",250,50,null,{"$f":"IF(Tableau2[[#This Row],[destinataire]]=0,IF(_xlfn.XLOOKUP(Tableau2[[#This Row],[code désignation]],commandecolonne[lisiting commande colonne],commandecolonne[lisiting commande colonne],FALSE)=Tableau2[[#This Row],[code désignation]],TRUE,FALSE),TRUE)","v":false}]
[{"$f":"_xlfn.XLOOKUP(MID(C137,1,1),Type[lettre type],Type[type])","v":"Fauteil"},133,"F22",{"$f":"\"https://sico-my.sharepoint.com/personal/julien_carestiato_fondation-ove_fr/Documents/Images/1potiniere/\"&Tableau2[[#This Row],[numéro]]&\".png\"","v":"https://sico-my.sharepoint.com/personal/julien_carestiato_fondation-ove_fr/Documents/Images/1potiniere/F22.png"},"Photo non dispo","FAUTEUIL MARRON BRILLANT IMPRIME FLEURS",{"$f":"IF(Tableau2[[#This Row],[déjà en prêt commande]]=TRUE,\" \",Tableau2[[#This Row],[numéro]]&\" \"&Tableau2[[#This Row],[désignation]])","v":"F22 FAUTEUIL MARRON BRILLANT IMPRIME FLEURS"},{"$f":"Tableau2[[#This Row],[numéro]]&\" \"&Tableau2[[#This Row],[désignation]]","v":"F22 FAUTEUIL MARRON BRILLANT IMPRIME FLEURS"},"H 87 cm / largeur 73 cm",250,50,null,{"$f":"IF(Tableau2[[#This Row],[destinataire]]=0,IF(_xlfn.XLOOKUP(Tableau2[[#This Row],[code désignation]],commandecolonne[lisiting commande colonne],commandecolonne[lisiting commande colonne],FALSE)=Tableau2[[#This Row],[code désignation]],TRUE,FALSE),TRUE)","v":false}]
[{"$f":"_xlfn.XLOOKUP(MID(C138,1,1),Type[lettre type],Type[type])","v":"Fauteil"},134,"F23",{"$f":"\"https://sico-my.sharepoint.com/personal/julien_carestiato_fondation-ove_fr/Documents/Images/1potiniere/\"&Tableau2[[#This Row],[numéro]]&\".png\"","v":"https://sico-my.sharepoint.com/personal/julien_carestiato_fondation-ove_fr/Documents/Images/1potiniere/F23.png"},null,"FAUTEUIL RAYE BEIGE ET DORE",{"$f":"IF(Tableau2[[#This Row],[déjà en prêt commande]]=TRUE,\" \",Tableau2[[#This Row],[numéro]]&\" \"&Tableau2[[#This Row],[désignation]])","v":" "},{"$f":"Tableau2[[#This Row],[numéro]]&\" \"&Tableau2[[#This Row],[désignation]]","v":"F23 FAUTEUIL RAYE BEIGE ET DORE"},"H 87 cm / largeur 73 cm",0,0,"DITEP ANNECY",{"$f":"IF(Tableau2[[#This Row],[destinataire]]=0,IF(_xlfn.XLOOKUP(Tableau2[[#This Row],[code désignation]],commandecolonne[lisiting commande colonne],commandecolonne[lisiting commande colonne],FALSE)=Tableau2[[#This Row],[code désignation]],TRUE,FALSE),TRUE)","v":true}]
[{"$f":"_xlfn.XLOOKUP(MID(C139,1,1),Type[lettre type],Type[type])","v":"Fauteil"},135,"F24",{"$f":"\"https://sico-my.sharepoint.com/personal/julien_carestiato_fondation-ove_fr/Documents/Images/1potiniere/\"&Tableau2[[#This Row],[numéro]]&\".png\"","v":"https://sico-my.sharepoint.com/personal/julien_carestiato_fondation-ove_fr/Documents/Images/1potiniere/F24.png"},null,"FAUTEUIL BEIGE",{"$f":"IF(Tableau2[[#This Row],[déjà en prêt commande]]=TRUE,\" \",Tableau2[[#This Row],[numéro]]&\" \"&Tableau2[[#This Row],[désignation]])","v":"F24 FAUTEUIL BEIGE"},{"$f":"Tableau2[[#This Row],[numéro]]&\" \"&Tableau2[[#This Row],[désignation]]","v":"F24 FAUTEUIL BEIGE"},"H 75 cm / 86 x 86 cm ",500,100,null,{"$f":"IF(Tableau2[[#This Row],[destinataire]]=0,IF(_xlfn.XLOOKUP(Tableau2[[#This Row],[code désignation]],commandecolonne[lisiting commande colonne],commandecolonne[lisiting commande colonne],FALSE)=Tableau2[[#This Row],[code désignation]],TRUE,FALSE),TRUE)","v":false}]
[{"$f":"_xlfn.XLOOKUP(MID(C140,1,1),Type[lettre type],Type[type])","v":"Fauteil"},136,"F25",{"$f":"\"https://sico-my.sharepoint.com/personal/julien_carestiato_fondation-ove_fr/Documents/Images/1potiniere/\"&Tableau2[[#This Row],[numéro]]&\".png\"","v":"https://sico-my.sharepoint.com/personal/julien_carestiato_fondation-ove_fr/Documents/Images/1potiniere/F25.png"},null,"FAUTEUIL BEIGE",{"$f":"IF(Tableau2[[#This Row],[déjà en prêt commande]]=TRUE,\" \",Tableau2[[#This Row],[numéro]]&\" \"&Tableau2[[#This Row],[désignation]])","v":"F25 FAUTEUIL BEIGE"},{"$f":"Tableau2[[#This Row],[numéro]]&\" \"&Tableau2[[#This Row],[désignation]]","v":"F25 FAUTEUIL BEIGE"},"H 75 cm / 86 x 86 cm ",500,100,null,{"$f":"IF(Tableau2[[#This Row],[destinataire]]=0,IF(_xlfn.XLOOKUP(Tableau2[[#This Row],[code désignation]],commandecolonne[lisiting commande colonne],commandecolonne[lisiting commande colonne],FALSE)=Tableau2[[#This Row],[code désignation]],TRUE,FALSE),TRUE)","v":false}]
[{"$f":"_xlfn.XLOOKUP(MID(C141,1,1),Type[lettre type],Type[type])","v":"Fauteil"},137,"F26",{"$f":"\"https://sico-my.sharepoint.com/personal/julien_carestiato_fondation-ove_fr/Documents/Images/1potiniere/\"&Tableau2[[#This Row],[numéro]]&\".png\"","v":"https://sico-my.sharepoint.com/personal/julien_carestiato_fondation-ove_fr/Documents/Images/1potiniere/F26.png"},null,"Fauteil",{"$f":"IF(Tableau2[[#This Row],[déjà en prêt commande]]=TRUE,\" \",Tableau2[[#This Row],[numéro]]&\" \"&Tableau2[[#This Row],[désignation]])","v":"F26 Fauteil"},{"$f":"Tableau2[[#This Row],[numéro]]&\" \"&Tableau2[[#This Row],[désignation]]","v":"F26 Fauteil"},"H 75 cm / 86 x 86 cm ",500,100,null,{"$f":"IF(Tableau2[[#This Row],[destinataire]]=0,IF(_xlfn.XLOOKUP(Tableau2[[#This Row],[code désignation]],commandecolonne[lisiting commande colonne],commandecolonne[lisiting commande colonne],FALSE)=Tableau2[[#This Row],[code désignation]],TRUE,FALSE),TRUE)","v":false}]
[{"$f":"_xlfn.XLOOKUP(MID(C142,1,1),Type[lettre type],Type[type])","v":"Fauteil"},138,"F27",{"$f":"\"https://sico-my.sharepoint.com/personal/julien_carestiato_fondation-ove_fr/Documents/Images/1potiniere/\"&Tableau2[[#This Row],[numéro]]&\".png\"","v":"https://sico-my.sharepoint.com/personal/julien_carestiato_fondation-ove_fr/Documents/Images/1potiniere/F27.png"},null,"Fauteil",{"$f":"IF(Tableau2[[#This Row],[déjà en prêt commande]]=TRUE,\" \",Tableau2[[#This Row],[numéro]]&\" \"&Tableau2[[#This Row],[désignation]])","v":"F27 Fauteil"},{"$f":"Tableau2[[#This Row],[numéro]]&\" \"&Tableau2[[#This Row],[désignation]]","v":"F27 Fauteil"},"H 75 cm / 86 x 86 cm ",500,100,null,{"$f":"IF(Tableau2[[#This Row],[destinataire]]=0,IF(_xlfn.XLOOKUP(Tableau2[[#This Row],[code désignation]],commandecolonne[lisiting commande colonne],commandecolonne[lisiting commande colonne],FALSE)=Tableau2[[#This Row],[code désignation]],TRUE,FALSE),TRUE)","v":false}]
[{"$f":"_xlfn.XLOOKUP(MID(C143,1,1),Type[lettre type],Type[type])","v":"Fauteil"},139,"F28",{"$f":"\"https://sico-my.sharepoint.com/personal/julien_carestiato_fondation-ove_fr/Documents/Images/1potiniere/\"&Tableau2[[#This Row],[numéro]]&\".png\"","v":"https://sico-my.sharepoint.com/personal/julien_carestiato_fondation-ove_fr/Documents/Images/1potiniere/F28.png"},null,"Fauteil",{"$f":"IF(Tableau2[[#This Row],[déjà en prêt commande]]=TRUE,\" \",Tableau2[[#This Row],[numéro]]&\" \"&Tableau2[[#This Row],[désignation]])","v":"F28 Fauteil"},{"$f":"Tableau2[[#This Row],[numéro]]&\" \"&Tableau2[[#This Row],[désignation]]","v":"F28 Fauteil"},"H 75 cm / 86 x 86 cm ",500,100,null,{"$f":"IF(Tableau2[[#This Row],[destinataire]]=0,IF(_xlfn.XLOOKUP(Tableau2[[#This Row],[code désignation]],commandecolonne[lisiting commande colonne],commandecolonne[lisiting commande colonne],FALSE)=Tableau2[[#This Row],[code désignation]],TRUE,FALSE),TRUE)","v":false}]
[{"$f":"_xlfn.XLOOKUP(MID(C144,1,1),Type[lettre type],Type[type])","v":"Fauteil"},140,"F29",{"$f":"\"https://sico-my.sharepoint.com/personal/julien_carestiato_fondation-ove_fr/Documents/Images/1potiniere/\"&Tableau2[[#This Row],[numéro]]&\".png\"","v":"https://sico-my.sharepoint.com/personal/julien_carestiato_fondation-ove_fr/Documents/Images/1potiniere/F29.png"},null,"Fauteil",{"$f":"IF(Tableau2[[#This Row],[déjà en prêt commande]]=TRUE,\" \",Tableau2[[#This Row],[numéro]]&\" \"&Tableau2[[#This Row],[désignation]])","v":"F29 Fauteil"},{"$f":"Tableau2[[#This Row],[numéro]]&\" \"&Tableau2[[#This Row],[désignation]]","v":"F29 Fauteil"},"H 75 cm / 86 x 86 cm ",500,100,null,{"$f":"IF(Tableau2[[#This Row],[destinataire]]=0,IF(_xlfn.XLOOKUP(Tableau2[[#This Row],[code désignation]],commandecolonne[lisiting commande colonne],commandecolonne[lisiting commande colonne],FALSE)=Tableau2[[#This Row],[code désignation]],TRUE,FALSE),TRUE)","v":false}]
[{"$f":"_xlfn.XLOOKUP(MID(C145,1,1),Type[lettre type],Type[type])","v":"Fauteil"},141,"F30",{"$f":"\"https://sico-my.sharepoint.com/personal/julien_carestiato_fondation-ove_fr/Documents/Images/1potiniere/\"&Tableau2[[#This Row],[numéro]]&\".png\"","v":"https://sico-my.sharepoint.com/personal/julien_carestiato_fondation-ove_fr/Documents/Images/1potiniere/F30.png"},null,"Fauteil",{"$f":"IF(Tableau2[[#This Row],[déjà en prêt commande]]=TRUE,\" \",Tableau2[[#This Row],[numéro]]&\" \"&Tableau2[[#This Row],[désignation]])","v":"F30 Fauteil"},{"$f":"Tableau2[[#This Row],[numéro]]&\" \"&Tableau2[[#This Row],[désignation]]","v":"F30 Fauteil"},"H 75 cm / 86 x 86 cm ",500,100,null,{"$f":"IF(Tableau2[[#This Row],[destinataire]]=0,IF(_xlfn.XLOOKUP(Tableau2[[#This Row],[code désignation]],commandecolonne[lisiting commande colonne],commandecolonne[lisiting commande colonne],FALSE)=Tableau2[[#This Row],[code désignation]],TRUE,FALSE),TRUE)","v":false}]
[{"$f":"_xlfn.XLOOKUP(MID(C146,1,1),Type[lettre type],Type[type])","v":"Fauteil"},142,"F31",{"$f":"\"https://sico-my.sharepoint.com/personal/julien_carestiato_fondation-ove_fr/Documents/Images/1potiniere/\"&Tableau2[[#This Row],[numéro]]&\".png\"","v":"https://sico-my.sharepoint.com/personal/julien_carestiato_fondation-ove_fr/Documents/Images/1potiniere/F31.png"},null,"Fauteil",{"$f":"IF(Tableau2[[#This Row],[déjà en prêt commande]]=TRUE,\" \",Tableau2[[#This Row],[numéro]]&\" \"&Tableau2[[#This Row],[désignation]])","v":"F31 Fauteil"},{"$f":"Tableau2[[#This Row],[numéro]]&\" \"&Tableau2[[#This Row],[désignation]]","v":"F31 Fauteil"},"H 75 cm / 86 x 86 cm ",500,100,null,{"$f":"IF(Tableau2[[#This Row],[destinataire]]=0,IF(_xlfn.XLOOKUP(Tableau2[[#This Row],[code désignation]],commandecolonne[lisiting commande colonne],commandecolonne[lisiting commande colonne],FALSE)=Tableau2[[#This Row],[code désignation]],TRUE,FALSE),TRUE)","v":false}]
[{"$f":"_xlfn.XLOOKUP(MID(C147,1,1),Type[lettre type],Type[type])","v":"Chaise"},143,"G1",{"$f":"\"https://sico-my.sharepoint.com/personal/julien_carestiato_fondation-ove_fr/Documents/Images/1potiniere/\"&Tableau2[[#This Row],[numéro]]&\".png\"","v":"https://sico-my.sharepoint.com/personal/julien_carestiato_fondation-ove_fr/Documents/Images/1potiniere/G1.png"},null,"CHAISE BUREAU ROULETTE BEIGE",{"$f":"IF(Tableau2[[#This Row],[déjà en prêt commande]]=TRUE,\" \",Tableau2[[#This Row],[numéro]]&\" \"&Tableau2[[#This Row],[désignation]])","v":"G1 CHAISE BUREAU ROULETTE BEIGE"},{"$f":"Tableau2[[#This Row],[numéro]]&\" \"&Tableau2[[#This Row],[désignation]]","v":"G1 CHAISE BUREAU ROULETTE BEIGE"},"H 1m x 47 cm assise",50,10,null,{"$f":"IF(Tableau2[[#This Row],[destinataire]]=0,IF(_xlfn.XLOOKUP(Tableau2[[#This Row],[code désignation]],commandecolonne[lisiting commande colonne],commandecolonne[lisiting commande colonne],FALSE)=Tableau2[[#This Row],[code désignation]],TRUE,FALSE),TRUE)","v":false}]
[{"$f":"_xlfn.XLOOKUP(MID(C148,1,1),Type[lettre type],Type[type])","v":"Chaise"},144,"G2",{"$f":"\"https://sico-my.sharepoint.com/personal/julien_carestiato_fondation-ove_fr/Documents/Images/1potiniere/\"&Tableau2[[#This Row],[numéro]]&\".png\"","v":"https://sico-my.sharepoint.com/personal/julien_carestiato_fondation-ove_fr/Documents/Images/1potiniere/G2.png"},null,"CHAISE VELOUR BLEU",{"$f":"IF(Tableau2[[#This Row],[déjà en prêt commande]]=TRUE,\" \",Tableau2[[#This Row],[numéro]]&\" \"&Tableau2[[#This Row],[désignation]])","v":" "},{"$f":"Tableau2[[#This Row],[numéro]]&\" \"&Tableau2[[#This Row],[désignation]]","v":"G2 CHAISE VELOUR BLEU"},"H 1m x 47 cm assise",0,0,"DITEP ANNECY",{"$f":"IF(Tableau2[[#This Row],[destinataire]]=0,IF(_xlfn.XLOOKUP(Tableau2[[#This Row],[code désignation]],commandecolonne[lisiting commande colonne],commandecolonne[lisiting commande colonne],FALSE)=Tableau2[[#This Row],[code désignation]],TRUE,FALSE),TRUE)","v":true}]
[{"$f":"_xlfn.XLOOKUP(MID(C149,1,1),Type[lettre type],Type[type])","v":"Chaise"},145,"G3",{"$f":"\"https://sico-my.sharepoint.com/personal/julien_carestiato_fondation-ove_fr/Documents/Images/1potiniere/\"&Tableau2[[#This Row],[numéro]]&\".png\"","v":"https://sico-my.sharepoint.com/personal/julien_carestiato_fondation-ove_fr/Documents/Images/1potiniere/G3.png"},null,"CHAISE VELOUR BLEU",{"$f":"IF(Tableau2[[#This Row],[déjà en prêt commande]]=TRUE,\" \",Tableau2[[#This Row],[numéro]]&\" \"&Tableau2[[#This Row],[désignation]])","v":" "},{"$f":"Tableau2[[#This Row],[numéro]]&\" \"&Tableau2[[#This Row],[désignation]]","v":"G3 CHAISE VELOUR BLEU"},"H 1m x 47 cm assise",0,0,"DITEP ANNECY",{"$f":"IF(Tableau2[[#This Row],[destinataire]]=0,IF(_xlfn.XLOOKUP(Tableau2[[#This Row],[code désignation]],commandecolonne[lisiting commande colonne],commandecolonne[lisiting commande colonne],FALSE)=Tableau2[[#This Row],[code désignation]],TRUE,FALSE),TRUE)","v":true}]
[{"$f":"_xlfn.XLOOKUP(MID(C150,1,1),Type[lettre type],Type[type])","v":"Chaise"},146,"G4",{"$f":"\"https://sico-my.sharepoint.com/personal/julien_carestiato_fondation-ove_fr/Documents/Images/1potiniere/\"&Tableau2[[#This Row],[numéro]]&\".png\"","v":"https://sico-my.sharepoint.com/personal/julien_carestiato_fondation-ove_fr/Documents/Images/1potiniere/G4.png"},null,"CHAISE VELOUR BLEU",{"$f":"IF(Tableau2[[#This Row],[déjà en prêt commande]]=TRUE,\" \",Tableau2[[#This Row],[numéro]]&\" \"&Tableau2[[#This Row],[désignation]])","v":" "},{"$f":"Tableau2[[#This Row],[numéro]]&\" \"&Tableau2[[#This Row],[désignation]]","v":"G4 CHAISE VELOUR BLEU"},"H 1m x 47 cm assise",0,0,"DITEP ANNECY",{"$f":"IF(Tableau2[[#This Row],[destinataire]]=0,IF(_xlfn.XLOOKUP(Tableau2[[#This Row],[code désignation]],commandecolonne[lisiting commande colonne],commandecolonne[lisiting commande colonne],FALSE)=Tableau2[[#This Row],[code désignation]],TRUE,FALSE),TRUE)","v":true}]
[{"$f":"_xlfn.XLOOKUP(MID(C151,1,1),Type[lettre type],Type[type])","v":"Chaise"},147,"G5",{"$f":"\"https://sico-my.sharepoint.com/personal/julien_carestiato_fondation-ove_fr/Documents/Images/1potiniere/\"&Tableau2[[#This Row],[numéro]]&\".png\"","v":"https://sico-my.sharepoint.com/personal/julien_carestiato_fondation-ove_fr/Documents/Images/1potiniere/G5.png"},null,"CHAISE VELOUR BLEU",{"$f":"IF(Tableau2[[#This Row],[déjà en prêt commande]]=TRUE,\" \",Tableau2[[#This Row],[numéro]]&\" \"&Tableau2[[#This Row],[désignation]])","v":" "},{"$f":"Tableau2[[#This Row],[numéro]]&\" \"&Tableau2[[#This Row],[désignation]]","v":"G5 CHAISE VELOUR BLEU"},"H 1m x 47 cm assise",0,0,"DITEP ANNECY",{"$f":"IF(Tableau2[[#This Row],[destinataire]]=0,IF(_xlfn.XLOOKUP(Tableau2[[#This Row],[code désignation]],commandecolonne[lisiting commande colonne],commandecolonne[lisiting commande colonne],FALSE)=Tableau2[[#This Row],[code désignation]],TRUE,FALSE),TRUE)","v":true}]
[{"$f":"_xlfn.XLOOKUP(MID(C152,1,1),Type[lettre type],Type[type])","v":"Chaise"},148,"G6",{"$f":"\"https://sico-my.sharepoint.com/personal/julien_carestiato_fondation-ove_fr/Documents/Images/1potiniere/\"&Tableau2[[#This Row],[numéro]]&\".png\"","v":"https://sico-my.sharepoint.com/personal/julien_carestiato_fondation-ove_fr/Documents/Images/1potiniere/G6.png"},null,"CHAISE VELOUR BLEU",{"$f":"IF(Tableau2[[#This Row],[déjà en prêt commande]]=TRUE,\" \",Tableau2[[#This Row],[numéro]]&\" \"&Tableau2[[#This Row],[désignation]])","v":" "},{"$f":"Tableau2[[#This Row],[numéro]]&\" \"&Tableau2[[#This Row],[désignation]]","v":"G6 CHAISE VELOUR BLEU"},"H 1m x 47 cm assise",0,0,"DITEP ANNECY",{"$f":"IF(Tableau2[[#This Row],[destinataire]]=0,IF(_xlfn.XLOOKUP(Tableau2[[#This Row],[code désignation]],commandecolonne[lisiting commande colonne],commandecolonne[lisiting commande colonne],FALSE)=Tableau2[[#This Row],[code désignation]],TRUE,FALSE),TRUE)","v":true}]
[{"$f":"_xlfn.XLOOKUP(MID(C153,1,1),Type[lettre type],Type[type])","v":"Chaise"},149,"G7",{"$f":"\"https://sico-my.sharepoint.com/personal/julien_carestiato_fondation-ove_fr/Documents/Images/1potiniere/\"&Tableau2[[#This Row],[numéro]]&\".png\"","v":"https://sico-my.sharepoint.com/personal/julien_carestiato_fondation-ove_fr/Documents/Images/1potiniere/G7.png"},null,"CHAISE VELOUR BLEU",{"$f":"IF(Tableau2[[#This Row],[déjà en prêt commande]]=TRUE,\" \",Tableau2[[#This Row],[numéro]]&\" \"&Tableau2[[#This Row],[désignation]])","v":" "},{"$f":"Tableau2[[#This Row],[numéro]]&\" \"&Tableau2[[#This Row],[désignation]]","v":"G7 CHAISE VELOUR BLEU"},"H 1m x 47 cm assise",0,0,"DITEP ANNECY",{"$f":"IF(Tableau2[[#This Row],[destinataire]]=0,IF(_xlfn.XLOOKUP(Tableau2[[#This Row],[code désignation]],commandecolonne[lisiting commande colonne],commandecolonne[lisiting commande colonne],FALSE)=Tableau2[[#This Row],[code désignation]],TRUE,FALSE),TRUE)","v":true}]
[{"$f":"_xlfn.XLOOKUP(MID(C154,1,1),Type[lettre type],Type[type])","v":"Chaise"},150,"G8",{"$f":"\"https://sico-my.sharepoint.com/personal/julien_carestiato_fondation-ove_fr/Documents/Images/1potiniere/\"&Tableau2[[#This Row],[numéro]]&\".png\"","v":"https://sico-my.sharepoint.com/personal/julien_carestiato_fondation-ove_fr/Documents/Images/1potiniere/G8.png"},null,"CHAISE VELOUR BLEU",{"$f":"IF(Tableau2[[#This Row],[déjà en prêt commande]]=TRUE,\" \",Tableau2[[#This Row],[numéro]]&\" \"&Tableau2[[#This Row],[désignation]])","v":" "},{"$f":"Tableau2[[#This Row],[numéro]]&\" \"&Tableau2[[#This Row],[désignation]]","v":"G8 CHAISE VELOUR BLEU"},"H 1m x 47 cm assise",0,0,"DITEP ANNECY",{"$f":"IF(Tableau2[[#This Row],[destinataire]]=0,IF(_xlfn.XLOOKUP(Tableau2[[#This Row],[code désignation]],commandecolonne[lisiting commande colonne],commandecolonne[lisiting commande colonne],FALSE)=Tableau2[[#This Row],[code désignation]],TRUE,FALSE),TRUE)","v":true}]
[{"$f":"_xlfn.XLOOKUP(MID(C155,1,1),Type[lettre type],Type[type])","v":"Chaise"},151,"G9",{"$f":"\"https://sico-my.sharepoint.com/personal/julien_carestiato_fondation-ove_fr/Documents/Images/1potiniere/\"&Tableau2[[#This Row],[numéro]]&\".png\"","v":"https://sico-my.sharepoint.com/personal/julien_carestiato_fondation-ove_fr/Documents/Images/1potiniere/G9.png"},null,"CHAISE VELOUR BLEU",{"$f":"IF(Tableau2[[#This Row],[déjà en prêt commande]]=TRUE,\" \",Tableau2[[#This Row],[numéro]]&\" \"&Tableau2[[#This Row],[désignation]])","v":" "},{"$f":"Tableau2[[#This Row],[numéro]]&\" \"&Tableau2[[#This Row],[désignation]]","v":"G9 CHAISE VELOUR BLEU"},"H 1m x 47 cm assise",0,0,"DITEP ANNECY",{"$f":"IF(Tableau2[[#This Row],[destinataire]]=0,IF(_xlfn.XLOOKUP(Tableau2[[#This Row],[code désignation]],commandecolonne[lisiting commande colonne],commandecolonne[lisiting commande colonne],FALSE)=Tableau2[[#This Row],[code désignation]],TRUE,FALSE),TRUE)","v":true}]
[{"$f":"_xlfn.XLOOKUP(MID(C156,1,1),Type[lettre type],Type[type])","v":"Chaise"},152,"G10",{"$f":"\"https://sico-my.sharepoint.com/personal/julien_carestiato_fondation-ove_fr/Documents/Images/1potiniere/\"&Tableau2[[#This Row],[numéro]]&\".png\"","v":"https://sico-my.sharepoint.com/personal/julien_carestiato_fondation-ove_fr/Documents/Images/1potiniere/G10.png"},null,"CHAISE VELOUR BLEU PLIANTE",{"$f":"IF(Tableau2[[#This Row],[déjà en prêt commande]]=TRUE,\" \",Tableau2[[#This Row],[numéro]]&\" \"&Tableau2[[#This Row],[désignation]])","v":"G10 CHAISE VELOUR BLEU PLIANTE"},{"$f":"Tableau2[[#This Row],[numéro]]&\" \"&Tableau2[[#This Row],[désignation]]","v":"G10 CHAISE VELOUR BLEU PLIANTE"},"H 85 cm x 42 cm assise",75,15,null,{"$f":"IF(Tableau2[[#This Row],[destinataire]]=0,IF(_xlfn.XLOOKUP(Tableau2[[#This Row],[code désignation]],commandecolonne[lisiting commande colonne],commandecolonne[lisiting commande colonne],FALSE)=Tableau2[[#This Row],[code désignation]],TRUE,FALSE),TRUE)","v":false}]
[{"$f":"_xlfn.XLOOKUP(MID(C157,1,1),Type[lettre type],Type[type])","v":"Chaise"},153,"G11",{"$f":"\"https://sico-my.sharepoint.com/personal/julien_carestiato_fondation-ove_fr/Documents/Images/1potiniere/\"&Tableau2[[#This Row],[numéro]]&\".png\"","v":"https://sico-my.sharepoint.com/personal/julien_carestiato_fondation-ove_fr/Documents/Images/1potiniere/G11.png"},null,"CHAISE VELOUR BLEU PLIANTE",{"$f":"IF(Tableau2[[#This Row],[déjà en prêt commande]]=TRUE,\" \",Tableau2[[#This Row],[numéro]]&\" \"&Tableau2[[#This Row],[désignation]])","v":"G11 CHAISE VELOUR BLEU PLIANTE"},{"$f":"Tableau2[[#This Row],[numéro]]&\" \"&Tableau2[[#This Row],[désignation]]","v":"G11 CHAISE VELOUR BLEU PLIANTE"},"H 85 cm x 42 cm assise",75,15,null,{"$f":"IF(Tableau2[[#This Row],[destinataire]]=0,IF(_xlfn.XLOOKUP(Tableau2[[#This Row],[code désignation]],commandecolonne[lisiting commande colonne],commandecolonne[lisiting commande colonne],FALSE)=Tableau2[[#This Row],[code désignation]],TRUE,FALSE),TRUE)","v":false}]
[{"$f":"_xlfn.XLOOKUP(MID(C158,1,1),Type[lettre type],Type[type])","v":"Chaise"},154,"G12",{"$f":"\"https://sico-my.sharepoint.com/personal/julien_carestiato_fondation-ove_fr/Documents/Images/1potiniere/\"&Tableau2[[#This Row],[numéro]]&\".png\"","v":"https://sico-my.sharepoint.com/personal/julien_carestiato_fondation-ove_fr/Documents/Images/1potiniere/G12.png"},null,"CHAISE VELOUR BLEU PLIANTE",{"$f":"IF(Tableau2[[#This Row],[déjà en prêt commande]]=TRUE,\" \",Tableau2[[#This Row],[numéro]]&\" \"&Tableau2[[#This Row],[désignation]])","v":"G12 CHAISE VELOUR BLEU PLIANTE"},{"$f":"Tableau2[[#This Row],[numéro]]&\" \"&Tableau2[[#This Row],[désignation]]","v":"G12 CHAISE VELOUR BLEU PLIANTE"},"H 85 cm x 42 cm assise",75,15,null,{"$f":"IF(Tableau2[[#This Row],[destinataire]]=0,IF(_xlfn.XLOOKUP(Tableau2[[#This Row],[code désignation]],commandecolonne[lisiting commande colonne],commandecolonne[lisiting commande colonne],FALSE)=Tableau2[[#This Row],[code désignation]],TRUE,FALSE),TRUE)","v":false}]
[{"$f":"_xlfn.XLOOKUP(MID(C159,1,1),Type[lettre type],Type[type])","v":"Chaise"},155,"G13",{"$f":"\"https://sico-my.sharepoint.com/personal/julien_carestiato_fondation-ove_fr/Documents/Images/1potiniere/\"&Tableau2[[#This Row],[numéro]]&\".png\"","v":"https://sico-my.sharepoint.com/personal/julien_carestiato_fondation-ove_fr/Documents/Images/1potiniere/G13.png"},null,"CHAISE VELOUR BLEU PLIANTE",{"$f":"IF(Tableau2[[#This Row],[déjà en prêt commande]]=TRUE,\" \",Tableau2[[#This Row],[numéro]]&\" \"&Tableau2[[#This Row],[désignation]])","v":"G13 CHAISE VELOUR BLEU PLIANTE"},{"$f":"Tableau2[[#This Row],[numéro]]&\" \"&Tableau2[[#This Row],[désignation]]","v":"G13 CHAISE VELOUR BLEU PLIANTE"},"H 85 cm x 42 cm assise",75,15,null,{"$f":"IF(Tableau2[[#This Row],[destinataire]]=0,IF(_xlfn.XLOOKUP(Tableau2[[#This Row],[code désignation]],commandecolonne[lisiting commande colonne],commandecolonne[lisiting commande colonne],FALSE)=Tableau2[[#This Row],[code désignation]],TRUE,FALSE),TRUE)","v":false}]
[{"$f":"_xlfn.XLOOKUP(MID(C160,1,1),Type[lettre type],Type[type])","v":"Chaise"},156,"G14",{"$f":"\"https://sico-my.sharepoint.com/personal/julien_carestiato_fondation-ove_fr/Documents/Images/1potiniere/\"&Tableau2[[#This Row],[numéro]]&\".png\"","v":"https://sico-my.sharepoint.com/personal/julien_carestiato_fondation-ove_fr/Documents/Images/1potiniere/G14.png"},"Photo non dispo","CHAISE VELOUR VIEILLE OR",{"$f":"IF(Tableau2[[#This Row],[déjà en prêt commande]]=TRUE,\" \",Tableau2[[#This Row],[numéro]]&\" \"&Tableau2[[#This Row],[désignation]])","v":" "},{"$f":"Tableau2[[#This Row],[numéro]]&\" \"&Tableau2[[#This Row],[désignation]]","v":"G14 CHAISE VELOUR VIEILLE OR"},"H 78 cm x 47 cm assise",0,0,"IME GUY YVER",{"$f":"IF(Tableau2[[#This Row],[destinataire]]=0,IF(_xlfn.XLOOKUP(Tableau2[[#This Row],[code désignation]],commandecolonne[lisiting commande colonne],commandecolonne[lisiting commande colonne],FALSE)=Tableau2[[#This Row],[code désignation]],TRUE,FALSE),TRUE)","v":true}]
[{"$f":"_xlfn.XLOOKUP(MID(C161,1,1),Type[lettre type],Type[type])","v":"Chaise"},157,"G15",{"$f":"\"https://sico-my.sharepoint.com/personal/julien_carestiato_fondation-ove_fr/Documents/Images/1potiniere/\"&Tableau2[[#This Row],[numéro]]&\".png\"","v":"https://sico-my.sharepoint.com/personal/julien_carestiato_fondation-ove_fr/Documents/Images/1potiniere/G15.png"},"Photo non dispo","CHAISE VELOUR MARRON RAYURE        + COUSSIN",{"$f":"IF(Tableau2[[#This Row],[déjà en prêt commande]]=TRUE,\" \",Tableau2[[#This Row],[numéro]]&\" \"&Tableau2[[#This Row],[désignation]])","v":" "},{"$f":"Tableau2[[#This Row],[numéro]]&\" \"&Tableau2[[#This Row],[désignation]]","v":"G15 CHAISE VELOUR MARRON RAYURE        + COUSSIN"},"H 78 cm x 47 cm assise",0,0,"IME GUY YVER",{"$f":"IF(Tableau2[[#This Row],[destinataire]]=0,IF(_xlfn.XLOOKUP(Tableau2[[#This Row],[code désignation]],commandecolonne[lisiting commande colonne],commandecolonne[lisiting commande colonne],FALSE)=Tableau2[[#This Row],[code désignation]],TRUE,FALSE),TRUE)","v":true}]
[{"$f":"_xlfn.XLOOKUP(MID(C162,1,1),Type[lettre type],Type[type])","v":"Chaise"},158,"G16",{"$f":"\"https://sico-my.sharepoint.com/personal/julien_carestiato_fondation-ove_fr/Documents/Images/1potiniere/\"&Tableau2[[#This Row],[numéro]]&\".png\"","v":"https://sico-my.sharepoint.com/personal/julien_carestiato_fondation-ove_fr/Documents/Images/1potiniere/G16.png"},null,"CHAISE MARRON BRILLANT               IMPRIME FLEUR",{"$f":"IF(Tableau2[[#This Row],[déjà en prêt commande]]=TRUE,\" \",Tableau2[[#This Row],[numéro]]&\" \"&Tableau2[[#This Row],[désignation]])","v":"G16 CHAISE MARRON BRILLANT               IMPRIME FLEUR"},{"$f":"Tableau2[[#This Row],[numéro]]&\" \"&Tableau2[[#This Row],[désignation]]","v":"G16 CHAISE MARRON BRILLANT               IMPRIME FLEUR"},"H 78 cm x 47 cm assise",100,20,null,{"$f":"IF(Tableau2[[#This Row],[destinataire]]=0,IF(_xlfn.XLOOKUP(Tableau2[[#This Row],[code désignation]],commandecolonne[lisiting commande colonne],commandecolonne[lisiting commande colonne],FALSE)=Tableau2[[#This Row],[code désignation]],TRUE,FALSE),TRUE)","v":false}]
[{"$f":"_xlfn.XLOOKUP(MID(C163,1,1),Type[lettre type],Type[type])","v":"Chaise"},159,"G17",{"$f":"\"https://sico-my.sharepoint.com/personal/julien_carestiato_fondation-ove_fr/Documents/Images/1potiniere/\"&Tableau2[[#This Row],[numéro]]&\".png\"","v":"https://sico-my.sharepoint.com/personal/julien_carestiato_fondation-ove_fr/Documents/Images/1potiniere/G17.png"},null,"CHAISE MARRON BRILLANT             IMPRIME FLEUR",{"$f":"IF(Tableau2[[#This Row],[déjà en prêt commande]]=TRUE,\" \",Tableau2[[#This Row],[numéro]]&\" \"&Tableau2[[#This Row],[désignation]])","v":"G17 CHAISE MARRON BRILLANT             IMPRIME FLEUR"},{"$f":"Tableau2[[#This Row],[numéro]]&\" \"&Tableau2[[#This Row],[désignation]]","v":"G17 CHAISE MARRON BRILLANT             IMPRIME FLEUR"},"H 78 cm x 47 cm assise",100,20,null,{"$f":"IF(Tableau2[[#This Row],[destinataire]]=0,IF(_xlfn.XLOOKUP(Tableau2[[#This Row],[code désignation]],commandecolonne[lisiting commande colonne],commandecolonne[lisiting commande colonne],FALSE)=Tableau2[[#This Row],[code désignation]],TRUE,FALSE),TRUE)","v":false}]
[{"$f":"_xlfn.XLOOKUP(MID(C164,1,1),Type[lettre type],Type[type])","v":"Chaise"},160,"G18",{"$f":"\"https://sico-my.sharepoint.com/personal/julien_carestiato_fondation-ove_fr/Documents/Images/1potiniere/\"&Tableau2[[#This Row],[numéro]]&\".png\"","v":"https://sico-my.sharepoint.com/personal/julien_carestiato_fondation-ove_fr/Documents/Images/1potiniere/G18.png"},null,"CHAISE MARRON BRILLANT              IMPRIME FLEUR",{"$f":"IF(Tableau2[[#This Row],[déjà en prêt commande]]=TRUE,\" \",Tableau2[[#This Row],[numéro]]&\" \"&Tableau2[[#This Row],[désignation]])","v":" "},{"$f":"Tableau2[[#This Row],[numéro]]&\" \"&Tableau2[[#This Row],[désignation]]","v":"G18 CHAISE MARRON BRILLANT              IMPRIME FLEUR"},"H 78 cm x 47 cm assise",0,0,"APPARTEMENTS SOUTIEN",{"$f":"IF(Tableau2[[#This Row],[destinataire]]=0,IF(_xlfn.XLOOKUP(Tableau2[[#This Row],[code désignation]],commandecolonne[lisiting commande colonne],commandecolonne[lisiting commande colonne],FALSE)=Tableau2[[#This Row],[code désignation]],TRUE,FALSE),TRUE)","v":true}]
[{"$f":"_xlfn.XLOOKUP(MID(C165,1,1),Type[lettre type],Type[type])","v":"Chaise"},161,"G19",{"$f":"\"https://sico-my.sharepoint.com/personal/julien_carestiato_fondation-ove_fr/Documents/Images/1potiniere/\"&Tableau2[[#This Row],[numéro]]&\".png\"","v":"https://sico-my.sharepoint.com/personal/julien_carestiato_fondation-ove_fr/Documents/Images/1potiniere/G19.png"},null,"CHAISE MARRON BRILLANT             IMPRIME FLEUR",{"$f":"IF(Tableau2[[#This Row],[déjà en prêt commande]]=TRUE,\" \",Tableau2[[#This Row],[numéro]]&\" \"&Tableau2[[#This Row],[désignation]])","v":" "},{"$f":"Tableau2[[#This Row],[numéro]]&\" \"&Tableau2[[#This Row],[désignation]]","v":"G19 CHAISE MARRON BRILLANT             IMPRIME FLEUR"},"H 78 cm x 47 cm assise",0,0,"APPARTEMENTS SOUTIEN",{"$f":"IF(Tableau2[[#This Row],[destinataire]]=0,IF(_xlfn.XLOOKUP(Tableau2[[#This Row],[code désignation]],commandecolonne[lisiting commande colonne],commandecolonne[lisiting commande colonne],FALSE)=Tableau2[[#This Row],[code désignation]],TRUE,FALSE),TRUE)","v":true}]
[{"$f":"_xlfn.XLOOKUP(MID(C166,1,1),Type[lettre type],Type[type])","v":"Chaise"},162,"G20",{"$f":"\"https://sico-my.sharepoint.com/personal/julien_carestiato_fondation-ove_fr/Documents/Images/1potiniere/\"&Tableau2[[#This Row],[numéro]]&\".png\"","v":"https://sico-my.sharepoint.com/personal/julien_carestiato_fondation-ove_fr/Documents/Images/1potiniere/G20.png"},null,"CHAISE VELOUR MARRON CHOCOLAT POINTE DORURE",{"$f":"IF(Tableau2[[#This Row],[déjà en prêt commande]]=TRUE,\" \",Tableau2[[#This Row],[numéro]]&\" \"&Tableau2[[#This Row],[désignation]])","v":" "},{"$f":"Tableau2[[#This Row],[numéro]]&\" \"&Tableau2[[#This Row],[désignation]]","v":"G20 CHAISE VELOUR MARRON CHOCOLAT POINTE DORURE"},"H 78 cm x 47 cm assise",0,0,"APPARTEMENTS SOUTIEN",{"$f":"IF(Tableau2[[#This Row],[destinataire]]=0,IF(_xlfn.XLOOKUP(Tableau2[[#This Row],[code désignation]],commandecolonne[lisiting commande colonne],commandecolonne[lisiting commande colonne],FALSE)=Tableau2[[#This Row],[code désignation]],TRUE,FALSE),TRUE)","v":true}]
[{"$f":"_xlfn.XLOOKUP(MID(C167,1,1),Type[lettre type],Type[type])","v":"Chaise"},163,"G21",{"$f":"\"https://sico-my.sharepoint.com/personal/julien_carestiato_fondation-ove_fr/Documents/Images/1potiniere/\"&Tableau2[[#This Row],[numéro]]&\".png\"","v":"https://sico-my.sharepoint.com/personal/julien_carestiato_fondation-ove_fr/Documents/Images/1potiniere/G21.png"},null,"CHAISE VELOUR MARRON CHOCOLAT POINTE DORURE",{"$f":"IF(Tableau2[[#This Row],[déjà en prêt commande]]=TRUE,\" \",Tableau2[[#This Row],[numéro]]&\" \"&Tableau2[[#This Row],[désignation]])","v":" "},{"$f":"Tableau2[[#This Row],[numéro]]&\" \"&Tableau2[[#This Row],[désignation]]","v":"G21 CHAISE VELOUR MARRON CHOCOLAT POINTE DORURE"},"H 78 cm x 47 cm assise",0,0,"APPARTEMENTS SOUTIEN",{"$f":"IF(Tableau2[[#This Row],[destinataire]]=0,IF(_xlfn.XLOOKUP(Tableau2[[#This Row],[code désignation]],commandecolonne[lisiting commande colonne],commandecolonne[lisiting commande colonne],FALSE)=Tableau2[[#This Row],[code désignation]],TRUE,FALSE),TRUE)","v":true}]
[{"$f":"_xlfn.XLOOKUP(MID(C168,1,1),Type[lettre type],Type[type])","v":"Chaise"},164,"G22",{"$f":"\"https://sico-my.sharepoint.com/personal/julien_carestiato_fondation-ove_fr/Documents/Images/1potiniere/\"&Tableau2[[#This Row],[numéro]]&\".png\"","v":"https://sico-my.sharepoint.com/personal/julien_carestiato_fondation-ove_fr/Documents/Images/1potiniere/G22.png"},null,"CHAISE VELOUR MARRON CHOCOLAT POINTE DORURE",{"$f":"IF(Tableau2[[#This Row],[déjà en prêt commande]]=TRUE,\" \",Tableau2[[#This Row],[numéro]]&\" \"&Tableau2[[#This Row],[désignation]])","v":" "},{"$f":"Tableau2[[#This Row],[numéro]]&\" \"&Tableau2[[#This Row],[désignation]]","v":"G22 CHAISE VELOUR MARRON CHOCOLAT POINTE DORURE"},"H 78 cm x 47 cm assise",0,0,"DITEP ANNECY",{"$f":"IF(Tableau2[[#This Row],[destinataire]]=0,IF(_xlfn.XLOOKUP(Tableau2[[#This Row],[code désignation]],commandecolonne[lisiting commande colonne],commandecolonne[lisiting commande colonne],FALSE)=Tableau2[[#This Row],[code désignation]],TRUE,FALSE),TRUE)","v":true}]
[{"$f":"_xlfn.XLOOKUP(MID(C169,1,1),Type[lettre type],Type[type])","v":"Chaise"},165,"G23",{"$f":"\"https://sico-my.sharepoint.com/personal/julien_carestiato_fondation-ove_fr/Documents/Images/1potiniere/\"&Tableau2[[#This Row],[numéro]]&\".png\"","v":"https://sico-my.sharepoint.com/personal/julien_carestiato_fondation-ove_fr/Documents/Images/1potiniere/G23.png"},null,"CHAISE VELOUR MARRON CHOCOLAT POINTE DORURE",{"$f":"IF(Tableau2[[#This Row],[déjà en prêt commande]]=TRUE,\" \",Tableau2[[#This Row],[numéro]]&\" \"&Tableau2[[#This Row],[désignation]])","v":" "},{"$f":"Tableau2[[#This Row],[numéro]]&\" \"&Tableau2[[#This Row],[désignation]]","v":"G23 CHAISE VELOUR MARRON CHOCOLAT POINTE DORURE"},"H 78 cm x 47 cm assise",0,0,"DITEP ANNECY",{"$f":"IF(Tableau2[[#This Row],[destinataire]]=0,IF(_xlfn.XLOOKUP(Tableau2[[#This Row],[code désignation]],commandecolonne[lisiting commande colonne],commandecolonne[lisiting commande colonne],FALSE)=Tableau2[[#This Row],[code désignation]],TRUE,FALSE),TRUE)","v":true}]
[{"$f":"_xlfn.XLOOKUP(MID(C170,1,1),Type[lettre type],Type[type])","v":"Chaise"},166,"G24",{"$f":"\"https://sico-my.sharepoint.com/personal/julien_carestiato_fondation-ove_fr/Documents/Images/1potiniere/\"&Tableau2[[#This Row],[numéro]]&\".png\"","v":"https://sico-my.sharepoint.com/personal/julien_carestiato_fondation-ove_fr/Documents/Images/1potiniere/G24.png"},null,"CHAISE VELOUR BEIGE",{"$f":"IF(Tableau2[[#This Row],[déjà en prêt commande]]=TRUE,\" \",Tableau2[[#This Row],[numéro]]&\" \"&Tableau2[[#This Row],[désignation]])","v":" "},{"$f":"Tableau2[[#This Row],[numéro]]&\" \"&Tableau2[[#This Row],[désignation]]","v":"G24 CHAISE VELOUR BEIGE"},"H 78 cm x 47 cm assise",0,0,"IME GUY YVER",{"$f":"IF(Tableau2[[#This Row],[destinataire]]=0,IF(_xlfn.XLOOKUP(Tableau2[[#This Row],[code désignation]],commandecolonne[lisiting commande colonne],commandecolonne[lisiting commande colonne],FALSE)=Tableau2[[#This Row],[code désignation]],TRUE,FALSE),TRUE)","v":true}]
[{"$f":"_xlfn.XLOOKUP(MID(C171,1,1),Type[lettre type],Type[type])","v":"Chaise"},167,"G25",{"$f":"\"https://sico-my.sharepoint.com/personal/julien_carestiato_fondation-ove_fr/Documents/Images/1potiniere/\"&Tableau2[[#This Row],[numéro]]&\".png\"","v":"https://sico-my.sharepoint.com/personal/julien_carestiato_fondation-ove_fr/Documents/Images/1potiniere/G25.png"},null,"CHAISE VELOUR BEIGE",{"$f":"IF(Tableau2[[#This Row],[déjà en prêt commande]]=TRUE,\" \",Tableau2[[#This Row],[numéro]]&\" \"&Tableau2[[#This Row],[désignation]])","v":" "},{"$f":"Tableau2[[#This Row],[numéro]]&\" \"&Tableau2[[#This Row],[désignation]]","v":"G25 CHAISE VELOUR BEIGE"},"H 78 cm x 47 cm assise",0,0,"DITEP ANNECY",{"$f":"IF(Tableau2[[#This Row],[destinataire]]=0,IF(_xlfn.XLOOKUP(Tableau2[[#This Row],[code désignation]],commandecolonne[lisiting commande colonne],commandecolonne[lisiting commande colonne],FALSE)=Tableau2[[#This Row],[code désignation]],TRUE,FALSE),TRUE)","v":true}]
[{"$f":"_xlfn.XLOOKUP(MID(C172,1,1),Type[lettre type],Type[type])","v":"Chaise"},168,"G26",{"$f":"\"https://sico-my.sharepoint.com/personal/julien_carestiato_fondation-ove_fr/Documents/Images/1potiniere/\"&Tableau2[[#This Row],[numéro]]&\".png\"","v":"https://sico-my.sharepoint.com/personal/julien_carestiato_fondation-ove_fr/Documents/Images/1potiniere/G26.png"},null,"CHAISE VELOUR BEIGE",{"$f":"IF(Tableau2[[#This Row],[déjà en prêt commande]]=TRUE,\" \",Tableau2[[#This Row],[numéro]]&\" \"&Tableau2[[#This Row],[désignation]])","v":" "},{"$f":"Tableau2[[#This Row],[numéro]]&\" \"&Tableau2[[#This Row],[désignation]]","v":"G26 CHAISE VELOUR BEIGE"},"H 78 cm x 47 cm assise",0,0,"APPARTEMENTS SOUTIEN",{"$f":"IF(Tableau2[[#This Row],[destinataire]]=0,IF(_xlfn.XLOOKUP(Tableau2[[#This Row],[code désignation]],commandecolonne[lisiting commande colonne],commandecolonne[lisiting commande colonne],FALSE)=Tableau2[[#This Row],[code désignation]],TRUE,FALSE),TRUE)","v":true}]
[{"$f":"_xlfn.XLOOKUP(MID(C173,1,1),Type[lettre type],Type[type])","v":"Chaise"},169,"G27",{"$f":"\"https://sico-my.sharepoint.com/personal/julien_carestiato_fondation-ove_fr/Documents/Images/1potiniere/\"&Tableau2[[#This Row],[numéro]]&\".png\"","v":"https://sico-my.sharepoint.com/personal/julien_carestiato_fondation-ove_fr/Documents/Images/1potiniere/G27.png"},null,"CHAISE VELOUR BEIGE",{"$f":"IF(Tableau2[[#This Row],[déjà en prêt commande]]=TRUE,\" \",Tableau2[[#This Row],[numéro]]&\" \"&Tableau2[[#This Row],[désignation]])","v":" "},{"$f":"Tableau2[[#This Row],[numéro]]&\" \"&Tableau2[[#This Row],[désignation]]","v":"G27 CHAISE VELOUR BEIGE"},"H 78 cm x 47 cm assise",0,0,"APPARTEMENTS SOUTIEN",{"$f":"IF(Tableau2[[#This Row],[destinataire]]=0,IF(_xlfn.XLOOKUP(Tableau2[[#This Row],[code désignation]],commandecolonne[lisiting commande colonne],commandecolonne[lisiting commande colonne],FALSE)=Tableau2[[#This Row],[code désignation]],TRUE,FALSE),TRUE)","v":true}]
[{"$f":"_xlfn.XLOOKUP(MID(C174,1,1),Type[lettre type],Type[type])","v":"Chaise"},170,"G28",{"$f":"\"https://sico-my.sharepoint.com/personal/julien_carestiato_fondation-ove_fr/Documents/Images/1potiniere/\"&Tableau2[[#This Row],[numéro]]&\".png\"","v":"https://sico-my.sharepoint.com/personal/julien_carestiato_fondation-ove_fr/Documents/Images/1potiniere/G28.png"},null,"CHAISE CHINE MARRON                 DORURE COTELE",{"$f":"IF(Tableau2[[#This Row],[déjà en prêt commande]]=TRUE,\" \",Tableau2[[#This Row],[numéro]]&\" \"&Tableau2[[#This Row],[désignation]])","v":" "},{"$f":"Tableau2[[#This Row],[numéro]]&\" \"&Tableau2[[#This Row],[désignation]]","v":"G28 CHAISE CHINE MARRON                 DORURE COTELE"},"H 78 cm x 47 cm assise",0,0,"APPARTEMENTS SOUTIEN",{"$f":"IF(Tableau2[[#This Row],[destinataire]]=0,IF(_xlfn.XLOOKUP(Tableau2[[#This Row],[code désignation]],commandecolonne[lisiting commande colonne],commandecolonne[lisiting commande colonne],FALSE)=Tableau2[[#This Row],[code désignation]],TRUE,FALSE),TRUE)","v":true}]
[{"$f":"_xlfn.XLOOKUP(MID(C175,1,1),Type[lettre type],Type[type])","v":"Chaise"},171,"G29",{"$f":"\"https://sico-my.sharepoint.com/personal/julien_carestiato_fondation-ove_fr/Documents/Images/1potiniere/\"&Tableau2[[#This Row],[numéro]]&\".png\"","v":"https://sico-my.sharepoint.com/personal/julien_carestiato_fondation-ove_fr/Documents/Images/1potiniere/G29.png"},null,"CHAISE CHINE MARRON                DORURE COTELE",{"$f":"IF(Tableau2[[#This Row],[déjà en prêt commande]]=TRUE,\" \",Tableau2[[#This Row],[numéro]]&\" \"&Tableau2[[#This Row],[désignation]])","v":" "},{"$f":"Tableau2[[#This Row],[numéro]]&\" \"&Tableau2[[#This Row],[désignation]]","v":"G29 CHAISE CHINE MARRON                DORURE COTELE"},"H 78 cm x 47 cm assise",0,0,"APPARTEMENTS SOUTIEN",{"$f":"IF(Tableau2[[#This Row],[destinataire]]=0,IF(_xlfn.XLOOKUP(Tableau2[[#This Row],[code désignation]],commandecolonne[lisiting commande colonne],commandecolonne[lisiting commande colonne],FALSE)=Tableau2[[#This Row],[code désignation]],TRUE,FALSE),TRUE)","v":true}]
[{"$f":"_xlfn.XLOOKUP(MID(C176,1,1),Type[lettre type],Type[type])","v":"Chaise"},172,"G30",{"$f":"\"https://sico-my.sharepoint.com/personal/julien_carestiato_fondation-ove_fr/Documents/Images/1potiniere/\"&Tableau2[[#This Row],[numéro]]&\".png\"","v":"https://sico-my.sharepoint.com/personal/julien_carestiato_fondation-ove_fr/Documents/Images/1potiniere/G30.png"},null,"CHAISE VELOUR NOIR                        AVEC POINTE DE DORURE",{"$f":"IF(Tableau2[[#This Row],[déjà en prêt commande]]=TRUE,\" \",Tableau2[[#This Row],[numéro]]&\" \"&Tableau2[[#This Row],[désignation]])","v":" "},{"$f":"Tableau2[[#This Row],[numéro]]&\" \"&Tableau2[[#This Row],[désignation]]","v":"G30 CHAISE VELOUR NOIR                        AVEC POINTE DE DORURE"},"H 78 cm x 47 cm assise",0,0,"DITEP ANNECY",{"$f":"IF(Tableau2[[#This Row],[destinataire]]=0,IF(_xlfn.XLOOKUP(Tableau2[[#This Row],[code désignation]],commandecolonne[lisiting commande colonne],commandecolonne[lisiting commande colonne],FALSE)=Tableau2[[#This Row],[code désignation]],TRUE,FALSE),TRUE)","v":true}]
[{"$f":"_xlfn.XLOOKUP(MID(C177,1,1),Type[lettre type],Type[type])","v":"Chaise"},173,"G31",{"$f":"\"https://sico-my.sharepoint.com/personal/julien_carestiato_fondation-ove_fr/Documents/Images/1potiniere/\"&Tableau2[[#This Row],[numéro]]&\".png\"","v":"https://sico-my.sharepoint.com/personal/julien_carestiato_fondation-ove_fr/Documents/Images/1potiniere/G31.png"},null,"CHAISE VELOUR NOIR                         AVEC POINTE DE DORURE",{"$f":"IF(Tableau2[[#This Row],[déjà en prêt commande]]=TRUE,\" \",Tableau2[[#This Row],[numéro]]&\" \"&Tableau2[[#This Row],[désignation]])","v":" "},{"$f":"Tableau2[[#This Row],[numéro]]&\" \"&Tableau2[[#This Row],[désignation]]","v":"G31 CHAISE VELOUR NOIR                         AVEC POINTE DE DORURE"},"H 78 cm x 47 cm assise",0,0,"DITEP ANNECY",{"$f":"IF(Tableau2[[#This Row],[destinataire]]=0,IF(_xlfn.XLOOKUP(Tableau2[[#This Row],[code désignation]],commandecolonne[lisiting commande colonne],commandecolonne[lisiting commande colonne],FALSE)=Tableau2[[#This Row],[code désignation]],TRUE,FALSE),TRUE)","v":true}]
[{"$f":"_xlfn.XLOOKUP(MID(C178,1,1),Type[lettre type],Type[type])","v":"Chaise"},174,"G32",{"$f":"\"https://sico-my.sharepoint.com/personal/julien_carestiato_fondation-ove_fr/Documents/Images/1potiniere/\"&Tableau2[[#This Row],[numéro]]&\".png\"","v":"https://sico-my.sharepoint.com/personal/julien_carestiato_fondation-ove_fr/Documents/Images/1potiniere/G32.png"},null,"CHAISE VELOUR MARRON UNI",{"$f":"IF(Tableau2[[#This Row],[déjà en prêt commande]]=TRUE,\" \",Tableau2[[#This Row],[numéro]]&\" \"&Tableau2[[#This Row],[désignation]])","v":"G32 CHAISE VELOUR MARRON UNI"},{"$f":"Tableau2[[#This Row],[numéro]]&\" \"&Tableau2[[#This Row],[désignation]]","v":"G32 CHAISE VELOUR MARRON UNI"},"H 78 cm x 47 cm assise",100,20,null,{"$f":"IF(Tableau2[[#This Row],[destinataire]]=0,IF(_xlfn.XLOOKUP(Tableau2[[#This Row],[code désignation]],commandecolonne[lisiting commande colonne],commandecolonne[lisiting commande colonne],FALSE)=Tableau2[[#This Row],[code désignation]],TRUE,FALSE),TRUE)","v":false}]
[{"$f":"_xlfn.XLOOKUP(MID(C179,1,1),Type[lettre type],Type[type])","v":"Chaise"},175,"G33",{"$f":"\"https://sico-my.sharepoint.com/personal/julien_carestiato_fondation-ove_fr/Documents/Images/1potiniere/\"&Tableau2[[#This Row],[numéro]]&\".png\"","v":"https://sico-my.sharepoint.com/personal/julien_carestiato_fondation-ove_fr/Documents/Images/1potiniere/G33.png"},null,"CHAISE VELOUR MARRON UNI",{"$f":"IF(Tableau2[[#This Row],[déjà en prêt commande]]=TRUE,\" \",Tableau2[[#This Row],[numéro]]&\" \"&Tableau2[[#This Row],[désignation]])","v":"G33 CHAISE VELOUR MARRON UNI"},{"$f":"Tableau2[[#This Row],[numéro]]&\" \"&Tableau2[[#This Row],[désignation]]","v":"G33 CHAISE VELOUR MARRON UNI"},"H 78 cm x 47 cm assise",100,20,null,{"$f":"IF(Tableau2[[#This Row],[destinataire]]=0,IF(_xlfn.XLOOKUP(Tableau2[[#This Row],[code désignation]],commandecolonne[lisiting commande colonne],commandecolonne[lisiting commande colonne],FALSE)=Tableau2[[#This Row],[code désignation]],TRUE,FALSE),TRUE)","v":false}]
[{"$f":"_xlfn.XLOOKUP(MID(C180,1,1),Type[lettre type],Type[type])","v":"Chaise"},176,"G34",{"$f":"\"https://sico-my.sharepoint.com/personal/julien_carestiato_fondation-ove_fr/Documents/Images/1potiniere/\"&Tableau2[[#This Row],[numéro]]&\".png\"","v":"https://sico-my.sharepoint.com/personal/julien_carestiato_fondation-ove_fr/Documents/Images/1potiniere/G34.png"},null,"CHAISE VELOUR MARRON UNI",{"$f":"IF(Tableau2[[#This Row],[déjà en prêt commande]]=TRUE,\" \",Tableau2[[#This Row],[numéro]]&\" \"&Tableau2[[#This Row],[désignation]])","v":"G34 CHAISE VELOUR MARRON UNI"},{"$f":"Tableau2[[#This Row],[numéro]]&\" \"&Tableau2[[#This Row],[désignation]]","v":"G34 CHAISE VELOUR MARRON UNI"},"H 78 cm x 47 cm assise",100,20,null,{"$f":"IF(Tableau2[[#This Row],[destinataire]]=0,IF(_xlfn.XLOOKUP(Tableau2[[#This Row],[code désignation]],commandecolonne[lisiting commande colonne],commandecolonne[lisiting commande colonne],FALSE)=Tableau2[[#This Row],[code désignation]],TRUE,FALSE),TRUE)","v":false}]
[{"$f":"_xlfn.XLOOKUP(MID(C181,1,1),Type[lettre type],Type[type])","v":"Poubelle"},177,"K1",{"$f":"\"https://sico-my.sharepoint.com/personal/julien_carestiato_fondation-ove_fr/Documents/Images/1potiniere/\"&Tableau2[[#This Row],[numéro]]&\".png\"","v":"https://sico-my.sharepoint.com/personal/julien_carestiato_fondation-ove_fr/Documents/Images/1potiniere/K1.png"},null,"POUBELLE LISERET ARGENTE",{"$f":"IF(Tableau2[[#This Row],[déjà en prêt commande]]=TRUE,\" \",Tableau2[[#This Row],[numéro]]&\" \"&Tableau2[[#This Row],[désignation]])","v":" "},{"$f":"Tableau2[[#This Row],[numéro]]&\" \"&Tableau2[[#This Row],[désignation]]","v":"K1 POUBELLE LISERET ARGENTE"},"H 27 cm / Diamètre 22 cm",0,0,"DITEP ANNECY",{"$f":"IF(Tableau2[[#This Row],[destinataire]]=0,IF(_xlfn.XLOOKUP(Tableau2[[#This Row],[code désignation]],commandecolonne[lisiting commande colonne],commandecolonne[lisiting commande colonne],FALSE)=Tableau2[[#This Row],[code désignation]],TRUE,FALSE),TRUE)","v":true}]
[{"$f":"_xlfn.XLOOKUP(MID(C182,1,1),Type[lettre type],Type[type])","v":"Poubelle"},178,"K2",{"$f":"\"https://sico-my.sharepoint.com/personal/julien_carestiato_fondation-ove_fr/Documents/Images/1potiniere/\"&Tableau2[[#This Row],[numéro]]&\".png\"","v":"https://sico-my.sharepoint.com/personal/julien_carestiato_fondation-ove_fr/Documents/Images/1potiniere/K2.png"},null,"POUBELLE LISERET ARGENTE",{"$f":"IF(Tableau2[[#This Row],[déjà en prêt commande]]=TRUE,\" \",Tableau2[[#This Row],[numéro]]&\" \"&Tableau2[[#This Row],[désignation]])","v":" "},{"$f":"Tableau2[[#This Row],[numéro]]&\" \"&Tableau2[[#This Row],[désignation]]","v":"K2 POUBELLE LISERET ARGENTE"},"H 27 cm / Diamètre 22 cm",0,0,"DITEP ANNECY",{"$f":"IF(Tableau2[[#This Row],[destinataire]]=0,IF(_xlfn.XLOOKUP(Tableau2[[#This Row],[code désignation]],commandecolonne[lisiting commande colonne],commandecolonne[lisiting commande colonne],FALSE)=Tableau2[[#This Row],[code désignation]],TRUE,FALSE),TRUE)","v":true}]
[{"$f":"_xlfn.XLOOKUP(MID(C183,1,1),Type[lettre type],Type[type])","v":"Poubelle"},179,"K3",{"$f":"\"https://sico-my.sharepoint.com/personal/julien_carestiato_fondation-ove_fr/Documents/Images/1potiniere/\"&Tableau2[[#This Row],[numéro]]&\".png\"","v":"https://sico-my.sharepoint.com/personal/julien_carestiato_fondation-ove_fr/Documents/Images/1potiniere/K3.png"},null,"POUBELLE LISERET ARGENTE",{"$f":"IF(Tableau2[[#This Row],[déjà en prêt commande]]=TRUE,\" \",Tableau2[[#This Row],[numéro]]&\" \"&Tableau2[[#This Row],[désignation]])","v":" "},{"$f":"Tableau2[[#This Row],[numéro]]&\" \"&Tableau2[[#This Row],[désignation]]","v":"K3 POUBELLE LISERET ARGENTE"},"H 27 cm / Diamètre 22 cm",0,0,"DITEP ANNECY",{"$f":"IF(Tableau2[[#This Row],[destinataire]]=0,IF(_xlfn.XLOOKUP(Tableau2[[#This Row],[code désignation]],commandecolonne[lisiting commande colonne],commandecolonne[lisiting commande colonne],FALSE)=Tableau2[[#This Row],[code désignation]],TRUE,FALSE),TRUE)","v":true}]
[{"$f":"_xlfn.XLOOKUP(MID(C184,1,1),Type[lettre type],Type[type])","v":"Poubelle"},180,"K4",{"$f":"\"https://sico-my.sharepoint.com/personal/julien_carestiato_fondation-ove_fr/Documents/Images/1potiniere/\"&Tableau2[[#This Row],[numéro]]&\".png\"","v":"https://sico-my.sharepoint.com/personal/julien_carestiato_fondation-ove_fr/Documents/Images/1potiniere/K4.png"},null,"POUBELLE LISERET ARGENTE",{"$f":"IF(Tableau2[[#This Row],[déjà en prêt commande]]=TRUE,\" \",Tableau2[[#This Row],[numéro]]&\" \"&Tableau2[[#This Row],[désignation]])","v":" "},{"$f":"Tableau2[[#This Row],[numéro]]&\" \"&Tableau2[[#This Row],[désignation]]","v":"K4 POUBELLE LISERET ARGENTE"},"H 27 cm / Diamètre 22 cm",0,0,"DITEP ANNECY",{"$f":"IF(Tableau2[[#This Row],[destinataire]]=0,IF(_xlfn.XLOOKUP(Tableau2[[#This Row],[code désignation]],commandecolonne[lisiting commande colonne],commandecolonne[lisiting commande colonne],FALSE)=Tableau2[[#This Row],[code désignation]],TRUE,FALSE),TRUE)","v":true}]
[{"$f":"_xlfn.XLOOKUP(MID(C185,1,1),Type[lettre type],Type[type])","v":"Poubelle"},181,"K5",{"$f":"\"https://sico-my.sharepoint.com/personal/julien_carestiato_fondation-ove_fr/Documents/Images/1potiniere/\"&Tableau2[[#This Row],[numéro]]&\".png\"","v":"https://sico-my.sharepoint.com/personal/julien_carestiato_fondation-ove_fr/Documents/Images/1potiniere/K5.png"},null,"POUBELLE LISERET ARGENTE",{"$f":"IF(Tableau2[[#This Row],[déjà en prêt commande]]=TRUE,\" \",Tableau2[[#This Row],[numéro]]&\" \"&Tableau2[[#This Row],[désignation]])","v":" "},{"$f":"Tableau2[[#This Row],[numéro]]&\" \"&Tableau2[[#This Row],[désignation]]","v":"K5 POUBELLE LISERET ARGENTE"},"H 27 cm / Diamètre 22 cm",0,0,"DITEP ANNECY",{"$f":"IF(Tableau2[[#This Row],[destinataire]]=0,IF(_xlfn.XLOOKUP(Tableau2[[#This Row],[code désignation]],commandecolonne[lisiting commande colonne],commandecolonne[lisiting commande colonne],FALSE)=Tableau2[[#This Row],[code désignation]],TRUE,FALSE),TRUE)","v":true}]
[{"$f":"_xlfn.XLOOKUP(MID(C186,1,1),Type[lettre type],Type[type])","v":"Poubelle"},182,"K6",{"$f":"\"https://sico-my.sharepoint.com/personal/julien_carestiato_fondation-ove_fr/Documents/Images/1potiniere/\"&Tableau2[[#This Row],[numéro]]&\".png\"","v":"https://sico-my.sharepoint.com/personal/julien_carestiato_fondation-ove_fr/Documents/Images/1potiniere/K6.png"},null,"POUBELLE LISERET ARGENTE",{"$f":"IF(Tableau2[[#This Row],[déjà en prêt commande]]=TRUE,\" \",Tableau2[[#This Row],[numéro]]&\" \"&Tableau2[[#This Row],[désignation]])","v":" "},{"$f":"Tableau2[[#This Row],[numéro]]&\" \"&Tableau2[[#This Row],[désignation]]","v":"K6 POUBELLE LISERET ARGENTE"},"H 27 cm / Diamètre 22 cm",0,0,"DITEP ANNECY",{"$f":"IF(Tableau2[[#This Row],[destinataire]]=0,IF(_xlfn.XLOOKUP(Tableau2[[#This Row],[code désignation]],commandecolonne[lisiting commande colonne],commandecolonne[lisiting commande colonne],FALSE)=Tableau2[[#This Row],[code désignation]],TRUE,FALSE),TRUE)","v":true}]
[{"$f":"_xlfn.XLOOKUP(MID(C187,1,1),Type[lettre type],Type[type])","v":"Poubelle"},183,"K7",{"$f":"\"https://sico-my.sharepoint.com/personal/julien_carestiato_fondation-ove_fr/Documents/Images/1potiniere/\"&Tableau2[[#This Row],[numéro]]&\".png\"","v":"https://sico-my.sharepoint.com/personal/julien_carestiato_fondation-ove_fr/Documents/Images/1potiniere/K7.png"},null,"POUBELLE LISERET ARGENTE",{"$f":"IF(Tableau2[[#This Row],[déjà en prêt commande]]=TRUE,\" \",Tableau2[[#This Row],[numéro]]&\" \"&Tableau2[[#This Row],[désignation]])","v":" "},{"$f":"Tableau2[[#This Row],[numéro]]&\" \"&Tableau2[[#This Row],[désignation]]","v":"K7 POUBELLE LISERET ARGENTE"},"H 27 cm / Diamètre 22 cm",0,0,"DITEP ANNECY",{"$f":"IF(Tableau2[[#This Row],[destinataire]]=0,IF(_xlfn.XLOOKUP(Tableau2[[#This Row],[code désignation]],commandecolonne[lisiting commande colonne],commandecolonne[lisiting commande colonne],FALSE)=Tableau2[[#This Row],[code désignation]],TRUE,FALSE),TRUE)","v":true}]
[{"$f":"_xlfn.XLOOKUP(MID(C188,1,1),Type[lettre type],Type[type])","v":"Poubelle"},184,"k8",{"$f":"\"https://sico-my.sharepoint.com/personal/julien_carestiato_fondation-ove_fr/Documents/Images/1potiniere/\"&Tableau2[[#This Row],[numéro]]&\".png\"","v":"https://sico-my.sharepoint.com/personal/julien_carestiato_fondation-ove_fr/Documents/Images/1potiniere/k8.png"},null,"POUBELLE MARRON ASPECT OSIER",{"$f":"IF(Tableau2[[#This Row],[déjà en prêt commande]]=TRUE,\" \",Tableau2[[#This Row],[numéro]]&\" \"&Tableau2[[#This Row],[désignation]])","v":"k8 POUBELLE MARRON ASPECT OSIER"},{"$f":"Tableau2[[#This Row],[numéro]]&\" \"&Tableau2[[#This Row],[désignation]]","v":"k8 POUBELLE MARRON ASPECT OSIER"},"H 30 cm / Diamètre 22 cm",10,2,null,{"$f":"IF(Tableau2[[#This Row],[destinataire]]=0,IF(_xlfn.XLOOKUP(Tableau2[[#This Row],[code désignation]],commandecolonne[lisiting commande colonne],commandecolonne[lisiting commande colonne],FALSE)=Tableau2[[#This Row],[code désignation]],TRUE,FALSE),TRUE)","v":false}]
[{"$f":"_xlfn.XLOOKUP(MID(C189,1,1),Type[lettre type],Type[type])","v":"Poubelle"},185,"k9",{"$f":"\"https://sico-my.sharepoint.com/personal/julien_carestiato_fondation-ove_fr/Documents/Images/1potiniere/\"&Tableau2[[#This Row],[numéro]]&\".png\"","v":"https://sico-my.sharepoint.com/personal/julien_carestiato_fondation-ove_fr/Documents/Images/1potiniere/k9.png"},null,"POUBELLE MARRON ASPECT OSIER",{"$f":"IF(Tableau2[[#This Row],[déjà en prêt commande]]=TRUE,\" \",Tableau2[[#This Row],[numéro]]&\" \"&Tableau2[[#This Row],[désignation]])","v":"k9 POUBELLE MARRON ASPECT OSIER"},{"$f":"Tableau2[[#This Row],[numéro]]&\" \"&Tableau2[[#This Row],[désignation]]","v":"k9 POUBELLE MARRON ASPECT OSIER"},"H 30 cm / Diamètre 22 cm",10,2,null,{"$f":"IF(Tableau2[[#This Row],[destinataire]]=0,IF(_xlfn.XLOOKUP(Tableau2[[#This Row],[code désignation]],commandecolonne[lisiting commande colonne],commandecolonne[lisiting commande colonne],FALSE)=Tableau2[[#This Row],[code désignation]],TRUE,FALSE),TRUE)","v":false}]
[{"$f":"_xlfn.XLOOKUP(MID(C190,1,1),Type[lettre type],Type[type])","v":"Poubelle"},186,"k10",{"$f":"\"https://sico-my.sharepoint.com/personal/julien_carestiato_fondation-ove_fr/Documents/Images/1potiniere/\"&Tableau2[[#This Row],[numéro]]&\".png\"","v":"https://sico-my.sharepoint.com/personal/julien_carestiato_fondation-ove_fr/Documents/Images/1potiniere/k10.png"},null,"POUBELLE MARRON ASPECT OSIER",{"$f":"IF(Tableau2[[#This Row],[déjà en prêt commande]]=TRUE,\" \",Tableau2[[#This Row],[numéro]]&\" \"&Tableau2[[#This Row],[désignation]])","v":"k10 POUBELLE MARRON ASPECT OSIER"},{"$f":"Tableau2[[#This Row],[numéro]]&\" \"&Tableau2[[#This Row],[désignation]]","v":"k10 POUBELLE MARRON ASPECT OSIER"},"H 30 cm / Diamètre 22 cm",10,2,null,{"$f":"IF(Tableau2[[#This Row],[destinataire]]=0,IF(_xlfn.XLOOKUP(Tableau2[[#This Row],[code désignation]],commandecolonne[lisiting commande colonne],commandecolonne[lisiting commande colonne],FALSE)=Tableau2[[#This Row],[code désignation]],TRUE,FALSE),TRUE)","v":false}]
[{"$f":"_xlfn.XLOOKUP(MID(C191,1,1),Type[lettre type],Type[type])","v":"Poubelle"},187,"k11",{"$f":"\"https://sico-my.sharepoint.com/personal/julien_carestiato_fondation-ove_fr/Documents/Images/1potiniere/\"&Tableau2[[#This Row],[numéro]]&\".png\"","v":"https://sico-my.sharepoint.com/personal/julien_carestiato_fondation-ove_fr/Documents/Images/1potiniere/k11.png"},null,"POUBELLE MARRON ASPECT OSIER",{"$f":"IF(Tableau2[[#This Row],[déjà en prêt commande]]=TRUE,\" \",Tableau2[[#This Row],[numéro]]&\" \"&Tableau2[[#This Row],[désignation]])","v":"k11 POUBELLE MARRON ASPECT OSIER"},{"$f":"Tableau2[[#This Row],[numéro]]&\" \"&Tableau2[[#This Row],[désignation]]","v":"k11 POUBELLE MARRON ASPECT OSIER"},"H 30 cm / Diamètre 22 cm",10,2,null,{"$f":"IF(Tableau2[[#This Row],[destinataire]]=0,IF(_xlfn.XLOOKUP(Tableau2[[#This Row],[code désignation]],commandecolonne[lisiting commande colonne],commandecolonne[lisiting commande colonne],FALSE)=Tableau2[[#This Row],[code désignation]],TRUE,FALSE),TRUE)","v":false}]
[{"$f":"_xlfn.XLOOKUP(MID(C192,1,1),Type[lettre type],Type[type])","v":"Poubelle"},188,"K12",{"$f":"\"https://sico-my.sharepoint.com/personal/julien_carestiato_fondation-ove_fr/Documents/Images/1potiniere/\"&Tableau2[[#This Row],[numéro]]&\".png\"","v":"https://sico-my.sharepoint.com/personal/julien_carestiato_fondation-ove_fr/Documents/Images/1potiniere/K12.png"},null,"POUBELLE NOIR ASPECT OSIER",{"$f":"IF(Tableau2[[#This Row],[déjà en prêt commande]]=TRUE,\" \",Tableau2[[#This Row],[numéro]]&\" \"&Tableau2[[#This Row],[désignation]])","v":" "},{"$f":"Tableau2[[#This Row],[numéro]]&\" \"&Tableau2[[#This Row],[désignation]]","v":"K12 POUBELLE NOIR ASPECT OSIER"},"H 30 cm / Diamètre 22 cm",10,2,"K12 à K14 DITEP ANNECY",{"$f":"IF(Tableau2[[#This Row],[destinataire]]=0,IF(_xlfn.XLOOKUP(Tableau2[[#This Row],[code désignation]],commandecolonne[lisiting commande colonne],commandecolonne[lisiting commande colonne],FALSE)=Tableau2[[#This Row],[code désignation]],TRUE,FALSE),TRUE)","v":true}]
[{"$f":"_xlfn.XLOOKUP(MID(C193,1,1),Type[lettre type],Type[type])","v":"Poubelle"},189,"K13",{"$f":"\"https://sico-my.sharepoint.com/personal/julien_carestiato_fondation-ove_fr/Documents/Images/1potiniere/\"&Tableau2[[#This Row],[numéro]]&\".png\"","v":"https://sico-my.sharepoint.com/personal/julien_carestiato_fondation-ove_fr/Documents/Images/1potiniere/K13.png"},null,"POUBELLE NOIR ASPECT OSIER",{"$f":"IF(Tableau2[[#This Row],[déjà en prêt commande]]=TRUE,\" \",Tableau2[[#This Row],[numéro]]&\" \"&Tableau2[[#This Row],[désignation]])","v":" "},{"$f":"Tableau2[[#This Row],[numéro]]&\" \"&Tableau2[[#This Row],[désignation]]","v":"K13 POUBELLE NOIR ASPECT OSIER"},"H 30 cm / Diamètre 22 cm",10,2,"K12 à K14 DITEP ANNECY",{"$f":"IF(Tableau2[[#This Row],[destinataire]]=0,IF(_xlfn.XLOOKUP(Tableau2[[#This Row],[code désignation]],commandecolonne[lisiting commande colonne],commandecolonne[lisiting commande colonne],FALSE)=Tableau2[[#This Row],[code désignation]],TRUE,FALSE),TRUE)","v":true}]
[{"$f":"_xlfn.XLOOKUP(MID(C194,1,1),Type[lettre type],Type[type])","v":"Poubelle"},190,"K14",{"$f":"\"https://sico-my.sharepoint.com/personal/julien_carestiato_fondation-ove_fr/Documents/Images/1potiniere/\"&Tableau2[[#This Row],[numéro]]&\".png\"","v":"https://sico-my.sharepoint.com/personal/julien_carestiato_fondation-ove_fr/Documents/Images/1potiniere/K14.png"},null,"POUBELLE NOIR ASPECT OSIER",{"$f":"IF(Tableau2[[#This Row],[déjà en prêt commande]]=TRUE,\" \",Tableau2[[#This Row],[numéro]]&\" \"&Tableau2[[#This Row],[désignation]])","v":" "},{"$f":"Tableau2[[#This Row],[numéro]]&\" \"&Tableau2[[#This Row],[désignation]]","v":"K14 POUBELLE NOIR ASPECT OSIER"},"H 30 cm / Diamètre 22 cm",10,2,"K12 à K14 DITEP ANNECY",{"$f":"IF(Tableau2[[#This Row],[destinataire]]=0,IF(_xlfn.XLOOKUP(Tableau2[[#This Row],[code désignation]],commandecolonne[lisiting commande colonne],commandecolonne[lisiting commande colonne],FALSE)=Tableau2[[#This Row],[code désignation]],TRUE,FALSE),TRUE)","v":true}]
[{"$f":"_xlfn.XLOOKUP(MID(C195,1,1),Type[lettre type],Type[type])","v":"Poubelle"},191,"K15",{"$f":"\"https://sico-my.sharepoint.com/personal/julien_carestiato_fondation-ove_fr/Documents/Images/1potiniere/\"&Tableau2[[#This Row],[numéro]]&\".png\"","v":"https://sico-my.sharepoint.com/personal/julien_carestiato_fondation-ove_fr/Documents/Images/1potiniere/K15.png"},null,"POUBELLE NOIR ASPECT OSIER",{"$f":"IF(Tableau2[[#This Row],[déjà en prêt commande]]=TRUE,\" \",Tableau2[[#This Row],[numéro]]&\" \"&Tableau2[[#This Row],[désignation]])","v":" "},{"$f":"Tableau2[[#This Row],[numéro]]&\" \"&Tableau2[[#This Row],[désignation]]","v":"K15 POUBELLE NOIR ASPECT OSIER"},"H 30 cm / Diamètre 22 cm",10,2,"K12 à K14 DITEP ANNECY",{"$f":"IF(Tableau2[[#This Row],[destinataire]]=0,IF(_xlfn.XLOOKUP(Tableau2[[#This Row],[code désignation]],commandecolonne[lisiting commande colonne],commandecolonne[lisiting commande colonne],FALSE)=Tableau2[[#This Row],[code désignation]],TRUE,FALSE),TRUE)","v":true}]
[{"$f":"_xlfn.XLOOKUP(MID(C196,1,1),Type[lettre type],Type[type])","v":"Poubelle"},192,"K16",{"$f":"\"https://sico-my.sharepoint.com/personal/julien_carestiato_fondation-ove_fr/Documents/Images/1potiniere/\"&Tableau2[[#This Row],[numéro]]&\".png\"","v":"https://sico-my.sharepoint.com/personal/julien_carestiato_fondation-ove_fr/Documents/Images/1potiniere/K16.png"},null,"POUBELLE NOIR ASPECT OSIER",{"$f":"IF(Tableau2[[#This Row],[déjà en prêt commande]]=TRUE,\" \",Tableau2[[#This Row],[numéro]]&\" \"&Tableau2[[#This Row],[désignation]])","v":"K16 POUBELLE NOIR ASPECT OSIER"},{"$f":"Tableau2[[#This Row],[numéro]]&\" \"&Tableau2[[#This Row],[désignation]]","v":"K16 POUBELLE NOIR ASPECT OSIER"},"H 30 cm / Diamètre 22 cm",10,2,null,{"$f":"IF(Tableau2[[#This Row],[destinataire]]=0,IF(_xlfn.XLOOKUP(Tableau2[[#This Row],[code désignation]],commandecolonne[lisiting commande colonne],commandecolonne[lisiting commande colonne],FALSE)=Tableau2[[#This Row],[code désignation]],TRUE,FALSE),TRUE)","v":false}]
[{"$f":"_xlfn.XLOOKUP(MID(C197,1,1),Type[lettre type],Type[type])","v":"Poubelle"},193,"K17",{"$f":"\"https://sico-my.sharepoint.com/personal/julien_carestiato_fondation-ove_fr/Documents/Images/1potiniere/\"&Tableau2[[#This Row],[numéro]]&\".png\"","v":"https://sico-my.sharepoint.com/personal/julien_carestiato_fondation-ove_fr/Documents/Images/1potiniere/K17.png"},null,"POUBELLE NOIR ASPECT OSIER",{"$f":"IF(Tableau2[[#This Row],[déjà en prêt commande]]=TRUE,\" \",Tableau2[[#This Row],[numéro]]&\" \"&Tableau2[[#This Row],[désignation]])","v":"K17 POUBELLE NOIR ASPECT OSIER"},{"$f":"Tableau2[[#This Row],[numéro]]&\" \"&Tableau2[[#This Row],[désignation]]","v":"K17 POUBELLE NOIR ASPECT OSIER"},"H 30 cm / Diamètre 22 cm",10,2,null,{"$f":"IF(Tableau2[[#This Row],[destinataire]]=0,IF(_xlfn.XLOOKUP(Tableau2[[#This Row],[code désignation]],commandecolonne[lisiting commande colonne],commandecolonne[lisiting commande colonne],FALSE)=Tableau2[[#This Row],[code désignation]],TRUE,FALSE),TRUE)","v":false}]
[{"$f":"_xlfn.XLOOKUP(MID(C198,1,1),Type[lettre type],Type[type])","v":"Poubelle"},194,"K18",{"$f":"\"https://sico-my.sharepoint.com/personal/julien_carestiato_fondation-ove_fr/Documents/Images/1potiniere/\"&Tableau2[[#This Row],[numéro]]&\".png\"","v":"https://sico-my.sharepoint.com/personal/julien_carestiato_fondation-ove_fr/Documents/Images/1potiniere/K18.png"},null,"POUBELLE NOIR ASPECT OSIER",{"$f":"IF(Tableau2[[#This Row],[déjà en prêt commande]]=TRUE,\" \",Tableau2[[#This Row],[numéro]]&\" \"&Tableau2[[#This Row],[désignation]])","v":"K18 POUBELLE NOIR ASPECT OSIER"},{"$f":"Tableau2[[#This Row],[numéro]]&\" \"&Tableau2[[#This Row],[désignation]]","v":"K18 POUBELLE NOIR ASPECT OSIER"},"H 30 cm / Diamètre 22 cm",10,2,null,{"$f":"IF(Tableau2[[#This Row],[destinataire]]=0,IF(_xlfn.XLOOKUP(Tableau2[[#This Row],[code désignation]],commandecolonne[lisiting commande colonne],commandecolonne[lisiting commande colonne],FALSE)=Tableau2[[#This Row],[code désignation]],TRUE,FALSE),TRUE)","v":false}]
[{"$f":"_xlfn.XLOOKUP(MID(C199,1,1),Type[lettre type],Type[type])","v":"Poubelle"},195,"K19",{"$f":"\"https://sico-my.sharepoint.com/personal/julien_carestiato_fondation-ove_fr/Documents/Images/1potiniere/\"&Tableau2[[#This Row],[numéro]]&\".png\"","v":"https://sico-my.sharepoint.com/personal/julien_carestiato_fondation-ove_fr/Documents/Images/1potiniere/K19.png"},null,"POUBELLE NOIR ASPECT OSIER",{"$f":"IF(Tableau2[[#This Row],[déjà en prêt commande]]=TRUE,\" \",Tableau2[[#This Row],[numéro]]&\" \"&Tableau2[[#This Row],[désignation]])","v":"K19 POUBELLE NOIR ASPECT OSIER"},{"$f":"Tableau2[[#This Row],[numéro]]&\" \"&Tableau2[[#This Row],[désignation]]","v":"K19 POUBELLE NOIR ASPECT OSIER"},"H 30 cm / Diamètre 22 cm",10,2,null,{"$f":"IF(Tableau2[[#This Row],[destinataire]]=0,IF(_xlfn.XLOOKUP(Tableau2[[#This Row],[code désignation]],commandecolonne[lisiting commande colonne],commandecolonne[lisiting commande colonne],FALSE)=Tableau2[[#This Row],[code désignation]],TRUE,FALSE),TRUE)","v":false}]
[{"$f":"_xlfn.XLOOKUP(MID(C200,1,1),Type[lettre type],Type[type])","v":"Poubelle"},196,"K20",{"$f":"\"https://sico-my.sharepoint.com/personal/julien_carestiato_fondation-ove_fr/Documents/Images/1potiniere/\"&Tableau2[[#This Row],[numéro]]&\".png\"","v":"https://sico-my.sharepoint.com/personal/julien_carestiato_fondation-ove_fr/Documents/Images/1potiniere/K20.png"},null,"POUBELLE NOIR ASPECT OSIER",{"$f":"IF(Tableau2[[#This Row],[déjà en prêt commande]]=TRUE,\" \",Tableau2[[#This Row],[numéro]]&\" \"&Tableau2[[#This Row],[désignation]])","v":"K20 POUBELLE NOIR ASPECT OSIER"},{"$f":"Tableau2[[#This Row],[numéro]]&\" \"&Tableau2[[#This Row],[désignation]]","v":"K20 POUBELLE NOIR ASPECT OSIER"},"H 30 cm / Diamètre 22 cm",10,2,null,{"$f":"IF(Tableau2[[#This Row],[destinataire]]=0,IF(_xlfn.XLOOKUP(Tableau2[[#This Row],[code désignation]],commandecolonne[lisiting commande colonne],commandecolonne[lisiting commande colonne],FALSE)=Tableau2[[#This Row],[code désignation]],TRUE,FALSE),TRUE)","v":false}]
[{"$f":"_xlfn.XLOOKUP(MID(C201,1,1),Type[lettre type],Type[type])","v":"Poubelle"},197,"K21",{"$f":"\"https://sico-my.sharepoint.com/personal/julien_carestiato_fondation-ove_fr/Documents/Images/1potiniere/\"&Tableau2[[#This Row],[numéro]]&\".png\"","v":"https://sico-my.sharepoint.com/personal/julien_carestiato_fondation-ove_fr/Documents/Images/1potiniere/K21.png"},null,"POUBELLE NOIR ASPECT OSIER",{"$f":"IF(Tableau2[[#This Row],[déjà en prêt commande]]=TRUE,\" \",Tableau2[[#This Row],[numéro]]&\" \"&Tableau2[[#This Row],[désignation]])","v":"K21 POUBELLE NOIR ASPECT OSIER"},{"$f":"Tableau2[[#This Row],[numéro]]&\" \"&Tableau2[[#This Row],[désignation]]","v":"K21 POUBELLE NOIR ASPECT OSIER"},"H 30 cm / Diamètre 22 cm",10,2,null,{"$f":"IF(Tableau2[[#This Row],[destinataire]]=0,IF(_xlfn.XLOOKUP(Tableau2[[#This Row],[code désignation]],commandecolonne[lisiting commande colonne],commandecolonne[lisiting commande colonne],FALSE)=Tableau2[[#This Row],[code désignation]],TRUE,FALSE),TRUE)","v":false}]
[{"$f":"_xlfn.XLOOKUP(MID(C202,1,1),Type[lettre type],Type[type])","v":"Poubelle"},198,"K22",{"$f":"\"https://sico-my.sharepoint.com/personal/julien_carestiato_fondation-ove_fr/Documents/Images/1potiniere/\"&Tableau2[[#This Row],[numéro]]&\".png\"","v":"https://sico-my.sharepoint.com/personal/julien_carestiato_fondation-ove_fr/Documents/Images/1potiniere/K22.png"},null,"POUBELLE NOIR ASPECT OSIER",{"$f":"IF(Tableau2[[#This Row],[déjà en prêt commande]]=TRUE,\" \",Tableau2[[#This Row],[numéro]]&\" \"&Tableau2[[#This Row],[désignation]])","v":"K22 POUBELLE NOIR ASPECT OSIER"},{"$f":"Tableau2[[#This Row],[numéro]]&\" \"&Tableau2[[#This Row],[désignation]]","v":"K22 POUBELLE NOIR ASPECT OSIER"},"H 30 cm / Diamètre 22 cm",10,2,null,{"$f":"IF(Tableau2[[#This Row],[destinataire]]=0,IF(_xlfn.XLOOKUP(Tableau2[[#This Row],[code désignation]],commandecolonne[lisiting commande colonne],commandecolonne[lisiting commande colonne],FALSE)=Tableau2[[#This Row],[code désignation]],TRUE,FALSE),TRUE)","v":false}]
[{"$f":"_xlfn.XLOOKUP(MID(C203,1,1),Type[lettre type],Type[type])","v":"Poubelle"},199,"K23",{"$f":"\"https://sico-my.sharepoint.com/personal/julien_carestiato_fondation-ove_fr/Documents/Images/1potiniere/\"&Tableau2[[#This Row],[numéro]]&\".png\"","v":"https://sico-my.sharepoint.com/personal/julien_carestiato_fondation-ove_fr/Documents/Images/1potiniere/K23.png"},null,"POUBELLE NOIR ASPECT OSIER",{"$f":"IF(Tableau2[[#This Row],[déjà en prêt commande]]=TRUE,\" \",Tableau2[[#This Row],[numéro]]&\" \"&Tableau2[[#This Row],[désignation]])","v":"K23 POUBELLE NOIR ASPECT OSIER"},{"$f":"Tableau2[[#This Row],[numéro]]&\" \"&Tableau2[[#This Row],[désignation]]","v":"K23 POUBELLE NOIR ASPECT OSIER"},"H 30 cm / Diamètre 22 cm",10,2,null,{"$f":"IF(Tableau2[[#This Row],[destinataire]]=0,IF(_xlfn.XLOOKUP(Tableau2[[#This Row],[code désignation]],commandecolonne[lisiting commande colonne],commandecolonne[lisiting commande colonne],FALSE)=Tableau2[[#This Row],[code désignation]],TRUE,FALSE),TRUE)","v":false}]
[{"$f":"_xlfn.XLOOKUP(MID(C204,1,1),Type[lettre type],Type[type])","v":"Poubelle"},200,"K24",{"$f":"\"https://sico-my.sharepoint.com/personal/julien_carestiato_fondation-ove_fr/Documents/Images/1potiniere/\"&Tableau2[[#This Row],[numéro]]&\".png\"","v":"https://sico-my.sharepoint.com/personal/julien_carestiato_fondation-ove_fr/Documents/Images/1potiniere/K24.png"},null,"POUBELLE NOIR ASPECT OSIER",{"$f":"IF(Tableau2[[#This Row],[déjà en prêt commande]]=TRUE,\" \",Tableau2[[#This Row],[numéro]]&\" \"&Tableau2[[#This Row],[désignation]])","v":"K24 POUBELLE NOIR ASPECT OSIER"},{"$f":"Tableau2[[#This Row],[numéro]]&\" \"&Tableau2[[#This Row],[désignation]]","v":"K24 POUBELLE NOIR ASPECT OSIER"},"H 30 cm / Diamètre 22 cm",10,2,null,{"$f":"IF(Tableau2[[#This Row],[destinataire]]=0,IF(_xlfn.XLOOKUP(Tableau2[[#This Row],[code désignation]],commandecolonne[lisiting commande colonne],commandecolonne[lisiting commande colonne],FALSE)=Tableau2[[#This Row],[code désignation]],TRUE,FALSE),TRUE)","v":false}]
[{"$f":"_xlfn.XLOOKUP(MID(C205,1,1),Type[lettre type],Type[type])","v":"Poubelle"},201,"K25",{"$f":"\"https://sico-my.sharepoint.com/personal/julien_carestiato_fondation-ove_fr/Documents/Images/1potiniere/\"&Tableau2[[#This Row],[numéro]]&\".png\"","v":"https://sico-my.sharepoint.com/personal/julien_carestiato_fondation-ove_fr/Documents/Images/1potiniere/K25.png"},null,"POUBELLE NOIR ASPECT OSIER",{"$f":"IF(Tableau2[[#This Row],[déjà en prêt commande]]=TRUE,\" \",Tableau2[[#This Row],[numéro]]&\" \"&Tableau2[[#This Row],[désignation]])","v":"K25 POUBELLE NOIR ASPECT OSIER"},{"$f":"Tableau2[[#This Row],[numéro]]&\" \"&Tableau2[[#This Row],[désignation]]","v":"K25 POUBELLE NOIR ASPECT OSIER"},"H 30 cm / Diamètre 22 cm",10,2,null,{"$f":"IF(Tableau2[[#This Row],[destinataire]]=0,IF(_xlfn.XLOOKUP(Tableau2[[#This Row],[code désignation]],commandecolonne[lisiting commande colonne],commandecolonne[lisiting commande colonne],FALSE)=Tableau2[[#This Row],[code désignation]],TRUE,FALSE),TRUE)","v":false}]
[{"$f":"_xlfn.XLOOKUP(MID(C206,1,1),Type[lettre type],Type[type])","v":"Poubelle"},202,"K26",{"$f":"\"https://sico-my.sharepoint.com/personal/julien_carestiato_fondation-ove_fr/Documents/Images/1potiniere/\"&Tableau2[[#This Row],[numéro]]&\".png\"","v":"https://sico-my.sharepoint.com/personal/julien_carestiato_fondation-ove_fr/Documents/Images/1potiniere/K26.png"},null,"POUBELLE NOIR ASPECT OSIER",{"$f":"IF(Tableau2[[#This Row],[déjà en prêt commande]]=TRUE,\" \",Tableau2[[#This Row],[numéro]]&\" \"&Tableau2[[#This Row],[désignation]])","v":"K26 POUBELLE NOIR ASPECT OSIER"},{"$f":"Tableau2[[#This Row],[numéro]]&\" \"&Tableau2[[#This Row],[désignation]]","v":"K26 POUBELLE NOIR ASPECT OSIER"},"H 30 cm / Diamètre 22 cm",10,2,null,{"$f":"IF(Tableau2[[#This Row],[destinataire]]=0,IF(_xlfn.XLOOKUP(Tableau2[[#This Row],[code désignation]],commandecolonne[lisiting commande colonne],commandecolonne[lisiting commande colonne],FALSE)=Tableau2[[#This Row],[code désignation]],TRUE,FALSE),TRUE)","v":false}]
[{"$f":"_xlfn.XLOOKUP(MID(C207,1,1),Type[lettre type],Type[type])","v":"Poubelle"},203,"K27",{"$f":"\"https://sico-my.sharepoint.com/personal/julien_carestiato_fondation-ove_fr/Documents/Images/1potiniere/\"&Tableau2[[#This Row],[numéro]]&\".png\"","v":"https://sico-my.sharepoint.com/personal/julien_carestiato_fondation-ove_fr/Documents/Images/1potiniere/K27.png"},null,"POUBELLE NOIR ASPECT OSIER",{"$f":"IF(Tableau2[[#This Row],[déjà en prêt commande]]=TRUE,\" \",Tableau2[[#This Row],[numéro]]&\" \"&Tableau2[[#This Row],[désignation]])","v":"K27 POUBELLE NOIR ASPECT OSIER"},{"$f":"Tableau2[[#This Row],[numéro]]&\" \"&Tableau2[[#This Row],[désignation]]","v":"K27 POUBELLE NOIR ASPECT OSIER"},"H 30 cm / Diamètre 22 cm",10,2,null,{"$f":"IF(Tableau2[[#This Row],[destinataire]]=0,IF(_xlfn.XLOOKUP(Tableau2[[#This Row],[code désignation]],commandecolonne[lisiting commande colonne],commandecolonne[lisiting commande colonne],FALSE)=Tableau2[[#This Row],[code désignation]],TRUE,FALSE),TRUE)","v":false}]
[{"$f":"_xlfn.XLOOKUP(MID(C208,1,1),Type[lettre type],Type[type])","v":"Poubelle"},204,"K28",{"$f":"\"https://sico-my.sharepoint.com/personal/julien_carestiato_fondation-ove_fr/Documents/Images/1potiniere/\"&Tableau2[[#This Row],[numéro]]&\".png\"","v":"https://sico-my.sharepoint.com/personal/julien_carestiato_fondation-ove_fr/Documents/Images/1potiniere/K28.png"},null,"POUBELLE NOIR ASPECT OSIER",{"$f":"IF(Tableau2[[#This Row],[déjà en prêt commande]]=TRUE,\" \",Tableau2[[#This Row],[numéro]]&\" \"&Tableau2[[#This Row],[désignation]])","v":"K28 POUBELLE NOIR ASPECT OSIER"},{"$f":"Tableau2[[#This Row],[numéro]]&\" \"&Tableau2[[#This Row],[désignation]]","v":"K28 POUBELLE NOIR ASPECT OSIER"},"H 30 cm / Diamètre 22 cm",10,2,null,{"$f":"IF(Tableau2[[#This Row],[destinataire]]=0,IF(_xlfn.XLOOKUP(Tableau2[[#This Row],[code désignation]],commandecolonne[lisiting commande colonne],commandecolonne[lisiting commande colonne],FALSE)=Tableau2[[#This Row],[code désignation]],TRUE,FALSE),TRUE)","v":false}]
[{"$f":"_xlfn.XLOOKUP(MID(C209,1,1),Type[lettre type],Type[type])","v":"Poubelle"},205,"K29",{"$f":"\"https://sico-my.sharepoint.com/personal/julien_carestiato_fondation-ove_fr/Documents/Images/1potiniere/\"&Tableau2[[#This Row],[numéro]]&\".png\"","v":"https://sico-my.sharepoint.com/personal/julien_carestiato_fondation-ove_fr/Documents/Images/1potiniere/K29.png"},null,"POUBELLE NOIR ASPECT OSIER",{"$f":"IF(Tableau2[[#This Row],[déjà en prêt commande]]=TRUE,\" \",Tableau2[[#This Row],[numéro]]&\" \"&Tableau2[[#This Row],[désignation]])","v":"K29 POUBELLE NOIR ASPECT OSIER"},{"$f":"Tableau2[[#This Row],[numéro]]&\" \"&Tableau2[[#This Row],[désignation]]","v":"K29 POUBELLE NOIR ASPECT OSIER"},"H 30 cm / Diamètre 22 cm",10,2,null,{"$f":"IF(Tableau2[[#This Row],[destinataire]]=0,IF(_xlfn.XLOOKUP(Tableau2[[#This Row],[code désignation]],commandecolonne[lisiting commande colonne],commandecolonne[lisiting commande colonne],FALSE)=Tableau2[[#This Row],[code désignation]],TRUE,FALSE),TRUE)","v":false}]
[{"$f":"_xlfn.XLOOKUP(MID(C210,1,1),Type[lettre type],Type[type])","v":"Poubelle"},206,"K30",{"$f":"\"https://sico-my.sharepoint.com/personal/julien_carestiato_fondation-ove_fr/Documents/Images/1potiniere/\"&Tableau2[[#This Row],[numéro]]&\".png\"","v":"https://sico-my.sharepoint.com/personal/julien_carestiato_fondation-ove_fr/Documents/Images/1potiniere/K30.png"},null,"POUBELLE NOIR ASPECT OSIER",{"$f":"IF(Tableau2[[#This Row],[déjà en prêt commande]]=TRUE,\" \",Tableau2[[#This Row],[numéro]]&\" \"&Tableau2[[#This Row],[désignation]])","v":"K30 POUBELLE NOIR ASPECT OSIER"},{"$f":"Tableau2[[#This Row],[numéro]]&\" \"&Tableau2[[#This Row],[désignation]]","v":"K30 POUBELLE NOIR ASPECT OSIER"},"H 30 cm / Diamètre 22 cm",10,2,null,{"$f":"IF(Tableau2[[#This Row],[destinataire]]=0,IF(_xlfn.XLOOKUP(Tableau2[[#This Row],[code désignation]],commandecolonne[lisiting commande colonne],commandecolonne[lisiting commande colonne],FALSE)=Tableau2[[#This Row],[code désignation]],TRUE,FALSE),TRUE)","v":false}]
[{"$f":"_xlfn.XLOOKUP(MID(C211,1,1),Type[lettre type],Type[type])","v":"Poubelle"},207,"K31",{"$f":"\"https://sico-my.sharepoint.com/personal/julien_carestiato_fondation-ove_fr/Documents/Images/1potiniere/\"&Tableau2[[#This Row],[numéro]]&\".png\"","v":"https://sico-my.sharepoint.com/personal/julien_carestiato_fondation-ove_fr/Documents/Images/1potiniere/K31.png"},null,"POUBELLE NOIR ASPECT OSIER",{"$f":"IF(Tableau2[[#This Row],[déjà en prêt commande]]=TRUE,\" \",Tableau2[[#This Row],[numéro]]&\" \"&Tableau2[[#This Row],[désignation]])","v":"K31 POUBELLE NOIR ASPECT OSIER"},{"$f":"Tableau2[[#This Row],[numéro]]&\" \"&Tableau2[[#This Row],[désignation]]","v":"K31 POUBELLE NOIR ASPECT OSIER"},"H 30 cm / Diamètre 22 cm",10,2,null,{"$f":"IF(Tableau2[[#This Row],[destinataire]]=0,IF(_xlfn.XLOOKUP(Tableau2[[#This Row],[code désignation]],commandecolonne[lisiting commande colonne],commandecolonne[lisiting commande colonne],FALSE)=Tableau2[[#This Row],[code désignation]],TRUE,FALSE),TRUE)","v":false}]
[{"$f":"_xlfn.XLOOKUP(MID(C212,1,1),Type[lettre type],Type[type])","v":"Poubelle"},208,"K32",{"$f":"\"https://sico-my.sharepoint.com/personal/julien_carestiato_fondation-ove_fr/Documents/Images/1potiniere/\"&Tableau2[[#This Row],[numéro]]&\".png\"","v":"https://sico-my.sharepoint.com/personal/julien_carestiato_fondation-ove_fr/Documents/Images/1potiniere/K32.png"},null,"POUBELLE NOIR ASPECT OSIER",{"$f":"IF(Tableau2[[#This Row],[déjà en prêt commande]]=TRUE,\" \",Tableau2[[#This Row],[numéro]]&\" \"&Tableau2[[#This Row],[désignation]])","v":"K32 POUBELLE NOIR ASPECT OSIER"},{"$f":"Tableau2[[#This Row],[numéro]]&\" \"&Tableau2[[#This Row],[désignation]]","v":"K32 POUBELLE NOIR ASPECT OSIER"},"H 30 cm / Diamètre 22 cm",10,2,null,{"$f":"IF(Tableau2[[#This Row],[destinataire]]=0,IF(_xlfn.XLOOKUP(Tableau2[[#This Row],[code désignation]],commandecolonne[lisiting commande colonne],commandecolonne[lisiting commande colonne],FALSE)=Tableau2[[#This Row],[code désignation]],TRUE,FALSE),TRUE)","v":false}]
[{"$f":"_xlfn.XLOOKUP(MID(C213,1,1),Type[lettre type],Type[type])","v":"Poubelle"},209,"K33",{"$f":"\"https://sico-my.sharepoint.com/personal/julien_carestiato_fondation-ove_fr/Documents/Images/1potiniere/\"&Tableau2[[#This Row],[numéro]]&\".png\"","v":"https://sico-my.sharepoint.com/personal/julien_carestiato_fondation-ove_fr/Documents/Images/1potiniere/K33.png"},null,"POUBELLE NOIR ASPECT OSIER",{"$f":"IF(Tableau2[[#This Row],[déjà en prêt commande]]=TRUE,\" \",Tableau2[[#This Row],[numéro]]&\" \"&Tableau2[[#This Row],[désignation]])","v":"K33 POUBELLE NOIR ASPECT OSIER"},{"$f":"Tableau2[[#This Row],[numéro]]&\" \"&Tableau2[[#This Row],[désignation]]","v":"K33 POUBELLE NOIR ASPECT OSIER"},"H 30 cm / Diamètre 22 cm",10,2,null,{"$f":"IF(Tableau2[[#This Row],[destinataire]]=0,IF(_xlfn.XLOOKUP(Tableau2[[#This Row],[code désignation]],commandecolonne[lisiting commande colonne],commandecolonne[lisiting commande colonne],FALSE)=Tableau2[[#This Row],[code désignation]],TRUE,FALSE),TRUE)","v":false}]
[{"$f":"_xlfn.XLOOKUP(MID(C214,1,1),Type[lettre type],Type[type])","v":"Poubelle"},210,"K34",{"$f":"\"https://sico-my.sharepoint.com/personal/julien_carestiato_fondation-ove_fr/Documents/Images/1potiniere/\"&Tableau2[[#This Row],[numéro]]&\".png\"","v":"https://sico-my.sharepoint.com/personal/julien_carestiato_fondation-ove_fr/Documents/Images/1potiniere/K34.png"},null,"POUBELLE NOIR ASPECT OSIER",{"$f":"IF(Tableau2[[#This Row],[déjà en prêt commande]]=TRUE,\" \",Tableau2[[#This Row],[numéro]]&\" \"&Tableau2[[#This Row],[désignation]])","v":"K34 POUBELLE NOIR ASPECT OSIER"},{"$f":"Tableau2[[#This Row],[numéro]]&\" \"&Tableau2[[#This Row],[désignation]]","v":"K34 POUBELLE NOIR ASPECT OSIER"},"H 30 cm / Diamètre 22 cm",10,2,null,{"$f":"IF(Tableau2[[#This Row],[destinataire]]=0,IF(_xlfn.XLOOKUP(Tableau2[[#This Row],[code désignation]],commandecolonne[lisiting commande colonne],commandecolonne[lisiting commande colonne],FALSE)=Tableau2[[#This Row],[code désignation]],TRUE,FALSE),TRUE)","v":false}]
[{"$f":"_xlfn.XLOOKUP(MID(C215,1,1),Type[lettre type],Type[type])","v":"Poubelle"},211,"K35",{"$f":"\"https://sico-my.sharepoint.com/personal/julien_carestiato_fondation-ove_fr/Documents/Images/1potiniere/\"&Tableau2[[#This Row],[numéro]]&\".png\"","v":"https://sico-my.sharepoint.com/personal/julien_carestiato_fondation-ove_fr/Documents/Images/1potiniere/K35.png"},null,"POUBELLE NOIR ASPECT OSIER",{"$f":"IF(Tableau2[[#This Row],[déjà en prêt commande]]=TRUE,\" \",Tableau2[[#This Row],[numéro]]&\" \"&Tableau2[[#This Row],[désignation]])","v":"K35 POUBELLE NOIR ASPECT OSIER"},{"$f":"Tableau2[[#This Row],[numéro]]&\" \"&Tableau2[[#This Row],[désignation]]","v":"K35 POUBELLE NOIR ASPECT OSIER"},"H 30 cm / Diamètre 22 cm",10,2,null,{"$f":"IF(Tableau2[[#This Row],[destinataire]]=0,IF(_xlfn.XLOOKUP(Tableau2[[#This Row],[code désignation]],commandecolonne[lisiting commande colonne],commandecolonne[lisiting commande colonne],FALSE)=Tableau2[[#This Row],[code désignation]],TRUE,FALSE),TRUE)","v":false}]
[{"$f":"_xlfn.XLOOKUP(MID(C216,1,1),Type[lettre type],Type[type])","v":"Poubelle"},212,"K36",{"$f":"\"https://sico-my.sharepoint.com/personal/julien_carestiato_fondation-ove_fr/Documents/Images/1potiniere/\"&Tableau2[[#This Row],[numéro]]&\".png\"","v":"https://sico-my.sharepoint.com/personal/julien_carestiato_fondation-ove_fr/Documents/Images/1potiniere/K36.png"},null,"POUBELLE NOIR ASPECT OSIER",{"$f":"IF(Tableau2[[#This Row],[déjà en prêt commande]]=TRUE,\" \",Tableau2[[#This Row],[numéro]]&\" \"&Tableau2[[#This Row],[désignation]])","v":"K36 POUBELLE NOIR ASPECT OSIER"},{"$f":"Tableau2[[#This Row],[numéro]]&\" \"&Tableau2[[#This Row],[désignation]]","v":"K36 POUBELLE NOIR ASPECT OSIER"},"H 30 cm / Diamètre 22 cm",10,2,null,{"$f":"IF(Tableau2[[#This Row],[destinataire]]=0,IF(_xlfn.XLOOKUP(Tableau2[[#This Row],[code désignation]],commandecolonne[lisiting commande colonne],commandecolonne[lisiting commande colonne],FALSE)=Tableau2[[#This Row],[code désignation]],TRUE,FALSE),TRUE)","v":false}]
[{"$f":"_xlfn.XLOOKUP(MID(C217,1,1),Type[lettre type],Type[type])","v":"Poubelle"},213,"K37",{"$f":"\"https://sico-my.sharepoint.com/personal/julien_carestiato_fondation-ove_fr/Documents/Images/1potiniere/\"&Tableau2[[#This Row],[numéro]]&\".png\"","v":"https://sico-my.sharepoint.com/personal/julien_carestiato_fondation-ove_fr/Documents/Images/1potiniere/K37.png"},null,"POUBELLE NOIR ASPECT OSIER",{"$f":"IF(Tableau2[[#This Row],[déjà en prêt commande]]=TRUE,\" \",Tableau2[[#This Row],[numéro]]&\" \"&Tableau2[[#This Row],[désignation]])","v":"K37 POUBELLE NOIR ASPECT OSIER"},{"$f":"Tableau2[[#This Row],[numéro]]&\" \"&Tableau2[[#This Row],[désignation]]","v":"K37 POUBELLE NOIR ASPECT OSIER"},"H 30 cm / Diamètre 22 cm",10,2,null,{"$f":"IF(Tableau2[[#This Row],[destinataire]]=0,IF(_xlfn.XLOOKUP(Tableau2[[#This Row],[code désignation]],commandecolonne[lisiting commande colonne],commandecolonne[lisiting commande colonne],FALSE)=Tableau2[[#This Row],[code désignation]],TRUE,FALSE),TRUE)","v":false}]
[{"$f":"_xlfn.XLOOKUP(MID(C218,1,1),Type[lettre type],Type[type])","v":"Poubelle"},214,"K38",{"$f":"\"https://sico-my.sharepoint.com/personal/julien_carestiato_fondation-ove_fr/Documents/Images/1potiniere/\"&Tableau2[[#This Row],[numéro]]&\".png\"","v":"https://sico-my.sharepoint.com/personal/julien_carestiato_fondation-ove_fr/Documents/Images/1potiniere/K38.png"},null,"POUBELLE NOIR ASPECT OSIER",{"$f":"IF(Tableau2[[#This Row],[déjà en prêt commande]]=TRUE,\" \",Tableau2[[#This Row],[numéro]]&\" \"&Tableau2[[#This Row],[désignation]])","v":"K38 POUBELLE NOIR ASPECT OSIER"},{"$f":"Tableau2[[#This Row],[numéro]]&\" \"&Tableau2[[#This Row],[désignation]]","v":"K38 POUBELLE NOIR ASPECT OSIER"},"H 30 cm / Diamètre 22 cm",10,2,null,{"$f":"IF(Tableau2[[#This Row],[destinataire]]=0,IF(_xlfn.XLOOKUP(Tableau2[[#This Row],[code désignation]],commandecolonne[lisiting commande colonne],commandecolonne[lisiting commande colonne],FALSE)=Tableau2[[#This Row],[code désignation]],TRUE,FALSE),TRUE)","v":false}]
[{"$f":"_xlfn.XLOOKUP(MID(C219,1,1),Type[lettre type],Type[type])","v":"Poubelle"},215,"K39",{"$f":"\"https://sico-my.sharepoint.com/personal/julien_carestiato_fondation-ove_fr/Documents/Images/1potiniere/\"&Tableau2[[#This Row],[numéro]]&\".png\"","v":"https://sico-my.sharepoint.com/personal/julien_carestiato_fondation-ove_fr/Documents/Images/1potiniere/K39.png"},null,"POUBELLE NOIR ASPECT OSIER",{"$f":"IF(Tableau2[[#This Row],[déjà en prêt commande]]=TRUE,\" \",Tableau2[[#This Row],[numéro]]&\" \"&Tableau2[[#This Row],[désignation]])","v":"K39 POUBELLE NOIR ASPECT OSIER"},{"$f":"Tableau2[[#This Row],[numéro]]&\" \"&Tableau2[[#This Row],[désignation]]","v":"K39 POUBELLE NOIR ASPECT OSIER"},"H 30 cm / Diamètre 22 cm",10,2,null,{"$f":"IF(Tableau2[[#This Row],[destinataire]]=0,IF(_xlfn.XLOOKUP(Tableau2[[#This Row],[code désignation]],commandecolonne[lisiting commande colonne],commandecolonne[lisiting commande colonne],FALSE)=Tableau2[[#This Row],[code désignation]],TRUE,FALSE),TRUE)","v":false}]
[{"$f":"_xlfn.XLOOKUP(MID(C220,1,1),Type[lettre type],Type[type])","v":"Poubelle"},216,"K40",{"$f":"\"https://sico-my.sharepoint.com/personal/julien_carestiato_fondation-ove_fr/Documents/Images/1potiniere/\"&Tableau2[[#This Row],[numéro]]&\".png\"","v":"https://sico-my.sharepoint.com/personal/julien_carestiato_fondation-ove_fr/Documents/Images/1potiniere/K40.png"},null,"POUBELLE NOIR ASPECT OSIER",{"$f":"IF(Tableau2[[#This Row],[déjà en prêt commande]]=TRUE,\" \",Tableau2[[#This Row],[numéro]]&\" \"&Tableau2[[#This Row],[désignation]])","v":"K40 POUBELLE NOIR ASPECT OSIER"},{"$f":"Tableau2[[#This Row],[numéro]]&\" \"&Tableau2[[#This Row],[désignation]]","v":"K40 POUBELLE NOIR ASPECT OSIER"},"H 30 cm / Diamètre 22 cm",10,2,null,{"$f":"IF(Tableau2[[#This Row],[destinataire]]=0,IF(_xlfn.XLOOKUP(Tableau2[[#This Row],[code désignation]],commandecolonne[lisiting commande colonne],commandecolonne[lisiting commande colonne],FALSE)=Tableau2[[#This Row],[code désignation]],TRUE,FALSE),TRUE)","v":false}]
[{"$f":"_xlfn.XLOOKUP(MID(C221,1,1),Type[lettre type],Type[type])","v":"Tableau"},217,"H1",{"$f":"\"https://sico-my.sharepoint.com/personal/julien_carestiato_fondation-ove_fr/Documents/Images/1potiniere/\"&Tableau2[[#This Row],[numéro]]&\".png\"","v":"https://sico-my.sharepoint.com/personal/julien_carestiato_fondation-ove_fr/Documents/Images/1potiniere/H1.png"},null,"TABLEAU",{"$f":"IF(Tableau2[[#This Row],[déjà en prêt commande]]=TRUE,\" \",Tableau2[[#This Row],[numéro]]&\" \"&Tableau2[[#This Row],[désignation]])","v":"H1 TABLEAU"},{"$f":"Tableau2[[#This Row],[numéro]]&\" \"&Tableau2[[#This Row],[désignation]]","v":"H1 TABLEAU"},"L 60 x l. 80",150,30,null,{"$f":"IF(Tableau2[[#This Row],[destinataire]]=0,IF(_xlfn.XLOOKUP(Tableau2[[#This Row],[code désignation]],commandecolonne[lisiting commande colonne],commandecolonne[lisiting commande colonne],FALSE)=Tableau2[[#This Row],[code désignation]],TRUE,FALSE),TRUE)","v":false}]
[{"$f":"_xlfn.XLOOKUP(MID(C222,1,1),Type[lettre type],Type[type])","v":"Tableau"},218,"H2",{"$f":"\"https://sico-my.sharepoint.com/personal/julien_carestiato_fondation-ove_fr/Documents/Images/1potiniere/\"&Tableau2[[#This Row],[numéro]]&\".png\"","v":"https://sico-my.sharepoint.com/personal/julien_carestiato_fondation-ove_fr/Documents/Images/1potiniere/H2.png"},null,"TABLEAU DYPTIQUE",{"$f":"IF(Tableau2[[#This Row],[déjà en prêt commande]]=TRUE,\" \",Tableau2[[#This Row],[numéro]]&\" \"&Tableau2[[#This Row],[désignation]])","v":"H2 TABLEAU DYPTIQUE"},{"$f":"Tableau2[[#This Row],[numéro]]&\" \"&Tableau2[[#This Row],[désignation]]","v":"H2 TABLEAU DYPTIQUE"},"2 X L 80 x l. 80",100,20,null,{"$f":"IF(Tableau2[[#This Row],[destinataire]]=0,IF(_xlfn.XLOOKUP(Tableau2[[#This Row],[code désignation]],commandecolonne[lisiting commande colonne],commandecolonne[lisiting commande colonne],FALSE)=Tableau2[[#This Row],[code désignation]],TRUE,FALSE),TRUE)","v":false}]
[{"$f":"_xlfn.XLOOKUP(MID(C223,1,1),Type[lettre type],Type[type])","v":"Tableau"},219,"H3",{"$f":"\"https://sico-my.sharepoint.com/personal/julien_carestiato_fondation-ove_fr/Documents/Images/1potiniere/\"&Tableau2[[#This Row],[numéro]]&\".png\"","v":"https://sico-my.sharepoint.com/personal/julien_carestiato_fondation-ove_fr/Documents/Images/1potiniere/H3.png"},null,"TABLEAU DYPTIQUE",{"$f":"IF(Tableau2[[#This Row],[déjà en prêt commande]]=TRUE,\" \",Tableau2[[#This Row],[numéro]]&\" \"&Tableau2[[#This Row],[désignation]])","v":"H3 TABLEAU DYPTIQUE"},{"$f":"Tableau2[[#This Row],[numéro]]&\" \"&Tableau2[[#This Row],[désignation]]","v":"H3 TABLEAU DYPTIQUE"},"L 60 x l. 80",150,30,null,{"$f":"IF(Tableau2[[#This Row],[destinataire]]=0,IF(_xlfn.XLOOKUP(Tableau2[[#This Row],[code désignation]],commandecolonne[lisiting commande colonne],commandecolonne[lisiting commande colonne],FALSE)=Tableau2[[#This Row],[code désignation]],TRUE,FALSE),TRUE)","v":false}]
[{"$f":"_xlfn.XLOOKUP(MID(C224,1,1),Type[lettre type],Type[type])","v":"Tableau"},220,"H4",{"$f":"\"https://sico-my.sharepoint.com/personal/julien_carestiato_fondation-ove_fr/Documents/Images/1potiniere/\"&Tableau2[[#This Row],[numéro]]&\".png\"","v":"https://sico-my.sharepoint.com/personal/julien_carestiato_fondation-ove_fr/Documents/Images/1potiniere/H4.png"},null,"TABLEAU CARRE",{"$f":"IF(Tableau2[[#This Row],[déjà en prêt commande]]=TRUE,\" \",Tableau2[[#This Row],[numéro]]&\" \"&Tableau2[[#This Row],[désignation]])","v":" "},{"$f":"Tableau2[[#This Row],[numéro]]&\" \"&Tableau2[[#This Row],[désignation]]","v":"H4 TABLEAU CARRE"},"L 57 x l. 57",0,0,"APPARTEMENTS SOUTIEN",{"$f":"IF(Tableau2[[#This Row],[destinataire]]=0,IF(_xlfn.XLOOKUP(Tableau2[[#This Row],[code désignation]],commandecolonne[lisiting commande colonne],commandecolonne[lisiting commande colonne],FALSE)=Tableau2[[#This Row],[code désignation]],TRUE,FALSE),TRUE)","v":true}]
[{"$f":"_xlfn.XLOOKUP(MID(C225,1,1),Type[lettre type],Type[type])","v":"Tableau"},221,"H5",{"$f":"\"https://sico-my.sharepoint.com/personal/julien_carestiato_fondation-ove_fr/Documents/Images/1potiniere/\"&Tableau2[[#This Row],[numéro]]&\".png\"","v":"https://sico-my.sharepoint.com/personal/julien_carestiato_fondation-ove_fr/Documents/Images/1potiniere/H5.png"},null,"TABLEAU",{"$f":"IF(Tableau2[[#This Row],[déjà en prêt commande]]=TRUE,\" \",Tableau2[[#This Row],[numéro]]&\" \"&Tableau2[[#This Row],[désignation]])","v":"H5 TABLEAU"},{"$f":"Tableau2[[#This Row],[numéro]]&\" \"&Tableau2[[#This Row],[désignation]]","v":"H5 TABLEAU"},"L 100 x l. 80",150,30,null,{"$f":"IF(Tableau2[[#This Row],[destinataire]]=0,IF(_xlfn.XLOOKUP(Tableau2[[#This Row],[code désignation]],commandecolonne[lisiting commande colonne],commandecolonne[lisiting commande colonne],FALSE)=Tableau2[[#This Row],[code désignation]],TRUE,FALSE),TRUE)","v":false}]
[{"$f":"_xlfn.XLOOKUP(MID(C226,1,1),Type[lettre type],Type[type])","v":"Tableau"},222,"H6",{"$f":"\"https://sico-my.sharepoint.com/personal/julien_carestiato_fondation-ove_fr/Documents/Images/1potiniere/\"&Tableau2[[#This Row],[numéro]]&\".png\"","v":"https://sico-my.sharepoint.com/personal/julien_carestiato_fondation-ove_fr/Documents/Images/1potiniere/H6.png"},null,"TABLEAU DYPTIQUE",{"$f":"IF(Tableau2[[#This Row],[déjà en prêt commande]]=TRUE,\" \",Tableau2[[#This Row],[numéro]]&\" \"&Tableau2[[#This Row],[désignation]])","v":"H6 TABLEAU DYPTIQUE"},{"$f":"Tableau2[[#This Row],[numéro]]&\" \"&Tableau2[[#This Row],[désignation]]","v":"H6 TABLEAU DYPTIQUE"},"L 100 x l. 100",150,30,null,{"$f":"IF(Tableau2[[#This Row],[destinataire]]=0,IF(_xlfn.XLOOKUP(Tableau2[[#This Row],[code désignation]],commandecolonne[lisiting commande colonne],commandecolonne[lisiting commande colonne],FALSE)=Tableau2[[#This Row],[code désignation]],TRUE,FALSE),TRUE)","v":false}]
[{"$f":"_xlfn.XLOOKUP(MID(C227,1,1),Type[lettre type],Type[type])","v":"Tableau"},223,"H7",{"$f":"\"https://sico-my.sharepoint.com/personal/julien_carestiato_fondation-ove_fr/Documents/Images/1potiniere/\"&Tableau2[[#This Row],[numéro]]&\".png\"","v":"https://sico-my.sharepoint.com/personal/julien_carestiato_fondation-ove_fr/Documents/Images/1potiniere/H7.png"},null,"TABLEAU CARRE",{"$f":"IF(Tableau2[[#This Row],[déjà en prêt commande]]=TRUE,\" \",Tableau2[[#This Row],[numéro]]&\" \"&Tableau2[[#This Row],[désignation]])","v":"H7 TABLEAU CARRE"},{"$f":"Tableau2[[#This Row],[numéro]]&\" \"&Tableau2[[#This Row],[désignation]]","v":"H7 TABLEAU CARRE"},"L 100 x l. 100",150,30,null,{"$f":"IF(Tableau2[[#This Row],[destinataire]]=0,IF(_xlfn.XLOOKUP(Tableau2[[#This Row],[code désignation]],commandecolonne[lisiting commande colonne],commandecolonne[lisiting commande colonne],FALSE)=Tableau2[[#This Row],[code désignation]],TRUE,FALSE),TRUE)","v":false}]
[{"$f":"_xlfn.XLOOKUP(MID(C228,1,1),Type[lettre type],Type[type])","v":"Tableau"},224,"H8",{"$f":"\"https://sico-my.sharepoint.com/personal/julien_carestiato_fondation-ove_fr/Documents/Images/1potiniere/\"&Tableau2[[#This Row],[numéro]]&\".png\"","v":"https://sico-my.sharepoint.com/personal/julien_carestiato_fondation-ove_fr/Documents/Images/1potiniere/H8.png"},null,"TABLEAU DYPTIQUE",{"$f":"IF(Tableau2[[#This Row],[déjà en prêt commande]]=TRUE,\" \",Tableau2[[#This Row],[numéro]]&\" \"&Tableau2[[#This Row],[désignation]])","v":" "},{"$f":"Tableau2[[#This Row],[numéro]]&\" \"&Tableau2[[#This Row],[désignation]]","v":"H8 TABLEAU DYPTIQUE"},"L 70 X l. 100 + L 100 x l. 100",0,0,"DIME GUY YVER",{"$f":"IF(Tableau2[[#This Row],[destinataire]]=0,IF(_xlfn.XLOOKUP(Tableau2[[#This Row],[code désignation]],commandecolonne[lisiting commande colonne],commandecolonne[lisiting commande colonne],FALSE)=Tableau2[[#This Row],[code désignation]],TRUE,FALSE),TRUE)","v":true}]
[{"$f":"_xlfn.XLOOKUP(MID(C229,1,1),Type[lettre type],Type[type])","v":"Tableau"},225,"H9",{"$f":"\"https://sico-my.sharepoint.com/personal/julien_carestiato_fondation-ove_fr/Documents/Images/1potiniere/\"&Tableau2[[#This Row],[numéro]]&\".png\"","v":"https://sico-my.sharepoint.com/personal/julien_carestiato_fondation-ove_fr/Documents/Images/1potiniere/H9.png"},null,"TABLEAU",{"$f":"IF(Tableau2[[#This Row],[déjà en prêt commande]]=TRUE,\" \",Tableau2[[#This Row],[numéro]]&\" \"&Tableau2[[#This Row],[désignation]])","v":"H9 TABLEAU"},{"$f":"Tableau2[[#This Row],[numéro]]&\" \"&Tableau2[[#This Row],[désignation]]","v":"H9 TABLEAU"},"L 100 x l. 80",150,30,null,{"$f":"IF(Tableau2[[#This Row],[destinataire]]=0,IF(_xlfn.XLOOKUP(Tableau2[[#This Row],[code désignation]],commandecolonne[lisiting commande colonne],commandecolonne[lisiting commande colonne],FALSE)=Tableau2[[#This Row],[code désignation]],TRUE,FALSE),TRUE)","v":false}]
[{"$f":"_xlfn.XLOOKUP(MID(C230,1,1),Type[lettre type],Type[type])","v":"Tableau"},226,"H10",{"$f":"\"https://sico-my.sharepoint.com/personal/julien_carestiato_fondation-ove_fr/Documents/Images/1potiniere/\"&Tableau2[[#This Row],[numéro]]&\".png\"","v":"https://sico-my.sharepoint.com/personal/julien_carestiato_fondation-ove_fr/Documents/Images/1potiniere/H10.png"},null,"TABLEAU",{"$f":"IF(Tableau2[[#This Row],[déjà en prêt commande]]=TRUE,\" \",Tableau2[[#This Row],[numéro]]&\" \"&Tableau2[[#This Row],[désignation]])","v":"H10 TABLEAU"},{"$f":"Tableau2[[#This Row],[numéro]]&\" \"&Tableau2[[#This Row],[désignation]]","v":"H10 TABLEAU"},"L 120 x l. 80",150,30,null,{"$f":"IF(Tableau2[[#This Row],[destinataire]]=0,IF(_xlfn.XLOOKUP(Tableau2[[#This Row],[code désignation]],commandecolonne[lisiting commande colonne],commandecolonne[lisiting commande colonne],FALSE)=Tableau2[[#This Row],[code désignation]],TRUE,FALSE),TRUE)","v":false}]
[{"$f":"_xlfn.XLOOKUP(MID(C231,1,1),Type[lettre type],Type[type])","v":"Tableau"},227,"H11",{"$f":"\"https://sico-my.sharepoint.com/personal/julien_carestiato_fondation-ove_fr/Documents/Images/1potiniere/\"&Tableau2[[#This Row],[numéro]]&\".png\"","v":"https://sico-my.sharepoint.com/personal/julien_carestiato_fondation-ove_fr/Documents/Images/1potiniere/H11.png"},null,null,{"$f":"IF(Tableau2[[#This Row],[déjà en prêt commande]]=TRUE,\" \",Tableau2[[#This Row],[numéro]]&\" \"&Tableau2[[#This Row],[désignation]])","v":" "},{"$f":"Tableau2[[#This Row],[numéro]]&\" \"&Tableau2[[#This Row],[désignation]]","v":"H11 "},null,0,0,"DIME GUY YVER",{"$f":"IF(Tableau2[[#This Row],[destinataire]]=0,IF(_xlfn.XLOOKUP(Tableau2[[#This Row],[code désignation]],commandecolonne[lisiting commande colonne],commandecolonne[lisiting commande colonne],FALSE)=Tableau2[[#This Row],[code désignation]],TRUE,FALSE),TRUE)","v":true}]
[{"$f":"_xlfn.XLOOKUP(MID(C232,1,1),Type[lettre type],Type[type])","v":"Tableau"},228,"H12",{"$f":"\"https://sico-my.sharepoint.com/personal/julien_carestiato_fondation-ove_fr/Documents/Images/1potiniere/\"&Tableau2[[#This Row],[numéro]]&\".png\"","v":"https://sico-my.sharepoint.com/personal/julien_carestiato_fondation-ove_fr/Documents/Images/1potiniere/H12.png"},null,"TABLEAU",{"$f":"IF(Tableau2[[#This Row],[déjà en prêt commande]]=TRUE,\" \",Tableau2[[#This Row],[numéro]]&\" \"&Tableau2[[#This Row],[désignation]])","v":"H12 TABLEAU"},{"$f":"Tableau2[[#This Row],[numéro]]&\" \"&Tableau2[[#This Row],[désignation]]","v":"H12 TABLEAU"},"L 100 x l. 80",150,30,null,{"$f":"IF(Tableau2[[#This Row],[destinataire]]=0,IF(_xlfn.XLOOKUP(Tableau2[[#This Row],[code désignation]],commandecolonne[lisiting commande colonne],commandecolonne[lisiting commande colonne],FALSE)=Tableau2[[#This Row],[code désignation]],TRUE,FALSE),TRUE)","v":false}]
[{"$f":"_xlfn.XLOOKUP(MID(C233,1,1),Type[lettre type],Type[type])","v":"Tableau"},229,"H13",{"$f":"\"https://sico-my.sharepoint.com/personal/julien_carestiato_fondation-ove_fr/Documents/Images/1potiniere/\"&Tableau2[[#This Row],[numéro]]&\".png\"","v":"https://sico-my.sharepoint.com/personal/julien_carestiato_fondation-ove_fr/Documents/Images/1potiniere/H13.png"},null,"TABLEAU DYPTIQUE",{"$f":"IF(Tableau2[[#This Row],[déjà en prêt commande]]=TRUE,\" \",Tableau2[[#This Row],[numéro]]&\" \"&Tableau2[[#This Row],[désignation]])","v":"H13 TABLEAU DYPTIQUE"},{"$f":"Tableau2[[#This Row],[numéro]]&\" \"&Tableau2[[#This Row],[désignation]]","v":"H13 TABLEAU DYPTIQUE"},"L 80 x l. 100 + L 150 x l. 100",200,40,null,{"$f":"IF(Tableau2[[#This Row],[destinataire]]=0,IF(_xlfn.XLOOKUP(Tableau2[[#This Row],[code désignation]],commandecolonne[lisiting commande colonne],commandecolonne[lisiting commande colonne],FALSE)=Tableau2[[#This Row],[code désignation]],TRUE,FALSE),TRUE)","v":false}]
[{"$f":"_xlfn.XLOOKUP(MID(C234,1,1),Type[lettre type],Type[type])","v":"Tableau"},230,"H14",{"$f":"\"https://sico-my.sharepoint.com/personal/julien_carestiato_fondation-ove_fr/Documents/Images/1potiniere/\"&Tableau2[[#This Row],[numéro]]&\".png\"","v":"https://sico-my.sharepoint.com/personal/julien_carestiato_fondation-ove_fr/Documents/Images/1potiniere/H14.png"},null,"TABLEAU",{"$f":"IF(Tableau2[[#This Row],[déjà en prêt commande]]=TRUE,\" \",Tableau2[[#This Row],[numéro]]&\" \"&Tableau2[[#This Row],[désignation]])","v":"H14 TABLEAU"},{"$f":"Tableau2[[#This Row],[numéro]]&\" \"&Tableau2[[#This Row],[désignation]]","v":"H14 TABLEAU"},"L 150 x l. 100",200,40,null,{"$f":"IF(Tableau2[[#This Row],[destinataire]]=0,IF(_xlfn.XLOOKUP(Tableau2[[#This Row],[code désignation]],commandecolonne[lisiting commande colonne],commandecolonne[lisiting commande colonne],FALSE)=Tableau2[[#This Row],[code désignation]],TRUE,FALSE),TRUE)","v":false}]
[{"$f":"_xlfn.XLOOKUP(MID(C235,1,1),Type[lettre type],Type[type])","v":"Tableau"},231,"H15",{"$f":"\"https://sico-my.sharepoint.com/personal/julien_carestiato_fondation-ove_fr/Documents/Images/1potiniere/\"&Tableau2[[#This Row],[numéro]]&\".png\"","v":"https://sico-my.sharepoint.com/personal/julien_carestiato_fondation-ove_fr/Documents/Images/1potiniere/H15.png"},null,"TABLEAU",{"$f":"IF(Tableau2[[#This Row],[déjà en prêt commande]]=TRUE,\" \",Tableau2[[#This Row],[numéro]]&\" \"&Tableau2[[#This Row],[désignation]])","v":"H15 TABLEAU"},{"$f":"Tableau2[[#This Row],[numéro]]&\" \"&Tableau2[[#This Row],[désignation]]","v":"H15 TABLEAU"},"L 150 x l. 100",200,40,null,{"$f":"IF(Tableau2[[#This Row],[destinataire]]=0,IF(_xlfn.XLOOKUP(Tableau2[[#This Row],[code désignation]],commandecolonne[lisiting commande colonne],commandecolonne[lisiting commande colonne],FALSE)=Tableau2[[#This Row],[code désignation]],TRUE,FALSE),TRUE)","v":false}]
[{"$f":"_xlfn.XLOOKUP(MID(C236,1,1),Type[lettre type],Type[type])","v":"Tableau"},232,"H16",{"$f":"\"https://sico-my.sharepoint.com/personal/julien_carestiato_fondation-ove_fr/Documents/Images/1potiniere/\"&Tableau2[[#This Row],[numéro]]&\".png\"","v":"https://sico-my.sharepoint.com/personal/julien_carestiato_fondation-ove_fr/Documents/Images/1potiniere/H16.png"},null,null,{"$f":"IF(Tableau2[[#This Row],[déjà en prêt commande]]=TRUE,\" \",Tableau2[[#This Row],[numéro]]&\" \"&Tableau2[[#This Row],[désignation]])","v":"H16 "},{"$f":"Tableau2[[#This Row],[numéro]]&\" \"&Tableau2[[#This Row],[désignation]]","v":"H16 "},null,200,40,null,{"$f":"IF(Tableau2[[#This Row],[destinataire]]=0,IF(_xlfn.XLOOKUP(Tableau2[[#This Row],[code désignation]],commandecolonne[lisiting commande colonne],commandecolonne[lisiting commande colonne],FALSE)=Tableau2[[#This Row],[code désignation]],TRUE,FALSE),TRUE)","v":false}]
[{"$f":"_xlfn.XLOOKUP(MID(C237,1,1),Type[lettre type],Type[type])","v":"Tableau"},233,"H17",{"$f":"\"https://sico-my.sharepoint.com/personal/julien_carestiato_fondation-ove_fr/Documents/Images/1potiniere/\"&Tableau2[[#This Row],[numéro]]&\".png\"","v":"https://sico-my.sharepoint.com/personal/julien_carestiato_fondation-ove_fr/Documents/Images/1potiniere/H17.png"},null,"TABLEAU CARRE",{"$f":"IF(Tableau2[[#This Row],[déjà en prêt commande]]=TRUE,\" \",Tableau2[[#This Row],[numéro]]&\" \"&Tableau2[[#This Row],[désignation]])","v":" "},{"$f":"Tableau2[[#This Row],[numéro]]&\" \"&Tableau2[[#This Row],[désignation]]","v":"H17 TABLEAU CARRE"},"L 100 x l. 100",0,0,"APPARTEMENTS SOUTIEN",{"$f":"IF(Tableau2[[#This Row],[destinataire]]=0,IF(_xlfn.XLOOKUP(Tableau2[[#This Row],[code désignation]],commandecolonne[lisiting commande colonne],commandecolonne[lisiting commande colonne],FALSE)=Tableau2[[#This Row],[code désignation]],TRUE,FALSE),TRUE)","v":true}]
[{"$f":"_xlfn.XLOOKUP(MID(C238,1,1),Type[lettre type],Type[type])","v":"Tableau"},234,"H18",{"$f":"\"https://sico-my.sharepoint.com/personal/julien_carestiato_fondation-ove_fr/Documents/Images/1potiniere/\"&Tableau2[[#This Row],[numéro]]&\".png\"","v":"https://sico-my.sharepoint.com/personal/julien_carestiato_fondation-ove_fr/Documents/Images/1potiniere/H18.png"},null,"TABLEAU CARRE",{"$f":"IF(Tableau2[[#This Row],[déjà en prêt commande]]=TRUE,\" \",Tableau2[[#This Row],[numéro]]&\" \"&Tableau2[[#This Row],[désignation]])","v":"H18 TABLEAU CARRE"},{"$f":"Tableau2[[#This Row],[numéro]]&\" \"&Tableau2[[#This Row],[désignation]]","v":"H18 TABLEAU CARRE"},"L 100 x l. 100",200,40,null,{"$f":"IF(Tableau2[[#This Row],[destinataire]]=0,IF(_xlfn.XLOOKUP(Tableau2[[#This Row],[code désignation]],commandecolonne[lisiting commande colonne],commandecolonne[lisiting commande colonne],FALSE)=Tableau2[[#This Row],[code désignation]],TRUE,FALSE),TRUE)","v":false}]
[{"$f":"_xlfn.XLOOKUP(MID(C239,1,1),Type[lettre type],Type[type])","v":"Tableau"},235,"H19",{"$f":"\"https://sico-my.sharepoint.com/personal/julien_carestiato_fondation-ove_fr/Documents/Images/1potiniere/\"&Tableau2[[#This Row],[numéro]]&\".png\"","v":"https://sico-my.sharepoint.com/personal/julien_carestiato_fondation-ove_fr/Documents/Images/1potiniere/H19.png"},null,"TABLEAU",{"$f":"IF(Tableau2[[#This Row],[déjà en prêt commande]]=TRUE,\" \",Tableau2[[#This Row],[numéro]]&\" \"&Tableau2[[#This Row],[désignation]])","v":"H19 TABLEAU"},{"$f":"Tableau2[[#This Row],[numéro]]&\" \"&Tableau2[[#This Row],[désignation]]","v":"H19 TABLEAU"},"L 160 x l. 100",200,40,null,{"$f":"IF(Tableau2[[#This Row],[destinataire]]=0,IF(_xlfn.XLOOKUP(Tableau2[[#This Row],[code désignation]],commandecolonne[lisiting commande colonne],commandecolonne[lisiting commande colonne],FALSE)=Tableau2[[#This Row],[code désignation]],TRUE,FALSE),TRUE)","v":false}]
[{"$f":"_xlfn.XLOOKUP(MID(C240,1,1),Type[lettre type],Type[type])","v":"Tableau"},236,"H20",{"$f":"\"https://sico-my.sharepoint.com/personal/julien_carestiato_fondation-ove_fr/Documents/Images/1potiniere/\"&Tableau2[[#This Row],[numéro]]&\".png\"","v":"https://sico-my.sharepoint.com/personal/julien_carestiato_fondation-ove_fr/Documents/Images/1potiniere/H20.png"},null,"TABLEAU",{"$f":"IF(Tableau2[[#This Row],[déjà en prêt commande]]=TRUE,\" \",Tableau2[[#This Row],[numéro]]&\" \"&Tableau2[[#This Row],[désignation]])","v":"H20 TABLEAU"},{"$f":"Tableau2[[#This Row],[numéro]]&\" \"&Tableau2[[#This Row],[désignation]]","v":"H20 TABLEAU"},"L 100 x l. 80",200,40,null,{"$f":"IF(Tableau2[[#This Row],[destinataire]]=0,IF(_xlfn.XLOOKUP(Tableau2[[#This Row],[code désignation]],commandecolonne[lisiting commande colonne],commandecolonne[lisiting commande colonne],FALSE)=Tableau2[[#This Row],[code désignation]],TRUE,FALSE),TRUE)","v":false}]
[{"$f":"_xlfn.XLOOKUP(MID(C241,1,1),Type[lettre type],Type[type])","v":"Tableau"},237,"H21",{"$f":"\"https://sico-my.sharepoint.com/personal/julien_carestiato_fondation-ove_fr/Documents/Images/1potiniere/\"&Tableau2[[#This Row],[numéro]]&\".png\"","v":"https://sico-my.sharepoint.com/personal/julien_carestiato_fondation-ove_fr/Documents/Images/1potiniere/H21.png"},null,"TABLEAU",{"$f":"IF(Tableau2[[#This Row],[déjà en prêt commande]]=TRUE,\" \",Tableau2[[#This Row],[numéro]]&\" \"&Tableau2[[#This Row],[désignation]])","v":"H21 TABLEAU"},{"$f":"Tableau2[[#This Row],[numéro]]&\" \"&Tableau2[[#This Row],[désignation]]","v":"H21 TABLEAU"},"L 120 x l. 100",200,40,null,{"$f":"IF(Tableau2[[#This Row],[destinataire]]=0,IF(_xlfn.XLOOKUP(Tableau2[[#This Row],[code désignation]],commandecolonne[lisiting commande colonne],commandecolonne[lisiting commande colonne],FALSE)=Tableau2[[#This Row],[code désignation]],TRUE,FALSE),TRUE)","v":false}]
[{"$f":"_xlfn.XLOOKUP(MID(C242,1,1),Type[lettre type],Type[type])","v":"Tableau"},238,"H22",{"$f":"\"https://sico-my.sharepoint.com/personal/julien_carestiato_fondation-ove_fr/Documents/Images/1potiniere/\"&Tableau2[[#This Row],[numéro]]&\".png\"","v":"https://sico-my.sharepoint.com/personal/julien_carestiato_fondation-ove_fr/Documents/Images/1potiniere/H22.png"},null,"TABLEAU DYPTIQUE",{"$f":"IF(Tableau2[[#This Row],[déjà en prêt commande]]=TRUE,\" \",Tableau2[[#This Row],[numéro]]&\" \"&Tableau2[[#This Row],[désignation]])","v":"H22 TABLEAU DYPTIQUE"},{"$f":"Tableau2[[#This Row],[numéro]]&\" \"&Tableau2[[#This Row],[désignation]]","v":"H22 TABLEAU DYPTIQUE"},"1 X L 120 x l. 100 +                                       1 X L 100 x l. 100",200,40,null,{"$f":"IF(Tableau2[[#This Row],[destinataire]]=0,IF(_xlfn.XLOOKUP(Tableau2[[#This Row],[code désignation]],commandecolonne[lisiting commande colonne],commandecolonne[lisiting commande colonne],FALSE)=Tableau2[[#This Row],[code désignation]],TRUE,FALSE),TRUE)","v":false}]
[{"$f":"_xlfn.XLOOKUP(MID(C243,1,1),Type[lettre type],Type[type])","v":"Tableau"},239,"H23",{"$f":"\"https://sico-my.sharepoint.com/personal/julien_carestiato_fondation-ove_fr/Documents/Images/1potiniere/\"&Tableau2[[#This Row],[numéro]]&\".png\"","v":"https://sico-my.sharepoint.com/personal/julien_carestiato_fondation-ove_fr/Documents/Images/1potiniere/H23.png"},null,"TABLEAU",{"$f":"IF(Tableau2[[#This Row],[déjà en prêt commande]]=TRUE,\" \",Tableau2[[#This Row],[numéro]]&\" \"&Tableau2[[#This Row],[désignation]])","v":" "},{"$f":"Tableau2[[#This Row],[numéro]]&\" \"&Tableau2[[#This Row],[désignation]]","v":"H23 TABLEAU"},"L 100 x l. 80",0,0,"APPARTEMENTS SOUTIEN",{"$f":"IF(Tableau2[[#This Row],[destinataire]]=0,IF(_xlfn.XLOOKUP(Tableau2[[#This Row],[code désignation]],commandecolonne[lisiting commande colonne],commandecolonne[lisiting commande colonne],FALSE)=Tableau2[[#This Row],[code désignation]],TRUE,FALSE),TRUE)","v":true}]
[{"$f":"_xlfn.XLOOKUP(MID(C244,1,1),Type[lettre type],Type[type])","v":"Tableau"},240,"H24",{"$f":"\"https://sico-my.sharepoint.com/personal/julien_carestiato_fondation-ove_fr/Documents/Images/1potiniere/\"&Tableau2[[#This Row],[numéro]]&\".png\"","v":"https://sico-my.sharepoint.com/personal/julien_carestiato_fondation-ove_fr/Documents/Images/1potiniere/H24.png"},null,"TABLEAU",{"$f":"IF(Tableau2[[#This Row],[déjà en prêt commande]]=TRUE,\" \",Tableau2[[#This Row],[numéro]]&\" \"&Tableau2[[#This Row],[désignation]])","v":"H24 TABLEAU"},{"$f":"Tableau2[[#This Row],[numéro]]&\" \"&Tableau2[[#This Row],[désignation]]","v":"H24 TABLEAU"},"L 120 x l. 80",200,40,null,{"$f":"IF(Tableau2[[#This Row],[destinataire]]=0,IF(_xlfn.XLOOKUP(Tableau2[[#This Row],[code désignation]],commandecolonne[lisiting commande colonne],commandecolonne[lisiting commande colonne],FALSE)=Tableau2[[#This Row],[code désignation]],TRUE,FALSE),TRUE)","v":false}]
[{"$f":"_xlfn.XLOOKUP(MID(C245,1,1),Type[lettre type],Type[type])","v":"Tableau"},241,"H25",{"$f":"\"https://sico-my.sharepoint.com/personal/julien_carestiato_fondation-ove_fr/Documents/Images/1potiniere/\"&Tableau2[[#This Row],[numéro]]&\".png\"","v":"https://sico-my.sharepoint.com/personal/julien_carestiato_fondation-ove_fr/Documents/Images/1potiniere/H25.png"},null,"TABLEAU CARRE",{"$f":"IF(Tableau2[[#This Row],[déjà en prêt commande]]=TRUE,\" \",Tableau2[[#This Row],[numéro]]&\" \"&Tableau2[[#This Row],[désignation]])","v":"H25 TABLEAU CARRE"},{"$f":"Tableau2[[#This Row],[numéro]]&\" \"&Tableau2[[#This Row],[désignation]]","v":"H25 TABLEAU CARRE"},"L 100 x l. 100",200,40,null,{"$f":"IF(Tableau2[[#This Row],[destinataire]]=0,IF(_xlfn.XLOOKUP(Tableau2[[#This Row],[code désignation]],commandecolonne[lisiting commande colonne],commandecolonne[lisiting commande colonne],FALSE)=Tableau2[[#This Row],[code désignation]],TRUE,FALSE),TRUE)","v":false}]
[{"$f":"_xlfn.XLOOKUP(MID(C246,1,1),Type[lettre type],Type[type])","v":"Tableau"},242,"H26",{"$f":"\"https://sico-my.sharepoint.com/personal/julien_carestiato_fondation-ove_fr/Documents/Images/1potiniere/\"&Tableau2[[#This Row],[numéro]]&\".png\"","v":"https://sico-my.sharepoint.com/personal/julien_carestiato_fondation-ove_fr/Documents/Images/1potiniere/H26.png"},null,"TABLEAU DYPTIQUE",{"$f":"IF(Tableau2[[#This Row],[déjà en prêt commande]]=TRUE,\" \",Tableau2[[#This Row],[numéro]]&\" \"&Tableau2[[#This Row],[désignation]])","v":"H26 TABLEAU DYPTIQUE"},{"$f":"Tableau2[[#This Row],[numéro]]&\" \"&Tableau2[[#This Row],[désignation]]","v":"H26 TABLEAU DYPTIQUE"},"2 X L 80 x l. 80",200,40,null,{"$f":"IF(Tableau2[[#This Row],[destinataire]]=0,IF(_xlfn.XLOOKUP(Tableau2[[#This Row],[code désignation]],commandecolonne[lisiting commande colonne],commandecolonne[lisiting commande colonne],FALSE)=Tableau2[[#This Row],[code désignation]],TRUE,FALSE),TRUE)","v":false}]
[{"$f":"_xlfn.XLOOKUP(MID(C247,1,1),Type[lettre type],Type[type])","v":"Tableau"},243,"H27",{"$f":"\"https://sico-my.sharepoint.com/personal/julien_carestiato_fondation-ove_fr/Documents/Images/1potiniere/\"&Tableau2[[#This Row],[numéro]]&\".png\"","v":"https://sico-my.sharepoint.com/personal/julien_carestiato_fondation-ove_fr/Documents/Images/1potiniere/H27.png"},null,"TABLEAU DYPTIQUE",{"$f":"IF(Tableau2[[#This Row],[déjà en prêt commande]]=TRUE,\" \",Tableau2[[#This Row],[numéro]]&\" \"&Tableau2[[#This Row],[désignation]])","v":" "},{"$f":"Tableau2[[#This Row],[numéro]]&\" \"&Tableau2[[#This Row],[désignation]]","v":"H27 TABLEAU DYPTIQUE"},"2 X L 80 x l. 80",0,0,"IME GUY YVER",{"$f":"IF(Tableau2[[#This Row],[destinataire]]=0,IF(_xlfn.XLOOKUP(Tableau2[[#This Row],[code désignation]],commandecolonne[lisiting commande colonne],commandecolonne[lisiting commande colonne],FALSE)=Tableau2[[#This Row],[code désignation]],TRUE,FALSE),TRUE)","v":true}]
[{"$f":"_xlfn.XLOOKUP(MID(C248,1,1),Type[lettre type],Type[type])","v":"Tableau"},244,"H28",{"$f":"\"https://sico-my.sharepoint.com/personal/julien_carestiato_fondation-ove_fr/Documents/Images/1potiniere/\"&Tableau2[[#This Row],[numéro]]&\".png\"","v":"https://sico-my.sharepoint.com/personal/julien_carestiato_fondation-ove_fr/Documents/Images/1potiniere/H28.png"},null,"TABLEAU",{"$f":"IF(Tableau2[[#This Row],[déjà en prêt commande]]=TRUE,\" \",Tableau2[[#This Row],[numéro]]&\" \"&Tableau2[[#This Row],[désignation]])","v":"H28 TABLEAU"},{"$f":"Tableau2[[#This Row],[numéro]]&\" \"&Tableau2[[#This Row],[désignation]]","v":"H28 TABLEAU"},"L 120 x l. 80",200,40,null,{"$f":"IF(Tableau2[[#This Row],[destinataire]]=0,IF(_xlfn.XLOOKUP(Tableau2[[#This Row],[code désignation]],commandecolonne[lisiting commande colonne],commandecolonne[lisiting commande colonne],FALSE)=Tableau2[[#This Row],[code désignation]],TRUE,FALSE),TRUE)","v":false}]
[{"$f":"_xlfn.XLOOKUP(MID(C249,1,1),Type[lettre type],Type[type])","v":"Tableau"},245,"H29",{"$f":"\"https://sico-my.sharepoint.com/personal/julien_carestiato_fondation-ove_fr/Documents/Images/1potiniere/\"&Tableau2[[#This Row],[numéro]]&\".png\"","v":"https://sico-my.sharepoint.com/personal/julien_carestiato_fondation-ove_fr/Documents/Images/1potiniere/H29.png"},null,"TABLEAU",{"$f":"IF(Tableau2[[#This Row],[déjà en prêt commande]]=TRUE,\" \",Tableau2[[#This Row],[numéro]]&\" \"&Tableau2[[#This Row],[désignation]])","v":"H29 TABLEAU"},{"$f":"Tableau2[[#This Row],[numéro]]&\" \"&Tableau2[[#This Row],[désignation]]","v":"H29 TABLEAU"},"L 200 x l. 140",400,80,null,{"$f":"IF(Tableau2[[#This Row],[destinataire]]=0,IF(_xlfn.XLOOKUP(Tableau2[[#This Row],[code désignation]],commandecolonne[lisiting commande colonne],commandecolonne[lisiting commande colonne],FALSE)=Tableau2[[#This Row],[code désignation]],TRUE,FALSE),TRUE)","v":false}]
[{"$f":"_xlfn.XLOOKUP(MID(C250,1,1),Type[lettre type],Type[type])","v":"Tableau"},246,"H30",{"$f":"\"https://sico-my.sharepoint.com/personal/julien_carestiato_fondation-ove_fr/Documents/Images/1potiniere/\"&Tableau2[[#This Row],[numéro]]&\".png\"","v":"https://sico-my.sharepoint.com/personal/julien_carestiato_fondation-ove_fr/Documents/Images/1potiniere/H30.png"},null,"TABLEAU",{"$f":"IF(Tableau2[[#This Row],[déjà en prêt commande]]=TRUE,\" \",Tableau2[[#This Row],[numéro]]&\" \"&Tableau2[[#This Row],[désignation]])","v":"H30 TABLEAU"},{"$f":"Tableau2[[#This Row],[numéro]]&\" \"&Tableau2[[#This Row],[désignation]]","v":"H30 TABLEAU"},"L 150 x l. 100",300,60,null,{"$f":"IF(Tableau2[[#This Row],[destinataire]]=0,IF(_xlfn.XLOOKUP(Tableau2[[#This Row],[code désignation]],commandecolonne[lisiting commande colonne],commandecolonne[lisiting commande colonne],FALSE)=Tableau2[[#This Row],[code désignation]],TRUE,FALSE),TRUE)","v":false}]
[{"$f":"_xlfn.XLOOKUP(MID(C251,1,1),Type[lettre type],Type[type])","v":"Tableau"},247,"H30bis",{"$f":"\"https://sico-my.sharepoint.com/personal/julien_carestiato_fondation-ove_fr/Documents/Images/1potiniere/\"&Tableau2[[#This Row],[numéro]]&\".png\"","v":"https://sico-my.sharepoint.com/personal/julien_carestiato_fondation-ove_fr/Documents/Images/1potiniere/H30bis.png"},"Photo non dispo","TABLEAU",{"$f":"IF(Tableau2[[#This Row],[déjà en prêt commande]]=TRUE,\" \",Tableau2[[#This Row],[numéro]]&\" \"&Tableau2[[#This Row],[désignation]])","v":"H30bis TABLEAU"},{"$f":"Tableau2[[#This Row],[numéro]]&\" \"&Tableau2[[#This Row],[désignation]]","v":"H30bis TABLEAU"},"L 170 x l. 140",300,60,null,{"$f":"IF(Tableau2[[#This Row],[destinataire]]=0,IF(_xlfn.XLOOKUP(Tableau2[[#This Row],[code désignation]],commandecolonne[lisiting commande colonne],commandecolonne[lisiting commande colonne],FALSE)=Tableau2[[#This Row],[code désignation]],TRUE,FALSE),TRUE)","v":false}]
[{"$f":"_xlfn.XLOOKUP(MID(C252,1,1),Type[lettre type],Type[type])","v":"Tableau"},248,"H31",{"$f":"\"https://sico-my.sharepoint.com/personal/julien_carestiato_fondation-ove_fr/Documents/Images/1potiniere/\"&Tableau2[[#This Row],[numéro]]&\".png\"","v":"https://sico-my.sharepoint.com/personal/julien_carestiato_fondation-ove_fr/Documents/Images/1potiniere/H31.png"},null,"TABLEAU",{"$f":"IF(Tableau2[[#This Row],[déjà en prêt commande]]=TRUE,\" \",Tableau2[[#This Row],[numéro]]&\" \"&Tableau2[[#This Row],[désignation]])","v":" "},{"$f":"Tableau2[[#This Row],[numéro]]&\" \"&Tableau2[[#This Row],[désignation]]","v":"H31 TABLEAU"},"L 170 x l. 130",0,0,"DIME GUY YVER",{"$f":"IF(Tableau2[[#This Row],[destinataire]]=0,IF(_xlfn.XLOOKUP(Tableau2[[#This Row],[code désignation]],commandecolonne[lisiting commande colonne],commandecolonne[lisiting commande colonne],FALSE)=Tableau2[[#This Row],[code désignation]],TRUE,FALSE),TRUE)","v":true}]
[{"$f":"_xlfn.XLOOKUP(MID(C253,1,1),Type[lettre type],Type[type])","v":"Tableau"},249,"H32",{"$f":"\"https://sico-my.sharepoint.com/personal/julien_carestiato_fondation-ove_fr/Documents/Images/1potiniere/\"&Tableau2[[#This Row],[numéro]]&\".png\"","v":"https://sico-my.sharepoint.com/personal/julien_carestiato_fondation-ove_fr/Documents/Images/1potiniere/H32.png"},null,"TABLEAU",{"$f":"IF(Tableau2[[#This Row],[déjà en prêt commande]]=TRUE,\" \",Tableau2[[#This Row],[numéro]]&\" \"&Tableau2[[#This Row],[désignation]])","v":"H32 TABLEAU"},{"$f":"Tableau2[[#This Row],[numéro]]&\" \"&Tableau2[[#This Row],[désignation]]","v":"H32 TABLEAU"},"L 170 x l. 120",300,60,null,{"$f":"IF(Tableau2[[#This Row],[destinataire]]=0,IF(_xlfn.XLOOKUP(Tableau2[[#This Row],[code désignation]],commandecolonne[lisiting commande colonne],commandecolonne[lisiting commande colonne],FALSE)=Tableau2[[#This Row],[code désignation]],TRUE,FALSE),TRUE)","v":false}]
[{"$f":"_xlfn.XLOOKUP(MID(C254,1,1),Type[lettre type],Type[type])","v":"Tableau"},250,"H33",{"$f":"\"https://sico-my.sharepoint.com/personal/julien_carestiato_fondation-ove_fr/Documents/Images/1potiniere/\"&Tableau2[[#This Row],[numéro]]&\".png\"","v":"https://sico-my.sharepoint.com/personal/julien_carestiato_fondation-ove_fr/Documents/Images/1potiniere/H33.png"},null,"TABLEAU",{"$f":"IF(Tableau2[[#This Row],[déjà en prêt commande]]=TRUE,\" \",Tableau2[[#This Row],[numéro]]&\" \"&Tableau2[[#This Row],[désignation]])","v":"H33 TABLEAU"},{"$f":"Tableau2[[#This Row],[numéro]]&\" \"&Tableau2[[#This Row],[désignation]]","v":"H33 TABLEAU"},"L 170 x l. 140",300,60,null,{"$f":"IF(Tableau2[[#This Row],[destinataire]]=0,IF(_xlfn.XLOOKUP(Tableau2[[#This Row],[code désignation]],commandecolonne[lisiting commande colonne],commandecolonne[lisiting commande colonne],FALSE)=Tableau2[[#This Row],[code désignation]],TRUE,FALSE),TRUE)","v":false}]
[{"$f":"_xlfn.XLOOKUP(MID(C255,1,1),Type[lettre type],Type[type])","v":"Tableau"},251,"H34",{"$f":"\"https://sico-my.sharepoint.com/personal/julien_carestiato_fondation-ove_fr/Documents/Images/1potiniere/\"&Tableau2[[#This Row],[numéro]]&\".png\"","v":"https://sico-my.sharepoint.com/personal/julien_carestiato_fondation-ove_fr/Documents/Images/1potiniere/H34.png"},null,"TABLEAU",{"$f":"IF(Tableau2[[#This Row],[déjà en prêt commande]]=TRUE,\" \",Tableau2[[#This Row],[numéro]]&\" \"&Tableau2[[#This Row],[désignation]])","v":"H34 TABLEAU"},{"$f":"Tableau2[[#This Row],[numéro]]&\" \"&Tableau2[[#This Row],[désignation]]","v":"H34 TABLEAU"},"L 170 x l. 140",300,60,null,{"$f":"IF(Tableau2[[#This Row],[destinataire]]=0,IF(_xlfn.XLOOKUP(Tableau2[[#This Row],[code désignation]],commandecolonne[lisiting commande colonne],commandecolonne[lisiting commande colonne],FALSE)=Tableau2[[#This Row],[code désignation]],TRUE,FALSE),TRUE)","v":false}]
[{"$f":"_xlfn.XLOOKUP(MID(C256,1,1),Type[lettre type],Type[type])","v":"Tableau"},252,"H35",{"$f":"\"https://sico-my.sharepoint.com/personal/julien_carestiato_fondation-ove_fr/Documents/Images/1potiniere/\"&Tableau2[[#This Row],[numéro]]&\".png\"","v":"https://sico-my.sharepoint.com/personal/julien_carestiato_fondation-ove_fr/Documents/Images/1potiniere/H35.png"},null,"TABLEAU",{"$f":"IF(Tableau2[[#This Row],[déjà en prêt commande]]=TRUE,\" \",Tableau2[[#This Row],[numéro]]&\" \"&Tableau2[[#This Row],[désignation]])","v":"H35 TABLEAU"},{"$f":"Tableau2[[#This Row],[numéro]]&\" \"&Tableau2[[#This Row],[désignation]]","v":"H35 TABLEAU"},"L 170 x l. 140",300,60,null,{"$f":"IF(Tableau2[[#This Row],[destinataire]]=0,IF(_xlfn.XLOOKUP(Tableau2[[#This Row],[code désignation]],commandecolonne[lisiting commande colonne],commandecolonne[lisiting commande colonne],FALSE)=Tableau2[[#This Row],[code désignation]],TRUE,FALSE),TRUE)","v":false}]
[{"$f":"_xlfn.XLOOKUP(MID(C257,1,1),Type[lettre type],Type[type])","v":"Tableau"},253,"H36",{"$f":"\"https://sico-my.sharepoint.com/personal/julien_carestiato_fondation-ove_fr/Documents/Images/1potiniere/\"&Tableau2[[#This Row],[numéro]]&\".png\"","v":"https://sico-my.sharepoint.com/personal/julien_carestiato_fondation-ove_fr/Documents/Images/1potiniere/H36.png"},null,"TABLEAU",{"$f":"IF(Tableau2[[#This Row],[déjà en prêt commande]]=TRUE,\" \",Tableau2[[#This Row],[numéro]]&\" \"&Tableau2[[#This Row],[désignation]])","v":"H36 TABLEAU"},{"$f":"Tableau2[[#This Row],[numéro]]&\" \"&Tableau2[[#This Row],[désignation]]","v":"H36 TABLEAU"},"L 170 x l. 130",300,60,null,{"$f":"IF(Tableau2[[#This Row],[destinataire]]=0,IF(_xlfn.XLOOKUP(Tableau2[[#This Row],[code désignation]],commandecolonne[lisiting commande colonne],commandecolonne[lisiting commande colonne],FALSE)=Tableau2[[#This Row],[code désignation]],TRUE,FALSE),TRUE)","v":false}]
[{"$f":"_xlfn.XLOOKUP(MID(C258,1,1),Type[lettre type],Type[type])","v":"Tableau"},254,"H37",{"$f":"\"https://sico-my.sharepoint.com/personal/julien_carestiato_fondation-ove_fr/Documents/Images/1potiniere/\"&Tableau2[[#This Row],[numéro]]&\".png\"","v":"https://sico-my.sharepoint.com/personal/julien_carestiato_fondation-ove_fr/Documents/Images/1potiniere/H37.png"},null,"TABLEAU",{"$f":"IF(Tableau2[[#This Row],[déjà en prêt commande]]=TRUE,\" \",Tableau2[[#This Row],[numéro]]&\" \"&Tableau2[[#This Row],[désignation]])","v":"H37 TABLEAU"},{"$f":"Tableau2[[#This Row],[numéro]]&\" \"&Tableau2[[#This Row],[désignation]]","v":"H37 TABLEAU"},"L 150 x l. 100",300,60,null,{"$f":"IF(Tableau2[[#This Row],[destinataire]]=0,IF(_xlfn.XLOOKUP(Tableau2[[#This Row],[code désignation]],commandecolonne[lisiting commande colonne],commandecolonne[lisiting commande colonne],FALSE)=Tableau2[[#This Row],[code désignation]],TRUE,FALSE),TRUE)","v":false}]
[{"$f":"_xlfn.XLOOKUP(MID(C259,1,1),Type[lettre type],Type[type])","v":"Tableau"},255,"H38",{"$f":"\"https://sico-my.sharepoint.com/personal/julien_carestiato_fondation-ove_fr/Documents/Images/1potiniere/\"&Tableau2[[#This Row],[numéro]]&\".png\"","v":"https://sico-my.sharepoint.com/personal/julien_carestiato_fondation-ove_fr/Documents/Images/1potiniere/H38.png"},null,"TABLEAU",{"$f":"IF(Tableau2[[#This Row],[déjà en prêt commande]]=TRUE,\" \",Tableau2[[#This Row],[numéro]]&\" \"&Tableau2[[#This Row],[désignation]])","v":"H38 TABLEAU"},{"$f":"Tableau2[[#This Row],[numéro]]&\" \"&Tableau2[[#This Row],[désignation]]","v":"H38 TABLEAU"},"L 170 x l. 130",300,60,null,{"$f":"IF(Tableau2[[#This Row],[destinataire]]=0,IF(_xlfn.XLOOKUP(Tableau2[[#This Row],[code désignation]],commandecolonne[lisiting commande colonne],commandecolonne[lisiting commande colonne],FALSE)=Tableau2[[#This Row],[code désignation]],TRUE,FALSE),TRUE)","v":false}]
[{"$f":"_xlfn.XLOOKUP(MID(C260,1,1),Type[lettre type],Type[type])","v":"Tableau"},256,"H39",{"$f":"\"https://sico-my.sharepoint.com/personal/julien_carestiato_fondation-ove_fr/Documents/Images/1potiniere/\"&Tableau2[[#This Row],[numéro]]&\".png\"","v":"https://sico-my.sharepoint.com/personal/julien_carestiato_fondation-ove_fr/Documents/Images/1potiniere/H39.png"},null,"TABLEAU",{"$f":"IF(Tableau2[[#This Row],[déjà en prêt commande]]=TRUE,\" \",Tableau2[[#This Row],[numéro]]&\" \"&Tableau2[[#This Row],[désignation]])","v":"H39 TABLEAU"},{"$f":"Tableau2[[#This Row],[numéro]]&\" \"&Tableau2[[#This Row],[désignation]]","v":"H39 TABLEAU"},"L 170 x l. 140",300,60,null,{"$f":"IF(Tableau2[[#This Row],[destinataire]]=0,IF(_xlfn.XLOOKUP(Tableau2[[#This Row],[code désignation]],commandecolonne[lisiting commande colonne],commandecolonne[lisiting commande colonne],FALSE)=Tableau2[[#This Row],[code désignation]],TRUE,FALSE),TRUE)","v":false}]
[{"$f":"_xlfn.XLOOKUP(MID(C261,1,1),Type[lettre type],Type[type])","v":"Tableau"},257,"H40",{"$f":"\"https://sico-my.sharepoint.com/personal/julien_carestiato_fondation-ove_fr/Documents/Images/1potiniere/\"&Tableau2[[#This Row],[numéro]]&\".png\"","v":"https://sico-my.sharepoint.com/personal/julien_carestiato_fondation-ove_fr/Documents/Images/1potiniere/H40.png"},null,"TABLEAU",{"$f":"IF(Tableau2[[#This Row],[déjà en prêt commande]]=TRUE,\" \",Tableau2[[#This Row],[numéro]]&\" \"&Tableau2[[#This Row],[désignation]])","v":"H40 TABLEAU"},{"$f":"Tableau2[[#This Row],[numéro]]&\" \"&Tableau2[[#This Row],[désignation]]","v":"H40 TABLEAU"},"L 170 x l. 140",300,60,null,{"$f":"IF(Tableau2[[#This Row],[destinataire]]=0,IF(_xlfn.XLOOKUP(Tableau2[[#This Row],[code désignation]],commandecolonne[lisiting commande colonne],commandecolonne[lisiting commande colonne],FALSE)=Tableau2[[#This Row],[code désignation]],TRUE,FALSE),TRUE)","v":false}]
[{"$f":"_xlfn.XLOOKUP(MID(C262,1,1),Type[lettre type],Type[type])","v":"Tableau"},258,"H41",{"$f":"\"https://sico-my.sharepoint.com/personal/julien_carestiato_fondation-ove_fr/Documents/Images/1potiniere/\"&Tableau2[[#This Row],[numéro]]&\".png\"","v":"https://sico-my.sharepoint.com/personal/julien_carestiato_fondation-ove_fr/Documents/Images/1potiniere/H41.png"},null,"TABLEAU",{"$f":"IF(Tableau2[[#This Row],[déjà en prêt commande]]=TRUE,\" \",Tableau2[[#This Row],[numéro]]&\" \"&Tableau2[[#This Row],[désignation]])","v":"H41 TABLEAU"},{"$f":"Tableau2[[#This Row],[numéro]]&\" \"&Tableau2[[#This Row],[désignation]]","v":"H41 TABLEAU"},"L 160 x l. 100",300,60,null,{"$f":"IF(Tableau2[[#This Row],[destinataire]]=0,IF(_xlfn.XLOOKUP(Tableau2[[#This Row],[code désignation]],commandecolonne[lisiting commande colonne],commandecolonne[lisiting commande colonne],FALSE)=Tableau2[[#This Row],[code désignation]],TRUE,FALSE),TRUE)","v":false}]
[{"$f":"_xlfn.XLOOKUP(MID(C263,1,1),Type[lettre type],Type[type])","v":"Tableau"},259,"H42",{"$f":"\"https://sico-my.sharepoint.com/personal/julien_carestiato_fondation-ove_fr/Documents/Images/1potiniere/\"&Tableau2[[#This Row],[numéro]]&\".png\"","v":"https://sico-my.sharepoint.com/personal/julien_carestiato_fondation-ove_fr/Documents/Images/1potiniere/H42.png"},null,"TABLEAU",{"$f":"IF(Tableau2[[#This Row],[déjà en prêt commande]]=TRUE,\" \",Tableau2[[#This Row],[numéro]]&\" \"&Tableau2[[#This Row],[désignation]])","v":"H42 TABLEAU"},{"$f":"Tableau2[[#This Row],[numéro]]&\" \"&Tableau2[[#This Row],[désignation]]","v":"H42 TABLEAU"},"L 160 x l. 100",300,60,null,{"$f":"IF(Tableau2[[#This Row],[destinataire]]=0,IF(_xlfn.XLOOKUP(Tableau2[[#This Row],[code désignation]],commandecolonne[lisiting commande colonne],commandecolonne[lisiting commande colonne],FALSE)=Tableau2[[#This Row],[code désignation]],TRUE,FALSE),TRUE)","v":false}]
[{"$f":"_xlfn.XLOOKUP(MID(C264,1,1),Type[lettre type],Type[type])","v":"Tableau"},260,"H43",{"$f":"\"https://sico-my.sharepoint.com/personal/julien_carestiato_fondation-ove_fr/Documents/Images/1potiniere/\"&Tableau2[[#This Row],[numéro]]&\".png\"","v":"https://sico-my.sharepoint.com/personal/julien_carestiato_fondation-ove_fr/Documents/Images/1potiniere/H43.png"},null,"TABLEAU",{"$f":"IF(Tableau2[[#This Row],[déjà en prêt commande]]=TRUE,\" \",Tableau2[[#This Row],[numéro]]&\" \"&Tableau2[[#This Row],[désignation]])","v":"H43 TABLEAU"},{"$f":"Tableau2[[#This Row],[numéro]]&\" \"&Tableau2[[#This Row],[désignation]]","v":"H43 TABLEAU"},"L 155 x l. 80",300,60,null,{"$f":"IF(Tableau2[[#This Row],[destinataire]]=0,IF(_xlfn.XLOOKUP(Tableau2[[#This Row],[code désignation]],commandecolonne[lisiting commande colonne],commandecolonne[lisiting commande colonne],FALSE)=Tableau2[[#This Row],[code désignation]],TRUE,FALSE),TRUE)","v":false}]
[{"$f":"_xlfn.XLOOKUP(MID(C265,1,1),Type[lettre type],Type[type])","v":"Tapis"},261,"I1",{"$f":"\"https://sico-my.sharepoint.com/personal/julien_carestiato_fondation-ove_fr/Documents/Images/1potiniere/\"&Tableau2[[#This Row],[numéro]]&\".png\"","v":"https://sico-my.sharepoint.com/personal/julien_carestiato_fondation-ove_fr/Documents/Images/1potiniere/I1.png"},null,"TAPIS CARRE PEAU",{"$f":"IF(Tableau2[[#This Row],[déjà en prêt commande]]=TRUE,\" \",Tableau2[[#This Row],[numéro]]&\" \"&Tableau2[[#This Row],[désignation]])","v":"I1 TAPIS CARRE PEAU"},{"$f":"Tableau2[[#This Row],[numéro]]&\" \"&Tableau2[[#This Row],[désignation]]","v":"I1 TAPIS CARRE PEAU"},"195 X 195 cm",100,20,null,{"$f":"IF(Tableau2[[#This Row],[destinataire]]=0,IF(_xlfn.XLOOKUP(Tableau2[[#This Row],[code désignation]],commandecolonne[lisiting commande colonne],commandecolonne[lisiting commande colonne],FALSE)=Tableau2[[#This Row],[code désignation]],TRUE,FALSE),TRUE)","v":false}]
[{"$f":"_xlfn.XLOOKUP(MID(C266,1,1),Type[lettre type],Type[type])","v":"Tapis"},262,"I2",{"$f":"\"https://sico-my.sharepoint.com/personal/julien_carestiato_fondation-ove_fr/Documents/Images/1potiniere/\"&Tableau2[[#This Row],[numéro]]&\".png\"","v":"https://sico-my.sharepoint.com/personal/julien_carestiato_fondation-ove_fr/Documents/Images/1potiniere/I2.png"},null,"TAPIS A FRANGE ROUGE",{"$f":"IF(Tableau2[[#This Row],[déjà en prêt commande]]=TRUE,\" \",Tableau2[[#This Row],[numéro]]&\" \"&Tableau2[[#This Row],[désignation]])","v":"I2 TAPIS A FRANGE ROUGE"},{"$f":"Tableau2[[#This Row],[numéro]]&\" \"&Tableau2[[#This Row],[désignation]]","v":"I2 TAPIS A FRANGE ROUGE"},"250 X 177 cm",150,30,null,{"$f":"IF(Tableau2[[#This Row],[destinataire]]=0,IF(_xlfn.XLOOKUP(Tableau2[[#This Row],[code désignation]],commandecolonne[lisiting commande colonne],commandecolonne[lisiting commande colonne],FALSE)=Tableau2[[#This Row],[code désignation]],TRUE,FALSE),TRUE)","v":false}]
[{"$f":"_xlfn.XLOOKUP(MID(C267,1,1),Type[lettre type],Type[type])","v":"Tapis"},263,"I3",{"$f":"\"https://sico-my.sharepoint.com/personal/julien_carestiato_fondation-ove_fr/Documents/Images/1potiniere/\"&Tableau2[[#This Row],[numéro]]&\".png\"","v":"https://sico-my.sharepoint.com/personal/julien_carestiato_fondation-ove_fr/Documents/Images/1potiniere/I3.png"},null,"TAPIS BEIGE-IRISE",{"$f":"IF(Tableau2[[#This Row],[déjà en prêt commande]]=TRUE,\" \",Tableau2[[#This Row],[numéro]]&\" \"&Tableau2[[#This Row],[désignation]])","v":"I3 TAPIS BEIGE-IRISE"},{"$f":"Tableau2[[#This Row],[numéro]]&\" \"&Tableau2[[#This Row],[désignation]]","v":"I3 TAPIS BEIGE-IRISE"},"200 X 250",400,80,null,{"$f":"IF(Tableau2[[#This Row],[destinataire]]=0,IF(_xlfn.XLOOKUP(Tableau2[[#This Row],[code désignation]],commandecolonne[lisiting commande colonne],commandecolonne[lisiting commande colonne],FALSE)=Tableau2[[#This Row],[code désignation]],TRUE,FALSE),TRUE)","v":false}]
[{"$f":"_xlfn.XLOOKUP(MID(C268,1,1),Type[lettre type],Type[type])","v":"Tapis"},264,"I4",{"$f":"\"https://sico-my.sharepoint.com/personal/julien_carestiato_fondation-ove_fr/Documents/Images/1potiniere/\"&Tableau2[[#This Row],[numéro]]&\".png\"","v":"https://sico-my.sharepoint.com/personal/julien_carestiato_fondation-ove_fr/Documents/Images/1potiniere/I4.png"},null,"TAPIS MARRON",{"$f":"IF(Tableau2[[#This Row],[déjà en prêt commande]]=TRUE,\" \",Tableau2[[#This Row],[numéro]]&\" \"&Tableau2[[#This Row],[désignation]])","v":"I4 TAPIS MARRON"},{"$f":"Tableau2[[#This Row],[numéro]]&\" \"&Tableau2[[#This Row],[désignation]]","v":"I4 TAPIS MARRON"},"250 X 250",400,80,null,{"$f":"IF(Tableau2[[#This Row],[destinataire]]=0,IF(_xlfn.XLOOKUP(Tableau2[[#This Row],[code désignation]],commandecolonne[lisiting commande colonne],commandecolonne[lisiting commande colonne],FALSE)=Tableau2[[#This Row],[code désignation]],TRUE,FALSE),TRUE)","v":false}]
[{"$f":"_xlfn.XLOOKUP(MID(C269,1,1),Type[lettre type],Type[type])","v":"Tapis"},265,"I5",{"$f":"\"https://sico-my.sharepoint.com/personal/julien_carestiato_fondation-ove_fr/Documents/Images/1potiniere/\"&Tableau2[[#This Row],[numéro]]&\".png\"","v":"https://sico-my.sharepoint.com/personal/julien_carestiato_fondation-ove_fr/Documents/Images/1potiniere/I5.png"},null,"TAPIS MARRON",{"$f":"IF(Tableau2[[#This Row],[déjà en prêt commande]]=TRUE,\" \",Tableau2[[#This Row],[numéro]]&\" \"&Tableau2[[#This Row],[désignation]])","v":"I5 TAPIS MARRON"},{"$f":"Tableau2[[#This Row],[numéro]]&\" \"&Tableau2[[#This Row],[désignation]]","v":"I5 TAPIS MARRON"},"404 X 305",400,80,null,{"$f":"IF(Tableau2[[#This Row],[destinataire]]=0,IF(_xlfn.XLOOKUP(Tableau2[[#This Row],[code désignation]],commandecolonne[lisiting commande colonne],commandecolonne[lisiting commande colonne],FALSE)=Tableau2[[#This Row],[code désignation]],TRUE,FALSE),TRUE)","v":false}]
[{"$f":"_xlfn.XLOOKUP(MID(C270,1,1),Type[lettre type],Type[type])","v":"Tapis"},266,"I6",{"$f":"\"https://sico-my.sharepoint.com/personal/julien_carestiato_fondation-ove_fr/Documents/Images/1potiniere/\"&Tableau2[[#This Row],[numéro]]&\".png\"","v":"https://sico-my.sharepoint.com/personal/julien_carestiato_fondation-ove_fr/Documents/Images/1potiniere/I6.png"},null,"TAPIS ROUGE BLANC BEIGE A FRANGE",{"$f":"IF(Tableau2[[#This Row],[déjà en prêt commande]]=TRUE,\" \",Tableau2[[#This Row],[numéro]]&\" \"&Tableau2[[#This Row],[désignation]])","v":"I6 TAPIS ROUGE BLANC BEIGE A FRANGE"},{"$f":"Tableau2[[#This Row],[numéro]]&\" \"&Tableau2[[#This Row],[désignation]]","v":"I6 TAPIS ROUGE BLANC BEIGE A FRANGE"},"230 x 360",400,80,null,{"$f":"IF(Tableau2[[#This Row],[destinataire]]=0,IF(_xlfn.XLOOKUP(Tableau2[[#This Row],[code désignation]],commandecolonne[lisiting commande colonne],commandecolonne[lisiting commande colonne],FALSE)=Tableau2[[#This Row],[code désignation]],TRUE,FALSE),TRUE)","v":false}]
[{"$f":"_xlfn.XLOOKUP(MID(C271,1,1),Type[lettre type],Type[type])","v":"Tapis"},267,"I7",{"$f":"\"https://sico-my.sharepoint.com/personal/julien_carestiato_fondation-ove_fr/Documents/Images/1potiniere/\"&Tableau2[[#This Row],[numéro]]&\".png\"","v":"https://sico-my.sharepoint.com/personal/julien_carestiato_fondation-ove_fr/Documents/Images/1potiniere/I7.png"},null,"TAPIS MARRON A MOTIF",{"$f":"IF(Tableau2[[#This Row],[déjà en prêt commande]]=TRUE,\" \",Tableau2[[#This Row],[numéro]]&\" \"&Tableau2[[#This Row],[désignation]])","v":"I7 TAPIS MARRON A MOTIF"},{"$f":"Tableau2[[#This Row],[numéro]]&\" \"&Tableau2[[#This Row],[désignation]]","v":"I7 TAPIS MARRON A MOTIF"},"203 X 300",400,80,null,{"$f":"IF(Tableau2[[#This Row],[destinataire]]=0,IF(_xlfn.XLOOKUP(Tableau2[[#This Row],[code désignation]],commandecolonne[lisiting commande colonne],commandecolonne[lisiting commande colonne],FALSE)=Tableau2[[#This Row],[code désignation]],TRUE,FALSE),TRUE)","v":false}]
[{"$f":"_xlfn.XLOOKUP(MID(C272,1,1),Type[lettre type],Type[type])","v":"Tapis"},268,"I8",{"$f":"\"https://sico-my.sharepoint.com/personal/julien_carestiato_fondation-ove_fr/Documents/Images/1potiniere/\"&Tableau2[[#This Row],[numéro]]&\".png\"","v":"https://sico-my.sharepoint.com/personal/julien_carestiato_fondation-ove_fr/Documents/Images/1potiniere/I8.png"},null,"TAPIS A FRANGE MARRON",{"$f":"IF(Tableau2[[#This Row],[déjà en prêt commande]]=TRUE,\" \",Tableau2[[#This Row],[numéro]]&\" \"&Tableau2[[#This Row],[désignation]])","v":"I8 TAPIS A FRANGE MARRON"},{"$f":"Tableau2[[#This Row],[numéro]]&\" \"&Tableau2[[#This Row],[désignation]]","v":"I8 TAPIS A FRANGE MARRON"},"220 X 255",400,80,null,{"$f":"IF(Tableau2[[#This Row],[destinataire]]=0,IF(_xlfn.XLOOKUP(Tableau2[[#This Row],[code désignation]],commandecolonne[lisiting commande colonne],commandecolonne[lisiting commande colonne],FALSE)=Tableau2[[#This Row],[code désignation]],TRUE,FALSE),TRUE)","v":false}]
[{"$f":"_xlfn.XLOOKUP(MID(C273,1,1),Type[lettre type],Type[type])","v":"Tapis"},269,"I9",{"$f":"\"https://sico-my.sharepoint.com/personal/julien_carestiato_fondation-ove_fr/Documents/Images/1potiniere/\"&Tableau2[[#This Row],[numéro]]&\".png\"","v":"https://sico-my.sharepoint.com/personal/julien_carestiato_fondation-ove_fr/Documents/Images/1potiniere/I9.png"},null,"TAPIS BEIGE A FRANGE",{"$f":"IF(Tableau2[[#This Row],[déjà en prêt commande]]=TRUE,\" \",Tableau2[[#This Row],[numéro]]&\" \"&Tableau2[[#This Row],[désignation]])","v":"I9 TAPIS BEIGE A FRANGE"},{"$f":"Tableau2[[#This Row],[numéro]]&\" \"&Tableau2[[#This Row],[désignation]]","v":"I9 TAPIS BEIGE A FRANGE"},"140 X 200",400,80,null,{"$f":"IF(Tableau2[[#This Row],[destinataire]]=0,IF(_xlfn.XLOOKUP(Tableau2[[#This Row],[code désignation]],commandecolonne[lisiting commande colonne],commandecolonne[lisiting commande colonne],FALSE)=Tableau2[[#This Row],[code désignation]],TRUE,FALSE),TRUE)","v":false}]
[{"$f":"_xlfn.XLOOKUP(MID(C274,1,1),Type[lettre type],Type[type])","v":"Tapis"},270,"I10",{"$f":"\"https://sico-my.sharepoint.com/personal/julien_carestiato_fondation-ove_fr/Documents/Images/1potiniere/\"&Tableau2[[#This Row],[numéro]]&\".png\"","v":"https://sico-my.sharepoint.com/personal/julien_carestiato_fondation-ove_fr/Documents/Images/1potiniere/I10.png"},null,"TAPIS BEIGE RAS",{"$f":"IF(Tableau2[[#This Row],[déjà en prêt commande]]=TRUE,\" \",Tableau2[[#This Row],[numéro]]&\" \"&Tableau2[[#This Row],[désignation]])","v":"I10 TAPIS BEIGE RAS"},{"$f":"Tableau2[[#This Row],[numéro]]&\" \"&Tableau2[[#This Row],[désignation]]","v":"I10 TAPIS BEIGE RAS"},"220 X 246",400,80,null,{"$f":"IF(Tableau2[[#This Row],[destinataire]]=0,IF(_xlfn.XLOOKUP(Tableau2[[#This Row],[code désignation]],commandecolonne[lisiting commande colonne],commandecolonne[lisiting commande colonne],FALSE)=Tableau2[[#This Row],[code désignation]],TRUE,FALSE),TRUE)","v":false}]
[{"$f":"_xlfn.XLOOKUP(MID(C275,1,1),Type[lettre type],Type[type])","v":"Tapis"},271,"I11",{"$f":"\"https://sico-my.sharepoint.com/personal/julien_carestiato_fondation-ove_fr/Documents/Images/1potiniere/\"&Tableau2[[#This Row],[numéro]]&\".png\"","v":"https://sico-my.sharepoint.com/personal/julien_carestiato_fondation-ove_fr/Documents/Images/1potiniere/I11.png"},null,"TAPIS A FRANGE MARRON",{"$f":"IF(Tableau2[[#This Row],[déjà en prêt commande]]=TRUE,\" \",Tableau2[[#This Row],[numéro]]&\" \"&Tableau2[[#This Row],[désignation]])","v":"I11 TAPIS A FRANGE MARRON"},{"$f":"Tableau2[[#This Row],[numéro]]&\" \"&Tableau2[[#This Row],[désignation]]","v":"I11 TAPIS A FRANGE MARRON"},"215 X 295",400,80,null,{"$f":"IF(Tableau2[[#This Row],[destinataire]]=0,IF(_xlfn.XLOOKUP(Tableau2[[#This Row],[code désignation]],commandecolonne[lisiting commande colonne],commandecolonne[lisiting commande colonne],FALSE)=Tableau2[[#This Row],[code désignation]],TRUE,FALSE),TRUE)","v":false}]
[{"$f":"_xlfn.XLOOKUP(MID(C276,1,1),Type[lettre type],Type[type])","v":"Tapis"},272,"I12",{"$f":"\"https://sico-my.sharepoint.com/personal/julien_carestiato_fondation-ove_fr/Documents/Images/1potiniere/\"&Tableau2[[#This Row],[numéro]]&\".png\"","v":"https://sico-my.sharepoint.com/personal/julien_carestiato_fondation-ove_fr/Documents/Images/1potiniere/I12.png"},null,"TAPIS BEIGE RAS",{"$f":"IF(Tableau2[[#This Row],[déjà en prêt commande]]=TRUE,\" \",Tableau2[[#This Row],[numéro]]&\" \"&Tableau2[[#This Row],[désignation]])","v":"I12 TAPIS BEIGE RAS"},{"$f":"Tableau2[[#This Row],[numéro]]&\" \"&Tableau2[[#This Row],[désignation]]","v":"I12 TAPIS BEIGE RAS"},"293 X 200",400,80,null,{"$f":"IF(Tableau2[[#This Row],[destinataire]]=0,IF(_xlfn.XLOOKUP(Tableau2[[#This Row],[code désignation]],commandecolonne[lisiting commande colonne],commandecolonne[lisiting commande colonne],FALSE)=Tableau2[[#This Row],[code désignation]],TRUE,FALSE),TRUE)","v":false}]
[{"$f":"_xlfn.XLOOKUP(MID(C277,1,1),Type[lettre type],Type[type])","v":"Tapis"},273,"I13",{"$f":"\"https://sico-my.sharepoint.com/personal/julien_carestiato_fondation-ove_fr/Documents/Images/1potiniere/\"&Tableau2[[#This Row],[numéro]]&\".png\"","v":"https://sico-my.sharepoint.com/personal/julien_carestiato_fondation-ove_fr/Documents/Images/1potiniere/I13.png"},null,"TAPIS BEIGE RAS",{"$f":"IF(Tableau2[[#This Row],[déjà en prêt commande]]=TRUE,\" \",Tableau2[[#This Row],[numéro]]&\" \"&Tableau2[[#This Row],[désignation]])","v":"I13 TAPIS BEIGE RAS"},{"$f":"Tableau2[[#This Row],[numéro]]&\" \"&Tableau2[[#This Row],[désignation]]","v":"I13 TAPIS BEIGE RAS"},"294 X 200",400,80,null,{"$f":"IF(Tableau2[[#This Row],[destinataire]]=0,IF(_xlfn.XLOOKUP(Tableau2[[#This Row],[code désignation]],commandecolonne[lisiting commande colonne],commandecolonne[lisiting commande colonne],FALSE)=Tableau2[[#This Row],[code désignation]],TRUE,FALSE),TRUE)","v":false}]
[{"$f":"_xlfn.XLOOKUP(MID(C278,1,1),Type[lettre type],Type[type])","v":"Tapis"},274,"I14",{"$f":"\"https://sico-my.sharepoint.com/personal/julien_carestiato_fondation-ove_fr/Documents/Images/1potiniere/\"&Tableau2[[#This Row],[numéro]]&\".png\"","v":"https://sico-my.sharepoint.com/personal/julien_carestiato_fondation-ove_fr/Documents/Images/1potiniere/I14.png"},null,"TAPIS MARRON A MOTIF",{"$f":"IF(Tableau2[[#This Row],[déjà en prêt commande]]=TRUE,\" \",Tableau2[[#This Row],[numéro]]&\" \"&Tableau2[[#This Row],[désignation]])","v":"I14 TAPIS MARRON A MOTIF"},{"$f":"Tableau2[[#This Row],[numéro]]&\" \"&Tableau2[[#This Row],[désignation]]","v":"I14 TAPIS MARRON A MOTIF"},"203 x 300",400,80,null,{"$f":"IF(Tableau2[[#This Row],[destinataire]]=0,IF(_xlfn.XLOOKUP(Tableau2[[#This Row],[code désignation]],commandecolonne[lisiting commande colonne],commandecolonne[lisiting commande colonne],FALSE)=Tableau2[[#This Row],[code désignation]],TRUE,FALSE),TRUE)","v":false}]
[{"$f":"_xlfn.XLOOKUP(MID(C279,1,1),Type[lettre type],Type[type])","v":"Tapis"},275,"I15",{"$f":"\"https://sico-my.sharepoint.com/personal/julien_carestiato_fondation-ove_fr/Documents/Images/1potiniere/\"&Tableau2[[#This Row],[numéro]]&\".png\"","v":"https://sico-my.sharepoint.com/personal/julien_carestiato_fondation-ove_fr/Documents/Images/1potiniere/I15.png"},null,"TAPIS MARRON   ",{"$f":"IF(Tableau2[[#This Row],[déjà en prêt commande]]=TRUE,\" \",Tableau2[[#This Row],[numéro]]&\" \"&Tableau2[[#This Row],[désignation]])","v":"I15 TAPIS MARRON   "},{"$f":"Tableau2[[#This Row],[numéro]]&\" \"&Tableau2[[#This Row],[désignation]]","v":"I15 TAPIS MARRON   "},"250 x 300",400,80,null,{"$f":"IF(Tableau2[[#This Row],[destinataire]]=0,IF(_xlfn.XLOOKUP(Tableau2[[#This Row],[code désignation]],commandecolonne[lisiting commande colonne],commandecolonne[lisiting commande colonne],FALSE)=Tableau2[[#This Row],[code désignation]],TRUE,FALSE),TRUE)","v":false}]
[{"$f":"_xlfn.XLOOKUP(MID(C280,1,1),Type[lettre type],Type[type])","v":"Tapis"},276,"I16",{"$f":"\"https://sico-my.sharepoint.com/personal/julien_carestiato_fondation-ove_fr/Documents/Images/1potiniere/\"&Tableau2[[#This Row],[numéro]]&\".png\"","v":"https://sico-my.sharepoint.com/personal/julien_carestiato_fondation-ove_fr/Documents/Images/1potiniere/I16.png"},null,"TAPIS MARRON   ",{"$f":"IF(Tableau2[[#This Row],[déjà en prêt commande]]=TRUE,\" \",Tableau2[[#This Row],[numéro]]&\" \"&Tableau2[[#This Row],[désignation]])","v":"I16 TAPIS MARRON   "},{"$f":"Tableau2[[#This Row],[numéro]]&\" \"&Tableau2[[#This Row],[désignation]]","v":"I16 TAPIS MARRON   "},"250 x 300",400,80,null,{"$f":"IF(Tableau2[[#This Row],[destinataire]]=0,IF(_xlfn.XLOOKUP(Tableau2[[#This Row],[code désignation]],commandecolonne[lisiting commande colonne],commandecolonne[lisiting commande colonne],FALSE)=Tableau2[[#This Row],[code désignation]],TRUE,FALSE),TRUE)","v":false}]
[{"$f":"_xlfn.XLOOKUP(MID(C281,1,1),Type[lettre type],Type[type])","v":"Tapis"},277,"I17",{"$f":"\"https://sico-my.sharepoint.com/personal/julien_carestiato_fondation-ove_fr/Documents/Images/1potiniere/\"&Tableau2[[#This Row],[numéro]]&\".png\"","v":"https://sico-my.sharepoint.com/personal/julien_carestiato_fondation-ove_fr/Documents/Images/1potiniere/I17.png"},null,"TAPIS BEIGE RAS",{"$f":"IF(Tableau2[[#This Row],[déjà en prêt commande]]=TRUE,\" \",Tableau2[[#This Row],[numéro]]&\" \"&Tableau2[[#This Row],[désignation]])","v":"I17 TAPIS BEIGE RAS"},{"$f":"Tableau2[[#This Row],[numéro]]&\" \"&Tableau2[[#This Row],[désignation]]","v":"I17 TAPIS BEIGE RAS"},"293 X 200",400,80,null,{"$f":"IF(Tableau2[[#This Row],[destinataire]]=0,IF(_xlfn.XLOOKUP(Tableau2[[#This Row],[code désignation]],commandecolonne[lisiting commande colonne],commandecolonne[lisiting commande colonne],FALSE)=Tableau2[[#This Row],[code désignation]],TRUE,FALSE),TRUE)","v":false}]
[{"$f":"_xlfn.XLOOKUP(MID(C282,1,1),Type[lettre type],Type[type])","v":"Tapis"},278,"I18",{"$f":"\"https://sico-my.sharepoint.com/personal/julien_carestiato_fondation-ove_fr/Documents/Images/1potiniere/\"&Tableau2[[#This Row],[numéro]]&\".png\"","v":"https://sico-my.sharepoint.com/personal/julien_carestiato_fondation-ove_fr/Documents/Images/1potiniere/I18.png"},null,"TAPIS BEIGE RAS ",{"$f":"IF(Tableau2[[#This Row],[déjà en prêt commande]]=TRUE,\" \",Tableau2[[#This Row],[numéro]]&\" \"&Tableau2[[#This Row],[désignation]])","v":"I18 TAPIS BEIGE RAS "},{"$f":"Tableau2[[#This Row],[numéro]]&\" \"&Tableau2[[#This Row],[désignation]]","v":"I18 TAPIS BEIGE RAS "},"250 X 293",400,80,null,{"$f":"IF(Tableau2[[#This Row],[destinataire]]=0,IF(_xlfn.XLOOKUP(Tableau2[[#This Row],[code désignation]],commandecolonne[lisiting commande colonne],commandecolonne[lisiting commande colonne],FALSE)=Tableau2[[#This Row],[code désignation]],TRUE,FALSE),TRUE)","v":false}]
[{"$f":"_xlfn.XLOOKUP(MID(C283,1,1),Type[lettre type],Type[type])","v":"Tapis"},279,"I19",{"$f":"\"https://sico-my.sharepoint.com/personal/julien_carestiato_fondation-ove_fr/Documents/Images/1potiniere/\"&Tableau2[[#This Row],[numéro]]&\".png\"","v":"https://sico-my.sharepoint.com/personal/julien_carestiato_fondation-ove_fr/Documents/Images/1potiniere/I19.png"},null,"TAPIS MARRON A MOTIF",{"$f":"IF(Tableau2[[#This Row],[déjà en prêt commande]]=TRUE,\" \",Tableau2[[#This Row],[numéro]]&\" \"&Tableau2[[#This Row],[désignation]])","v":"I19 TAPIS MARRON A MOTIF"},{"$f":"Tableau2[[#This Row],[numéro]]&\" \"&Tableau2[[#This Row],[désignation]]","v":"I19 TAPIS MARRON A MOTIF"},"203 x 300",400,80,null,{"$f":"IF(Tableau2[[#This Row],[destinataire]]=0,IF(_xlfn.XLOOKUP(Tableau2[[#This Row],[code désignation]],commandecolonne[lisiting commande colonne],commandecolonne[lisiting commande colonne],FALSE)=Tableau2[[#This Row],[code désignation]],TRUE,FALSE),TRUE)","v":false}]
[{"$f":"_xlfn.XLOOKUP(MID(C284,1,1),Type[lettre type],Type[type])","v":"Tapis"},280,"I20",{"$f":"\"https://sico-my.sharepoint.com/personal/julien_carestiato_fondation-ove_fr/Documents/Images/1potiniere/\"&Tableau2[[#This Row],[numéro]]&\".png\"","v":"https://sico-my.sharepoint.com/personal/julien_carestiato_fondation-ove_fr/Documents/Images/1potiniere/I20.png"},null,"TAPIS ROUGE BLANC BEIGE A FRANGE",{"$f":"IF(Tableau2[[#This Row],[déjà en prêt commande]]=TRUE,\" \",Tableau2[[#This Row],[numéro]]&\" \"&Tableau2[[#This Row],[désignation]])","v":"I20 TAPIS ROUGE BLANC BEIGE A FRANGE"},{"$f":"Tableau2[[#This Row],[numéro]]&\" \"&Tableau2[[#This Row],[désignation]]","v":"I20 TAPIS ROUGE BLANC BEIGE A FRANGE"},"170 x 235",400,80,null,{"$f":"IF(Tableau2[[#This Row],[destinataire]]=0,IF(_xlfn.XLOOKUP(Tableau2[[#This Row],[code désignation]],commandecolonne[lisiting commande colonne],commandecolonne[lisiting commande colonne],FALSE)=Tableau2[[#This Row],[code désignation]],TRUE,FALSE),TRUE)","v":false}]
[{"$f":"_xlfn.XLOOKUP(MID(C285,1,1),Type[lettre type],Type[type])","v":"Tapis"},281,"I21",{"$f":"\"https://sico-my.sharepoint.com/personal/julien_carestiato_fondation-ove_fr/Documents/Images/1potiniere/\"&Tableau2[[#This Row],[numéro]]&\".png\"","v":"https://sico-my.sharepoint.com/personal/julien_carestiato_fondation-ove_fr/Documents/Images/1potiniere/I21.png"},null,"TAPIS FRANGE MARRON",{"$f":"IF(Tableau2[[#This Row],[déjà en prêt commande]]=TRUE,\" \",Tableau2[[#This Row],[numéro]]&\" \"&Tableau2[[#This Row],[désignation]])","v":"I21 TAPIS FRANGE MARRON"},{"$f":"Tableau2[[#This Row],[numéro]]&\" \"&Tableau2[[#This Row],[désignation]]","v":"I21 TAPIS FRANGE MARRON"},"220 X 250",400,80,null,{"$f":"IF(Tableau2[[#This Row],[destinataire]]=0,IF(_xlfn.XLOOKUP(Tableau2[[#This Row],[code désignation]],commandecolonne[lisiting commande colonne],commandecolonne[lisiting commande colonne],FALSE)=Tableau2[[#This Row],[code désignation]],TRUE,FALSE),TRUE)","v":false}]
[{"$f":"_xlfn.XLOOKUP(MID(C286,1,1),Type[lettre type],Type[type])","v":"Tapis"},282,"I22",{"$f":"\"https://sico-my.sharepoint.com/personal/julien_carestiato_fondation-ove_fr/Documents/Images/1potiniere/\"&Tableau2[[#This Row],[numéro]]&\".png\"","v":"https://sico-my.sharepoint.com/personal/julien_carestiato_fondation-ove_fr/Documents/Images/1potiniere/I22.png"},null,"TAPIS FRANGE GRIS NOIR",{"$f":"IF(Tableau2[[#This Row],[déjà en prêt commande]]=TRUE,\" \",Tableau2[[#This Row],[numéro]]&\" \"&Tableau2[[#This Row],[désignation]])","v":"I22 TAPIS FRANGE GRIS NOIR"},{"$f":"Tableau2[[#This Row],[numéro]]&\" \"&Tableau2[[#This Row],[désignation]]","v":"I22 TAPIS FRANGE GRIS NOIR"},"257 x 300",400,80,null,{"$f":"IF(Tableau2[[#This Row],[destinataire]]=0,IF(_xlfn.XLOOKUP(Tableau2[[#This Row],[code désignation]],commandecolonne[lisiting commande colonne],commandecolonne[lisiting commande colonne],FALSE)=Tableau2[[#This Row],[code désignation]],TRUE,FALSE),TRUE)","v":false}]
[{"$f":"_xlfn.XLOOKUP(MID(C287,1,1),Type[lettre type],Type[type])","v":"Tapis"},283,"I23",{"$f":"\"https://sico-my.sharepoint.com/personal/julien_carestiato_fondation-ove_fr/Documents/Images/1potiniere/\"&Tableau2[[#This Row],[numéro]]&\".png\"","v":"https://sico-my.sharepoint.com/personal/julien_carestiato_fondation-ove_fr/Documents/Images/1potiniere/I23.png"},null,"TAPIS BEIGE RAS",{"$f":"IF(Tableau2[[#This Row],[déjà en prêt commande]]=TRUE,\" \",Tableau2[[#This Row],[numéro]]&\" \"&Tableau2[[#This Row],[désignation]])","v":"I23 TAPIS BEIGE RAS"},{"$f":"Tableau2[[#This Row],[numéro]]&\" \"&Tableau2[[#This Row],[désignation]]","v":"I23 TAPIS BEIGE RAS"},"250 X 293",400,80,null,{"$f":"IF(Tableau2[[#This Row],[destinataire]]=0,IF(_xlfn.XLOOKUP(Tableau2[[#This Row],[code désignation]],commandecolonne[lisiting commande colonne],commandecolonne[lisiting commande colonne],FALSE)=Tableau2[[#This Row],[code désignation]],TRUE,FALSE),TRUE)","v":false}]
[{"$f":"_xlfn.XLOOKUP(MID(C288,1,1),Type[lettre type],Type[type])","v":"Tapis"},284,"I24",{"$f":"\"https://sico-my.sharepoint.com/personal/julien_carestiato_fondation-ove_fr/Documents/Images/1potiniere/\"&Tableau2[[#This Row],[numéro]]&\".png\"","v":"https://sico-my.sharepoint.com/personal/julien_carestiato_fondation-ove_fr/Documents/Images/1potiniere/I24.png"},null,"TAPIS ROUGE BLANC BEIGE A FRANGE",{"$f":"IF(Tableau2[[#This Row],[déjà en prêt commande]]=TRUE,\" \",Tableau2[[#This Row],[numéro]]&\" \"&Tableau2[[#This Row],[désignation]])","v":"I24 TAPIS ROUGE BLANC BEIGE A FRANGE"},{"$f":"Tableau2[[#This Row],[numéro]]&\" \"&Tableau2[[#This Row],[désignation]]","v":"I24 TAPIS ROUGE BLANC BEIGE A FRANGE"},"250 x 300",400,80,null,{"$f":"IF(Tableau2[[#This Row],[destinataire]]=0,IF(_xlfn.XLOOKUP(Tableau2[[#This Row],[code désignation]],commandecolonne[lisiting commande colonne],commandecolonne[lisiting commande colonne],FALSE)=Tableau2[[#This Row],[code désignation]],TRUE,FALSE),TRUE)","v":false}]
[{"$f":"_xlfn.XLOOKUP(MID(C289,1,1),Type[lettre type],Type[type])","v":"Tapis"},285,"I25",{"$f":"\"https://sico-my.sharepoint.com/personal/julien_carestiato_fondation-ove_fr/Documents/Images/1potiniere/\"&Tableau2[[#This Row],[numéro]]&\".png\"","v":"https://sico-my.sharepoint.com/personal/julien_carestiato_fondation-ove_fr/Documents/Images/1potiniere/I25.png"},null,"TAPIS ROUGE BLANC BEIGE A FRANGE",{"$f":"IF(Tableau2[[#This Row],[déjà en prêt commande]]=TRUE,\" \",Tableau2[[#This Row],[numéro]]&\" \"&Tableau2[[#This Row],[désignation]])","v":"I25 TAPIS ROUGE BLANC BEIGE A FRANGE"},{"$f":"Tableau2[[#This Row],[numéro]]&\" \"&Tableau2[[#This Row],[désignation]]","v":"I25 TAPIS ROUGE BLANC BEIGE A FRANGE"},"251 x 300",400,80,null,{"$f":"IF(Tableau2[[#This Row],[destinataire]]=0,IF(_xlfn.XLOOKUP(Tableau2[[#This Row],[code désignation]],commandecolonne[lisiting commande colonne],commandecolonne[lisiting commande colonne],FALSE)=Tableau2[[#This Row],[code désignation]],TRUE,FALSE),TRUE)","v":false}]
[{"$f":"_xlfn.XLOOKUP(MID(C290,1,1),Type[lettre type],Type[type])","v":"Tapis"},286,"I26",{"$f":"\"https://sico-my.sharepoint.com/personal/julien_carestiato_fondation-ove_fr/Documents/Images/1potiniere/\"&Tableau2[[#This Row],[numéro]]&\".png\"","v":"https://sico-my.sharepoint.com/personal/julien_carestiato_fondation-ove_fr/Documents/Images/1potiniere/I26.png"},"Photo non dispo","TAPIS CHOCOLAT A FRANGE ",{"$f":"IF(Tableau2[[#This Row],[déjà en prêt commande]]=TRUE,\" \",Tableau2[[#This Row],[numéro]]&\" \"&Tableau2[[#This Row],[désignation]])","v":"I26 TAPIS CHOCOLAT A FRANGE "},{"$f":"Tableau2[[#This Row],[numéro]]&\" \"&Tableau2[[#This Row],[désignation]]","v":"I26 TAPIS CHOCOLAT A FRANGE "},"200 X 280",400,80,null,{"$f":"IF(Tableau2[[#This Row],[destinataire]]=0,IF(_xlfn.XLOOKUP(Tableau2[[#This Row],[code désignation]],commandecolonne[lisiting commande colonne],commandecolonne[lisiting commande colonne],FALSE)=Tableau2[[#This Row],[code désignation]],TRUE,FALSE),TRUE)","v":false}]
[{"$f":"_xlfn.XLOOKUP(MID(C291,1,1),Type[lettre type],Type[type])","v":"Tapis"},287,"I27",{"$f":"\"https://sico-my.sharepoint.com/personal/julien_carestiato_fondation-ove_fr/Documents/Images/1potiniere/\"&Tableau2[[#This Row],[numéro]]&\".png\"","v":"https://sico-my.sharepoint.com/personal/julien_carestiato_fondation-ove_fr/Documents/Images/1potiniere/I27.png"},null,"TAPIS BEIGE RAS",{"$f":"IF(Tableau2[[#This Row],[déjà en prêt commande]]=TRUE,\" \",Tableau2[[#This Row],[numéro]]&\" \"&Tableau2[[#This Row],[désignation]])","v":"I27 TAPIS BEIGE RAS"},{"$f":"Tableau2[[#This Row],[numéro]]&\" \"&Tableau2[[#This Row],[désignation]]","v":"I27 TAPIS BEIGE RAS"},"250 X 300",400,80,null,{"$f":"IF(Tableau2[[#This Row],[destinataire]]=0,IF(_xlfn.XLOOKUP(Tableau2[[#This Row],[code désignation]],commandecolonne[lisiting commande colonne],commandecolonne[lisiting commande colonne],FALSE)=Tableau2[[#This Row],[code désignation]],TRUE,FALSE),TRUE)","v":false}]
[{"$f":"_xlfn.XLOOKUP(MID(C292,1,1),Type[lettre type],Type[type])","v":"Tapis"},288,"I28",{"$f":"\"https://sico-my.sharepoint.com/personal/julien_carestiato_fondation-ove_fr/Documents/Images/1potiniere/\"&Tableau2[[#This Row],[numéro]]&\".png\"","v":"https://sico-my.sharepoint.com/personal/julien_carestiato_fondation-ove_fr/Documents/Images/1potiniere/I28.png"},null,"TAPIS FRANGE GRIS NOIR",{"$f":"IF(Tableau2[[#This Row],[déjà en prêt commande]]=TRUE,\" \",Tableau2[[#This Row],[numéro]]&\" \"&Tableau2[[#This Row],[désignation]])","v":"I28 TAPIS FRANGE GRIS NOIR"},{"$f":"Tableau2[[#This Row],[numéro]]&\" \"&Tableau2[[#This Row],[désignation]]","v":"I28 TAPIS FRANGE GRIS NOIR"},"370 X 300",400,80,null,{"$f":"IF(Tableau2[[#This Row],[destinataire]]=0,IF(_xlfn.XLOOKUP(Tableau2[[#This Row],[code désignation]],commandecolonne[lisiting commande colonne],commandecolonne[lisiting commande colonne],FALSE)=Tableau2[[#This Row],[code désignation]],TRUE,FALSE),TRUE)","v":false}]
[{"$f":"_xlfn.XLOOKUP(MID(C293,1,1),Type[lettre type],Type[type])","v":"Tapis"},289,"I29",{"$f":"\"https://sico-my.sharepoint.com/personal/julien_carestiato_fondation-ove_fr/Documents/Images/1potiniere/\"&Tableau2[[#This Row],[numéro]]&\".png\"","v":"https://sico-my.sharepoint.com/personal/julien_carestiato_fondation-ove_fr/Documents/Images/1potiniere/I29.png"},null,"TAPIS BEIGE",{"$f":"IF(Tableau2[[#This Row],[déjà en prêt commande]]=TRUE,\" \",Tableau2[[#This Row],[numéro]]&\" \"&Tableau2[[#This Row],[désignation]])","v":"I29 TAPIS BEIGE"},{"$f":"Tableau2[[#This Row],[numéro]]&\" \"&Tableau2[[#This Row],[désignation]]","v":"I29 TAPIS BEIGE"},"360 x 300",400,80,null,{"$f":"IF(Tableau2[[#This Row],[destinataire]]=0,IF(_xlfn.XLOOKUP(Tableau2[[#This Row],[code désignation]],commandecolonne[lisiting commande colonne],commandecolonne[lisiting commande colonne],FALSE)=Tableau2[[#This Row],[code désignation]],TRUE,FALSE),TRUE)","v":false}]
[{"$f":"_xlfn.XLOOKUP(MID(C294,1,1),Type[lettre type],Type[type])","v":"Tapis"},290,"I30",{"$f":"\"https://sico-my.sharepoint.com/personal/julien_carestiato_fondation-ove_fr/Documents/Images/1potiniere/\"&Tableau2[[#This Row],[numéro]]&\".png\"","v":"https://sico-my.sharepoint.com/personal/julien_carestiato_fondation-ove_fr/Documents/Images/1potiniere/I30.png"},null,"TAPIS FRANGE MARRON MORDORE",{"$f":"IF(Tableau2[[#This Row],[déjà en prêt commande]]=TRUE,\" \",Tableau2[[#This Row],[numéro]]&\" \"&Tableau2[[#This Row],[désignation]])","v":"I30 TAPIS FRANGE MARRON MORDORE"},{"$f":"Tableau2[[#This Row],[numéro]]&\" \"&Tableau2[[#This Row],[désignation]]","v":"I30 TAPIS FRANGE MARRON MORDORE"},"250 x 300",400,80,null,{"$f":"IF(Tableau2[[#This Row],[destinataire]]=0,IF(_xlfn.XLOOKUP(Tableau2[[#This Row],[code désignation]],commandecolonne[lisiting commande colonne],commandecolonne[lisiting commande colonne],FALSE)=Tableau2[[#This Row],[code désignation]],TRUE,FALSE),TRUE)","v":false}]
[{"$f":"_xlfn.XLOOKUP(MID(C295,1,1),Type[lettre type],Type[type])","v":"Tapis"},291,"I31",{"$f":"\"https://sico-my.sharepoint.com/personal/julien_carestiato_fondation-ove_fr/Documents/Images/1potiniere/\"&Tableau2[[#This Row],[numéro]]&\".png\"","v":"https://sico-my.sharepoint.com/personal/julien_carestiato_fondation-ove_fr/Documents/Images/1potiniere/I31.png"},null,"TAPIS ROUGE BLANC BEIGE A FRANGE",{"$f":"IF(Tableau2[[#This Row],[déjà en prêt commande]]=TRUE,\" \",Tableau2[[#This Row],[numéro]]&\" \"&Tableau2[[#This Row],[désignation]])","v":"I31 TAPIS ROUGE BLANC BEIGE A FRANGE"},{"$f":"Tableau2[[#This Row],[numéro]]&\" \"&Tableau2[[#This Row],[désignation]]","v":"I31 TAPIS ROUGE BLANC BEIGE A FRANGE"},"250 x 300",400,80,null,{"$f":"IF(Tableau2[[#This Row],[destinataire]]=0,IF(_xlfn.XLOOKUP(Tableau2[[#This Row],[code désignation]],commandecolonne[lisiting commande colonne],commandecolonne[lisiting commande colonne],FALSE)=Tableau2[[#This Row],[code désignation]],TRUE,FALSE),TRUE)","v":false}]
[{"$f":"_xlfn.XLOOKUP(MID(C296,1,1),Type[lettre type],Type[type])","v":"Tapis"},292,"I32",{"$f":"\"https://sico-my.sharepoint.com/personal/julien_carestiato_fondation-ove_fr/Documents/Images/1potiniere/\"&Tableau2[[#This Row],[numéro]]&\".png\"","v":"https://sico-my.sharepoint.com/personal/julien_carestiato_fondation-ove_fr/Documents/Images/1potiniere/I32.png"},null,"TAPIS FRANGE MARRON MORDORE",{"$f":"IF(Tableau2[[#This Row],[déjà en prêt commande]]=TRUE,\" \",Tableau2[[#This Row],[numéro]]&\" \"&Tableau2[[#This Row],[désignation]])","v":"I32 TAPIS FRANGE MARRON MORDORE"},{"$f":"Tableau2[[#This Row],[numéro]]&\" \"&Tableau2[[#This Row],[désignation]]","v":"I32 TAPIS FRANGE MARRON MORDORE"},"250 x 300",400,80,null,{"$f":"IF(Tableau2[[#This Row],[destinataire]]=0,IF(_xlfn.XLOOKUP(Tableau2[[#This Row],[code désignation]],commandecolonne[lisiting commande colonne],commandecolonne[lisiting commande colonne],FALSE)=Tableau2[[#This Row],[code désignation]],TRUE,FALSE),TRUE)","v":false}]
[{"$f":"_xlfn.XLOOKUP(MID(C297,1,1),Type[lettre type],Type[type])","v":"Tapis"},293,"I33",{"$f":"\"https://sico-my.sharepoint.com/personal/julien_carestiato_fondation-ove_fr/Documents/Images/1potiniere/\"&Tableau2[[#This Row],[numéro]]&\".png\"","v":"https://sico-my.sharepoint.com/personal/julien_carestiato_fondation-ove_fr/Documents/Images/1potiniere/I33.png"},null,"TAPIS BEIGE",{"$f":"IF(Tableau2[[#This Row],[déjà en prêt commande]]=TRUE,\" \",Tableau2[[#This Row],[numéro]]&\" \"&Tableau2[[#This Row],[désignation]])","v":"I33 TAPIS BEIGE"},{"$f":"Tableau2[[#This Row],[numéro]]&\" \"&Tableau2[[#This Row],[désignation]]","v":"I33 TAPIS BEIGE"},"360 x 300",400,80,null,{"$f":"IF(Tableau2[[#This Row],[destinataire]]=0,IF(_xlfn.XLOOKUP(Tableau2[[#This Row],[code désignation]],commandecolonne[lisiting commande colonne],commandecolonne[lisiting commande colonne],FALSE)=Tableau2[[#This Row],[code désignation]],TRUE,FALSE),TRUE)","v":false}]
[{"$f":"_xlfn.XLOOKUP(MID(C298,1,1),Type[lettre type],Type[type])","v":"Tapis"},294,"I34",{"$f":"\"https://sico-my.sharepoint.com/personal/julien_carestiato_fondation-ove_fr/Documents/Images/1potiniere/\"&Tableau2[[#This Row],[numéro]]&\".png\"","v":"https://sico-my.sharepoint.com/personal/julien_carestiato_fondation-ove_fr/Documents/Images/1potiniere/I34.png"},null,"TAPIS BEIGE",{"$f":"IF(Tableau2[[#This Row],[déjà en prêt commande]]=TRUE,\" \",Tableau2[[#This Row],[numéro]]&\" \"&Tableau2[[#This Row],[désignation]])","v":"I34 TAPIS BEIGE"},{"$f":"Tableau2[[#This Row],[numéro]]&\" \"&Tableau2[[#This Row],[désignation]]","v":"I34 TAPIS BEIGE"},"361 x 300",400,80,null,{"$f":"IF(Tableau2[[#This Row],[destinataire]]=0,IF(_xlfn.XLOOKUP(Tableau2[[#This Row],[code désignation]],commandecolonne[lisiting commande colonne],commandecolonne[lisiting commande colonne],FALSE)=Tableau2[[#This Row],[code désignation]],TRUE,FALSE),TRUE)","v":false}]
[{"$f":"_xlfn.XLOOKUP(MID(C299,1,1),Type[lettre type],Type[type])","v":"Tapis"},295,"I35",{"$f":"\"https://sico-my.sharepoint.com/personal/julien_carestiato_fondation-ove_fr/Documents/Images/1potiniere/\"&Tableau2[[#This Row],[numéro]]&\".png\"","v":"https://sico-my.sharepoint.com/personal/julien_carestiato_fondation-ove_fr/Documents/Images/1potiniere/I35.png"},null,"TAPIS MARRON   ",{"$f":"IF(Tableau2[[#This Row],[déjà en prêt commande]]=TRUE,\" \",Tableau2[[#This Row],[numéro]]&\" \"&Tableau2[[#This Row],[désignation]])","v":"I35 TAPIS MARRON   "},{"$f":"Tableau2[[#This Row],[numéro]]&\" \"&Tableau2[[#This Row],[désignation]]","v":"I35 TAPIS MARRON   "},"250 x 300",400,80,null,{"$f":"IF(Tableau2[[#This Row],[destinataire]]=0,IF(_xlfn.XLOOKUP(Tableau2[[#This Row],[code désignation]],commandecolonne[lisiting commande colonne],commandecolonne[lisiting commande colonne],FALSE)=Tableau2[[#This Row],[code désignation]],TRUE,FALSE),TRUE)","v":false}]
[{"$f":"_xlfn.XLOOKUP(MID(C300,1,1),Type[lettre type],Type[type])","v":"Tapis"},296,"I36",{"$f":"\"https://sico-my.sharepoint.com/personal/julien_carestiato_fondation-ove_fr/Documents/Images/1potiniere/\"&Tableau2[[#This Row],[numéro]]&\".png\"","v":"https://sico-my.sharepoint.com/personal/julien_carestiato_fondation-ove_fr/Documents/Images/1potiniere/I36.png"},null,"TAPIS BEIGE FRANGE",{"$f":"IF(Tableau2[[#This Row],[déjà en prêt commande]]=TRUE,\" \",Tableau2[[#This Row],[numéro]]&\" \"&Tableau2[[#This Row],[désignation]])","v":"I36 TAPIS BEIGE FRANGE"},{"$f":"Tableau2[[#This Row],[numéro]]&\" \"&Tableau2[[#This Row],[désignation]]","v":"I36 TAPIS BEIGE FRANGE"},"250 x 300",400,80,null,{"$f":"IF(Tableau2[[#This Row],[destinataire]]=0,IF(_xlfn.XLOOKUP(Tableau2[[#This Row],[code désignation]],commandecolonne[lisiting commande colonne],commandecolonne[lisiting commande colonne],FALSE)=Tableau2[[#This Row],[code désignation]],TRUE,FALSE),TRUE)","v":false}]
[{"$f":"_xlfn.XLOOKUP(MID(C301,1,1),Type[lettre type],Type[type])","v":"Miroir"},297,"J1",{"$f":"\"https://sico-my.sharepoint.com/personal/julien_carestiato_fondation-ove_fr/Documents/Images/1potiniere/\"&Tableau2[[#This Row],[numéro]]&\".png\"","v":"https://sico-my.sharepoint.com/personal/julien_carestiato_fondation-ove_fr/Documents/Images/1potiniere/J1.png"},null,"MIROIR CONTOUR ARGENTE",{"$f":"IF(Tableau2[[#This Row],[déjà en prêt commande]]=TRUE,\" \",Tableau2[[#This Row],[numéro]]&\" \"&Tableau2[[#This Row],[désignation]])","v":"J1 MIROIR CONTOUR ARGENTE"},{"$f":"Tableau2[[#This Row],[numéro]]&\" \"&Tableau2[[#This Row],[désignation]]","v":"J1 MIROIR CONTOUR ARGENTE"},"77X57 cm",100,20,null,{"$f":"IF(Tableau2[[#This Row],[destinataire]]=0,IF(_xlfn.XLOOKUP(Tableau2[[#This Row],[code désignation]],commandecolonne[lisiting commande colonne],commandecolonne[lisiting commande colonne],FALSE)=Tableau2[[#This Row],[code désignation]],TRUE,FALSE),TRUE)","v":false}]
[{"$f":"_xlfn.XLOOKUP(MID(C302,1,1),Type[lettre type],Type[type])","v":"Miroir"},298,"J2",{"$f":"\"https://sico-my.sharepoint.com/personal/julien_carestiato_fondation-ove_fr/Documents/Images/1potiniere/\"&Tableau2[[#This Row],[numéro]]&\".png\"","v":"https://sico-my.sharepoint.com/personal/julien_carestiato_fondation-ove_fr/Documents/Images/1potiniere/J2.png"},null,"MIROIR CONTOUR ARGENTE",{"$f":"IF(Tableau2[[#This Row],[déjà en prêt commande]]=TRUE,\" \",Tableau2[[#This Row],[numéro]]&\" \"&Tableau2[[#This Row],[désignation]])","v":" "},{"$f":"Tableau2[[#This Row],[numéro]]&\" \"&Tableau2[[#This Row],[désignation]]","v":"J2 MIROIR CONTOUR ARGENTE"},"87x67 cm",0,0,"APPARTEMENTS SOUTIEN",{"$f":"IF(Tableau2[[#This Row],[destinataire]]=0,IF(_xlfn.XLOOKUP(Tableau2[[#This Row],[code désignation]],commandecolonne[lisiting commande colonne],commandecolonne[lisiting commande colonne],FALSE)=Tableau2[[#This Row],[code désignation]],TRUE,FALSE),TRUE)","v":true}]
[{"$f":"_xlfn.XLOOKUP(MID(C303,1,1),Type[lettre type],Type[type])","v":"Miroir"},299,"J3",{"$f":"\"https://sico-my.sharepoint.com/personal/julien_carestiato_fondation-ove_fr/Documents/Images/1potiniere/\"&Tableau2[[#This Row],[numéro]]&\".png\"","v":"https://sico-my.sharepoint.com/personal/julien_carestiato_fondation-ove_fr/Documents/Images/1potiniere/J3.png"},null,"MIROIR CONTOUR ARGENTE",{"$f":"IF(Tableau2[[#This Row],[déjà en prêt commande]]=TRUE,\" \",Tableau2[[#This Row],[numéro]]&\" \"&Tableau2[[#This Row],[désignation]])","v":" "},{"$f":"Tableau2[[#This Row],[numéro]]&\" \"&Tableau2[[#This Row],[désignation]]","v":"J3 MIROIR CONTOUR ARGENTE"},"87x67 cm",0,0,"APPARTEMENTS SOUTIEN",{"$f":"IF(Tableau2[[#This Row],[destinataire]]=0,IF(_xlfn.XLOOKUP(Tableau2[[#This Row],[code désignation]],commandecolonne[lisiting commande colonne],commandecolonne[lisiting commande colonne],FALSE)=Tableau2[[#This Row],[code désignation]],TRUE,FALSE),TRUE)","v":true}]
[{"$f":"_xlfn.XLOOKUP(MID(C304,1,1),Type[lettre type],Type[type])","v":"Miroir"},300,"J4",{"$f":"\"https://sico-my.sharepoint.com/personal/julien_carestiato_fondation-ove_fr/Documents/Images/1potiniere/\"&Tableau2[[#This Row],[numéro]]&\".png\"","v":"https://sico-my.sharepoint.com/personal/julien_carestiato_fondation-ove_fr/Documents/Images/1potiniere/J4.png"},null,"MIROIR CONTOUR ARGENTE",{"$f":"IF(Tableau2[[#This Row],[déjà en prêt commande]]=TRUE,\" \",Tableau2[[#This Row],[numéro]]&\" \"&Tableau2[[#This Row],[désignation]])","v":" "},{"$f":"Tableau2[[#This Row],[numéro]]&\" \"&Tableau2[[#This Row],[désignation]]","v":"J4 MIROIR CONTOUR ARGENTE"},"87x67 cm",0,0,"APPARTEMENTS SOUTIEN",{"$f":"IF(Tableau2[[#This Row],[destinataire]]=0,IF(_xlfn.XLOOKUP(Tableau2[[#This Row],[code désignation]],commandecolonne[lisiting commande colonne],commandecolonne[lisiting commande colonne],FALSE)=Tableau2[[#This Row],[code désignation]],TRUE,FALSE),TRUE)","v":true}]
[{"$f":"_xlfn.XLOOKUP(MID(C305,1,1),Type[lettre type],Type[type])","v":"Miroir"},301,"J5",{"$f":"\"https://sico-my.sharepoint.com/personal/julien_carestiato_fondation-ove_fr/Documents/Images/1potiniere/\"&Tableau2[[#This Row],[numéro]]&\".png\"","v":"https://sico-my.sharepoint.com/personal/julien_carestiato_fondation-ove_fr/Documents/Images/1potiniere/J5.png"},"Photo non dispo","MIROIR CONTOUR ARGENTE",{"$f":"IF(Tableau2[[#This Row],[déjà en prêt commande]]=TRUE,\" \",Tableau2[[#This Row],[numéro]]&\" \"&Tableau2[[#This Row],[désignation]])","v":" "},{"$f":"Tableau2[[#This Row],[numéro]]&\" \"&Tableau2[[#This Row],[désignation]]","v":"J5 MIROIR CONTOUR ARGENTE"},"137x77 cm",0,0,"APPARTEMENTS SOUTIEN",{"$f":"IF(Tableau2[[#This Row],[destinataire]]=0,IF(_xlfn.XLOOKUP(Tableau2[[#This Row],[code désignation]],commandecolonne[lisiting commande colonne],commandecolonne[lisiting commande colonne],FALSE)=Tableau2[[#This Row],[code désignation]],TRUE,FALSE),TRUE)","v":true}]
[{"$f":"_xlfn.XLOOKUP(MID(C306,1,1),Type[lettre type],Type[type])","v":"Repose pieds"},302,"L1",{"$f":"\"https://sico-my.sharepoint.com/personal/julien_carestiato_fondation-ove_fr/Documents/Images/1potiniere/\"&Tableau2[[#This Row],[numéro]]&\".png\"","v":"https://sico-my.sharepoint.com/personal/julien_carestiato_fondation-ove_fr/Documents/Images/1potiniere/L1.png"},null,"REPOSE PIEDS GRIS-BLEU                                                   Fauteuil F-3",{"$f":"IF(Tableau2[[#This Row],[déjà en prêt commande]]=TRUE,\" \",Tableau2[[#This Row],[numéro]]&\" \"&Tableau2[[#This Row],[désignation]])","v":" "},{"$f":"Tableau2[[#This Row],[numéro]]&\" \"&Tableau2[[#This Row],[désignation]]","v":"L1 REPOSE PIEDS GRIS-BLEU                                                   Fauteuil F-3"},"H 45 cm / 53X60 cm",0,0,"DITEP ANNECY",{"$f":"IF(Tableau2[[#This Row],[destinataire]]=0,IF(_xlfn.XLOOKUP(Tableau2[[#This Row],[code désignation]],commandecolonne[lisiting commande colonne],commandecolonne[lisiting commande colonne],FALSE)=Tableau2[[#This Row],[code désignation]],TRUE,FALSE),TRUE)","v":true}]
[{"$f":"_xlfn.XLOOKUP(MID(C307,1,1),Type[lettre type],Type[type])","v":"Repose pieds"},303,"L2",{"$f":"\"https://sico-my.sharepoint.com/personal/julien_carestiato_fondation-ove_fr/Documents/Images/1potiniere/\"&Tableau2[[#This Row],[numéro]]&\".png\"","v":"https://sico-my.sharepoint.com/personal/julien_carestiato_fondation-ove_fr/Documents/Images/1potiniere/L2.png"},null,"REPOSE PIEDS GRIS-BLEU                                                 Fauteuil F-4",{"$f":"IF(Tableau2[[#This Row],[déjà en prêt commande]]=TRUE,\" \",Tableau2[[#This Row],[numéro]]&\" \"&Tableau2[[#This Row],[désignation]])","v":" "},{"$f":"Tableau2[[#This Row],[numéro]]&\" \"&Tableau2[[#This Row],[désignation]]","v":"L2 REPOSE PIEDS GRIS-BLEU                                                 Fauteuil F-4"},"H 45 cm / 53X60 cm",0,0,"DITEP ANNECY",{"$f":"IF(Tableau2[[#This Row],[destinataire]]=0,IF(_xlfn.XLOOKUP(Tableau2[[#This Row],[code désignation]],commandecolonne[lisiting commande colonne],commandecolonne[lisiting commande colonne],FALSE)=Tableau2[[#This Row],[code désignation]],TRUE,FALSE),TRUE)","v":true}]
[{"$f":"_xlfn.XLOOKUP(MID(C308,1,1),Type[lettre type],Type[type])","v":"Repose pieds"},304,"L3",{"$f":"\"https://sico-my.sharepoint.com/personal/julien_carestiato_fondation-ove_fr/Documents/Images/1potiniere/\"&Tableau2[[#This Row],[numéro]]&\".png\"","v":"https://sico-my.sharepoint.com/personal/julien_carestiato_fondation-ove_fr/Documents/Images/1potiniere/L3.png"},null,"REPOSE PIEDS MARRON MOTIF DORE                              Fauteuil F-5",{"$f":"IF(Tableau2[[#This Row],[déjà en prêt commande]]=TRUE,\" \",Tableau2[[#This Row],[numéro]]&\" \"&Tableau2[[#This Row],[désignation]])","v":" "},{"$f":"Tableau2[[#This Row],[numéro]]&\" \"&Tableau2[[#This Row],[désignation]]","v":"L3 REPOSE PIEDS MARRON MOTIF DORE                              Fauteuil F-5"},"H 45 cm / 53X60 cm",0,0,"DITEP ANNECY",{"$f":"IF(Tableau2[[#This Row],[destinataire]]=0,IF(_xlfn.XLOOKUP(Tableau2[[#This Row],[code désignation]],commandecolonne[lisiting commande colonne],commandecolonne[lisiting commande colonne],FALSE)=Tableau2[[#This Row],[code désignation]],TRUE,FALSE),TRUE)","v":true}]
[{"$f":"_xlfn.XLOOKUP(MID(C309,1,1),Type[lettre type],Type[type])","v":"Rideau"},305,"M1",{"$f":"\"https://sico-my.sharepoint.com/personal/julien_carestiato_fondation-ove_fr/Documents/Images/1potiniere/\"&Tableau2[[#This Row],[numéro]]&\".png\"","v":"https://sico-my.sharepoint.com/personal/julien_carestiato_fondation-ove_fr/Documents/Images/1potiniere/M1.png"},null,"RIDEAU TRANSPARENT BEIGE               A ŒILLETS",{"$f":"IF(Tableau2[[#This Row],[déjà en prêt commande]]=TRUE,\" \",Tableau2[[#This Row],[numéro]]&\" \"&Tableau2[[#This Row],[désignation]])","v":"M1 RIDEAU TRANSPARENT BEIGE               A ŒILLETS"},{"$f":"Tableau2[[#This Row],[numéro]]&\" \"&Tableau2[[#This Row],[désignation]]","v":"M1 RIDEAU TRANSPARENT BEIGE               A ŒILLETS"}," H 217 X l. 165",100,20,null,{"$f":"IF(Tableau2[[#This Row],[destinataire]]=0,IF(_xlfn.XLOOKUP(Tableau2[[#This Row],[code désignation]],commandecolonne[lisiting commande colonne],commandecolonne[lisiting commande colonne],FALSE)=Tableau2[[#This Row],[code désignation]],TRUE,FALSE),TRUE)","v":false}]
[{"$f":"_xlfn.XLOOKUP(MID(C310,1,1),Type[lettre type],Type[type])","v":"Rideau"},306,"M2",{"$f":"\"https://sico-my.sharepoint.com/personal/julien_carestiato_fondation-ove_fr/Documents/Images/1potiniere/\"&Tableau2[[#This Row],[numéro]]&\".png\"","v":"https://sico-my.sharepoint.com/personal/julien_carestiato_fondation-ove_fr/Documents/Images/1potiniere/M2.png"},null,"RIDEAU TRANSPARENT BEIGE               A ŒILLETS",{"$f":"IF(Tableau2[[#This Row],[déjà en prêt commande]]=TRUE,\" \",Tableau2[[#This Row],[numéro]]&\" \"&Tableau2[[#This Row],[désignation]])","v":"M2 RIDEAU TRANSPARENT BEIGE               A ŒILLETS"},{"$f":"Tableau2[[#This Row],[numéro]]&\" \"&Tableau2[[#This Row],[désignation]]","v":"M2 RIDEAU TRANSPARENT BEIGE               A ŒILLETS"}," H 217 X l. 166",100,20,null,{"$f":"IF(Tableau2[[#This Row],[destinataire]]=0,IF(_xlfn.XLOOKUP(Tableau2[[#This Row],[code désignation]],commandecolonne[lisiting commande colonne],commandecolonne[lisiting commande colonne],FALSE)=Tableau2[[#This Row],[code désignation]],TRUE,FALSE),TRUE)","v":false}]
[{"$f":"_xlfn.XLOOKUP(MID(C311,1,1),Type[lettre type],Type[type])","v":"Rideau"},307,"M3",{"$f":"\"https://sico-my.sharepoint.com/personal/julien_carestiato_fondation-ove_fr/Documents/Images/1potiniere/\"&Tableau2[[#This Row],[numéro]]&\".png\"","v":"https://sico-my.sharepoint.com/personal/julien_carestiato_fondation-ove_fr/Documents/Images/1potiniere/M3.png"},null,"RIDEAU TRANSPARENT BEIGE               A ŒILLETS",{"$f":"IF(Tableau2[[#This Row],[déjà en prêt commande]]=TRUE,\" \",Tableau2[[#This Row],[numéro]]&\" \"&Tableau2[[#This Row],[désignation]])","v":"M3 RIDEAU TRANSPARENT BEIGE               A ŒILLETS"},{"$f":"Tableau2[[#This Row],[numéro]]&\" \"&Tableau2[[#This Row],[désignation]]","v":"M3 RIDEAU TRANSPARENT BEIGE               A ŒILLETS"},"H 217 X l. 165",100,20,null,{"$f":"IF(Tableau2[[#This Row],[destinataire]]=0,IF(_xlfn.XLOOKUP(Tableau2[[#This Row],[code désignation]],commandecolonne[lisiting commande colonne],commandecolonne[lisiting commande colonne],FALSE)=Tableau2[[#This Row],[code désignation]],TRUE,FALSE),TRUE)","v":false}]
[{"$f":"_xlfn.XLOOKUP(MID(C312,1,1),Type[lettre type],Type[type])","v":"Rideau"},308,"M4",{"$f":"\"https://sico-my.sharepoint.com/personal/julien_carestiato_fondation-ove_fr/Documents/Images/1potiniere/\"&Tableau2[[#This Row],[numéro]]&\".png\"","v":"https://sico-my.sharepoint.com/personal/julien_carestiato_fondation-ove_fr/Documents/Images/1potiniere/M4.png"},null,"RIDEAU TRANSPARENT BEIGE               A ŒILLETS",{"$f":"IF(Tableau2[[#This Row],[déjà en prêt commande]]=TRUE,\" \",Tableau2[[#This Row],[numéro]]&\" \"&Tableau2[[#This Row],[désignation]])","v":"M4 RIDEAU TRANSPARENT BEIGE               A ŒILLETS"},{"$f":"Tableau2[[#This Row],[numéro]]&\" \"&Tableau2[[#This Row],[désignation]]","v":"M4 RIDEAU TRANSPARENT BEIGE               A ŒILLETS"},"H 217 X l. 166",100,20,null,{"$f":"IF(Tableau2[[#This Row],[destinataire]]=0,IF(_xlfn.XLOOKUP(Tableau2[[#This Row],[code désignation]],commandecolonne[lisiting commande colonne],commandecolonne[lisiting commande colonne],FALSE)=Tableau2[[#This Row],[code désignation]],TRUE,FALSE),TRUE)","v":false}]
[{"$f":"_xlfn.XLOOKUP(MID(C313,1,1),Type[lettre type],Type[type])","v":"Rideau"},309,"M5",{"$f":"\"https://sico-my.sharepoint.com/personal/julien_carestiato_fondation-ove_fr/Documents/Images/1potiniere/\"&Tableau2[[#This Row],[numéro]]&\".png\"","v":"https://sico-my.sharepoint.com/personal/julien_carestiato_fondation-ove_fr/Documents/Images/1potiniere/M5.png"},null,"RIDEAU TRANSPARENT BEIGE               A ŒILLETS",{"$f":"IF(Tableau2[[#This Row],[déjà en prêt commande]]=TRUE,\" \",Tableau2[[#This Row],[numéro]]&\" \"&Tableau2[[#This Row],[désignation]])","v":"M5 RIDEAU TRANSPARENT BEIGE               A ŒILLETS"},{"$f":"Tableau2[[#This Row],[numéro]]&\" \"&Tableau2[[#This Row],[désignation]]","v":"M5 RIDEAU TRANSPARENT BEIGE               A ŒILLETS"},"H 217 X l. 165",200,40,null,{"$f":"IF(Tableau2[[#This Row],[destinataire]]=0,IF(_xlfn.XLOOKUP(Tableau2[[#This Row],[code désignation]],commandecolonne[lisiting commande colonne],commandecolonne[lisiting commande colonne],FALSE)=Tableau2[[#This Row],[code désignation]],TRUE,FALSE),TRUE)","v":false}]
[{"$f":"_xlfn.XLOOKUP(MID(C314,1,1),Type[lettre type],Type[type])","v":"Rideau"},310,"M6",{"$f":"\"https://sico-my.sharepoint.com/personal/julien_carestiato_fondation-ove_fr/Documents/Images/1potiniere/\"&Tableau2[[#This Row],[numéro]]&\".png\"","v":"https://sico-my.sharepoint.com/personal/julien_carestiato_fondation-ove_fr/Documents/Images/1potiniere/M6.png"},null,"RIDEAU TRANSPARENT BEIGE               A ŒILLETS",{"$f":"IF(Tableau2[[#This Row],[déjà en prêt commande]]=TRUE,\" \",Tableau2[[#This Row],[numéro]]&\" \"&Tableau2[[#This Row],[désignation]])","v":"M6 RIDEAU TRANSPARENT BEIGE               A ŒILLETS"},{"$f":"Tableau2[[#This Row],[numéro]]&\" \"&Tableau2[[#This Row],[désignation]]","v":"M6 RIDEAU TRANSPARENT BEIGE               A ŒILLETS"},"H 217 X l. 166",200,40,null,{"$f":"IF(Tableau2[[#This Row],[destinataire]]=0,IF(_xlfn.XLOOKUP(Tableau2[[#This Row],[code désignation]],commandecolonne[lisiting commande colonne],commandecolonne[lisiting commande colonne],FALSE)=Tableau2[[#This Row],[code désignation]],TRUE,FALSE),TRUE)","v":false}]
[{"$f":"_xlfn.XLOOKUP(MID(C315,1,1),Type[lettre type],Type[type])","v":"Rideau"},311,"M7",{"$f":"\"https://sico-my.sharepoint.com/personal/julien_carestiato_fondation-ove_fr/Documents/Images/1potiniere/\"&Tableau2[[#This Row],[numéro]]&\".png\"","v":"https://sico-my.sharepoint.com/personal/julien_carestiato_fondation-ove_fr/Documents/Images/1potiniere/M7.png"},null,"RIDEAU TRANSPARENT BEIGE               A ŒILLETS",{"$f":"IF(Tableau2[[#This Row],[déjà en prêt commande]]=TRUE,\" \",Tableau2[[#This Row],[numéro]]&\" \"&Tableau2[[#This Row],[désignation]])","v":"M7 RIDEAU TRANSPARENT BEIGE               A ŒILLETS"},{"$f":"Tableau2[[#This Row],[numéro]]&\" \"&Tableau2[[#This Row],[désignation]]","v":"M7 RIDEAU TRANSPARENT BEIGE               A ŒILLETS"},"H 217 X l. 77",200,40,null,{"$f":"IF(Tableau2[[#This Row],[destinataire]]=0,IF(_xlfn.XLOOKUP(Tableau2[[#This Row],[code désignation]],commandecolonne[lisiting commande colonne],commandecolonne[lisiting commande colonne],FALSE)=Tableau2[[#This Row],[code désignation]],TRUE,FALSE),TRUE)","v":false}]
[{"$f":"_xlfn.XLOOKUP(MID(C316,1,1),Type[lettre type],Type[type])","v":"Rideau"},312,"M8",{"$f":"\"https://sico-my.sharepoint.com/personal/julien_carestiato_fondation-ove_fr/Documents/Images/1potiniere/\"&Tableau2[[#This Row],[numéro]]&\".png\"","v":"https://sico-my.sharepoint.com/personal/julien_carestiato_fondation-ove_fr/Documents/Images/1potiniere/M8.png"},null,"RIDEAU TRANSPARENT BEIGE               A ŒILLETS",{"$f":"IF(Tableau2[[#This Row],[déjà en prêt commande]]=TRUE,\" \",Tableau2[[#This Row],[numéro]]&\" \"&Tableau2[[#This Row],[désignation]])","v":"M8 RIDEAU TRANSPARENT BEIGE               A ŒILLETS"},{"$f":"Tableau2[[#This Row],[numéro]]&\" \"&Tableau2[[#This Row],[désignation]]","v":"M8 RIDEAU TRANSPARENT BEIGE               A ŒILLETS"},"H 217 X l. 78",200,40,null,{"$f":"IF(Tableau2[[#This Row],[destinataire]]=0,IF(_xlfn.XLOOKUP(Tableau2[[#This Row],[code désignation]],commandecolonne[lisiting commande colonne],commandecolonne[lisiting commande colonne],FALSE)=Tableau2[[#This Row],[code désignation]],TRUE,FALSE),TRUE)","v":false}]
[{"$f":"_xlfn.XLOOKUP(MID(C317,1,1),Type[lettre type],Type[type])","v":"Rideau"},313,"M9",{"$f":"\"https://sico-my.sharepoint.com/personal/julien_carestiato_fondation-ove_fr/Documents/Images/1potiniere/\"&Tableau2[[#This Row],[numéro]]&\".png\"","v":"https://sico-my.sharepoint.com/personal/julien_carestiato_fondation-ove_fr/Documents/Images/1potiniere/M9.png"},null,"DOUBLE RIDEAU MARRON-CUIVRE     A FRONCE",{"$f":"IF(Tableau2[[#This Row],[déjà en prêt commande]]=TRUE,\" \",Tableau2[[#This Row],[numéro]]&\" \"&Tableau2[[#This Row],[désignation]])","v":"M9 DOUBLE RIDEAU MARRON-CUIVRE     A FRONCE"},{"$f":"Tableau2[[#This Row],[numéro]]&\" \"&Tableau2[[#This Row],[désignation]]","v":"M9 DOUBLE RIDEAU MARRON-CUIVRE     A FRONCE"},"H 217 X l. 200",200,40,null,{"$f":"IF(Tableau2[[#This Row],[destinataire]]=0,IF(_xlfn.XLOOKUP(Tableau2[[#This Row],[code désignation]],commandecolonne[lisiting commande colonne],commandecolonne[lisiting commande colonne],FALSE)=Tableau2[[#This Row],[code désignation]],TRUE,FALSE),TRUE)","v":false}]
[{"$f":"_xlfn.XLOOKUP(MID(C318,1,1),Type[lettre type],Type[type])","v":"Rideau"},314,"M10",{"$f":"\"https://sico-my.sharepoint.com/personal/julien_carestiato_fondation-ove_fr/Documents/Images/1potiniere/\"&Tableau2[[#This Row],[numéro]]&\".png\"","v":"https://sico-my.sharepoint.com/personal/julien_carestiato_fondation-ove_fr/Documents/Images/1potiniere/M10.png"},null,"DOUBLE RIDEAU MARRON-CUIVRE     A FRONCE",{"$f":"IF(Tableau2[[#This Row],[déjà en prêt commande]]=TRUE,\" \",Tableau2[[#This Row],[numéro]]&\" \"&Tableau2[[#This Row],[désignation]])","v":"M10 DOUBLE RIDEAU MARRON-CUIVRE     A FRONCE"},{"$f":"Tableau2[[#This Row],[numéro]]&\" \"&Tableau2[[#This Row],[désignation]]","v":"M10 DOUBLE RIDEAU MARRON-CUIVRE     A FRONCE"},"H 217 X l. 201",200,40,null,{"$f":"IF(Tableau2[[#This Row],[destinataire]]=0,IF(_xlfn.XLOOKUP(Tableau2[[#This Row],[code désignation]],commandecolonne[lisiting commande colonne],commandecolonne[lisiting commande colonne],FALSE)=Tableau2[[#This Row],[code désignation]],TRUE,FALSE),TRUE)","v":false}]
[{"$f":"_xlfn.XLOOKUP(MID(C319,1,1),Type[lettre type],Type[type])","v":"Rideau"},315,"M11",{"$f":"\"https://sico-my.sharepoint.com/personal/julien_carestiato_fondation-ove_fr/Documents/Images/1potiniere/\"&Tableau2[[#This Row],[numéro]]&\".png\"","v":"https://sico-my.sharepoint.com/personal/julien_carestiato_fondation-ove_fr/Documents/Images/1potiniere/M11.png"},null,"DOUBLE RIDEAU MARRON-CUIVRE     A FRONCE",{"$f":"IF(Tableau2[[#This Row],[déjà en prêt commande]]=TRUE,\" \",Tableau2[[#This Row],[numéro]]&\" \"&Tableau2[[#This Row],[désignation]])","v":"M11 DOUBLE RIDEAU MARRON-CUIVRE     A FRONCE"},{"$f":"Tableau2[[#This Row],[numéro]]&\" \"&Tableau2[[#This Row],[désignation]]","v":"M11 DOUBLE RIDEAU MARRON-CUIVRE     A FRONCE"},"H 217 X l. 200",200,40,null,{"$f":"IF(Tableau2[[#This Row],[destinataire]]=0,IF(_xlfn.XLOOKUP(Tableau2[[#This Row],[code désignation]],commandecolonne[lisiting commande colonne],commandecolonne[lisiting commande colonne],FALSE)=Tableau2[[#This Row],[code désignation]],TRUE,FALSE),TRUE)","v":false}]
[{"$f":"_xlfn.XLOOKUP(MID(C320,1,1),Type[lettre type],Type[type])","v":"Rideau"},316,"M12",{"$f":"\"https://sico-my.sharepoint.com/personal/julien_carestiato_fondation-ove_fr/Documents/Images/1potiniere/\"&Tableau2[[#This Row],[numéro]]&\".png\"","v":"https://sico-my.sharepoint.com/personal/julien_carestiato_fondation-ove_fr/Documents/Images/1potiniere/M12.png"},null,"DOUBLE RIDEAU MARRON-CUIVRE     A FRONCE",{"$f":"IF(Tableau2[[#This Row],[déjà en prêt commande]]=TRUE,\" \",Tableau2[[#This Row],[numéro]]&\" \"&Tableau2[[#This Row],[désignation]])","v":"M12 DOUBLE RIDEAU MARRON-CUIVRE     A FRONCE"},{"$f":"Tableau2[[#This Row],[numéro]]&\" \"&Tableau2[[#This Row],[désignation]]","v":"M12 DOUBLE RIDEAU MARRON-CUIVRE     A FRONCE"},"H 217 X l. 201",200,40,null,{"$f":"IF(Tableau2[[#This Row],[destinataire]]=0,IF(_xlfn.XLOOKUP(Tableau2[[#This Row],[code désignation]],commandecolonne[lisiting commande colonne],commandecolonne[lisiting commande colonne],FALSE)=Tableau2[[#This Row],[code désignation]],TRUE,FALSE),TRUE)","v":false}]
[{"$f":"_xlfn.XLOOKUP(MID(C321,1,1),Type[lettre type],Type[type])","v":"Rideau"},317,"M13",{"$f":"\"https://sico-my.sharepoint.com/personal/julien_carestiato_fondation-ove_fr/Documents/Images/1potiniere/\"&Tableau2[[#This Row],[numéro]]&\".png\"","v":"https://sico-my.sharepoint.com/personal/julien_carestiato_fondation-ove_fr/Documents/Images/1potiniere/M13.png"},null,"DOUBLE RIDEAU MARRON-CUIVRE     A FRONCE",{"$f":"IF(Tableau2[[#This Row],[déjà en prêt commande]]=TRUE,\" \",Tableau2[[#This Row],[numéro]]&\" \"&Tableau2[[#This Row],[désignation]])","v":"M13 DOUBLE RIDEAU MARRON-CUIVRE     A FRONCE"},{"$f":"Tableau2[[#This Row],[numéro]]&\" \"&Tableau2[[#This Row],[désignation]]","v":"M13 DOUBLE RIDEAU MARRON-CUIVRE     A FRONCE"},"H 217 x l. 65",200,40,null,{"$f":"IF(Tableau2[[#This Row],[destinataire]]=0,IF(_xlfn.XLOOKUP(Tableau2[[#This Row],[code désignation]],commandecolonne[lisiting commande colonne],commandecolonne[lisiting commande colonne],FALSE)=Tableau2[[#This Row],[code désignation]],TRUE,FALSE),TRUE)","v":false}]
[{"$f":"_xlfn.XLOOKUP(MID(C322,1,1),Type[lettre type],Type[type])","v":"Rideau"},318,"M14",{"$f":"\"https://sico-my.sharepoint.com/personal/julien_carestiato_fondation-ove_fr/Documents/Images/1potiniere/\"&Tableau2[[#This Row],[numéro]]&\".png\"","v":"https://sico-my.sharepoint.com/personal/julien_carestiato_fondation-ove_fr/Documents/Images/1potiniere/M14.png"},null,"DOUBLE RIDEAU MARRON-CUIVRE     A FRONCE",{"$f":"IF(Tableau2[[#This Row],[déjà en prêt commande]]=TRUE,\" \",Tableau2[[#This Row],[numéro]]&\" \"&Tableau2[[#This Row],[désignation]])","v":"M14 DOUBLE RIDEAU MARRON-CUIVRE     A FRONCE"},{"$f":"Tableau2[[#This Row],[numéro]]&\" \"&Tableau2[[#This Row],[désignation]]","v":"M14 DOUBLE RIDEAU MARRON-CUIVRE     A FRONCE"},"H 217 X l. 200",200,40,null,{"$f":"IF(Tableau2[[#This Row],[destinataire]]=0,IF(_xlfn.XLOOKUP(Tableau2[[#This Row],[code désignation]],commandecolonne[lisiting commande colonne],commandecolonne[lisiting commande colonne],FALSE)=Tableau2[[#This Row],[code désignation]],TRUE,FALSE),TRUE)","v":false}]
[{"$f":"_xlfn.XLOOKUP(MID(C323,1,1),Type[lettre type],Type[type])","v":"Rideau"},319,"M15",{"$f":"\"https://sico-my.sharepoint.com/personal/julien_carestiato_fondation-ove_fr/Documents/Images/1potiniere/\"&Tableau2[[#This Row],[numéro]]&\".png\"","v":"https://sico-my.sharepoint.com/personal/julien_carestiato_fondation-ove_fr/Documents/Images/1potiniere/M15.png"},null,"DOUBLE RIDEAU MARRON-CUIVRE     A FRONCE",{"$f":"IF(Tableau2[[#This Row],[déjà en prêt commande]]=TRUE,\" \",Tableau2[[#This Row],[numéro]]&\" \"&Tableau2[[#This Row],[désignation]])","v":"M15 DOUBLE RIDEAU MARRON-CUIVRE     A FRONCE"},{"$f":"Tableau2[[#This Row],[numéro]]&\" \"&Tableau2[[#This Row],[désignation]]","v":"M15 DOUBLE RIDEAU MARRON-CUIVRE     A FRONCE"},"H 217 X l. 201",200,40,null,{"$f":"IF(Tableau2[[#This Row],[destinataire]]=0,IF(_xlfn.XLOOKUP(Tableau2[[#This Row],[code désignation]],commandecolonne[lisiting commande colonne],commandecolonne[lisiting commande colonne],FALSE)=Tableau2[[#This Row],[code désignation]],TRUE,FALSE),TRUE)","v":false}]
[{"$f":"_xlfn.XLOOKUP(MID(C324,1,1),Type[lettre type],Type[type])","v":"Rideau"},320,"M16",{"$f":"\"https://sico-my.sharepoint.com/personal/julien_carestiato_fondation-ove_fr/Documents/Images/1potiniere/\"&Tableau2[[#This Row],[numéro]]&\".png\"","v":"https://sico-my.sharepoint.com/personal/julien_carestiato_fondation-ove_fr/Documents/Images/1potiniere/M16.png"},null,"DOUBLE RIDEAU MARRON-CUIVRE     A FRONCE",{"$f":"IF(Tableau2[[#This Row],[déjà en prêt commande]]=TRUE,\" \",Tableau2[[#This Row],[numéro]]&\" \"&Tableau2[[#This Row],[désignation]])","v":"M16 DOUBLE RIDEAU MARRON-CUIVRE     A FRONCE"},{"$f":"Tableau2[[#This Row],[numéro]]&\" \"&Tableau2[[#This Row],[désignation]]","v":"M16 DOUBLE RIDEAU MARRON-CUIVRE     A FRONCE"},"H 217 X l. 200",200,40,null,{"$f":"IF(Tableau2[[#This Row],[destinataire]]=0,IF(_xlfn.XLOOKUP(Tableau2[[#This Row],[code désignation]],commandecolonne[lisiting commande colonne],commandecolonne[lisiting commande colonne],FALSE)=Tableau2[[#This Row],[code désignation]],TRUE,FALSE),TRUE)","v":false}]
[{"$f":"_xlfn.XLOOKUP(MID(C325,1,1),Type[lettre type],Type[type])","v":"Rideau"},321,"M17",{"$f":"\"https://sico-my.sharepoint.com/personal/julien_carestiato_fondation-ove_fr/Documents/Images/1potiniere/\"&Tableau2[[#This Row],[numéro]]&\".png\"","v":"https://sico-my.sharepoint.com/personal/julien_carestiato_fondation-ove_fr/Documents/Images/1potiniere/M17.png"},null,"DOUBLE RIDEAU MARRON-CUIVRE     A FRONCE",{"$f":"IF(Tableau2[[#This Row],[déjà en prêt commande]]=TRUE,\" \",Tableau2[[#This Row],[numéro]]&\" \"&Tableau2[[#This Row],[désignation]])","v":"M17 DOUBLE RIDEAU MARRON-CUIVRE     A FRONCE"},{"$f":"Tableau2[[#This Row],[numéro]]&\" \"&Tableau2[[#This Row],[désignation]]","v":"M17 DOUBLE RIDEAU MARRON-CUIVRE     A FRONCE"},"H 217 X l. 201",200,40,null,{"$f":"IF(Tableau2[[#This Row],[destinataire]]=0,IF(_xlfn.XLOOKUP(Tableau2[[#This Row],[code désignation]],commandecolonne[lisiting commande colonne],commandecolonne[lisiting commande colonne],FALSE)=Tableau2[[#This Row],[code désignation]],TRUE,FALSE),TRUE)","v":false}]
[{"$f":"_xlfn.XLOOKUP(MID(C326,1,1),Type[lettre type],Type[type])","v":"Rideau"},322,"M18",{"$f":"\"https://sico-my.sharepoint.com/personal/julien_carestiato_fondation-ove_fr/Documents/Images/1potiniere/\"&Tableau2[[#This Row],[numéro]]&\".png\"","v":"https://sico-my.sharepoint.com/personal/julien_carestiato_fondation-ove_fr/Documents/Images/1potiniere/M18.png"},null,"DOUBLE RIDEAU MARRON-CUIVRE     A FRONCE",{"$f":"IF(Tableau2[[#This Row],[déjà en prêt commande]]=TRUE,\" \",Tableau2[[#This Row],[numéro]]&\" \"&Tableau2[[#This Row],[désignation]])","v":"M18 DOUBLE RIDEAU MARRON-CUIVRE     A FRONCE"},{"$f":"Tableau2[[#This Row],[numéro]]&\" \"&Tableau2[[#This Row],[désignation]]","v":"M18 DOUBLE RIDEAU MARRON-CUIVRE     A FRONCE"},"H 217 X l. 275",200,40,null,{"$f":"IF(Tableau2[[#This Row],[destinataire]]=0,IF(_xlfn.XLOOKUP(Tableau2[[#This Row],[code désignation]],commandecolonne[lisiting commande colonne],commandecolonne[lisiting commande colonne],FALSE)=Tableau2[[#This Row],[code désignation]],TRUE,FALSE),TRUE)","v":false}]
[{"$f":"_xlfn.XLOOKUP(MID(C327,1,1),Type[lettre type],Type[type])","v":"Rideau"},323,"M19",{"$f":"\"https://sico-my.sharepoint.com/personal/julien_carestiato_fondation-ove_fr/Documents/Images/1potiniere/\"&Tableau2[[#This Row],[numéro]]&\".png\"","v":"https://sico-my.sharepoint.com/personal/julien_carestiato_fondation-ove_fr/Documents/Images/1potiniere/M19.png"},null,"DOUBLE RIDEAU BEIGE RAYURE MARRON A FRONCE",{"$f":"IF(Tableau2[[#This Row],[déjà en prêt commande]]=TRUE,\" \",Tableau2[[#This Row],[numéro]]&\" \"&Tableau2[[#This Row],[désignation]])","v":"M19 DOUBLE RIDEAU BEIGE RAYURE MARRON A FRONCE"},{"$f":"Tableau2[[#This Row],[numéro]]&\" \"&Tableau2[[#This Row],[désignation]]","v":"M19 DOUBLE RIDEAU BEIGE RAYURE MARRON A FRONCE"},"H 217 x l. 190 cm",200,40,null,{"$f":"IF(Tableau2[[#This Row],[destinataire]]=0,IF(_xlfn.XLOOKUP(Tableau2[[#This Row],[code désignation]],commandecolonne[lisiting commande colonne],commandecolonne[lisiting commande colonne],FALSE)=Tableau2[[#This Row],[code désignation]],TRUE,FALSE),TRUE)","v":false}]
[{"$f":"_xlfn.XLOOKUP(MID(C328,1,1),Type[lettre type],Type[type])","v":"Rideau"},324,"M20",{"$f":"\"https://sico-my.sharepoint.com/personal/julien_carestiato_fondation-ove_fr/Documents/Images/1potiniere/\"&Tableau2[[#This Row],[numéro]]&\".png\"","v":"https://sico-my.sharepoint.com/personal/julien_carestiato_fondation-ove_fr/Documents/Images/1potiniere/M20.png"},null,"DOUBLE RIDEAU BEIGE RAYURE MARRON A FRONCE",{"$f":"IF(Tableau2[[#This Row],[déjà en prêt commande]]=TRUE,\" \",Tableau2[[#This Row],[numéro]]&\" \"&Tableau2[[#This Row],[désignation]])","v":"M20 DOUBLE RIDEAU BEIGE RAYURE MARRON A FRONCE"},{"$f":"Tableau2[[#This Row],[numéro]]&\" \"&Tableau2[[#This Row],[désignation]]","v":"M20 DOUBLE RIDEAU BEIGE RAYURE MARRON A FRONCE"},"H 217 x l. 190 cm",200,40,null,{"$f":"IF(Tableau2[[#This Row],[destinataire]]=0,IF(_xlfn.XLOOKUP(Tableau2[[#This Row],[code désignation]],commandecolonne[lisiting commande colonne],commandecolonne[lisiting commande colonne],FALSE)=Tableau2[[#This Row],[code désignation]],TRUE,FALSE),TRUE)","v":false}]
[{"$f":"_xlfn.XLOOKUP(MID(C329,1,1),Type[lettre type],Type[type])","v":"Rideau"},325,"M21",{"$f":"\"https://sico-my.sharepoint.com/personal/julien_carestiato_fondation-ove_fr/Documents/Images/1potiniere/\"&Tableau2[[#This Row],[numéro]]&\".png\"","v":"https://sico-my.sharepoint.com/personal/julien_carestiato_fondation-ove_fr/Documents/Images/1potiniere/M21.png"},null,"DOUBLE RIDEAU BEIGE RAYURE MARRON A FRONCE",{"$f":"IF(Tableau2[[#This Row],[déjà en prêt commande]]=TRUE,\" \",Tableau2[[#This Row],[numéro]]&\" \"&Tableau2[[#This Row],[désignation]])","v":"M21 DOUBLE RIDEAU BEIGE RAYURE MARRON A FRONCE"},{"$f":"Tableau2[[#This Row],[numéro]]&\" \"&Tableau2[[#This Row],[désignation]]","v":"M21 DOUBLE RIDEAU BEIGE RAYURE MARRON A FRONCE"},"H 217 x l. 240 cm",200,40,null,{"$f":"IF(Tableau2[[#This Row],[destinataire]]=0,IF(_xlfn.XLOOKUP(Tableau2[[#This Row],[code désignation]],commandecolonne[lisiting commande colonne],commandecolonne[lisiting commande colonne],FALSE)=Tableau2[[#This Row],[code désignation]],TRUE,FALSE),TRUE)","v":false}]
[{"$f":"_xlfn.XLOOKUP(MID(C330,1,1),Type[lettre type],Type[type])","v":"Rideau"},326,"M22",{"$f":"\"https://sico-my.sharepoint.com/personal/julien_carestiato_fondation-ove_fr/Documents/Images/1potiniere/\"&Tableau2[[#This Row],[numéro]]&\".png\"","v":"https://sico-my.sharepoint.com/personal/julien_carestiato_fondation-ove_fr/Documents/Images/1potiniere/M22.png"},null,"DOUBLE RIDEAU BEIGE RAYURE MARRON A ŒILLETS",{"$f":"IF(Tableau2[[#This Row],[déjà en prêt commande]]=TRUE,\" \",Tableau2[[#This Row],[numéro]]&\" \"&Tableau2[[#This Row],[désignation]])","v":"M22 DOUBLE RIDEAU BEIGE RAYURE MARRON A ŒILLETS"},{"$f":"Tableau2[[#This Row],[numéro]]&\" \"&Tableau2[[#This Row],[désignation]]","v":"M22 DOUBLE RIDEAU BEIGE RAYURE MARRON A ŒILLETS"},"H 217 x l. 140 cm",200,40,null,{"$f":"IF(Tableau2[[#This Row],[destinataire]]=0,IF(_xlfn.XLOOKUP(Tableau2[[#This Row],[code désignation]],commandecolonne[lisiting commande colonne],commandecolonne[lisiting commande colonne],FALSE)=Tableau2[[#This Row],[code désignation]],TRUE,FALSE),TRUE)","v":false}]
[{"$f":"_xlfn.XLOOKUP(MID(C331,1,1),Type[lettre type],Type[type])","v":"Rideau"},327,"M23",{"$f":"\"https://sico-my.sharepoint.com/personal/julien_carestiato_fondation-ove_fr/Documents/Images/1potiniere/\"&Tableau2[[#This Row],[numéro]]&\".png\"","v":"https://sico-my.sharepoint.com/personal/julien_carestiato_fondation-ove_fr/Documents/Images/1potiniere/M23.png"},null,"DOUBLE RIDEAU BEIGE RAYURE MARRON A ŒILLETS",{"$f":"IF(Tableau2[[#This Row],[déjà en prêt commande]]=TRUE,\" \",Tableau2[[#This Row],[numéro]]&\" \"&Tableau2[[#This Row],[désignation]])","v":"M23 DOUBLE RIDEAU BEIGE RAYURE MARRON A ŒILLETS"},{"$f":"Tableau2[[#This Row],[numéro]]&\" \"&Tableau2[[#This Row],[désignation]]","v":"M23 DOUBLE RIDEAU BEIGE RAYURE MARRON A ŒILLETS"},"H 217 x l. 140 cm",200,40,null,{"$f":"IF(Tableau2[[#This Row],[destinataire]]=0,IF(_xlfn.XLOOKUP(Tableau2[[#This Row],[code désignation]],commandecolonne[lisiting commande colonne],commandecolonne[lisiting commande colonne],FALSE)=Tableau2[[#This Row],[code désignation]],TRUE,FALSE),TRUE)","v":false}]
[{"$f":"_xlfn.XLOOKUP(MID(C332,1,1),Type[lettre type],Type[type])","v":"Rideau"},328,"M24",{"$f":"\"https://sico-my.sharepoint.com/personal/julien_carestiato_fondation-ove_fr/Documents/Images/1potiniere/\"&Tableau2[[#This Row],[numéro]]&\".png\"","v":"https://sico-my.sharepoint.com/personal/julien_carestiato_fondation-ove_fr/Documents/Images/1potiniere/M24.png"},null,"DOUBLE RIDEAU BEIGE RAYURE MARRON A FRONCE",{"$f":"IF(Tableau2[[#This Row],[déjà en prêt commande]]=TRUE,\" \",Tableau2[[#This Row],[numéro]]&\" \"&Tableau2[[#This Row],[désignation]])","v":"M24 DOUBLE RIDEAU BEIGE RAYURE MARRON A FRONCE"},{"$f":"Tableau2[[#This Row],[numéro]]&\" \"&Tableau2[[#This Row],[désignation]]","v":"M24 DOUBLE RIDEAU BEIGE RAYURE MARRON A FRONCE"},"H 217 x l. 140 cm",200,40,null,{"$f":"IF(Tableau2[[#This Row],[destinataire]]=0,IF(_xlfn.XLOOKUP(Tableau2[[#This Row],[code désignation]],commandecolonne[lisiting commande colonne],commandecolonne[lisiting commande colonne],FALSE)=Tableau2[[#This Row],[code désignation]],TRUE,FALSE),TRUE)","v":false}]
[{"$f":"_xlfn.XLOOKUP(MID(C333,1,1),Type[lettre type],Type[type])","v":"Rideau"},329,"M25",{"$f":"\"https://sico-my.sharepoint.com/personal/julien_carestiato_fondation-ove_fr/Documents/Images/1potiniere/\"&Tableau2[[#This Row],[numéro]]&\".png\"","v":"https://sico-my.sharepoint.com/personal/julien_carestiato_fondation-ove_fr/Documents/Images/1potiniere/M25.png"},null,"DOUBLE RIDEAU VELOUR ROUGE - MOTIFS MARRONS                                  A OEILLETS",{"$f":"IF(Tableau2[[#This Row],[déjà en prêt commande]]=TRUE,\" \",Tableau2[[#This Row],[numéro]]&\" \"&Tableau2[[#This Row],[désignation]])","v":"M25 DOUBLE RIDEAU VELOUR ROUGE - MOTIFS MARRONS                                  A OEILLETS"},{"$f":"Tableau2[[#This Row],[numéro]]&\" \"&Tableau2[[#This Row],[désignation]]","v":"M25 DOUBLE RIDEAU VELOUR ROUGE - MOTIFS MARRONS                                  A OEILLETS"},"H 230 x l. 130 cm",200,40,null,{"$f":"IF(Tableau2[[#This Row],[destinataire]]=0,IF(_xlfn.XLOOKUP(Tableau2[[#This Row],[code désignation]],commandecolonne[lisiting commande colonne],commandecolonne[lisiting commande colonne],FALSE)=Tableau2[[#This Row],[code désignation]],TRUE,FALSE),TRUE)","v":false}]
[{"$f":"_xlfn.XLOOKUP(MID(C334,1,1),Type[lettre type],Type[type])","v":"Rideau"},330,"M26",{"$f":"\"https://sico-my.sharepoint.com/personal/julien_carestiato_fondation-ove_fr/Documents/Images/1potiniere/\"&Tableau2[[#This Row],[numéro]]&\".png\"","v":"https://sico-my.sharepoint.com/personal/julien_carestiato_fondation-ove_fr/Documents/Images/1potiniere/M26.png"},null,"DOUBLE RIDEAU VELOUR ROUGE - MOTIFS MARRONS                                  A OEILLETS",{"$f":"IF(Tableau2[[#This Row],[déjà en prêt commande]]=TRUE,\" \",Tableau2[[#This Row],[numéro]]&\" \"&Tableau2[[#This Row],[désignation]])","v":"M26 DOUBLE RIDEAU VELOUR ROUGE - MOTIFS MARRONS                                  A OEILLETS"},{"$f":"Tableau2[[#This Row],[numéro]]&\" \"&Tableau2[[#This Row],[désignation]]","v":"M26 DOUBLE RIDEAU VELOUR ROUGE - MOTIFS MARRONS                                  A OEILLETS"},"H 230 x l. 130 cm",200,40,null,{"$f":"IF(Tableau2[[#This Row],[destinataire]]=0,IF(_xlfn.XLOOKUP(Tableau2[[#This Row],[code désignation]],commandecolonne[lisiting commande colonne],commandecolonne[lisiting commande colonne],FALSE)=Tableau2[[#This Row],[code désignation]],TRUE,FALSE),TRUE)","v":false}]
[{"$f":"_xlfn.XLOOKUP(MID(C335,1,1),Type[lettre type],Type[type])","v":"Rideau"},331,"M27",{"$f":"\"https://sico-my.sharepoint.com/personal/julien_carestiato_fondation-ove_fr/Documents/Images/1potiniere/\"&Tableau2[[#This Row],[numéro]]&\".png\"","v":"https://sico-my.sharepoint.com/personal/julien_carestiato_fondation-ove_fr/Documents/Images/1potiniere/M27.png"},null,"DOUBLE RIDEAU BEIGE A ŒILLETS (SOUS PENTE)",{"$f":"IF(Tableau2[[#This Row],[déjà en prêt commande]]=TRUE,\" \",Tableau2[[#This Row],[numéro]]&\" \"&Tableau2[[#This Row],[désignation]])","v":"M27 DOUBLE RIDEAU BEIGE A ŒILLETS (SOUS PENTE)"},{"$f":"Tableau2[[#This Row],[numéro]]&\" \"&Tableau2[[#This Row],[désignation]]","v":"M27 DOUBLE RIDEAU BEIGE A ŒILLETS (SOUS PENTE)"},"H 230 x l. 265",200,40,null,{"$f":"IF(Tableau2[[#This Row],[destinataire]]=0,IF(_xlfn.XLOOKUP(Tableau2[[#This Row],[code désignation]],commandecolonne[lisiting commande colonne],commandecolonne[lisiting commande colonne],FALSE)=Tableau2[[#This Row],[code désignation]],TRUE,FALSE),TRUE)","v":false}]
[{"$f":"_xlfn.XLOOKUP(MID(C336,1,1),Type[lettre type],Type[type])","v":"Rideau"},332,"M28",{"$f":"\"https://sico-my.sharepoint.com/personal/julien_carestiato_fondation-ove_fr/Documents/Images/1potiniere/\"&Tableau2[[#This Row],[numéro]]&\".png\"","v":"https://sico-my.sharepoint.com/personal/julien_carestiato_fondation-ove_fr/Documents/Images/1potiniere/M28.png"},null,"DOUBLE RIDEAU BEIGE A ŒILLETS (SOUS PENTE)",{"$f":"IF(Tableau2[[#This Row],[déjà en prêt commande]]=TRUE,\" \",Tableau2[[#This Row],[numéro]]&\" \"&Tableau2[[#This Row],[désignation]])","v":"M28 DOUBLE RIDEAU BEIGE A ŒILLETS (SOUS PENTE)"},{"$f":"Tableau2[[#This Row],[numéro]]&\" \"&Tableau2[[#This Row],[désignation]]","v":"M28 DOUBLE RIDEAU BEIGE A ŒILLETS (SOUS PENTE)"},"H 230 x l. 266",200,40,null,{"$f":"IF(Tableau2[[#This Row],[destinataire]]=0,IF(_xlfn.XLOOKUP(Tableau2[[#This Row],[code désignation]],commandecolonne[lisiting commande colonne],commandecolonne[lisiting commande colonne],FALSE)=Tableau2[[#This Row],[code désignation]],TRUE,FALSE),TRUE)","v":false}]
[{"$f":"_xlfn.XLOOKUP(MID(C337,1,1),Type[lettre type],Type[type])","v":"Rideau"},333,"M29",{"$f":"\"https://sico-my.sharepoint.com/personal/julien_carestiato_fondation-ove_fr/Documents/Images/1potiniere/\"&Tableau2[[#This Row],[numéro]]&\".png\"","v":"https://sico-my.sharepoint.com/personal/julien_carestiato_fondation-ove_fr/Documents/Images/1potiniere/M29.png"},null,"RIDEAU BEIGE IRISE A ŒILLETS",{"$f":"IF(Tableau2[[#This Row],[déjà en prêt commande]]=TRUE,\" \",Tableau2[[#This Row],[numéro]]&\" \"&Tableau2[[#This Row],[désignation]])","v":"M29 RIDEAU BEIGE IRISE A ŒILLETS"},{"$f":"Tableau2[[#This Row],[numéro]]&\" \"&Tableau2[[#This Row],[désignation]]","v":"M29 RIDEAU BEIGE IRISE A ŒILLETS"},"H 227 x l. 204",200,40,null,{"$f":"IF(Tableau2[[#This Row],[destinataire]]=0,IF(_xlfn.XLOOKUP(Tableau2[[#This Row],[code désignation]],commandecolonne[lisiting commande colonne],commandecolonne[lisiting commande colonne],FALSE)=Tableau2[[#This Row],[code désignation]],TRUE,FALSE),TRUE)","v":false}]
[{"$f":"_xlfn.XLOOKUP(MID(C338,1,1),Type[lettre type],Type[type])","v":"Rideau"},334,"M30",{"$f":"\"https://sico-my.sharepoint.com/personal/julien_carestiato_fondation-ove_fr/Documents/Images/1potiniere/\"&Tableau2[[#This Row],[numéro]]&\".png\"","v":"https://sico-my.sharepoint.com/personal/julien_carestiato_fondation-ove_fr/Documents/Images/1potiniere/M30.png"},null,"RIDEAU BEIGE IRISE A ŒILLETS",{"$f":"IF(Tableau2[[#This Row],[déjà en prêt commande]]=TRUE,\" \",Tableau2[[#This Row],[numéro]]&\" \"&Tableau2[[#This Row],[désignation]])","v":"M30 RIDEAU BEIGE IRISE A ŒILLETS"},{"$f":"Tableau2[[#This Row],[numéro]]&\" \"&Tableau2[[#This Row],[désignation]]","v":"M30 RIDEAU BEIGE IRISE A ŒILLETS"},"H 227 x l. 205",200,40,null,{"$f":"IF(Tableau2[[#This Row],[destinataire]]=0,IF(_xlfn.XLOOKUP(Tableau2[[#This Row],[code désignation]],commandecolonne[lisiting commande colonne],commandecolonne[lisiting commande colonne],FALSE)=Tableau2[[#This Row],[code désignation]],TRUE,FALSE),TRUE)","v":false}]
[{"$f":"_xlfn.XLOOKUP(MID(C339,1,1),Type[lettre type],Type[type])","v":"Rideau"},335,"M31",{"$f":"\"https://sico-my.sharepoint.com/personal/julien_carestiato_fondation-ove_fr/Documents/Images/1potiniere/\"&Tableau2[[#This Row],[numéro]]&\".png\"","v":"https://sico-my.sharepoint.com/personal/julien_carestiato_fondation-ove_fr/Documents/Images/1potiniere/M31.png"},null,"DOUBLE RIDEAU RAYE CHOCOLAT - BLEU A FRONCE",{"$f":"IF(Tableau2[[#This Row],[déjà en prêt commande]]=TRUE,\" \",Tableau2[[#This Row],[numéro]]&\" \"&Tableau2[[#This Row],[désignation]])","v":"M31 DOUBLE RIDEAU RAYE CHOCOLAT - BLEU A FRONCE"},{"$f":"Tableau2[[#This Row],[numéro]]&\" \"&Tableau2[[#This Row],[désignation]]","v":"M31 DOUBLE RIDEAU RAYE CHOCOLAT - BLEU A FRONCE"},"H 220 X l. 175 cm",200,40,null,{"$f":"IF(Tableau2[[#This Row],[destinataire]]=0,IF(_xlfn.XLOOKUP(Tableau2[[#This Row],[code désignation]],commandecolonne[lisiting commande colonne],commandecolonne[lisiting commande colonne],FALSE)=Tableau2[[#This Row],[code désignation]],TRUE,FALSE),TRUE)","v":false}]
[{"$f":"_xlfn.XLOOKUP(MID(C340,1,1),Type[lettre type],Type[type])","v":"Rideau"},336,"M32",{"$f":"\"https://sico-my.sharepoint.com/personal/julien_carestiato_fondation-ove_fr/Documents/Images/1potiniere/\"&Tableau2[[#This Row],[numéro]]&\".png\"","v":"https://sico-my.sharepoint.com/personal/julien_carestiato_fondation-ove_fr/Documents/Images/1potiniere/M32.png"},null,"DOUBLE RIDEAU RAYE CHOCOLAT - BLEU A FRONCE",{"$f":"IF(Tableau2[[#This Row],[déjà en prêt commande]]=TRUE,\" \",Tableau2[[#This Row],[numéro]]&\" \"&Tableau2[[#This Row],[désignation]])","v":"M32 DOUBLE RIDEAU RAYE CHOCOLAT - BLEU A FRONCE"},{"$f":"Tableau2[[#This Row],[numéro]]&\" \"&Tableau2[[#This Row],[désignation]]","v":"M32 DOUBLE RIDEAU RAYE CHOCOLAT - BLEU A FRONCE"},"H 220 X l. 175 cm",200,40,null,{"$f":"IF(Tableau2[[#This Row],[destinataire]]=0,IF(_xlfn.XLOOKUP(Tableau2[[#This Row],[code désignation]],commandecolonne[lisiting commande colonne],commandecolonne[lisiting commande colonne],FALSE)=Tableau2[[#This Row],[code désignation]],TRUE,FALSE),TRUE)","v":false}]
[{"$f":"_xlfn.XLOOKUP(MID(C341,1,1),Type[lettre type],Type[type])","v":"Rideau"},337,"M33",{"$f":"\"https://sico-my.sharepoint.com/personal/julien_carestiato_fondation-ove_fr/Documents/Images/1potiniere/\"&Tableau2[[#This Row],[numéro]]&\".png\"","v":"https://sico-my.sharepoint.com/personal/julien_carestiato_fondation-ove_fr/Documents/Images/1potiniere/M33.png"},null,"DOUBLE RIDEAU RAYE CHOCOLAT - BLEU A FRONCE",{"$f":"IF(Tableau2[[#This Row],[déjà en prêt commande]]=TRUE,\" \",Tableau2[[#This Row],[numéro]]&\" \"&Tableau2[[#This Row],[désignation]])","v":"M33 DOUBLE RIDEAU RAYE CHOCOLAT - BLEU A FRONCE"},{"$f":"Tableau2[[#This Row],[numéro]]&\" \"&Tableau2[[#This Row],[désignation]]","v":"M33 DOUBLE RIDEAU RAYE CHOCOLAT - BLEU A FRONCE"},"H 220 X l. 70 cm",200,40,null,{"$f":"IF(Tableau2[[#This Row],[destinataire]]=0,IF(_xlfn.XLOOKUP(Tableau2[[#This Row],[code désignation]],commandecolonne[lisiting commande colonne],commandecolonne[lisiting commande colonne],FALSE)=Tableau2[[#This Row],[code désignation]],TRUE,FALSE),TRUE)","v":false}]
[{"$f":"_xlfn.XLOOKUP(MID(C342,1,1),Type[lettre type],Type[type])","v":"Rideau"},338,"M34",{"$f":"\"https://sico-my.sharepoint.com/personal/julien_carestiato_fondation-ove_fr/Documents/Images/1potiniere/\"&Tableau2[[#This Row],[numéro]]&\".png\"","v":"https://sico-my.sharepoint.com/personal/julien_carestiato_fondation-ove_fr/Documents/Images/1potiniere/M34.png"},null,"DOUBLE RIDEAU RAYE CHOCOLAT - BLEU A FRONCE",{"$f":"IF(Tableau2[[#This Row],[déjà en prêt commande]]=TRUE,\" \",Tableau2[[#This Row],[numéro]]&\" \"&Tableau2[[#This Row],[désignation]])","v":"M34 DOUBLE RIDEAU RAYE CHOCOLAT - BLEU A FRONCE"},{"$f":"Tableau2[[#This Row],[numéro]]&\" \"&Tableau2[[#This Row],[désignation]]","v":"M34 DOUBLE RIDEAU RAYE CHOCOLAT - BLEU A FRONCE"},"H 220 X l. 70 cm",200,40,null,{"$f":"IF(Tableau2[[#This Row],[destinataire]]=0,IF(_xlfn.XLOOKUP(Tableau2[[#This Row],[code désignation]],commandecolonne[lisiting commande colonne],commandecolonne[lisiting commande colonne],FALSE)=Tableau2[[#This Row],[code désignation]],TRUE,FALSE),TRUE)","v":false}]
[{"$f":"_xlfn.XLOOKUP(MID(C343,1,1),Type[lettre type],Type[type])","v":"Rideau"},339,"M35",{"$f":"\"https://sico-my.sharepoint.com/personal/julien_carestiato_fondation-ove_fr/Documents/Images/1potiniere/\"&Tableau2[[#This Row],[numéro]]&\".png\"","v":"https://sico-my.sharepoint.com/personal/julien_carestiato_fondation-ove_fr/Documents/Images/1potiniere/M35.png"},null,"DOUBLE RIDEAU RAYE CHOCOLAT - BLEU A FRONCE",{"$f":"IF(Tableau2[[#This Row],[déjà en prêt commande]]=TRUE,\" \",Tableau2[[#This Row],[numéro]]&\" \"&Tableau2[[#This Row],[désignation]])","v":"M35 DOUBLE RIDEAU RAYE CHOCOLAT - BLEU A FRONCE"},{"$f":"Tableau2[[#This Row],[numéro]]&\" \"&Tableau2[[#This Row],[désignation]]","v":"M35 DOUBLE RIDEAU RAYE CHOCOLAT - BLEU A FRONCE"},"H 220 X l. 140 cm",200,40,null,{"$f":"IF(Tableau2[[#This Row],[destinataire]]=0,IF(_xlfn.XLOOKUP(Tableau2[[#This Row],[code désignation]],commandecolonne[lisiting commande colonne],commandecolonne[lisiting commande colonne],FALSE)=Tableau2[[#This Row],[code désignation]],TRUE,FALSE),TRUE)","v":false}]
[{"$f":"_xlfn.XLOOKUP(MID(C344,1,1),Type[lettre type],Type[type])","v":"Rideau"},340,"M36",{"$f":"\"https://sico-my.sharepoint.com/personal/julien_carestiato_fondation-ove_fr/Documents/Images/1potiniere/\"&Tableau2[[#This Row],[numéro]]&\".png\"","v":"https://sico-my.sharepoint.com/personal/julien_carestiato_fondation-ove_fr/Documents/Images/1potiniere/M36.png"},null,"DOUBLE RIDEAU RAYE CHOCOLAT - BLEU A FRONCE",{"$f":"IF(Tableau2[[#This Row],[déjà en prêt commande]]=TRUE,\" \",Tableau2[[#This Row],[numéro]]&\" \"&Tableau2[[#This Row],[désignation]])","v":"M36 DOUBLE RIDEAU RAYE CHOCOLAT - BLEU A FRONCE"},{"$f":"Tableau2[[#This Row],[numéro]]&\" \"&Tableau2[[#This Row],[désignation]]","v":"M36 DOUBLE RIDEAU RAYE CHOCOLAT - BLEU A FRONCE"},"H 220 X l. 140 cm",200,40,null,{"$f":"IF(Tableau2[[#This Row],[destinataire]]=0,IF(_xlfn.XLOOKUP(Tableau2[[#This Row],[code désignation]],commandecolonne[lisiting commande colonne],commandecolonne[lisiting commande colonne],FALSE)=Tableau2[[#This Row],[code désignation]],TRUE,FALSE),TRUE)","v":false}]
[{"$f":"_xlfn.XLOOKUP(MID(C345,1,1),Type[lettre type],Type[type])","v":"Rideau"},341,"M37",{"$f":"\"https://sico-my.sharepoint.com/personal/julien_carestiato_fondation-ove_fr/Documents/Images/1potiniere/\"&Tableau2[[#This Row],[numéro]]&\".png\"","v":"https://sico-my.sharepoint.com/personal/julien_carestiato_fondation-ove_fr/Documents/Images/1potiniere/M37.png"},null,"DOUBLE RIDEAU BLEU MARINE - MARRON A FRONCE",{"$f":"IF(Tableau2[[#This Row],[déjà en prêt commande]]=TRUE,\" \",Tableau2[[#This Row],[numéro]]&\" \"&Tableau2[[#This Row],[désignation]])","v":"M37 DOUBLE RIDEAU BLEU MARINE - MARRON A FRONCE"},{"$f":"Tableau2[[#This Row],[numéro]]&\" \"&Tableau2[[#This Row],[désignation]]","v":"M37 DOUBLE RIDEAU BLEU MARINE - MARRON A FRONCE"},"H 212 X l. 190 cm",200,40,null,{"$f":"IF(Tableau2[[#This Row],[destinataire]]=0,IF(_xlfn.XLOOKUP(Tableau2[[#This Row],[code désignation]],commandecolonne[lisiting commande colonne],commandecolonne[lisiting commande colonne],FALSE)=Tableau2[[#This Row],[code désignation]],TRUE,FALSE),TRUE)","v":false}]
[{"$f":"_xlfn.XLOOKUP(MID(C346,1,1),Type[lettre type],Type[type])","v":"Rideau"},342,"M39",{"$f":"\"https://sico-my.sharepoint.com/personal/julien_carestiato_fondation-ove_fr/Documents/Images/1potiniere/\"&Tableau2[[#This Row],[numéro]]&\".png\"","v":"https://sico-my.sharepoint.com/personal/julien_carestiato_fondation-ove_fr/Documents/Images/1potiniere/M39.png"},"Photo non dispo","DOUBLE RIDEAU BLEU MARINE - MARRON A FRONCE",{"$f":"IF(Tableau2[[#This Row],[déjà en prêt commande]]=TRUE,\" \",Tableau2[[#This Row],[numéro]]&\" \"&Tableau2[[#This Row],[désignation]])","v":"M39 DOUBLE RIDEAU BLEU MARINE - MARRON A FRONCE"},{"$f":"Tableau2[[#This Row],[numéro]]&\" \"&Tableau2[[#This Row],[désignation]]","v":"M39 DOUBLE RIDEAU BLEU MARINE - MARRON A FRONCE"},"H 212 X l. 190 cm",200,40,null,{"$f":"IF(Tableau2[[#This Row],[destinataire]]=0,IF(_xlfn.XLOOKUP(Tableau2[[#This Row],[code désignation]],commandecolonne[lisiting commande colonne],commandecolonne[lisiting commande colonne],FALSE)=Tableau2[[#This Row],[code désignation]],TRUE,FALSE),TRUE)","v":false}]
[{"$f":"_xlfn.XLOOKUP(MID(C347,1,1),Type[lettre type],Type[type])","v":"Rideau"},343,"M40",{"$f":"\"https://sico-my.sharepoint.com/personal/julien_carestiato_fondation-ove_fr/Documents/Images/1potiniere/\"&Tableau2[[#This Row],[numéro]]&\".png\"","v":"https://sico-my.sharepoint.com/personal/julien_carestiato_fondation-ove_fr/Documents/Images/1potiniere/M40.png"},null,"RIDEAU TRANSPARENT BEIGE               A ŒILLETS",{"$f":"IF(Tableau2[[#This Row],[déjà en prêt commande]]=TRUE,\" \",Tableau2[[#This Row],[numéro]]&\" \"&Tableau2[[#This Row],[désignation]])","v":"M40 RIDEAU TRANSPARENT BEIGE               A ŒILLETS"},{"$f":"Tableau2[[#This Row],[numéro]]&\" \"&Tableau2[[#This Row],[désignation]]","v":"M40 RIDEAU TRANSPARENT BEIGE               A ŒILLETS"},"H 220 X l. 80 cm",200,40,null,{"$f":"IF(Tableau2[[#This Row],[destinataire]]=0,IF(_xlfn.XLOOKUP(Tableau2[[#This Row],[code désignation]],commandecolonne[lisiting commande colonne],commandecolonne[lisiting commande colonne],FALSE)=Tableau2[[#This Row],[code désignation]],TRUE,FALSE),TRUE)","v":false}]
[{"$f":"_xlfn.XLOOKUP(MID(C348,1,1),Type[lettre type],Type[type])","v":"Rideau"},344,"M41",{"$f":"\"https://sico-my.sharepoint.com/personal/julien_carestiato_fondation-ove_fr/Documents/Images/1potiniere/\"&Tableau2[[#This Row],[numéro]]&\".png\"","v":"https://sico-my.sharepoint.com/personal/julien_carestiato_fondation-ove_fr/Documents/Images/1potiniere/M41.png"},"Photo non dispo","RIDEAU TRANSPARENT BEIGE               A ŒILLETS",{"$f":"IF(Tableau2[[#This Row],[déjà en prêt commande]]=TRUE,\" \",Tableau2[[#This Row],[numéro]]&\" \"&Tableau2[[#This Row],[désignation]])","v":"M41 RIDEAU TRANSPARENT BEIGE               A ŒILLETS"},{"$f":"Tableau2[[#This Row],[numéro]]&\" \"&Tableau2[[#This Row],[désignation]]","v":"M41 RIDEAU TRANSPARENT BEIGE               A ŒILLETS"},"H 220 X l. 80 cm",200,40,null,{"$f":"IF(Tableau2[[#This Row],[destinataire]]=0,IF(_xlfn.XLOOKUP(Tableau2[[#This Row],[code désignation]],commandecolonne[lisiting commande colonne],commandecolonne[lisiting commande colonne],FALSE)=Tableau2[[#This Row],[code désignation]],TRUE,FALSE),TRUE)","v":false}]
[{"$f":"_xlfn.XLOOKUP(MID(C349,1,1),Type[lettre type],Type[type])","v":"Rideau"},345,"M42",{"$f":"\"https://sico-my.sharepoint.com/personal/julien_carestiato_fondation-ove_fr/Documents/Images/1potiniere/\"&Tableau2[[#This Row],[numéro]]&\".png\"","v":"https://sico-my.sharepoint.com/personal/julien_carestiato_fondation-ove_fr/Documents/Images/1potiniere/M42.png"},"Photo non dispo","RIDEAU TRANSPARENT BEIGE               A ŒILLETS",{"$f":"IF(Tableau2[[#This Row],[déjà en prêt commande]]=TRUE,\" \",Tableau2[[#This Row],[numéro]]&\" \"&Tableau2[[#This Row],[désignation]])","v":" "},{"$f":"Tableau2[[#This Row],[numéro]]&\" \"&Tableau2[[#This Row],[désignation]]","v":"M42 RIDEAU TRANSPARENT BEIGE               A ŒILLETS"},"H 220 X l. 163 cm",200,40,"M-42 à M-46 APPARTEMENTS SOUTIEN",{"$f":"IF(Tableau2[[#This Row],[destinataire]]=0,IF(_xlfn.XLOOKUP(Tableau2[[#This Row],[code désignation]],commandecolonne[lisiting commande colonne],commandecolonne[lisiting commande colonne],FALSE)=Tableau2[[#This Row],[code désignation]],TRUE,FALSE),TRUE)","v":true}]
[{"$f":"_xlfn.XLOOKUP(MID(C350,1,1),Type[lettre type],Type[type])","v":"Rideau"},346,"M43",{"$f":"\"https://sico-my.sharepoint.com/personal/julien_carestiato_fondation-ove_fr/Documents/Images/1potiniere/\"&Tableau2[[#This Row],[numéro]]&\".png\"","v":"https://sico-my.sharepoint.com/personal/julien_carestiato_fondation-ove_fr/Documents/Images/1potiniere/M43.png"},"Photo non dispo","RIDEAU TRANSPARENT BEIGE               A ŒILLETS",{"$f":"IF(Tableau2[[#This Row],[déjà en prêt commande]]=TRUE,\" \",Tableau2[[#This Row],[numéro]]&\" \"&Tableau2[[#This Row],[désignation]])","v":" "},{"$f":"Tableau2[[#This Row],[numéro]]&\" \"&Tableau2[[#This Row],[désignation]]","v":"M43 RIDEAU TRANSPARENT BEIGE               A ŒILLETS"},"H 220 X l. 163 cm",200,40,"M-42 à M-46 APPARTEMENTS SOUTIEN",{"$f":"IF(Tableau2[[#This Row],[destinataire]]=0,IF(_xlfn.XLOOKUP(Tableau2[[#This Row],[code désignation]],commandecolonne[lisiting commande colonne],commandecolonne[lisiting commande colonne],FALSE)=Tableau2[[#This Row],[code désignation]],TRUE,FALSE),TRUE)","v":true}]
[{"$f":"_xlfn.XLOOKUP(MID(C351,1,1),Type[lettre type],Type[type])","v":"Rideau"},347,"M44",{"$f":"\"https://sico-my.sharepoint.com/personal/julien_carestiato_fondation-ove_fr/Documents/Images/1potiniere/\"&Tableau2[[#This Row],[numéro]]&\".png\"","v":"https://sico-my.sharepoint.com/personal/julien_carestiato_fondation-ove_fr/Documents/Images/1potiniere/M44.png"},"Photo non dispo","RIDEAU TRANSPARENT BEIGE               A ŒILLETS",{"$f":"IF(Tableau2[[#This Row],[déjà en prêt commande]]=TRUE,\" \",Tableau2[[#This Row],[numéro]]&\" \"&Tableau2[[#This Row],[désignation]])","v":" "},{"$f":"Tableau2[[#This Row],[numéro]]&\" \"&Tableau2[[#This Row],[désignation]]","v":"M44 RIDEAU TRANSPARENT BEIGE               A ŒILLETS"},"H 220 X l. 163 cm",200,40,"M-42 à M-46 APPARTEMENTS SOUTIEN",{"$f":"IF(Tableau2[[#This Row],[destinataire]]=0,IF(_xlfn.XLOOKUP(Tableau2[[#This Row],[code désignation]],commandecolonne[lisiting commande colonne],commandecolonne[lisiting commande colonne],FALSE)=Tableau2[[#This Row],[code désignation]],TRUE,FALSE),TRUE)","v":true}]
[{"$f":"_xlfn.XLOOKUP(MID(C352,1,1),Type[lettre type],Type[type])","v":"Rideau"},348,"M45",{"$f":"\"https://sico-my.sharepoint.com/personal/julien_carestiato_fondation-ove_fr/Documents/Images/1potiniere/\"&Tableau2[[#This Row],[numéro]]&\".png\"","v":"https://sico-my.sharepoint.com/personal/julien_carestiato_fondation-ove_fr/Documents/Images/1potiniere/M45.png"},"Photo non dispo","RIDEAU TRANSPARENT BEIGE               A ŒILLETS",{"$f":"IF(Tableau2[[#This Row],[déjà en prêt commande]]=TRUE,\" \",Tableau2[[#This Row],[numéro]]&\" \"&Tableau2[[#This Row],[désignation]])","v":" "},{"$f":"Tableau2[[#This Row],[numéro]]&\" \"&Tableau2[[#This Row],[désignation]]","v":"M45 RIDEAU TRANSPARENT BEIGE               A ŒILLETS"},"H 220 X l. 163 cm",200,40,"M-42 à M-46 APPARTEMENTS SOUTIEN",{"$f":"IF(Tableau2[[#This Row],[destinataire]]=0,IF(_xlfn.XLOOKUP(Tableau2[[#This Row],[code désignation]],commandecolonne[lisiting commande colonne],commandecolonne[lisiting commande colonne],FALSE)=Tableau2[[#This Row],[code désignation]],TRUE,FALSE),TRUE)","v":true}]
[{"$f":"_xlfn.XLOOKUP(MID(C353,1,1),Type[lettre type],Type[type])","v":"Rideau"},349,"M46",{"$f":"\"https://sico-my.sharepoint.com/personal/julien_carestiato_fondation-ove_fr/Documents/Images/1potiniere/\"&Tableau2[[#This Row],[numéro]]&\".png\"","v":"https://sico-my.sharepoint.com/personal/julien_carestiato_fondation-ove_fr/Documents/Images/1potiniere/M46.png"},"Photo non dispo","RIDEAU TRANSPARENT BEIGE               A ŒILLETS",{"$f":"IF(Tableau2[[#This Row],[déjà en prêt commande]]=TRUE,\" \",Tableau2[[#This Row],[numéro]]&\" \"&Tableau2[[#This Row],[désignation]])","v":" "},{"$f":"Tableau2[[#This Row],[numéro]]&\" \"&Tableau2[[#This Row],[désignation]]","v":"M46 RIDEAU TRANSPARENT BEIGE               A ŒILLETS"},"H 220 X l. 163 cm",200,40,"M-42 à M-46 APPARTEMENTS SOUTIEN",{"$f":"IF(Tableau2[[#This Row],[destinataire]]=0,IF(_xlfn.XLOOKUP(Tableau2[[#This Row],[code désignation]],commandecolonne[lisiting commande colonne],commandecolonne[lisiting commande colonne],FALSE)=Tableau2[[#This Row],[code désignation]],TRUE,FALSE),TRUE)","v":true}]
[{"$f":"_xlfn.XLOOKUP(MID(C354,1,1),Type[lettre type],Type[type])","v":"Rideau"},350,"M47",{"$f":"\"https://sico-my.sharepoint.com/personal/julien_carestiato_fondation-ove_fr/Documents/Images/1potiniere/\"&Tableau2[[#This Row],[numéro]]&\".png\"","v":"https://sico-my.sharepoint.com/personal/julien_carestiato_fondation-ove_fr/Documents/Images/1potiniere/M47.png"},null,"RIDEAU TRANSPARENT BEIGE               A ŒILLETS",{"$f":"IF(Tableau2[[#This Row],[déjà en prêt commande]]=TRUE,\" \",Tableau2[[#This Row],[numéro]]&\" \"&Tableau2[[#This Row],[désignation]])","v":"M47 RIDEAU TRANSPARENT BEIGE               A ŒILLETS"},{"$f":"Tableau2[[#This Row],[numéro]]&\" \"&Tableau2[[#This Row],[désignation]]","v":"M47 RIDEAU TRANSPARENT BEIGE               A ŒILLETS"},"H 220 X l. 163 cm",200,40,null,{"$f":"IF(Tableau2[[#This Row],[destinataire]]=0,IF(_xlfn.XLOOKUP(Tableau2[[#This Row],[code désignation]],commandecolonne[lisiting commande colonne],commandecolonne[lisiting commande colonne],FALSE)=Tableau2[[#This Row],[code désignation]],TRUE,FALSE),TRUE)","v":false}]
[{"$f":"_xlfn.XLOOKUP(MID(C355,1,1),Type[lettre type],Type[type])","v":"Rideau"},351,"M48",{"$f":"\"https://sico-my.sharepoint.com/personal/julien_carestiato_fondation-ove_fr/Documents/Images/1potiniere/\"&Tableau2[[#This Row],[numéro]]&\".png\"","v":"https://sico-my.sharepoint.com/personal/julien_carestiato_fondation-ove_fr/Documents/Images/1potiniere/M48.png"},null,"DOUBLE RIDEAU MARRON-BEIGE-MORDORE A FRONCE",{"$f":"IF(Tableau2[[#This Row],[déjà en prêt commande]]=TRUE,\" \",Tableau2[[#This Row],[numéro]]&\" \"&Tableau2[[#This Row],[désignation]])","v":"M48 DOUBLE RIDEAU MARRON-BEIGE-MORDORE A FRONCE"},{"$f":"Tableau2[[#This Row],[numéro]]&\" \"&Tableau2[[#This Row],[désignation]]","v":"M48 DOUBLE RIDEAU MARRON-BEIGE-MORDORE A FRONCE"},"H 216 X l. 67 cm",200,40,null,{"$f":"IF(Tableau2[[#This Row],[destinataire]]=0,IF(_xlfn.XLOOKUP(Tableau2[[#This Row],[code désignation]],commandecolonne[lisiting commande colonne],commandecolonne[lisiting commande colonne],FALSE)=Tableau2[[#This Row],[code désignation]],TRUE,FALSE),TRUE)","v":false}]
[{"$f":"_xlfn.XLOOKUP(MID(C356,1,1),Type[lettre type],Type[type])","v":"Rideau"},352,"M49",{"$f":"\"https://sico-my.sharepoint.com/personal/julien_carestiato_fondation-ove_fr/Documents/Images/1potiniere/\"&Tableau2[[#This Row],[numéro]]&\".png\"","v":"https://sico-my.sharepoint.com/personal/julien_carestiato_fondation-ove_fr/Documents/Images/1potiniere/M49.png"},null,"DOUBLE RIDEAU MARRON-BEIGE-MORDORE A FRONCE",{"$f":"IF(Tableau2[[#This Row],[déjà en prêt commande]]=TRUE,\" \",Tableau2[[#This Row],[numéro]]&\" \"&Tableau2[[#This Row],[désignation]])","v":"M49 DOUBLE RIDEAU MARRON-BEIGE-MORDORE A FRONCE"},{"$f":"Tableau2[[#This Row],[numéro]]&\" \"&Tableau2[[#This Row],[désignation]]","v":"M49 DOUBLE RIDEAU MARRON-BEIGE-MORDORE A FRONCE"},"H 216 X l. 292 cm",200,40,null,{"$f":"IF(Tableau2[[#This Row],[destinataire]]=0,IF(_xlfn.XLOOKUP(Tableau2[[#This Row],[code désignation]],commandecolonne[lisiting commande colonne],commandecolonne[lisiting commande colonne],FALSE)=Tableau2[[#This Row],[code désignation]],TRUE,FALSE),TRUE)","v":false}]
[{"$f":"_xlfn.XLOOKUP(MID(C357,1,1),Type[lettre type],Type[type])","v":"Rideau"},353,"M50",{"$f":"\"https://sico-my.sharepoint.com/personal/julien_carestiato_fondation-ove_fr/Documents/Images/1potiniere/\"&Tableau2[[#This Row],[numéro]]&\".png\"","v":"https://sico-my.sharepoint.com/personal/julien_carestiato_fondation-ove_fr/Documents/Images/1potiniere/M50.png"},null,"DOUBLE RIDEAU MARRON-BEIGE-MORDORE A FRONCE",{"$f":"IF(Tableau2[[#This Row],[déjà en prêt commande]]=TRUE,\" \",Tableau2[[#This Row],[numéro]]&\" \"&Tableau2[[#This Row],[désignation]])","v":"M50 DOUBLE RIDEAU MARRON-BEIGE-MORDORE A FRONCE"},{"$f":"Tableau2[[#This Row],[numéro]]&\" \"&Tableau2[[#This Row],[désignation]]","v":"M50 DOUBLE RIDEAU MARRON-BEIGE-MORDORE A FRONCE"},"H 216 X l. 210 cm",200,40,null,{"$f":"IF(Tableau2[[#This Row],[destinataire]]=0,IF(_xlfn.XLOOKUP(Tableau2[[#This Row],[code désignation]],commandecolonne[lisiting commande colonne],commandecolonne[lisiting commande colonne],FALSE)=Tableau2[[#This Row],[code désignation]],TRUE,FALSE),TRUE)","v":false}]
[{"$f":"_xlfn.XLOOKUP(MID(C358,1,1),Type[lettre type],Type[type])","v":"Rideau"},354,"M51",{"$f":"\"https://sico-my.sharepoint.com/personal/julien_carestiato_fondation-ove_fr/Documents/Images/1potiniere/\"&Tableau2[[#This Row],[numéro]]&\".png\"","v":"https://sico-my.sharepoint.com/personal/julien_carestiato_fondation-ove_fr/Documents/Images/1potiniere/M51.png"},"Photo non dispo","DOUBLE RIDEAU MARRON-BEIGE-MORDORE A FRONCE",{"$f":"IF(Tableau2[[#This Row],[déjà en prêt commande]]=TRUE,\" \",Tableau2[[#This Row],[numéro]]&\" \"&Tableau2[[#This Row],[désignation]])","v":"M51 DOUBLE RIDEAU MARRON-BEIGE-MORDORE A FRONCE"},{"$f":"Tableau2[[#This Row],[numéro]]&\" \"&Tableau2[[#This Row],[désignation]]","v":"M51 DOUBLE RIDEAU MARRON-BEIGE-MORDORE A FRONCE"},"H 216 X l. 210 cm",200,40,null,{"$f":"IF(Tableau2[[#This Row],[destinataire]]=0,IF(_xlfn.XLOOKUP(Tableau2[[#This Row],[code désignation]],commandecolonne[lisiting commande colonne],commandecolonne[lisiting commande colonne],FALSE)=Tableau2[[#This Row],[code désignation]],TRUE,FALSE),TRUE)","v":false}]
[{"$f":"_xlfn.XLOOKUP(MID(C359,1,1),Type[lettre type],Type[type])","v":"Rideau"},355,"M52",{"$f":"\"https://sico-my.sharepoint.com/personal/julien_carestiato_fondation-ove_fr/Documents/Images/1potiniere/\"&Tableau2[[#This Row],[numéro]]&\".png\"","v":"https://sico-my.sharepoint.com/personal/julien_carestiato_fondation-ove_fr/Documents/Images/1potiniere/M52.png"},"Photo non dispo","DOUBLE RIDEAU MARRON-BEIGE-MORDORE A FRONCE",{"$f":"IF(Tableau2[[#This Row],[déjà en prêt commande]]=TRUE,\" \",Tableau2[[#This Row],[numéro]]&\" \"&Tableau2[[#This Row],[désignation]])","v":"M52 DOUBLE RIDEAU MARRON-BEIGE-MORDORE A FRONCE"},{"$f":"Tableau2[[#This Row],[numéro]]&\" \"&Tableau2[[#This Row],[désignation]]","v":"M52 DOUBLE RIDEAU MARRON-BEIGE-MORDORE A FRONCE"},"H 216 X l. 210 cm",200,40,null,{"$f":"IF(Tableau2[[#This Row],[destinataire]]=0,IF(_xlfn.XLOOKUP(Tableau2[[#This Row],[code désignation]],commandecolonne[lisiting commande colonne],commandecolonne[lisiting commande colonne],FALSE)=Tableau2[[#This Row],[code désignation]],TRUE,FALSE),TRUE)","v":false}]
[{"$f":"_xlfn.XLOOKUP(MID(C360,1,1),Type[lettre type],Type[type])","v":"Rideau"},356,"M53",{"$f":"\"https://sico-my.sharepoint.com/personal/julien_carestiato_fondation-ove_fr/Documents/Images/1potiniere/\"&Tableau2[[#This Row],[numéro]]&\".png\"","v":"https://sico-my.sharepoint.com/personal/julien_carestiato_fondation-ove_fr/Documents/Images/1potiniere/M53.png"},"Photo non dispo","DOUBLE RIDEAU MARRON-BEIGE-MORDORE A FRONCE",{"$f":"IF(Tableau2[[#This Row],[déjà en prêt commande]]=TRUE,\" \",Tableau2[[#This Row],[numéro]]&\" \"&Tableau2[[#This Row],[désignation]])","v":"M53 DOUBLE RIDEAU MARRON-BEIGE-MORDORE A FRONCE"},{"$f":"Tableau2[[#This Row],[numéro]]&\" \"&Tableau2[[#This Row],[désignation]]","v":"M53 DOUBLE RIDEAU MARRON-BEIGE-MORDORE A FRONCE"},"H 216 X l. 210 cm",200,40,null,{"$f":"IF(Tableau2[[#This Row],[destinataire]]=0,IF(_xlfn.XLOOKUP(Tableau2[[#This Row],[code désignation]],commandecolonne[lisiting commande colonne],commandecolonne[lisiting commande colonne],FALSE)=Tableau2[[#This Row],[code désignation]],TRUE,FALSE),TRUE)","v":false}]
[{"$f":"_xlfn.XLOOKUP(MID(C361,1,1),Type[lettre type],Type[type])","v":"Rideau"},357,"M54",{"$f":"\"https://sico-my.sharepoint.com/personal/julien_carestiato_fondation-ove_fr/Documents/Images/1potiniere/\"&Tableau2[[#This Row],[numéro]]&\".png\"","v":"https://sico-my.sharepoint.com/personal/julien_carestiato_fondation-ove_fr/Documents/Images/1potiniere/M54.png"},"Photo non dispo","DOUBLE RIDEAU MARRON-BEIGE-MORDORE A FRONCE",{"$f":"IF(Tableau2[[#This Row],[déjà en prêt commande]]=TRUE,\" \",Tableau2[[#This Row],[numéro]]&\" \"&Tableau2[[#This Row],[désignation]])","v":"M54 DOUBLE RIDEAU MARRON-BEIGE-MORDORE A FRONCE"},{"$f":"Tableau2[[#This Row],[numéro]]&\" \"&Tableau2[[#This Row],[désignation]]","v":"M54 DOUBLE RIDEAU MARRON-BEIGE-MORDORE A FRONCE"},"H 216 X l. 210 cm",200,40,null,{"$f":"IF(Tableau2[[#This Row],[destinataire]]=0,IF(_xlfn.XLOOKUP(Tableau2[[#This Row],[code désignation]],commandecolonne[lisiting commande colonne],commandecolonne[lisiting commande colonne],FALSE)=Tableau2[[#This Row],[code désignation]],TRUE,FALSE),TRUE)","v":false}]
[{"$f":"_xlfn.XLOOKUP(MID(C362,1,1),Type[lettre type],Type[type])","v":"Rideau"},358,"M55",{"$f":"\"https://sico-my.sharepoint.com/personal/julien_carestiato_fondation-ove_fr/Documents/Images/1potiniere/\"&Tableau2[[#This Row],[numéro]]&\".png\"","v":"https://sico-my.sharepoint.com/personal/julien_carestiato_fondation-ove_fr/Documents/Images/1potiniere/M55.png"},"Photo non dispo","DOUBLE RIDEAU MARRON-BEIGE-MORDORE A FRONCE",{"$f":"IF(Tableau2[[#This Row],[déjà en prêt commande]]=TRUE,\" \",Tableau2[[#This Row],[numéro]]&\" \"&Tableau2[[#This Row],[désignation]])","v":"M55 DOUBLE RIDEAU MARRON-BEIGE-MORDORE A FRONCE"},{"$f":"Tableau2[[#This Row],[numéro]]&\" \"&Tableau2[[#This Row],[désignation]]","v":"M55 DOUBLE RIDEAU MARRON-BEIGE-MORDORE A FRONCE"},"H 216 X l. 210 cm",200,40,null,{"$f":"IF(Tableau2[[#This Row],[destinataire]]=0,IF(_xlfn.XLOOKUP(Tableau2[[#This Row],[code désignation]],commandecolonne[lisiting commande colonne],commandecolonne[lisiting commande colonne],FALSE)=Tableau2[[#This Row],[code désignation]],TRUE,FALSE),TRUE)","v":false}]
[{"$f":"_xlfn.XLOOKUP(MID(C363,1,1),Type[lettre type],Type[type])","v":"Rideau"},359,"M56",{"$f":"\"https://sico-my.sharepoint.com/personal/julien_carestiato_fondation-ove_fr/Documents/Images/1potiniere/\"&Tableau2[[#This Row],[numéro]]&\".png\"","v":"https://sico-my.sharepoint.com/personal/julien_carestiato_fondation-ove_fr/Documents/Images/1potiniere/M56.png"},null,"DOUBLE RIDEAU MARRON-BEIGE-MORDORE A FRONCE",{"$f":"IF(Tableau2[[#This Row],[déjà en prêt commande]]=TRUE,\" \",Tableau2[[#This Row],[numéro]]&\" \"&Tableau2[[#This Row],[désignation]])","v":"M56 DOUBLE RIDEAU MARRON-BEIGE-MORDORE A FRONCE"},{"$f":"Tableau2[[#This Row],[numéro]]&\" \"&Tableau2[[#This Row],[désignation]]","v":"M56 DOUBLE RIDEAU MARRON-BEIGE-MORDORE A FRONCE"},"H 216 X l. 140 cm",200,40,null,{"$f":"IF(Tableau2[[#This Row],[destinataire]]=0,IF(_xlfn.XLOOKUP(Tableau2[[#This Row],[code désignation]],commandecolonne[lisiting commande colonne],commandecolonne[lisiting commande colonne],FALSE)=Tableau2[[#This Row],[code désignation]],TRUE,FALSE),TRUE)","v":false}]
[{"$f":"_xlfn.XLOOKUP(MID(C364,1,1),Type[lettre type],Type[type])","v":"Rideau"},360,"M57",{"$f":"\"https://sico-my.sharepoint.com/personal/julien_carestiato_fondation-ove_fr/Documents/Images/1potiniere/\"&Tableau2[[#This Row],[numéro]]&\".png\"","v":"https://sico-my.sharepoint.com/personal/julien_carestiato_fondation-ove_fr/Documents/Images/1potiniere/M57.png"},"Photo non dispo","DOUBLE RIDEAU MARRON-BEIGE-MORDORE A FRONCE",{"$f":"IF(Tableau2[[#This Row],[déjà en prêt commande]]=TRUE,\" \",Tableau2[[#This Row],[numéro]]&\" \"&Tableau2[[#This Row],[désignation]])","v":"M57 DOUBLE RIDEAU MARRON-BEIGE-MORDORE A FRONCE"},{"$f":"Tableau2[[#This Row],[numéro]]&\" \"&Tableau2[[#This Row],[désignation]]","v":"M57 DOUBLE RIDEAU MARRON-BEIGE-MORDORE A FRONCE"},"H 216 X l. 140 cm",200,40,null,{"$f":"IF(Tableau2[[#This Row],[destinataire]]=0,IF(_xlfn.XLOOKUP(Tableau2[[#This Row],[code désignation]],commandecolonne[lisiting commande colonne],commandecolonne[lisiting commande colonne],FALSE)=Tableau2[[#This Row],[code désignation]],TRUE,FALSE),TRUE)","v":false}]
[{"$f":"_xlfn.XLOOKUP(MID(C365,1,1),Type[lettre type],Type[type])","v":"Rideau"},361,"M58",{"$f":"\"https://sico-my.sharepoint.com/personal/julien_carestiato_fondation-ove_fr/Documents/Images/1potiniere/\"&Tableau2[[#This Row],[numéro]]&\".png\"","v":"https://sico-my.sharepoint.com/personal/julien_carestiato_fondation-ove_fr/Documents/Images/1potiniere/M58.png"},null,"DOUBLE RIDEAU BEIGE A FRONCE",{"$f":"IF(Tableau2[[#This Row],[déjà en prêt commande]]=TRUE,\" \",Tableau2[[#This Row],[numéro]]&\" \"&Tableau2[[#This Row],[désignation]])","v":"M58 DOUBLE RIDEAU BEIGE A FRONCE"},{"$f":"Tableau2[[#This Row],[numéro]]&\" \"&Tableau2[[#This Row],[désignation]]","v":"M58 DOUBLE RIDEAU BEIGE A FRONCE"},"H 217 X l. 137 cm",200,40,null,{"$f":"IF(Tableau2[[#This Row],[destinataire]]=0,IF(_xlfn.XLOOKUP(Tableau2[[#This Row],[code désignation]],commandecolonne[lisiting commande colonne],commandecolonne[lisiting commande colonne],FALSE)=Tableau2[[#This Row],[code désignation]],TRUE,FALSE),TRUE)","v":false}]
[{"$f":"_xlfn.XLOOKUP(MID(C366,1,1),Type[lettre type],Type[type])","v":"Rideau"},362,"M59",{"$f":"\"https://sico-my.sharepoint.com/personal/julien_carestiato_fondation-ove_fr/Documents/Images/1potiniere/\"&Tableau2[[#This Row],[numéro]]&\".png\"","v":"https://sico-my.sharepoint.com/personal/julien_carestiato_fondation-ove_fr/Documents/Images/1potiniere/M59.png"},"Photo non dispo","DOUBLE RIDEAU BEIGE A FRONCE",{"$f":"IF(Tableau2[[#This Row],[déjà en prêt commande]]=TRUE,\" \",Tableau2[[#This Row],[numéro]]&\" \"&Tableau2[[#This Row],[désignation]])","v":"M59 DOUBLE RIDEAU BEIGE A FRONCE"},{"$f":"Tableau2[[#This Row],[numéro]]&\" \"&Tableau2[[#This Row],[désignation]]","v":"M59 DOUBLE RIDEAU BEIGE A FRONCE"},"H 217 X l. 137 cm",200,40,null,{"$f":"IF(Tableau2[[#This Row],[destinataire]]=0,IF(_xlfn.XLOOKUP(Tableau2[[#This Row],[code désignation]],commandecolonne[lisiting commande colonne],commandecolonne[lisiting commande colonne],FALSE)=Tableau2[[#This Row],[code désignation]],TRUE,FALSE),TRUE)","v":false}]
[{"$f":"_xlfn.XLOOKUP(MID(C367,1,1),Type[lettre type],Type[type])","v":"Rideau"},363,"M60",{"$f":"\"https://sico-my.sharepoint.com/personal/julien_carestiato_fondation-ove_fr/Documents/Images/1potiniere/\"&Tableau2[[#This Row],[numéro]]&\".png\"","v":"https://sico-my.sharepoint.com/personal/julien_carestiato_fondation-ove_fr/Documents/Images/1potiniere/M60.png"},"Photo non dispo","DOUBLE RIDEAU BEIGE A FRONCE",{"$f":"IF(Tableau2[[#This Row],[déjà en prêt commande]]=TRUE,\" \",Tableau2[[#This Row],[numéro]]&\" \"&Tableau2[[#This Row],[désignation]])","v":"M60 DOUBLE RIDEAU BEIGE A FRONCE"},{"$f":"Tableau2[[#This Row],[numéro]]&\" \"&Tableau2[[#This Row],[désignation]]","v":"M60 DOUBLE RIDEAU BEIGE A FRONCE"},"H 217 X l. 137 cm",200,40,null,{"$f":"IF(Tableau2[[#This Row],[destinataire]]=0,IF(_xlfn.XLOOKUP(Tableau2[[#This Row],[code désignation]],commandecolonne[lisiting commande colonne],commandecolonne[lisiting commande colonne],FALSE)=Tableau2[[#This Row],[code désignation]],TRUE,FALSE),TRUE)","v":false}]
[{"$f":"_xlfn.XLOOKUP(MID(C368,1,1),Type[lettre type],Type[type])","v":"Rideau"},364,"M61",{"$f":"\"https://sico-my.sharepoint.com/personal/julien_carestiato_fondation-ove_fr/Documents/Images/1potiniere/\"&Tableau2[[#This Row],[numéro]]&\".png\"","v":"https://sico-my.sharepoint.com/personal/julien_carestiato_fondation-ove_fr/Documents/Images/1potiniere/M61.png"},null,"DOUBLE RIDEAU BEIGE A FRONCE",{"$f":"IF(Tableau2[[#This Row],[déjà en prêt commande]]=TRUE,\" \",Tableau2[[#This Row],[numéro]]&\" \"&Tableau2[[#This Row],[désignation]])","v":"M61 DOUBLE RIDEAU BEIGE A FRONCE"},{"$f":"Tableau2[[#This Row],[numéro]]&\" \"&Tableau2[[#This Row],[désignation]]","v":"M61 DOUBLE RIDEAU BEIGE A FRONCE"},"H 217 X l. 67 cm",200,40,null,{"$f":"IF(Tableau2[[#This Row],[destinataire]]=0,IF(_xlfn.XLOOKUP(Tableau2[[#This Row],[code désignation]],commandecolonne[lisiting commande colonne],commandecolonne[lisiting commande colonne],FALSE)=Tableau2[[#This Row],[code désignation]],TRUE,FALSE),TRUE)","v":false}]
[{"$f":"_xlfn.XLOOKUP(MID(C369,1,1),Type[lettre type],Type[type])","v":"Rideau"},365,"M62",{"$f":"\"https://sico-my.sharepoint.com/personal/julien_carestiato_fondation-ove_fr/Documents/Images/1potiniere/\"&Tableau2[[#This Row],[numéro]]&\".png\"","v":"https://sico-my.sharepoint.com/personal/julien_carestiato_fondation-ove_fr/Documents/Images/1potiniere/M62.png"},null,"DOUBLE RIDEAU BEIGE A FRONCE",{"$f":"IF(Tableau2[[#This Row],[déjà en prêt commande]]=TRUE,\" \",Tableau2[[#This Row],[numéro]]&\" \"&Tableau2[[#This Row],[désignation]])","v":"M62 DOUBLE RIDEAU BEIGE A FRONCE"},{"$f":"Tableau2[[#This Row],[numéro]]&\" \"&Tableau2[[#This Row],[désignation]]","v":"M62 DOUBLE RIDEAU BEIGE A FRONCE"},"H 217 X l. 210 cm",200,40,null,{"$f":"IF(Tableau2[[#This Row],[destinataire]]=0,IF(_xlfn.XLOOKUP(Tableau2[[#This Row],[code désignation]],commandecolonne[lisiting commande colonne],commandecolonne[lisiting commande colonne],FALSE)=Tableau2[[#This Row],[code désignation]],TRUE,FALSE),TRUE)","v":false}]
[{"$f":"_xlfn.XLOOKUP(MID(C370,1,1),Type[lettre type],Type[type])","v":"Rideau"},366,"M63",{"$f":"\"https://sico-my.sharepoint.com/personal/julien_carestiato_fondation-ove_fr/Documents/Images/1potiniere/\"&Tableau2[[#This Row],[numéro]]&\".png\"","v":"https://sico-my.sharepoint.com/personal/julien_carestiato_fondation-ove_fr/Documents/Images/1potiniere/M63.png"},"Photo non dispo","DOUBLE RIDEAU BEIGE A FRONCE",{"$f":"IF(Tableau2[[#This Row],[déjà en prêt commande]]=TRUE,\" \",Tableau2[[#This Row],[numéro]]&\" \"&Tableau2[[#This Row],[désignation]])","v":"M63 DOUBLE RIDEAU BEIGE A FRONCE"},{"$f":"Tableau2[[#This Row],[numéro]]&\" \"&Tableau2[[#This Row],[désignation]]","v":"M63 DOUBLE RIDEAU BEIGE A FRONCE"},"H 217 X l. 210 cm",200,40,null,{"$f":"IF(Tableau2[[#This Row],[destinataire]]=0,IF(_xlfn.XLOOKUP(Tableau2[[#This Row],[code désignation]],commandecolonne[lisiting commande colonne],commandecolonne[lisiting commande colonne],FALSE)=Tableau2[[#This Row],[code désignation]],TRUE,FALSE),TRUE)","v":false}]
[{"$f":"_xlfn.XLOOKUP(MID(C371,1,1),Type[lettre type],Type[type])","v":"Rideau"},367,"M64",{"$f":"\"https://sico-my.sharepoint.com/personal/julien_carestiato_fondation-ove_fr/Documents/Images/1potiniere/\"&Tableau2[[#This Row],[numéro]]&\".png\"","v":"https://sico-my.sharepoint.com/personal/julien_carestiato_fondation-ove_fr/Documents/Images/1potiniere/M64.png"},null,"DOUBLE RIDEAU BEIGE-RAYURE MARRON A FRONCE",{"$f":"IF(Tableau2[[#This Row],[déjà en prêt commande]]=TRUE,\" \",Tableau2[[#This Row],[numéro]]&\" \"&Tableau2[[#This Row],[désignation]])","v":"M64 DOUBLE RIDEAU BEIGE-RAYURE MARRON A FRONCE"},{"$f":"Tableau2[[#This Row],[numéro]]&\" \"&Tableau2[[#This Row],[désignation]]","v":"M64 DOUBLE RIDEAU BEIGE-RAYURE MARRON A FRONCE"},"H 217 X l. 187 cm",200,40,null,{"$f":"IF(Tableau2[[#This Row],[destinataire]]=0,IF(_xlfn.XLOOKUP(Tableau2[[#This Row],[code désignation]],commandecolonne[lisiting commande colonne],commandecolonne[lisiting commande colonne],FALSE)=Tableau2[[#This Row],[code désignation]],TRUE,FALSE),TRUE)","v":false}]
[{"$f":"_xlfn.XLOOKUP(MID(C372,1,1),Type[lettre type],Type[type])","v":"Rideau"},368,"M65",{"$f":"\"https://sico-my.sharepoint.com/personal/julien_carestiato_fondation-ove_fr/Documents/Images/1potiniere/\"&Tableau2[[#This Row],[numéro]]&\".png\"","v":"https://sico-my.sharepoint.com/personal/julien_carestiato_fondation-ove_fr/Documents/Images/1potiniere/M65.png"},"Photo non dispo","DOUBLE RIDEAU BEIGE-RAYURE MARRON A FRONCE",{"$f":"IF(Tableau2[[#This Row],[déjà en prêt commande]]=TRUE,\" \",Tableau2[[#This Row],[numéro]]&\" \"&Tableau2[[#This Row],[désignation]])","v":"M65 DOUBLE RIDEAU BEIGE-RAYURE MARRON A FRONCE"},{"$f":"Tableau2[[#This Row],[numéro]]&\" \"&Tableau2[[#This Row],[désignation]]","v":"M65 DOUBLE RIDEAU BEIGE-RAYURE MARRON A FRONCE"},"H 217 X l. 187 cm",200,40,null,{"$f":"IF(Tableau2[[#This Row],[destinataire]]=0,IF(_xlfn.XLOOKUP(Tableau2[[#This Row],[code désignation]],commandecolonne[lisiting commande colonne],commandecolonne[lisiting commande colonne],FALSE)=Tableau2[[#This Row],[code désignation]],TRUE,FALSE),TRUE)","v":false}]
[{"$f":"_xlfn.XLOOKUP(MID(C373,1,1),Type[lettre type],Type[type])","v":"Rideau"},369,"M66",{"$f":"\"https://sico-my.sharepoint.com/personal/julien_carestiato_fondation-ove_fr/Documents/Images/1potiniere/\"&Tableau2[[#This Row],[numéro]]&\".png\"","v":"https://sico-my.sharepoint.com/personal/julien_carestiato_fondation-ove_fr/Documents/Images/1potiniere/M66.png"},"Photo non dispo","DOUBLE RIDEAU BEIGE-RAYURE MARRON A FRONCE",{"$f":"IF(Tableau2[[#This Row],[déjà en prêt commande]]=TRUE,\" \",Tableau2[[#This Row],[numéro]]&\" \"&Tableau2[[#This Row],[désignation]])","v":"M66 DOUBLE RIDEAU BEIGE-RAYURE MARRON A FRONCE"},{"$f":"Tableau2[[#This Row],[numéro]]&\" \"&Tableau2[[#This Row],[désignation]]","v":"M66 DOUBLE RIDEAU BEIGE-RAYURE MARRON A FRONCE"},"H 217 X l. 187 cm",200,40,null,{"$f":"IF(Tableau2[[#This Row],[destinataire]]=0,IF(_xlfn.XLOOKUP(Tableau2[[#This Row],[code désignation]],commandecolonne[lisiting commande colonne],commandecolonne[lisiting commande colonne],FALSE)=Tableau2[[#This Row],[code désignation]],TRUE,FALSE),TRUE)","v":false}]
[{"$f":"_xlfn.XLOOKUP(MID(C374,1,1),Type[lettre type],Type[type])","v":"Rideau"},370,"M67",{"$f":"\"https://sico-my.sharepoint.com/personal/julien_carestiato_fondation-ove_fr/Documents/Images/1potiniere/\"&Tableau2[[#This Row],[numéro]]&\".png\"","v":"https://sico-my.sharepoint.com/personal/julien_carestiato_fondation-ove_fr/Documents/Images/1potiniere/M67.png"},null,"DOUBLE RIDEAU BEIGE-RAYURE MARRON A FRONCE",{"$f":"IF(Tableau2[[#This Row],[déjà en prêt commande]]=TRUE,\" \",Tableau2[[#This Row],[numéro]]&\" \"&Tableau2[[#This Row],[désignation]])","v":"M67 DOUBLE RIDEAU BEIGE-RAYURE MARRON A FRONCE"},{"$f":"Tableau2[[#This Row],[numéro]]&\" \"&Tableau2[[#This Row],[désignation]]","v":"M67 DOUBLE RIDEAU BEIGE-RAYURE MARRON A FRONCE"},"H 217 X l. 147 cm",200,40,null,{"$f":"IF(Tableau2[[#This Row],[destinataire]]=0,IF(_xlfn.XLOOKUP(Tableau2[[#This Row],[code désignation]],commandecolonne[lisiting commande colonne],commandecolonne[lisiting commande colonne],FALSE)=Tableau2[[#This Row],[code désignation]],TRUE,FALSE),TRUE)","v":false}]
[{"$f":"_xlfn.XLOOKUP(MID(C375,1,1),Type[lettre type],Type[type])","v":"Rideau"},371,"M68",{"$f":"\"https://sico-my.sharepoint.com/personal/julien_carestiato_fondation-ove_fr/Documents/Images/1potiniere/\"&Tableau2[[#This Row],[numéro]]&\".png\"","v":"https://sico-my.sharepoint.com/personal/julien_carestiato_fondation-ove_fr/Documents/Images/1potiniere/M68.png"},"Photo non dispo","DOUBLE RIDEAU BEIGE-RAYURE MARRON A FRONCE",{"$f":"IF(Tableau2[[#This Row],[déjà en prêt commande]]=TRUE,\" \",Tableau2[[#This Row],[numéro]]&\" \"&Tableau2[[#This Row],[désignation]])","v":"M68 DOUBLE RIDEAU BEIGE-RAYURE MARRON A FRONCE"},{"$f":"Tableau2[[#This Row],[numéro]]&\" \"&Tableau2[[#This Row],[désignation]]","v":"M68 DOUBLE RIDEAU BEIGE-RAYURE MARRON A FRONCE"},"H 217 X l. 147 cm",200,40,null,{"$f":"IF(Tableau2[[#This Row],[destinataire]]=0,IF(_xlfn.XLOOKUP(Tableau2[[#This Row],[code désignation]],commandecolonne[lisiting commande colonne],commandecolonne[lisiting commande colonne],FALSE)=Tableau2[[#This Row],[code désignation]],TRUE,FALSE),TRUE)","v":false}]
[{"$f":"_xlfn.XLOOKUP(MID(C376,1,1),Type[lettre type],Type[type])","v":"Rideau"},372,"M69",{"$f":"\"https://sico-my.sharepoint.com/personal/julien_carestiato_fondation-ove_fr/Documents/Images/1potiniere/\"&Tableau2[[#This Row],[numéro]]&\".png\"","v":"https://sico-my.sharepoint.com/personal/julien_carestiato_fondation-ove_fr/Documents/Images/1potiniere/M69.png"},null,"DOUBLE RIDEAU RAYE CHOCOLAT - BLEU A FRONCE",{"$f":"IF(Tableau2[[#This Row],[déjà en prêt commande]]=TRUE,\" \",Tableau2[[#This Row],[numéro]]&\" \"&Tableau2[[#This Row],[désignation]])","v":"M69 DOUBLE RIDEAU RAYE CHOCOLAT - BLEU A FRONCE"},{"$f":"Tableau2[[#This Row],[numéro]]&\" \"&Tableau2[[#This Row],[désignation]]","v":"M69 DOUBLE RIDEAU RAYE CHOCOLAT - BLEU A FRONCE"},"H 220 X l. 133 cm",200,40,null,{"$f":"IF(Tableau2[[#This Row],[destinataire]]=0,IF(_xlfn.XLOOKUP(Tableau2[[#This Row],[code désignation]],commandecolonne[lisiting commande colonne],commandecolonne[lisiting commande colonne],FALSE)=Tableau2[[#This Row],[code désignation]],TRUE,FALSE),TRUE)","v":false}]
[{"$f":"_xlfn.XLOOKUP(MID(C377,1,1),Type[lettre type],Type[type])","v":"Rideau"},373,"M70",{"$f":"\"https://sico-my.sharepoint.com/personal/julien_carestiato_fondation-ove_fr/Documents/Images/1potiniere/\"&Tableau2[[#This Row],[numéro]]&\".png\"","v":"https://sico-my.sharepoint.com/personal/julien_carestiato_fondation-ove_fr/Documents/Images/1potiniere/M70.png"},null,"DOUBLE RIDEAU RAYE CHOCOLAT - BLEU A FRONCE",{"$f":"IF(Tableau2[[#This Row],[déjà en prêt commande]]=TRUE,\" \",Tableau2[[#This Row],[numéro]]&\" \"&Tableau2[[#This Row],[désignation]])","v":"M70 DOUBLE RIDEAU RAYE CHOCOLAT - BLEU A FRONCE"},{"$f":"Tableau2[[#This Row],[numéro]]&\" \"&Tableau2[[#This Row],[désignation]]","v":"M70 DOUBLE RIDEAU RAYE CHOCOLAT - BLEU A FRONCE"},"H 220 X l. 260 cm",200,40,null,{"$f":"IF(Tableau2[[#This Row],[destinataire]]=0,IF(_xlfn.XLOOKUP(Tableau2[[#This Row],[code désignation]],commandecolonne[lisiting commande colonne],commandecolonne[lisiting commande colonne],FALSE)=Tableau2[[#This Row],[code désignation]],TRUE,FALSE),TRUE)","v":false}]
[{"$f":"_xlfn.XLOOKUP(MID(C378,1,1),Type[lettre type],Type[type])","v":"Rideau"},374,"M71",{"$f":"\"https://sico-my.sharepoint.com/personal/julien_carestiato_fondation-ove_fr/Documents/Images/1potiniere/\"&Tableau2[[#This Row],[numéro]]&\".png\"","v":"https://sico-my.sharepoint.com/personal/julien_carestiato_fondation-ove_fr/Documents/Images/1potiniere/M71.png"},null,"DOUBLE RIDEAU RAYE CHOCOLAT - BLEU A FRONCE",{"$f":"IF(Tableau2[[#This Row],[déjà en prêt commande]]=TRUE,\" \",Tableau2[[#This Row],[numéro]]&\" \"&Tableau2[[#This Row],[désignation]])","v":"M71 DOUBLE RIDEAU RAYE CHOCOLAT - BLEU A FRONCE"},{"$f":"Tableau2[[#This Row],[numéro]]&\" \"&Tableau2[[#This Row],[désignation]]","v":"M71 DOUBLE RIDEAU RAYE CHOCOLAT - BLEU A FRONCE"},"H 220 X l. 200 cm",200,40,null,{"$f":"IF(Tableau2[[#This Row],[destinataire]]=0,IF(_xlfn.XLOOKUP(Tableau2[[#This Row],[code désignation]],commandecolonne[lisiting commande colonne],commandecolonne[lisiting commande colonne],FALSE)=Tableau2[[#This Row],[code désignation]],TRUE,FALSE),TRUE)","v":false}]
[{"$f":"_xlfn.XLOOKUP(MID(C379,1,1),Type[lettre type],Type[type])","v":"Rideau"},375,"M72",{"$f":"\"https://sico-my.sharepoint.com/personal/julien_carestiato_fondation-ove_fr/Documents/Images/1potiniere/\"&Tableau2[[#This Row],[numéro]]&\".png\"","v":"https://sico-my.sharepoint.com/personal/julien_carestiato_fondation-ove_fr/Documents/Images/1potiniere/M72.png"},null,"DOUBLE RIDEAU RAYE CHOCOLAT - BLEU A FRONCE",{"$f":"IF(Tableau2[[#This Row],[déjà en prêt commande]]=TRUE,\" \",Tableau2[[#This Row],[numéro]]&\" \"&Tableau2[[#This Row],[désignation]])","v":"M72 DOUBLE RIDEAU RAYE CHOCOLAT - BLEU A FRONCE"},{"$f":"Tableau2[[#This Row],[numéro]]&\" \"&Tableau2[[#This Row],[désignation]]","v":"M72 DOUBLE RIDEAU RAYE CHOCOLAT - BLEU A FRONCE"},"H 220 X l. 240 cm",200,40,null,{"$f":"IF(Tableau2[[#This Row],[destinataire]]=0,IF(_xlfn.XLOOKUP(Tableau2[[#This Row],[code désignation]],commandecolonne[lisiting commande colonne],commandecolonne[lisiting commande colonne],FALSE)=Tableau2[[#This Row],[code désignation]],TRUE,FALSE),TRUE)","v":false}]
[{"$f":"_xlfn.XLOOKUP(MID(C380,1,1),Type[lettre type],Type[type])","v":"Rideau"},376,"M73",{"$f":"\"https://sico-my.sharepoint.com/personal/julien_carestiato_fondation-ove_fr/Documents/Images/1potiniere/\"&Tableau2[[#This Row],[numéro]]&\".png\"","v":"https://sico-my.sharepoint.com/personal/julien_carestiato_fondation-ove_fr/Documents/Images/1potiniere/M73.png"},null,"DOUBLE RIDEAU BEIGE-RAYURE MARRON A FRONCE",{"$f":"IF(Tableau2[[#This Row],[déjà en prêt commande]]=TRUE,\" \",Tableau2[[#This Row],[numéro]]&\" \"&Tableau2[[#This Row],[désignation]])","v":"M73 DOUBLE RIDEAU BEIGE-RAYURE MARRON A FRONCE"},{"$f":"Tableau2[[#This Row],[numéro]]&\" \"&Tableau2[[#This Row],[désignation]]","v":"M73 DOUBLE RIDEAU BEIGE-RAYURE MARRON A FRONCE"},"H 220 X l. 235 cm",200,40,null,{"$f":"IF(Tableau2[[#This Row],[destinataire]]=0,IF(_xlfn.XLOOKUP(Tableau2[[#This Row],[code désignation]],commandecolonne[lisiting commande colonne],commandecolonne[lisiting commande colonne],FALSE)=Tableau2[[#This Row],[code désignation]],TRUE,FALSE),TRUE)","v":false}]
[{"$f":"_xlfn.XLOOKUP(MID(C381,1,1),Type[lettre type],Type[type])","v":"Rideau"},377,"M74",{"$f":"\"https://sico-my.sharepoint.com/personal/julien_carestiato_fondation-ove_fr/Documents/Images/1potiniere/\"&Tableau2[[#This Row],[numéro]]&\".png\"","v":"https://sico-my.sharepoint.com/personal/julien_carestiato_fondation-ove_fr/Documents/Images/1potiniere/M74.png"},"Photo non dispo","DOUBLE RIDEAU BEIGE-RAYURE MARRON A FRONCE",{"$f":"IF(Tableau2[[#This Row],[déjà en prêt commande]]=TRUE,\" \",Tableau2[[#This Row],[numéro]]&\" \"&Tableau2[[#This Row],[désignation]])","v":"M74 DOUBLE RIDEAU BEIGE-RAYURE MARRON A FRONCE"},{"$f":"Tableau2[[#This Row],[numéro]]&\" \"&Tableau2[[#This Row],[désignation]]","v":"M74 DOUBLE RIDEAU BEIGE-RAYURE MARRON A FRONCE"},"H 220 X l. 235 cm",200,40,null,{"$f":"IF(Tableau2[[#This Row],[destinataire]]=0,IF(_xlfn.XLOOKUP(Tableau2[[#This Row],[code désignation]],commandecolonne[lisiting commande colonne],commandecolonne[lisiting commande colonne],FALSE)=Tableau2[[#This Row],[code désignation]],TRUE,FALSE),TRUE)","v":false}]
[{"$f":"_xlfn.XLOOKUP(MID(C382,1,1),Type[lettre type],Type[type])","v":"Rideau"},378,"M75",{"$f":"\"https://sico-my.sharepoint.com/personal/julien_carestiato_fondation-ove_fr/Documents/Images/1potiniere/\"&Tableau2[[#This Row],[numéro]]&\".png\"","v":"https://sico-my.sharepoint.com/personal/julien_carestiato_fondation-ove_fr/Documents/Images/1potiniere/M75.png"},null,"DOUBLE RIDEAU BEIGE-RAYURE MARRON A FRONCE",{"$f":"IF(Tableau2[[#This Row],[déjà en prêt commande]]=TRUE,\" \",Tableau2[[#This Row],[numéro]]&\" \"&Tableau2[[#This Row],[désignation]])","v":"M75 DOUBLE RIDEAU BEIGE-RAYURE MARRON A FRONCE"},{"$f":"Tableau2[[#This Row],[numéro]]&\" \"&Tableau2[[#This Row],[désignation]]","v":"M75 DOUBLE RIDEAU BEIGE-RAYURE MARRON A FRONCE"},"H 220 X l. 185 cm",200,40,null,{"$f":"IF(Tableau2[[#This Row],[destinataire]]=0,IF(_xlfn.XLOOKUP(Tableau2[[#This Row],[code désignation]],commandecolonne[lisiting commande colonne],commandecolonne[lisiting commande colonne],FALSE)=Tableau2[[#This Row],[code désignation]],TRUE,FALSE),TRUE)","v":false}]
[{"$f":"_xlfn.XLOOKUP(MID(C383,1,1),Type[lettre type],Type[type])","v":"Meuble TV"},379,"N1",{"$f":"\"https://sico-my.sharepoint.com/personal/julien_carestiato_fondation-ove_fr/Documents/Images/1potiniere/\"&Tableau2[[#This Row],[numéro]]&\".png\"","v":"https://sico-my.sharepoint.com/personal/julien_carestiato_fondation-ove_fr/Documents/Images/1potiniere/N1.png"},null,"MEUBLE 9 TIROIRS",{"$f":"IF(Tableau2[[#This Row],[déjà en prêt commande]]=TRUE,\" \",Tableau2[[#This Row],[numéro]]&\" \"&Tableau2[[#This Row],[désignation]])","v":"N1 MEUBLE 9 TIROIRS"},{"$f":"Tableau2[[#This Row],[numéro]]&\" \"&Tableau2[[#This Row],[désignation]]","v":"N1 MEUBLE 9 TIROIRS"},"H 80 cm / 50 x 192 cm",500,100,null,{"$f":"IF(Tableau2[[#This Row],[destinataire]]=0,IF(_xlfn.XLOOKUP(Tableau2[[#This Row],[code désignation]],commandecolonne[lisiting commande colonne],commandecolonne[lisiting commande colonne],FALSE)=Tableau2[[#This Row],[code désignation]],TRUE,FALSE),TRUE)","v":false}]
[{"$f":"_xlfn.XLOOKUP(MID(C384,1,1),Type[lettre type],Type[type])","v":"Meuble TV"},380,"N2",{"$f":"\"https://sico-my.sharepoint.com/personal/julien_carestiato_fondation-ove_fr/Documents/Images/1potiniere/\"&Tableau2[[#This Row],[numéro]]&\".png\"","v":"https://sico-my.sharepoint.com/personal/julien_carestiato_fondation-ove_fr/Documents/Images/1potiniere/N2.png"},null,"MEUBLE 3 TIROIRS                                    3 PORTES / 2 ETAGERES",{"$f":"IF(Tableau2[[#This Row],[déjà en prêt commande]]=TRUE,\" \",Tableau2[[#This Row],[numéro]]&\" \"&Tableau2[[#This Row],[désignation]])","v":"N2 MEUBLE 3 TIROIRS                                    3 PORTES / 2 ETAGERES"},{"$f":"Tableau2[[#This Row],[numéro]]&\" \"&Tableau2[[#This Row],[désignation]]","v":"N2 MEUBLE 3 TIROIRS                                    3 PORTES / 2 ETAGERES"},"H 82 cm / 50 x 239 cm",500,100,null,{"$f":"IF(Tableau2[[#This Row],[destinataire]]=0,IF(_xlfn.XLOOKUP(Tableau2[[#This Row],[code désignation]],commandecolonne[lisiting commande colonne],commandecolonne[lisiting commande colonne],FALSE)=Tableau2[[#This Row],[code désignation]],TRUE,FALSE),TRUE)","v":false}]
[{"$f":"_xlfn.XLOOKUP(MID(C385,1,1),Type[lettre type],Type[type])","v":"Meuble TV"},381,"N3",{"$f":"\"https://sico-my.sharepoint.com/personal/julien_carestiato_fondation-ove_fr/Documents/Images/1potiniere/\"&Tableau2[[#This Row],[numéro]]&\".png\"","v":"https://sico-my.sharepoint.com/personal/julien_carestiato_fondation-ove_fr/Documents/Images/1potiniere/N3.png"},null,"BUREAU + MEUBLE TV",{"$f":"IF(Tableau2[[#This Row],[déjà en prêt commande]]=TRUE,\" \",Tableau2[[#This Row],[numéro]]&\" \"&Tableau2[[#This Row],[désignation]])","v":"N3 BUREAU + MEUBLE TV"},{"$f":"Tableau2[[#This Row],[numéro]]&\" \"&Tableau2[[#This Row],[désignation]]","v":"N3 BUREAU + MEUBLE TV"},"H 76 cm / 70 X 249 cm",500,100,null,{"$f":"IF(Tableau2[[#This Row],[destinataire]]=0,IF(_xlfn.XLOOKUP(Tableau2[[#This Row],[code désignation]],commandecolonne[lisiting commande colonne],commandecolonne[lisiting commande colonne],FALSE)=Tableau2[[#This Row],[code désignation]],TRUE,FALSE),TRUE)","v":false}]
[{"$f":"_xlfn.XLOOKUP(MID(C386,1,1),Type[lettre type],Type[type])","v":"Meuble TV"},382,"N4",{"$f":"\"https://sico-my.sharepoint.com/personal/julien_carestiato_fondation-ove_fr/Documents/Images/1potiniere/\"&Tableau2[[#This Row],[numéro]]&\".png\"","v":"https://sico-my.sharepoint.com/personal/julien_carestiato_fondation-ove_fr/Documents/Images/1potiniere/N4.png"},null,"MEUBLE TV",{"$f":"IF(Tableau2[[#This Row],[déjà en prêt commande]]=TRUE,\" \",Tableau2[[#This Row],[numéro]]&\" \"&Tableau2[[#This Row],[désignation]])","v":"N4 MEUBLE TV"},{"$f":"Tableau2[[#This Row],[numéro]]&\" \"&Tableau2[[#This Row],[désignation]]","v":"N4 MEUBLE TV"},"H 76 cm / 70 X 220 cm",500,100,null,{"$f":"IF(Tableau2[[#This Row],[destinataire]]=0,IF(_xlfn.XLOOKUP(Tableau2[[#This Row],[code désignation]],commandecolonne[lisiting commande colonne],commandecolonne[lisiting commande colonne],FALSE)=Tableau2[[#This Row],[code désignation]],TRUE,FALSE),TRUE)","v":false}]
[{"$f":"_xlfn.XLOOKUP(MID(C387,1,1),Type[lettre type],Type[type])","v":"Meuble TV"},383,"N5",{"$f":"\"https://sico-my.sharepoint.com/personal/julien_carestiato_fondation-ove_fr/Documents/Images/1potiniere/\"&Tableau2[[#This Row],[numéro]]&\".png\"","v":"https://sico-my.sharepoint.com/personal/julien_carestiato_fondation-ove_fr/Documents/Images/1potiniere/N5.png"},null,"MEUBLE TV                                           MANQUE MINI BAR",{"$f":"IF(Tableau2[[#This Row],[déjà en prêt commande]]=TRUE,\" \",Tableau2[[#This Row],[numéro]]&\" \"&Tableau2[[#This Row],[désignation]])","v":"N5 MEUBLE TV                                           MANQUE MINI BAR"},{"$f":"Tableau2[[#This Row],[numéro]]&\" \"&Tableau2[[#This Row],[désignation]]","v":"N5 MEUBLE TV                                           MANQUE MINI BAR"},"H 76 cm / 70 X 220 cm",500,100,null,{"$f":"IF(Tableau2[[#This Row],[destinataire]]=0,IF(_xlfn.XLOOKUP(Tableau2[[#This Row],[code désignation]],commandecolonne[lisiting commande colonne],commandecolonne[lisiting commande colonne],FALSE)=Tableau2[[#This Row],[code désignation]],TRUE,FALSE),TRUE)","v":false}]
[{"$f":"_xlfn.XLOOKUP(MID(C388,1,1),Type[lettre type],Type[type])","v":"Meuble TV"},384,"N6",{"$f":"\"https://sico-my.sharepoint.com/personal/julien_carestiato_fondation-ove_fr/Documents/Images/1potiniere/\"&Tableau2[[#This Row],[numéro]]&\".png\"","v":"https://sico-my.sharepoint.com/personal/julien_carestiato_fondation-ove_fr/Documents/Images/1potiniere/N6.png"},"Photo non dispo",null,{"$f":"IF(Tableau2[[#This Row],[déjà en prêt commande]]=TRUE,\" \",Tableau2[[#This Row],[numéro]]&\" \"&Tableau2[[#This Row],[désignation]])","v":"N6 "},{"$f":"Tableau2[[#This Row],[numéro]]&\" \"&Tableau2[[#This Row],[désignation]]","v":"N6 "},null,500,null,null,{"$f":"IF(Tableau2[[#This Row],[destinataire]]=0,IF(_xlfn.XLOOKUP(Tableau2[[#This Row],[code désignation]],commandecolonne[lisiting commande colonne],commandecolonne[lisiting commande colonne],FALSE)=Tableau2[[#This Row],[code désignation]],TRUE,FALSE),TRUE)","v":false}]
[{"$f":"_xlfn.XLOOKUP(MID(C389,1,1),Type[lettre type],Type[type])","v":"Meuble TV"},385,"N7",{"$f":"\"https://sico-my.sharepoint.com/personal/julien_carestiato_fondation-ove_fr/Documents/Images/1potiniere/\"&Tableau2[[#This Row],[numéro]]&\".png\"","v":"https://sico-my.sharepoint.com/personal/julien_carestiato_fondation-ove_fr/Documents/Images/1potiniere/N7.png"},null,"MEUBLE TV",{"$f":"IF(Tableau2[[#This Row],[déjà en prêt commande]]=TRUE,\" \",Tableau2[[#This Row],[numéro]]&\" \"&Tableau2[[#This Row],[désignation]])","v":"N7 MEUBLE TV"},{"$f":"Tableau2[[#This Row],[numéro]]&\" \"&Tableau2[[#This Row],[désignation]]","v":"N7 MEUBLE TV"},"H 76 cm / 66 X 201 cm",500,100,null,{"$f":"IF(Tableau2[[#This Row],[destinataire]]=0,IF(_xlfn.XLOOKUP(Tableau2[[#This Row],[code désignation]],commandecolonne[lisiting commande colonne],commandecolonne[lisiting commande colonne],FALSE)=Tableau2[[#This Row],[code désignation]],TRUE,FALSE),TRUE)","v":false}]
[{"$f":"_xlfn.XLOOKUP(MID(C390,1,1),Type[lettre type],Type[type])","v":"Meuble TV"},386,"N8",{"$f":"\"https://sico-my.sharepoint.com/personal/julien_carestiato_fondation-ove_fr/Documents/Images/1potiniere/\"&Tableau2[[#This Row],[numéro]]&\".png\"","v":"https://sico-my.sharepoint.com/personal/julien_carestiato_fondation-ove_fr/Documents/Images/1potiniere/N8.png"},null,"MEUBLE TV",{"$f":"IF(Tableau2[[#This Row],[déjà en prêt commande]]=TRUE,\" \",Tableau2[[#This Row],[numéro]]&\" \"&Tableau2[[#This Row],[désignation]])","v":"N8 MEUBLE TV"},{"$f":"Tableau2[[#This Row],[numéro]]&\" \"&Tableau2[[#This Row],[désignation]]","v":"N8 MEUBLE TV"},"H 76 cm / 70 X 216 cm",500,100,null,{"$f":"IF(Tableau2[[#This Row],[destinataire]]=0,IF(_xlfn.XLOOKUP(Tableau2[[#This Row],[code désignation]],commandecolonne[lisiting commande colonne],commandecolonne[lisiting commande colonne],FALSE)=Tableau2[[#This Row],[code désignation]],TRUE,FALSE),TRUE)","v":false}]
[{"$f":"_xlfn.XLOOKUP(MID(C391,1,1),Type[lettre type],Type[type])","v":"Meuble TV"},387,"N9",{"$f":"\"https://sico-my.sharepoint.com/personal/julien_carestiato_fondation-ove_fr/Documents/Images/1potiniere/\"&Tableau2[[#This Row],[numéro]]&\".png\"","v":"https://sico-my.sharepoint.com/personal/julien_carestiato_fondation-ove_fr/Documents/Images/1potiniere/N9.png"},null,"MEUBLE TV",{"$f":"IF(Tableau2[[#This Row],[déjà en prêt commande]]=TRUE,\" \",Tableau2[[#This Row],[numéro]]&\" \"&Tableau2[[#This Row],[désignation]])","v":"N9 MEUBLE TV"},{"$f":"Tableau2[[#This Row],[numéro]]&\" \"&Tableau2[[#This Row],[désignation]]","v":"N9 MEUBLE TV"},"H 76 cm / 70 X 220 cm",500,100,null,{"$f":"IF(Tableau2[[#This Row],[destinataire]]=0,IF(_xlfn.XLOOKUP(Tableau2[[#This Row],[code désignation]],commandecolonne[lisiting commande colonne],commandecolonne[lisiting commande colonne],FALSE)=Tableau2[[#This Row],[code désignation]],TRUE,FALSE),TRUE)","v":false}]
[{"$f":"_xlfn.XLOOKUP(MID(C392,1,1),Type[lettre type],Type[type])","v":"Meuble TV"},388,"N10",{"$f":"\"https://sico-my.sharepoint.com/personal/julien_carestiato_fondation-ove_fr/Documents/Images/1potiniere/\"&Tableau2[[#This Row],[numéro]]&\".png\"","v":"https://sico-my.sharepoint.com/personal/julien_carestiato_fondation-ove_fr/Documents/Images/1potiniere/N10.png"},null,"MEUBLE TV",{"$f":"IF(Tableau2[[#This Row],[déjà en prêt commande]]=TRUE,\" \",Tableau2[[#This Row],[numéro]]&\" \"&Tableau2[[#This Row],[désignation]])","v":"N10 MEUBLE TV"},{"$f":"Tableau2[[#This Row],[numéro]]&\" \"&Tableau2[[#This Row],[désignation]]","v":"N10 MEUBLE TV"},"H 76 cm / 70 X 220 cm",500,100,null,{"$f":"IF(Tableau2[[#This Row],[destinataire]]=0,IF(_xlfn.XLOOKUP(Tableau2[[#This Row],[code désignation]],commandecolonne[lisiting commande colonne],commandecolonne[lisiting commande colonne],FALSE)=Tableau2[[#This Row],[code désignation]],TRUE,FALSE),TRUE)","v":false}]
[{"$f":"_xlfn.XLOOKUP(MID(C393,1,1),Type[lettre type],Type[type])","v":"Meuble TV"},389,"N11",{"$f":"\"https://sico-my.sharepoint.com/personal/julien_carestiato_fondation-ove_fr/Documents/Images/1potiniere/\"&Tableau2[[#This Row],[numéro]]&\".png\"","v":"https://sico-my.sharepoint.com/personal/julien_carestiato_fondation-ove_fr/Documents/Images/1potiniere/N11.png"},null,"MEUBLE TV",{"$f":"IF(Tableau2[[#This Row],[déjà en prêt commande]]=TRUE,\" \",Tableau2[[#This Row],[numéro]]&\" \"&Tableau2[[#This Row],[désignation]])","v":"N11 MEUBLE TV"},{"$f":"Tableau2[[#This Row],[numéro]]&\" \"&Tableau2[[#This Row],[désignation]]","v":"N11 MEUBLE TV"},"H 76 cm / 70 X 216 cm",500,100,null,{"$f":"IF(Tableau2[[#This Row],[destinataire]]=0,IF(_xlfn.XLOOKUP(Tableau2[[#This Row],[code désignation]],commandecolonne[lisiting commande colonne],commandecolonne[lisiting commande colonne],FALSE)=Tableau2[[#This Row],[code désignation]],TRUE,FALSE),TRUE)","v":false}]
[{"$f":"_xlfn.XLOOKUP(MID(C394,1,1),Type[lettre type],Type[type])","v":"Meuble TV"},390,"N12",{"$f":"\"https://sico-my.sharepoint.com/personal/julien_carestiato_fondation-ove_fr/Documents/Images/1potiniere/\"&Tableau2[[#This Row],[numéro]]&\".png\"","v":"https://sico-my.sharepoint.com/personal/julien_carestiato_fondation-ove_fr/Documents/Images/1potiniere/N12.png"},null,"BUREAU + MEUBLE TV",{"$f":"IF(Tableau2[[#This Row],[déjà en prêt commande]]=TRUE,\" \",Tableau2[[#This Row],[numéro]]&\" \"&Tableau2[[#This Row],[désignation]])","v":"N12 BUREAU + MEUBLE TV"},{"$f":"Tableau2[[#This Row],[numéro]]&\" \"&Tableau2[[#This Row],[désignation]]","v":"N12 BUREAU + MEUBLE TV"},"H 76 cm / 70 X 249 cm",500,100,null,{"$f":"IF(Tableau2[[#This Row],[destinataire]]=0,IF(_xlfn.XLOOKUP(Tableau2[[#This Row],[code désignation]],commandecolonne[lisiting commande colonne],commandecolonne[lisiting commande colonne],FALSE)=Tableau2[[#This Row],[code désignation]],TRUE,FALSE),TRUE)","v":false}]
[{"$f":"_xlfn.XLOOKUP(MID(C395,1,1),Type[lettre type],Type[type])","v":"Meuble TV"},391,"N13",{"$f":"\"https://sico-my.sharepoint.com/personal/julien_carestiato_fondation-ove_fr/Documents/Images/1potiniere/\"&Tableau2[[#This Row],[numéro]]&\".png\"","v":"https://sico-my.sharepoint.com/personal/julien_carestiato_fondation-ove_fr/Documents/Images/1potiniere/N13.png"},null,"MEUBLE TV  6 TIROIRS                                         ",{"$f":"IF(Tableau2[[#This Row],[déjà en prêt commande]]=TRUE,\" \",Tableau2[[#This Row],[numéro]]&\" \"&Tableau2[[#This Row],[désignation]])","v":"N13 MEUBLE TV  6 TIROIRS                                         "},{"$f":"Tableau2[[#This Row],[numéro]]&\" \"&Tableau2[[#This Row],[désignation]]","v":"N13 MEUBLE TV  6 TIROIRS                                         "},"H 73 cm / 60 x 210 cm",300,60,null,{"$f":"IF(Tableau2[[#This Row],[destinataire]]=0,IF(_xlfn.XLOOKUP(Tableau2[[#This Row],[code désignation]],commandecolonne[lisiting commande colonne],commandecolonne[lisiting commande colonne],FALSE)=Tableau2[[#This Row],[code désignation]],TRUE,FALSE),TRUE)","v":false}]
[{"$f":"_xlfn.XLOOKUP(MID(C396,1,1),Type[lettre type],Type[type])","v":"Meuble TV"},392,"N14",{"$f":"\"https://sico-my.sharepoint.com/personal/julien_carestiato_fondation-ove_fr/Documents/Images/1potiniere/\"&Tableau2[[#This Row],[numéro]]&\".png\"","v":"https://sico-my.sharepoint.com/personal/julien_carestiato_fondation-ove_fr/Documents/Images/1potiniere/N14.png"},null,"MEUBLE TV  6 TIROIRS                                         ",{"$f":"IF(Tableau2[[#This Row],[déjà en prêt commande]]=TRUE,\" \",Tableau2[[#This Row],[numéro]]&\" \"&Tableau2[[#This Row],[désignation]])","v":"N14 MEUBLE TV  6 TIROIRS                                         "},{"$f":"Tableau2[[#This Row],[numéro]]&\" \"&Tableau2[[#This Row],[désignation]]","v":"N14 MEUBLE TV  6 TIROIRS                                         "},"H 73 cm / 60 x 210 cm",300,60,null,{"$f":"IF(Tableau2[[#This Row],[destinataire]]=0,IF(_xlfn.XLOOKUP(Tableau2[[#This Row],[code désignation]],commandecolonne[lisiting commande colonne],commandecolonne[lisiting commande colonne],FALSE)=Tableau2[[#This Row],[code désignation]],TRUE,FALSE),TRUE)","v":false}]
[{"$f":"_xlfn.XLOOKUP(MID(C397,1,1),Type[lettre type],Type[type])","v":"Meuble TV"},393,"N15",{"$f":"\"https://sico-my.sharepoint.com/personal/julien_carestiato_fondation-ove_fr/Documents/Images/1potiniere/\"&Tableau2[[#This Row],[numéro]]&\".png\"","v":"https://sico-my.sharepoint.com/personal/julien_carestiato_fondation-ove_fr/Documents/Images/1potiniere/N15.png"},null,"MEUBLE TV 6 TIROIRS ",{"$f":"IF(Tableau2[[#This Row],[déjà en prêt commande]]=TRUE,\" \",Tableau2[[#This Row],[numéro]]&\" \"&Tableau2[[#This Row],[désignation]])","v":"N15 MEUBLE TV 6 TIROIRS "},{"$f":"Tableau2[[#This Row],[numéro]]&\" \"&Tableau2[[#This Row],[désignation]]","v":"N15 MEUBLE TV 6 TIROIRS "},"H 73 cm / 60 x 210 cm",300,60,null,{"$f":"IF(Tableau2[[#This Row],[destinataire]]=0,IF(_xlfn.XLOOKUP(Tableau2[[#This Row],[code désignation]],commandecolonne[lisiting commande colonne],commandecolonne[lisiting commande colonne],FALSE)=Tableau2[[#This Row],[code désignation]],TRUE,FALSE),TRUE)","v":false}]
[{"$f":"_xlfn.XLOOKUP(MID(C398,1,1),Type[lettre type],Type[type])","v":"Accéssoire"},394,"P1",{"$f":"\"https://sico-my.sharepoint.com/personal/julien_carestiato_fondation-ove_fr/Documents/Images/1potiniere/\"&Tableau2[[#This Row],[numéro]]&\".png\"","v":"https://sico-my.sharepoint.com/personal/julien_carestiato_fondation-ove_fr/Documents/Images/1potiniere/P1.png"},null,"JETEE DE LIT",{"$f":"IF(Tableau2[[#This Row],[déjà en prêt commande]]=TRUE,\" \",Tableau2[[#This Row],[numéro]]&\" \"&Tableau2[[#This Row],[désignation]])","v":" "},{"$f":"Tableau2[[#This Row],[numéro]]&\" \"&Tableau2[[#This Row],[désignation]]","v":"P1 JETEE DE LIT"},"l 69 cm X L 286 cm",0,0,"APPARTEMENTS SOUTIEN",{"$f":"IF(Tableau2[[#This Row],[destinataire]]=0,IF(_xlfn.XLOOKUP(Tableau2[[#This Row],[code désignation]],commandecolonne[lisiting commande colonne],commandecolonne[lisiting commande colonne],FALSE)=Tableau2[[#This Row],[code désignation]],TRUE,FALSE),TRUE)","v":true}]
[{"$f":"_xlfn.XLOOKUP(MID(C399,1,1),Type[lettre type],Type[type])","v":"Accéssoire"},395,"P2",{"$f":"\"https://sico-my.sharepoint.com/personal/julien_carestiato_fondation-ove_fr/Documents/Images/1potiniere/\"&Tableau2[[#This Row],[numéro]]&\".png\"","v":"https://sico-my.sharepoint.com/personal/julien_carestiato_fondation-ove_fr/Documents/Images/1potiniere/P2.png"},null,"COUSSIN",{"$f":"IF(Tableau2[[#This Row],[déjà en prêt commande]]=TRUE,\" \",Tableau2[[#This Row],[numéro]]&\" \"&Tableau2[[#This Row],[désignation]])","v":" "},{"$f":"Tableau2[[#This Row],[numéro]]&\" \"&Tableau2[[#This Row],[désignation]]","v":"P2 COUSSIN"},null,0,0,"APPARTEMENTS SOUTIEN",{"$f":"IF(Tableau2[[#This Row],[destinataire]]=0,IF(_xlfn.XLOOKUP(Tableau2[[#This Row],[code désignation]],commandecolonne[lisiting commande colonne],commandecolonne[lisiting commande colonne],FALSE)=Tableau2[[#This Row],[code désignation]],TRUE,FALSE),TRUE)","v":true}]

{"sheet":"réservation","index":2,"n_rows":4,"n_cols":13,"rows_kept":4,"cut":false,"hidden":false,"merged":[]}
["esms",8,"commande",5]
[null,{"$f":"_xlfn.XLOOKUP(B1,esms[n°],esms[nom],FALSE)","v":"138005 - OVE - ITEP Marius Boulogne"},null,{"$f":"_xlfn.XLOOKUP(D1,Tableau2[n°],Tableau2[code désignation],FALSE)","v":"A4 BUREAU TIROIR"},{"$f":"_xlfn.XLOOKUP(E1,Tableau2[n°],Tableau2[code désignation],FALSE)","v":false},{"$f":"_xlfn.XLOOKUP(F1,Tableau2[n°],Tableau2[code désignation],FALSE)","v":false},{"$f":"_xlfn.XLOOKUP(G1,Tableau2[n°],Tableau2[code désignation],FALSE)","v":false},{"$f":"_xlfn.XLOOKUP(H1,Tableau2[n°],Tableau2[code désignation],FALSE)","v":false},{"$f":"_xlfn.XLOOKUP(I1,Tableau2[n°],Tableau2[code désignation],FALSE)","v":false},{"$f":"_xlfn.XLOOKUP(J1,Tableau2[n°],Tableau2[code désignation],FALSE)","v":false},{"$f":"_xlfn.XLOOKUP(K1,Tableau2[n°],Tableau2[code désignation],FALSE)","v":false},{"$f":"_xlfn.XLOOKUP(L1,Tableau2[n°],Tableau2[code désignation],FALSE)","v":false},{"$f":"_xlfn.XLOOKUP(M1,Tableau2[n°],Tableau2[code désignation],FALSE)","v":false}]
[]
["les précommandes :","esms","commande 1","commande 2","commande 3","commande 4","commande 5","commande 6","commande 7","commande 8","commande 9","commande 10"]

{"sheet":"outils","index":4,"n_rows":120,"n_cols":8,"rows_kept":120,"cut":false,"hidden":false,"merged":[]}
["lettre type","type",null,"Numéro","nom","Raison sociale de l'ESMS","N° téléphone de l'ESMS","n°"]
["A","Bureau",null,101021,"101021 - OVE - DELTA 01","OVE - DELTA 01",646075020,1]
["B","Console",null,116001,"116001 - OVE - DIAPASOM SAVS 16","OVE - DIAPASOM SAVS 16","05 45 50 79 93",2]
["C","Canapé",null,117001,"117001 - OVE - DIAPASOM SAVS 17","OVE - DIAPASOM SAVS 17","05 49 62 81 30",3]
["D","Table de chevet",null,123456,"123456 - OVE_ESSMS_Test","OVE_ESSMS_Test",102030405,4]
["E","Table Basse",null,127002,"127002 - OVE - ITEP Marie-Amélie Le Fur","OVE - ITEP Marie-Amélie Le Fur",276386040,5]
["F","Fauteil",null,138002,"138002 - OVE - AMI Isère","OVE - AMI Isère",619310752,6]
["G","Chaise",null,138004,"138004 - OVE - MECS Eugène Chavant","OVE - MECS Eugène Chavant",476953040,7]
["H","Tableau",null,138005,"138005 - OVE - ITEP Marius Boulogne","OVE - ITEP Marius Boulogne",476523163,8]
["I","Tapis",null,138006,"138006 - OVE - IME Georges Bonneton","OVE - IME Georges Bonneton",476362267,9]
["J","Miroir",null,138011,"138011 - OVE - IME de Tullins","OVE - IME de Tullins","04 76 07 95 55",10]
["K","Poubelle",null,138012,"138012 - OVE - SESSAD Centre Isère","OVE - SESSAD Centre Isère",476932569,11]
["L","Repose pieds",null,138013,"138013 - OVE - ESAT Les Ateliers du Plantau","OVE - ESAT Les Ateliers du Plantau","04 76 38 06 40",12]
["M","Rideau",null,138020,"138020 - OVE - MAS Les Maisons de Crolles","OVE - MAS Les Maisons de Crolles","04 56 85 20 70",13]
["N","Meuble TV",null,138034,"138034 - OVE - Sessad du Turquet","OVE - Sessad du Turquet",646691563,14]
["P","Accéssoire",null,138035,"138035 - OVE - Sessad de Grenoble","OVE - Sessad de Grenoble",476129770,15]
[null,null,null,138036,"138036 - OVE - Sessad Bièvre-Valloire","OVE - Sessad Bièvre-Valloire",476362267,16]
[null,null,null,138056,"138056 - OVE - DITEP de Vienne","OVE - DITEP de Vienne","04 69 85 82 23",17]
[null,null,null,139001,"139001 - OVE - EAM Ferme du Sillon","OVE - EAM Ferme du Sillon","03 84 51 57 57",18]
[null,null,null,142001,"142001 - OVE - IME André Romanet","OVE - IME André Romanet","04 77 65 84 06",19]
[null,null,null,142002,"142002 - OVE - DIME Jacques Rochas","OVE - DIME Jacques Rochas","04 77 39 21 80",20]
[null,null,null,142003,"142003 - OVE - IME Château de Taron","OVE - IME Château de Taron",477642622,21]
[null,null,null,142004,"142004 - OVE - IME Celadon","OVE - IME Celadon","04 27 56 20 00",22]
[null,null,null,142007,"142007 - OVE - Itep André Romanet","OVE - Itep André Romanet",477716282,23]
[null,null,null,142008,"142008 - OVE - DITEP René Char","OVE - DITEP René Char","04 77 36 16 30",24]
[null,null,null,142009,"142009 - OVE - Sessad Sud Forez","OVE - Sessad Sud Forez","04 77 36 16 38",25]
[null,null,null,142022,"142022 - OVE - Sessad André Romanet","OVE - Sessad André Romanet",477729220,26]
[null,null,null,142032,"142032 - OVE - Sessad Henri Michaud","OVE - Sessad Henri Michaud","04 77 36 16 38",27]
[null,null,null,142033,"142033 - OVE - SESSAD Feurs","OVE - SESSAD Feurs",null,28]
[null,null,null,142034,"142034 - OVE - Sessad Roanne","OVE - Sessad Roanne",477729220,29]
[null,null,null,142046,"142046 - OVE - Itep Marx Dormoy","OVE - Itep Marx Dormoy",477716282,30]
[null,null,null,142060,"142060 - OVE - DEAT 42","OVE - DEAT 42",482285099,31]
[null,null,null,144001,"144001 - OVE - Ditep Institut Lamoricière","OVE - Ditep Institut Lamoricière",240710830,32]
[null,null,null,144002,"144002 - OVE - Sessad Jean Duret","OVE - Sessad Jean Duret",240710830,33]
[null,null,null,144003,"144003 - OVE - CAFS de Nantes","OVE - CAFS de Nantes",240710830,34]
[null,null,null,163001,"163001 - OVE - Ditep de Montferrand","OVE - Ditep de Montferrand","04 73 24 17 61",35]
[null,null,null,163002,"163002 - OVE - Sessad de Montferrand","OVE - Sessad de Montferrand","04 73 24 17 61",36]
[null,null,null,169001,"169001 - OVE - L'AMI","OVE - L'AMI","06 12 52 05 11",37]
[null,null,null,169002,"169002 - OVE - HUDA CHU Chatillon","OVE - HUDA CHU Chatillon","06 25 16 08 69",38]
[null,null,null,169004,"169004 - OVE - Centre d'hébergement Ghibli","OVE - Centre d'hébergement Ghibli",null,39]
[null,null,null,169005,"169005 - OVE - Service d'accueil de jour Zéphyr","OVE - Service d'accueil de jour Zéphyr","06 10 44 47 56",40]
[null,null,null,169008,"169008 - OVE - SEES Roland Champagnat","OVE - SEES Roland Champagnat","04 72 54 09 80",41]
[null,null,null,169009,"169009 - OVE - DIME Jean Fayard","OVE - DIME Jean Fayard",474712238,42]
[null,null,null,169010,"169010 - OVE - IME Mathis Jeune","OVE - IME Mathis Jeune",478458125,43]
[null,null,null,169014,"169014 - OVE - CMPP René Milliex","OVE - CMPP René Milliex",478731154,44]
[null,null,null,169016,"169016 - OVE - SEES Roland Champagnat","OVE - SEES Roland Champagnat","04 72 54 09 80",45]
[null,null,null,169017,"169017 - OVE - DIME Yves Farge","OVE - DIME Yves Farge",472049660,46]
[null,null,null,169018,"169018 - OVE - Sessad à visée professionnelle","OVE - Sessad à visée professionnelle",616729044,47]
[null,null,null,169019,"169019 - OVE - IME Jean-Jacques Rousseau","OVE - IME Jean-Jacques Rousseau",478701155,48]
[null,null,null,169020,"169020 - OVE - DIME Henri Salvat","OVE - DIME Henri Salvat",478462275,49]
[null,null,null,169023,"169023 - OVE - DIME Aline Renard","OVE - DIME Aline Renard",478973075,50]
[null,null,null,169024,"169024 - OVE - Appartements Jean Lonjaret","OVE - Appartements Jean Lonjaret",472787100,51]
[null,null,null,169025,"169025 - OVE - SSEFS Recteur Louis","OVE - SSEFS Recteur Louis",472787100,52]
[null,null,null,169026,"169026 - OVE - SSEFIS Primaire","OVE - SSEFIS Primaire",472787100,53]
[null,null,null,169027,"169027 - OVE - SAVS","OVE - SAVS","04 69 85 82 22",54]
[null,null,null,169029,"169029 - OVE - Ditep L'Ecossais","OVE - Ditep L'Ecossais","04 69 17 90 18",55]
[null,null,null,169031,"169031 - OVE - Sessad Mathis Jeune","OVE - Sessad Mathis Jeune",478457993,56]
[null,null,null,169033,"169033 - OVE - Sessad Aline Renard","OVE - Sessad Aline Renard","04 69 85 92 04",57]
[null,null,null,169034,"169034 - OVE - Sessad Autisme Givors","OVE - Sessad Autisme Givors",478731154,58]
[null,null,null,169037,"169037 - OVE - Esat Myriade - Vaulx-en-Velin","OVE - Esat Myriade - Vaulx-en-Velin",437453780,59]
[null,null,null,169047,"169047 - OVE - Sessad Georges Seguin","OVE - Sessad Georges Seguin",472049644,60]
[null,null,null,169050,"169050 - OVE - Direction générale","OVE - Direction générale",472074200,61]
[null,null,null,169052,"169052 - OVE - IME Val-de-Saône","OVE - IME Val-de-Saône",478981328,62]
[null,null,null,169053,"169053 - OVE - MAS Robert Ramel","OVE - MAS Robert Ramel",437929784,63]
[null,null,null,169055,"169055 - OVE - MAS Michel Chapuis","OVE - MAS Michel Chapuis","0481105861‬",64]
[null,null,null,169056,"169056 - OVE - EAM Stéphane Houdet","OVE - EAM Stéphane Houdet",476129773,65]
[null,null,null,169057,"169057 - OVE - DITEP Georges Seguin","OVE - DITEP Georges Seguin",481105945,66]
[null,null,null,169058,"169058 - OVE - Sessad Marie Curie","OVE - Sessad Marie Curie","06 23 05 69 78",67]
[null,null,null,169059,"169059 - OVE - EAM Stéphane Houdet - Site d'Albigny","OVE - EAM Stéphane Houdet - Site d'Albigny",null,68]
[null,null,null,169060,"169060 - OVE - DEAT 69","OVE - DEAT 69",618847443,69]
[null,null,null,169062,"169062 - Surdi-Info","Surdi-Info",437262731,70]
[null,null,null,169063,"169063 - OVE - Maison Répit Adultes","OVE - Maison Répit Adultes","04 69 85 99 87",71]
[null,null,null,169064,"169064 - OVE - Maison de Repit Enfants","OVE - Maison de Repit Enfants","04 69 85 99 87",72]
[null,null,null,169072,"169072 - OVE - Foyer d'hébergement La Casa","OVE - Foyer d'hébergement La Casa",478613050,73]
[null,null,null,169073,"169073 - OVE - Centre d'accueil de jour Les Villanelles","OVE - Centre d'accueil de jour Les Villanelles",478305950,74]
[null,null,null,169096,"169096 - OVE - Fondation","OVE - Fondation",472074200,75]
[null,null,null,173015,"173015 - OVE - DIME Alain Paquier","OVE - DIME Alain Paquier",479255075,76]
[null,null,null,173043,"173043 - OVE - Sessad Charléty","OVE - Sessad Charléty",479255075,77]
[null,null,null,173062,"173062 - OVE - Ditep d'Albertville","OVE - Ditep d'Albertville",479372537,78]
[null,null,null,173063,"173063 - OVE - Itep de Chambéry","OVE - Itep de Chambéry",479255075,79]
[null,null,null,174011,"174011 - OVE - IME Les Cygnes","OVE - IME Les Cygnes",450830900,80]
[null,null,null,174012,"174012 - OVE - IME Guy Yver","OVE - IME Guy Yver",450445015,81]
[null,null,null,174020,"174020 - OVE - Equipe Mobile CAR Marie Bochet","OVE - Equipe Mobile CAR Marie Bochet","04 56 81 50 13",82]
[null,null,null,174022,"174022 - OVE - Unité de répit CAR Marie Bochet","OVE - Unité de répit CAR Marie Bochet",null,83]
[null,null,null,174023,"174023 - OVE - MECS CAR Marie Bochet","OVE - MECS CAR Marie Bochet","04 56 81 50 13",84]
[null,null,null,174039,"174039 - OVE - Esat Myriade - Faverges","OVE - Esat Myriade - Faverges",450270770,85]
[null,null,null,174041,"174041 - OVE - Sessad Clos-Poisat","OVE - Sessad Clos-Poisat",450830900,86]
[null,null,null,174042,"174042 - OVE - Sessad de Faverges","OVE - Sessad de Faverges",450326470,87]
[null,null,null,174048,"174048 - OVE - Esat Myriade - Thônes","OVE - Esat Myriade - Thônes","04 50 27 07 70",88]
[null,null,null,174054,"174054 - OVE - Itep de Beaulieu","OVE - Itep de Beaulieu",457988060,89]
[null,null,null,174055,"174055 - OVE - Sessad de Beaulieu - Annecy","OVE - Sessad de Beaulieu - Annecy",457988060,90]
[null,null,null,174061,"174061 - OVE - Itep du Léman","OVE - Itep du Léman",450830900,91]
[null,null,null,174070,"174070 - OVE - Appartements de soutien de Faverges","OVE - Appartements de soutien de Faverges","04 37 45 37 81",92]
[null,null,null,175001,"175001 - OVE - FAM Romain Jacob","OVE - FAM Romain Jacob","01 86 21 06 14",93]
[null,null,null,175003,"175003 - OVE - IME Centre Robert Doisneau","OVE - IME Centre Robert Doisneau","01 53 09 83 00",94]
[null,null,null,175004,"175004 - OVE - SESSAD Centre Robert Doisneau","OVE - SESSAD Centre Robert Doisneau",153098300,95]
[null,null,null,175005,"175005 - OVE - MAS Centre Robert Doisneau","OVE - MAS Centre Robert Doisneau","01 53 09 83 00",96]
[null,null,null,175006,"175006 - OVE - FAM Centre Robert Doisneau","OVE - FAM Centre Robert Doisneau","01 53 09 83 00",97]
[null,null,null,175008,"175008 - OVE - EHPAD Centre Robert Doisneau","OVE - EHPAD Centre Robert Doisneau","01.53.09.83.00",98]
[null,null,null,175009,"175009 - OVE - CAJM Centre Robert Doisneau","OVE - CAJM Centre Robert Doisneau","01 53 09 83 00",99]
[null,null,null,175011,"175011 - OVE - Centre Forja","OVE - Centre Forja","01 45 45 60 60",100]
[null,null,null,175013,"175013 - AIRES","AIRES",null,101]
[null,null,null,176001,"176001 - OVE - CMPP Alfred Binet","OVE - CMPP Alfred Binet",235707204,102]
[null,null,null,177001,"177001 - OVE - MAS - Centre de Vie PasseRaile - Magny","OVE - MAS - Centre de Vie PasseRaile - Magny",160042224,103]
[null,null,null,177002,"177002 - OVE - FAM - Centre de Vie PasseRaile - Magny","OVE - FAM - Centre de Vie PasseRaile - Magny",160042224,104]
[null,null,null,177004,"177004 - OVE - DITEP Frot - Agemeph","OVE - DITEP Frot - Agemeph","01 64 34 52 54",105]
[null,null,null,177005,"177005 - OVE - SESSAD Frot - Agemeph","OVE - SESSAD Frot - Agemeph",null,106]
[null,null,null,179001,"179001 - OVE - DIAPASOM SAVS 79","OVE - DIAPASOM SAVS 79","05 49 05 14 69",107]
[null,null,null,184001,"184001 - OVE - FAM La Garance","OVE - FAM La Garance","04 90 37 21 84",108]
[null,null,null,185001,"185001 - OVE - Sessad Galilée","OVE - Sessad Galilée",251607043,109]
[null,null,null,185002,"185002 - OVE - FAM Damien Seguin","OVE - FAM Damien Seguin","02.53.06.70.30",110]
[null,null,null,186001,"186001 - OVE - DIAPASOM SAVS 86","OVE - DIAPASOM SAVS 86","05 49 50 79 93",111]
[null,null,null,186002,"186002 - OVE - DIAPASOM SESSAD","OVE - DIAPASOM SESSAD","05 49 50 79 93",112]
[null,null,null,186003,"186003 - Diapasom - service emploi Formation","Diapasom - service emploi Formation","05 49 50 79 93",113]
[null,null,null,191001,"191001 - OVE - EAM Villebon","OVE - EAM Villebon",null,114]
[null,null,null,195001,"195001 - OVE - Centre de Vie PasseRaile - Herblay","OVE - Centre de Vie PasseRaile - Herblay",134183700,115]
[null,null,null,199001,"199001 - FoodTrucks","FoodTrucks",null,116]
[]
[]
["lisiting commande colonne"]